{"text_format":"1","workbook":"xlsx","n_sheets":16,"sheets":["All Climbers","SHERPAS","HEAD SHERPA","TRACK LEAD","MARKETING TEAM LEADS","MARKETING CLIMBER REPORT","FINANCE TEAM LEADS","FINANCE CLIMBER REPORT","OBHR TEAM LEADS","OBHR CLIMBER REPORT","SUPPLY CHAIN TEAM LEADS","SUPPLY CHAIN CLIMBER REPORT","ENTREPRENEURSHIP TEAM LEADS","ENTREPRENEURSHIP CLIMBER REPORT","COMMENTS TRACKER","Sheet1"],"not_rendered":{"charts":0,"images":0,"macros":1,"external_links":0,"defined_names":4,"comments":0,"pivot_tables":0},"unopened":[],"bounds":{"document_bytes":16777216,"sheet_cells":100000,"rows_first":2000,"rows_last":500,"rows_between":2000,"halvings":0,"cell_chars":16384,"cell_head_chars":4096},"cells_cut":0,"cells_raw":0,"read":"whole","date_system":"1900"}

{"sheet":"All Climbers","index":0,"n_rows":1,"n_cols":11,"rows_kept":1,"cut":false,"hidden":false,"merged":[]}
["Climbers:","Track","Interest","Sherpa","International","Hours worked this week on internship hunt: (Open response)","Number of Job Applications completed this week: (Open response)","Number of Informational Interviews held this week: (Open response)","Number of \"Mock\" practice interviews held this week: (Open response)","Number of Real Interviews held this week: (Open response)","Number of Job Offers received this week: (Open response)"]

{"sheet":"SHERPAS","index":1,"n_rows":1,"n_cols":5,"rows_kept":1,"cut":false,"hidden":false,"merged":[]}
["Sherpa Name","Track","Phone Number","Email Address","Phone Number Extension"]

{"sheet":"HEAD SHERPA","index":2,"n_rows":45,"n_cols":11,"rows_kept":45,"cut":false,"hidden":false,"merged":[]}
[null,"SHERPA PROGRAM TOTALS"]
[]
[null,"WEEK X"]
[null,null,"TRACK LEAD","# CLIMBERS","# INT'l","HRS WORKED","# JOB APPS","# INFO INTERVIEWS","# MOCK INTERVIEWS","# REAL INTERVIEWS","# OFFERS"]
[null,"FINANCE",null,{"$f":"COUNTIF('FINANCE CLIMBER REPORT'!D24:D71,\"Yes\")","v":0},{"$f":"COUNTIF('FINANCE CLIMBER REPORT'!E24:E71,\"Yes\")","v":0},{"$f":"'FINANCE CLIMBER REPORT'!R$71","v":""},{"$f":"'FINANCE CLIMBER REPORT'!S$71","v":""},{"$f":"'FINANCE CLIMBER REPORT'!T$71","v":""},{"$f":"'FINANCE CLIMBER REPORT'!U$71","v":""},{"$f":"'FINANCE CLIMBER REPORT'!V$71","v":""},{"$f":"'FINANCE CLIMBER REPORT'!W$71","v":""}]
[null,"MARKETING",null,{"$f":"COUNTIF('MARKETING CLIMBER REPORT'!D10:D82,\"Yes\")","v":0},{"$f":"COUNTIF('MARKETING CLIMBER REPORT'!E10:E70,\"Yes\")","v":0},{"$f":"'MARKETING CLIMBER REPORT'!F$71","v":""},{"$f":"'MARKETING CLIMBER REPORT'!G$71","v":""},{"$f":"'MARKETING CLIMBER REPORT'!H$71","v":""},{"$f":"'MARKETING CLIMBER REPORT'!I$71","v":""},{"$f":"'MARKETING CLIMBER REPORT'!J$71","v":""},{"$f":"'MARKETING CLIMBER REPORT'!K$71","v":""}]
[null,"OB/HR",null,{"$f":"COUNTIF('OBHR CLIMBER REPORT'!D10:D82,\"Yes\")","v":0},{"$f":"COUNTIF('OBHR CLIMBER REPORT'!E10:E82,\"Yes\")","v":0},{"$f":"'OBHR CLIMBER REPORT'!F$71","v":""},{"$f":"'OBHR CLIMBER REPORT'!G$71","v":""},{"$f":"'OBHR CLIMBER REPORT'!H$71","v":""},{"$f":"'OBHR CLIMBER REPORT'!I$71","v":""},{"$f":"'OBHR CLIMBER REPORT'!J$71","v":""},{"$f":"'OBHR CLIMBER REPORT'!K$71","v":""}]
[null,"SUPPLY CHAIN",null,{"$f":"COUNTIF('SUPPLY CHAIN CLIMBER REPORT'!D10:D80,\"Yes\")","v":0},{"$f":"COUNTIF('SUPPLY CHAIN CLIMBER REPORT'!E10:E80,\"Yes\")","v":0},{"$f":"'SUPPLY CHAIN CLIMBER REPORT'!F71","v":""},{"$f":"'SUPPLY CHAIN CLIMBER REPORT'!G71","v":""},{"$f":"'SUPPLY CHAIN CLIMBER REPORT'!H71","v":""},{"$f":"'SUPPLY CHAIN CLIMBER REPORT'!I71","v":""},{"$f":"'SUPPLY CHAIN CLIMBER REPORT'!J71","v":""},{"$f":"'SUPPLY CHAIN CLIMBER REPORT'!K71","v":""}]
[null,"ENTREPRENEURSHIP",null,{"$f":"COUNTIF('ENTREPRENEURSHIP CLIMBER REPORT'!D10:D82,\"Yes\")","v":0},{"$f":"COUNTIF('ENTREPRENEURSHIP CLIMBER REPORT'!E10:E82,\"Yes\")","v":0},{"$f":"'ENTREPRENEURSHIP CLIMBER REPORT'!F$71","v":""},{"$f":"'ENTREPRENEURSHIP CLIMBER REPORT'!G$71","v":""},{"$f":"'ENTREPRENEURSHIP CLIMBER REPORT'!H$71","v":""},{"$f":"'ENTREPRENEURSHIP CLIMBER REPORT'!I$71","v":""},{"$f":"'ENTREPRENEURSHIP CLIMBER REPORT'!J$71","v":""},{"$f":"'ENTREPRENEURSHIP CLIMBER REPORT'!K$71","v":""}]
[null,"PROGRAM AVE",null,{"$f":"COUNT(MarketingClimber)","v":0},{"$f":"AVERAGE(E5:E9)","v":0},{"$f":"IFERROR(AVERAGE(F5:F9), \"\")","v":""},{"$f":"IFERROR(AVERAGE(G5:G9), \"\")","v":""},{"$f":"IFERROR(AVERAGE(H5:H9), \"\")","v":""},{"$f":"IFERROR(AVERAGE(I5:I9), \"\")","v":""},{"$f":"IFERROR(AVERAGE(J5:J9), \"\")","v":""},{"$f":"IFERROR(AVERAGE(K5:K9), \"\")","v":""}]
[null,"PROGRAM TOTALS",null,{"$f":"SUM(D5:D10)","v":0},{"$f":"SUM(E5:E10)","v":0}]
[]
[null,"CUMULATIVE"]
[null,null,"TRACK LEAD","# CLIMBERS","# INT'l","HRS WORKED","# JOB APPS","# INFO INTERVIEWS","# MOCK INTERVIEWS","# REAL INTERVIEWS","# OFFERS"]
[null,"FINANCE",null,null,{"$f":"COUNTIF('FINANCE CLIMBER REPORT'!E34:E81,\"Yes\")","v":0},{"$f":"'FINANCE CLIMBER REPORT'!R$71","v":""},{"$f":"'FINANCE CLIMBER REPORT'!S$71","v":""},{"$f":"'FINANCE CLIMBER REPORT'!T$71","v":""},{"$f":"'FINANCE CLIMBER REPORT'!U$71","v":""},{"$f":"'FINANCE CLIMBER REPORT'!V$71","v":""},{"$f":"'FINANCE CLIMBER REPORT'!W$71","v":""}]
[null,"MARKETING",null,null,{"$f":"COUNTIF('MARKETING CLIMBER REPORT'!E22:E92,\"Yes\")","v":0},{"$f":"'MARKETING CLIMBER REPORT'!R$71","v":""},{"$f":"'MARKETING CLIMBER REPORT'!S$71","v":""},{"$f":"'MARKETING CLIMBER REPORT'!T$71","v":""},{"$f":"'MARKETING CLIMBER REPORT'!U$71","v":""},{"$f":"'MARKETING CLIMBER REPORT'!V$71","v":""},{"$f":"'MARKETING CLIMBER REPORT'!W$71","v":""}]
[null,"OB/HR",null,null,{"$f":"COUNTIF('OBHR CLIMBER REPORT'!E20:E92,\"Yes\")","v":0},{"$f":"'OBHR CLIMBER REPORT'!R$71","v":""},{"$f":"'OBHR CLIMBER REPORT'!S$71","v":""},{"$f":"'OBHR CLIMBER REPORT'!T$71","v":""},{"$f":"'OBHR CLIMBER REPORT'!U$71","v":""},{"$f":"'OBHR CLIMBER REPORT'!V$71","v":""},{"$f":"'OBHR CLIMBER REPORT'!W$71","v":""}]
[null,"SUPPLY CHAIN",null,null,{"$f":"COUNTIF('SUPPLY CHAIN CLIMBER REPORT'!E20:E90,\"Yes\")","v":0},{"$f":"'SUPPLY CHAIN CLIMBER REPORT'!R71","v":""},{"$f":"'SUPPLY CHAIN CLIMBER REPORT'!S71","v":""},{"$f":"'SUPPLY CHAIN CLIMBER REPORT'!T71","v":""},{"$f":"'SUPPLY CHAIN CLIMBER REPORT'!U71","v":""},{"$f":"'SUPPLY CHAIN CLIMBER REPORT'!V71","v":""},{"$f":"'SUPPLY CHAIN CLIMBER REPORT'!W71","v":""}]
[null,"ENTREPRENEURSHIP",null,null,{"$f":"COUNTIF('ENTREPRENEURSHIP CLIMBER REPORT'!E20:E92,\"Yes\")","v":0},{"$f":"'ENTREPRENEURSHIP CLIMBER REPORT'!R$71","v":""},{"$f":"'ENTREPRENEURSHIP CLIMBER REPORT'!S$71","v":""},{"$f":"'ENTREPRENEURSHIP CLIMBER REPORT'!T$71","v":""},{"$f":"'ENTREPRENEURSHIP CLIMBER REPORT'!U$71","v":""},{"$f":"'ENTREPRENEURSHIP CLIMBER REPORT'!V$71","v":""},{"$f":"'ENTREPRENEURSHIP CLIMBER REPORT'!W$71","v":""}]
[null,"PROGRAM AVE",null,null,{"$f":"AVERAGE(E15:E19)","v":0},{"$f":"IFERROR(AVERAGE(F15:F19), \"\")","v":""},{"$f":"IFERROR(AVERAGE(G15:G19), \"\")","v":""},"","","",""]
[null,"PROGRAM TOTALS",null,{"$f":"SUM(D15:D20)","v":0},{"$f":"SUM(E15:E20)","v":0}]
[]
[]
[]
[]
[null,"INTERNATIONAL STUDENTS"]
[null,"WEEK X"]
[null,null,"TRACK LEAD","# CLIMBERS","# INT'l","HRS WORKED","# JOB APPS","# INFO INTERVIEWS","# MOCK INTERVIEWS","# REAL INTERVIEWS","# OFFERS"]
[null,"FINANCE"]
[null,"MARKETING"]
[null,"OB/HR"]
[null,"SUPPLY CHAIN"]
[null,"ENTREPRENEURSHIP"]
[null,"PROGRAM AVE"]
[null,"PROGRAM TOTALS"]
[]
[null,"CUMULATIVE"]
[null,null,"TRACK LEAD","# CLIMBERS","# INT'l","HRS WORKED","# JOB APPS","# INFO INTERVIEWS","# MOCK INTERVIEWS","# REAL INTERVIEWS","# OFFERS"]
[null,"FINANCE"]
[null,"MARKETING"]
[null,"OB/HR"]
[null,"SUPPLY CHAIN"]
[null,"ENTREPRENEURSHIP"]
[null,"PROGRAM AVE"]
[null,"PROGRAM TOTALS"]

{"sheet":"TRACK LEAD","index":3,"n_rows":62,"n_cols":24,"rows_kept":62,"cut":false,"hidden":true,"merged":[]}
[]
[]
[null,"NOTES:","NEED THIS FOR EACH TRACK - COULD BE A SEPARATE TAB IN THE MASTER WORKBOOK"]
[null,"GRADE:","GREEN, YELLOW, RED"]
[]
[]
[null,"FINANCE TRACK",null,null,null,null,null,null,null,null,null,null,null,"FINANCE TRACK"]
[null,"WEEK X",null,null,null,null,null,null,null,null,null,null,null,"CUMULATIVE"]
[null,null,"TEAM #","TEAM LEAD","INT'L","HRS WORKED","# JOB APPS","# INFO INTERVIEWS","# MOCK INTERVIEWS","# REAL INTERVIEWS","# OFFERS","GRADE",null,null,"TEAM #","TEAM LEAD","INT'L","HRS WORKED","# JOB APPS","# INFO INTERVIEWS","# MOCK INTERVIEWS","# REAL INTERVIEWS","# OFFERS","GRADE"]
[null,"Justin Haslem",null,null,null,null,null,null,null,null,null,null,null,"John S."]
[null,"Alex Herd",null,null,null,null,null,null,null,null,null,null,null,"Bruce C."]
[null,"Spencer Hutchings",null,null,null,null,null,null,null,null,null,null,null,"Michelle M."]
[null,"Marcos Felipe Fonseca",null,null,null,null,null,null,null,null,null,null,null,"Carolyn H."]
[null,"Brice H.",null,null,null,null,null,null,null,null,null,null,null,"Brice H."]
[null,"Steph Curry",null,null,null,null,null,null,null,null,null,null,null,"Steph Curry"]
[null,null,null,null,null,null,null,null,null,null,null,null,null,"etc"]
[null,null,null,null,null,null,null,null,null,null,null,null,null,"etc"]
[null,null,null,null,null,null,null,null,null,null,null,null,null,"etc"]
[null,null,null,null,null,null,null,null,null,null,null,null,null,"etc"]
[null,null,null,null,null,null,null,null,null,null,null,null,null,"etc"]
[null,null,null,null,null,null,null,null,null,null,null,null,null,"etc"]
[null,null,null,null,null,null,null,null,null,null,null,null,null,"etc"]
[null,null,null,null,null,null,null,null,null,null,null,null,null,"etc"]
[null,null,null,null,null,null,null,null,null,null,null,null,null,"etc"]
[null,null,null,null,null,null,null,null,null,null,null,null,null,"etc"]
[null,null,null,null,null,null,null,null,null,null,null,null,null,"etc"]
[null,null,null,null,null,null,null,null,null,null,null,null,null,"etc"]
[null,null,null,null,null,null,null,null,null,null,null,null,null,"etc"]
[null,null,null,null,null,null,null,null,null,null,null,null,null,"etc"]
[null,null,null,null,null,null,null,null,null,null,null,null,null,"etc"]
[null,null,null,null,null,null,null,null,null,null,null,null,null,"etc"]
[null,null,null,null,null,null,null,null,null,null,null,null,null,"etc"]
[null,null,null,null,null,null,null,null,null,null,null,null,null,"etc"]
[null,null,null,null,null,null,null,null,null,null,null,null,null,"etc"]
[null,null,null,null,null,null,null,null,null,null,null,null,null,"etc"]
[null,null,null,null,null,null,null,null,null,null,null,null,null,"etc"]
[null,null,null,null,null,null,null,null,null,null,null,null,null,"etc"]
[null,null,null,null,null,null,null,null,null,null,null,null,null,"etc"]
[null,null,null,null,null,null,null,null,null,null,null,null,null,"etc"]
[null,null,null,null,null,null,null,null,null,null,null,null,null,"etc"]
[null,null,null,null,null,null,null,null,null,null,null,null,null,"etc"]
[null,null,null,null,null,null,null,null,null,null,null,null,null,"etc"]
[null,null,null,null,null,null,null,null,null,null,null,null,null,"etc"]
[null,null,null,null,null,null,null,null,null,null,null,null,null,"etc"]
[null,null,null,null,null,null,null,null,null,null,null,null,null,"etc"]
[null,null,null,null,null,null,null,null,null,null,null,null,null,"etc"]
[null,null,null,null,null,null,null,null,null,null,null,null,null,"etc"]
[null,"TRACK AVE",null,null,null,null,null,null,null,null,null,null,null,"TRACK AVE"]
[]
[]
[]
[null,"TRACK SUMMARY",null,null,null,null,null,null,null,null,null,null,null,"TRACK SUMMARY"]
[null,"WEEK X",null,null,null,null,null,null,null,null,null,null,null,"CUMULATIVE"]
[null,null,"TEAM #","TEAM LEAD","# INT'L","HRS WORKED","# JOB APPS","# INFO INTERVIEWS","# MOCK INTERVIEWS","# REAL INTERVIEWS","# OFFERS","GRADE",null,null,"TEAM #","TEAM LEAD","# INT'L","HRS WORKED","# JOB APPS","# INFO INTERVIEWS","# MOCK INTERVIEWS","# REAL INTERVIEWS","# OFFERS","GRADE"]
[null,"TEAM 1",null,null,null,null,null,null,null,null,null,null,null,"TEAM 1"]
[null,"TEAM 2",null,null,null,null,null,null,null,null,null,null,null,"TEAM 2"]
[null,"TEAM 3",null,null,null,null,null,null,null,null,null,null,null,"TEAM 3"]
[null,"TEAM 4",null,null,null,null,null,null,null,null,null,null,null,"TEAM 4"]
[null,"TEAM 5",null,null,null,null,null,null,null,null,null,null,null,"TEAM 5"]
[null,"TEAM 6",null,null,null,null,null,null,null,null,null,null,null,"TEAM 6"]
[null,"TEAM 7",null,null,null,null,null,null,null,null,null,null,null,"TEAM 7"]
[null,"TRACK AVE",null,null,null,null,null,null,null,null,null,null,null,"TRACK AVE"]

{"sheet":"MARKETING TEAM LEADS","index":4,"n_rows":94,"n_cols":16,"rows_kept":94,"cut":false,"hidden":false,"merged":[]}
[]
[]
[]
[null,"MARKETING CLIMBER KPI"]
[]
[null,"TEAM 1",null,null,null,null,null,null,null,"TEAM 1"]
[null,{"$f":"TODAY()","v":"2016-04-12"},null,null,null,null,null,null,null,"CUMULATIVE"]
[null,"Team Lead Name","HRS WORKED","# JOB APPS","# INFO INTERVIEWS","# MOCK INTERVIEWS","# REAL INTERVIEWS","# OFFERS",null,{"$f":"B8","v":"Team Lead Name"},"HRS WORKED","# JOB APPS","# INFO INTERVIEWS","# MOCK INTERVIEWS","# REAL INTERVIEWS","# OFFERS"]
[null,null,{"$f":"IFERROR(VLOOKUP($B9,'MARKETING CLIMBER REPORT'!$B$10:$L$70,5),\"\")","v":""},{"$f":"IFERROR(VLOOKUP($B9,'MARKETING CLIMBER REPORT'!$B$10:$L$70,6),\"\")","v":""},{"$f":"IFERROR(VLOOKUP($B9,'MARKETING CLIMBER REPORT'!$B$10:$L$70,7),\"\")","v":""},{"$f":"IFERROR(VLOOKUP($B9,'MARKETING CLIMBER REPORT'!$B$10:$L$70,8),\"\")","v":""},{"$f":"IFERROR(VLOOKUP($B9,'MARKETING CLIMBER REPORT'!$B$10:$L$70,9),\"\")","v":""},{"$f":"IFERROR(VLOOKUP($B9,'MARKETING CLIMBER REPORT'!$B$10:$L$70,10),\"\")","v":""},null,{"$f":"IF(B9=\"\",\"\",B9)","v":""},null,{"$f":"IFERROR(VLOOKUP($J9,'MARKETING CLIMBER REPORT'!$N$10:$X$70,6),\"\")","v":""},{"$f":"IFERROR(VLOOKUP($J9,'MARKETING CLIMBER REPORT'!$N$10:$X$70,7),\"\")","v":""},{"$f":"IFERROR(VLOOKUP($J9,'MARKETING CLIMBER REPORT'!$N$10:$X$70,8),\"\")","v":""},{"$f":"IFERROR(VLOOKUP($J9,'MARKETING CLIMBER REPORT'!$N$10:$X$70,9),\"\")","v":""},{"$f":"IFERROR(VLOOKUP($J9,'MARKETING CLIMBER REPORT'!$N$10:$X$70,10),\"\")","v":""}]
[null,null,{"$f":"IFERROR(VLOOKUP($B10,'MARKETING CLIMBER REPORT'!$B$10:$L$70,5),\"\")","v":""},{"$f":"IFERROR(VLOOKUP($B10,'MARKETING CLIMBER REPORT'!$B$10:$L$70,6),\"\")","v":""},{"$f":"IFERROR(VLOOKUP($B10,'MARKETING CLIMBER REPORT'!$B$10:$L$70,7),\"\")","v":""},{"$f":"IFERROR(VLOOKUP($B10,'MARKETING CLIMBER REPORT'!$B$10:$L$70,8),\"\")","v":""},{"$f":"IFERROR(VLOOKUP($B10,'MARKETING CLIMBER REPORT'!$B$10:$L$70,9),\"\")","v":""},{"$f":"IFERROR(VLOOKUP($B10,'MARKETING CLIMBER REPORT'!$B$10:$L$70,10),\"\")","v":""},null,"",null,{"$f":"IFERROR(VLOOKUP($J10,'MARKETING CLIMBER REPORT'!$N$10:$X$70,6),\"\")","v":""},{"$f":"IFERROR(VLOOKUP($J10,'MARKETING CLIMBER REPORT'!$N$10:$X$70,7),\"\")","v":""},{"$f":"IFERROR(VLOOKUP($J10,'MARKETING CLIMBER REPORT'!$N$10:$X$70,8),\"\")","v":""},{"$f":"IFERROR(VLOOKUP($J10,'MARKETING CLIMBER REPORT'!$N$10:$X$70,9),\"\")","v":""},{"$f":"IFERROR(VLOOKUP($J10,'MARKETING CLIMBER REPORT'!$N$10:$X$70,10),\"\")","v":""}]
[null,null,{"$f":"IFERROR(VLOOKUP($B11,'MARKETING CLIMBER REPORT'!$B$10:$L$70,5),\"\")","v":""},{"$f":"IFERROR(VLOOKUP($B11,'MARKETING CLIMBER REPORT'!$B$10:$L$70,6),\"\")","v":""},{"$f":"IFERROR(VLOOKUP($B11,'MARKETING CLIMBER REPORT'!$B$10:$L$70,7),\"\")","v":""},{"$f":"IFERROR(VLOOKUP($B11,'MARKETING CLIMBER REPORT'!$B$10:$L$70,8),\"\")","v":""},{"$f":"IFERROR(VLOOKUP($B11,'MARKETING CLIMBER REPORT'!$B$10:$L$70,9),\"\")","v":""},{"$f":"IFERROR(VLOOKUP($B11,'MARKETING CLIMBER REPORT'!$B$10:$L$70,10),\"\")","v":""},null,"",null,{"$f":"IFERROR(VLOOKUP($J11,'MARKETING CLIMBER REPORT'!$N$10:$X$70,6),\"\")","v":""},{"$f":"IFERROR(VLOOKUP($J11,'MARKETING CLIMBER REPORT'!$N$10:$X$70,7),\"\")","v":""},{"$f":"IFERROR(VLOOKUP($J11,'MARKETING CLIMBER REPORT'!$N$10:$X$70,8),\"\")","v":""},{"$f":"IFERROR(VLOOKUP($J11,'MARKETING CLIMBER REPORT'!$N$10:$X$70,9),\"\")","v":""},{"$f":"IFERROR(VLOOKUP($J11,'MARKETING CLIMBER REPORT'!$N$10:$X$70,10),\"\")","v":""}]
[null,null,{"$f":"IFERROR(VLOOKUP($B12,'MARKETING CLIMBER REPORT'!$B$10:$L$70,5),\"\")","v":""},{"$f":"IFERROR(VLOOKUP($B12,'MARKETING CLIMBER REPORT'!$B$10:$L$70,6),\"\")","v":""},{"$f":"IFERROR(VLOOKUP($B12,'MARKETING CLIMBER REPORT'!$B$10:$L$70,7),\"\")","v":""},{"$f":"IFERROR(VLOOKUP($B12,'MARKETING CLIMBER REPORT'!$B$10:$L$70,8),\"\")","v":""},{"$f":"IFERROR(VLOOKUP($B12,'MARKETING CLIMBER REPORT'!$B$10:$L$70,9),\"\")","v":""},{"$f":"IFERROR(VLOOKUP($B12,'MARKETING CLIMBER REPORT'!$B$10:$L$70,10),\"\")","v":""},null,"",null,{"$f":"IFERROR(VLOOKUP($J12,'MARKETING CLIMBER REPORT'!$N$10:$X$70,6),\"\")","v":""},{"$f":"IFERROR(VLOOKUP($J12,'MARKETING CLIMBER REPORT'!$N$10:$X$70,7),\"\")","v":""},{"$f":"IFERROR(VLOOKUP($J12,'MARKETING CLIMBER REPORT'!$N$10:$X$70,8),\"\")","v":""},{"$f":"IFERROR(VLOOKUP($J12,'MARKETING CLIMBER REPORT'!$N$10:$X$70,9),\"\")","v":""},{"$f":"IFERROR(VLOOKUP($J12,'MARKETING CLIMBER REPORT'!$N$10:$X$70,10),\"\")","v":""}]
[null,null,{"$f":"IFERROR(VLOOKUP($B13,'MARKETING CLIMBER REPORT'!$B$10:$L$70,5),\"\")","v":""},{"$f":"IFERROR(VLOOKUP($B13,'MARKETING CLIMBER REPORT'!$B$10:$L$70,6),\"\")","v":""},{"$f":"IFERROR(VLOOKUP($B13,'MARKETING CLIMBER REPORT'!$B$10:$L$70,7),\"\")","v":""},{"$f":"IFERROR(VLOOKUP($B13,'MARKETING CLIMBER REPORT'!$B$10:$L$70,8),\"\")","v":""},{"$f":"IFERROR(VLOOKUP($B13,'MARKETING CLIMBER REPORT'!$B$10:$L$70,9),\"\")","v":""},{"$f":"IFERROR(VLOOKUP($B13,'MARKETING CLIMBER REPORT'!$B$10:$L$70,10),\"\")","v":""},null,"",null,{"$f":"IFERROR(VLOOKUP($J13,'MARKETING CLIMBER REPORT'!$N$10:$X$70,6),\"\")","v":""},{"$f":"IFERROR(VLOOKUP($J13,'MARKETING CLIMBER REPORT'!$N$10:$X$70,7),\"\")","v":""},{"$f":"IFERROR(VLOOKUP($J13,'MARKETING CLIMBER REPORT'!$N$10:$X$70,8),\"\")","v":""},{"$f":"IFERROR(VLOOKUP($J13,'MARKETING CLIMBER REPORT'!$N$10:$X$70,9),\"\")","v":""},{"$f":"IFERROR(VLOOKUP($J13,'MARKETING CLIMBER REPORT'!$N$10:$X$70,10),\"\")","v":""}]
[null,null,{"$f":"IFERROR(VLOOKUP($B14,'MARKETING CLIMBER REPORT'!$B$10:$L$70,5),\"\")","v":""},{"$f":"IFERROR(VLOOKUP($B14,'MARKETING CLIMBER REPORT'!$B$10:$L$70,6),\"\")","v":""},{"$f":"IFERROR(VLOOKUP($B14,'MARKETING CLIMBER REPORT'!$B$10:$L$70,7),\"\")","v":""},{"$f":"IFERROR(VLOOKUP($B14,'MARKETING CLIMBER REPORT'!$B$10:$L$70,8),\"\")","v":""},{"$f":"IFERROR(VLOOKUP($B14,'MARKETING CLIMBER REPORT'!$B$10:$L$70,9),\"\")","v":""},{"$f":"IFERROR(VLOOKUP($B14,'MARKETING CLIMBER REPORT'!$B$10:$L$70,10),\"\")","v":""},null,"",null,{"$f":"IFERROR(VLOOKUP($J14,'MARKETING CLIMBER REPORT'!$N$10:$X$70,6),\"\")","v":""},{"$f":"IFERROR(VLOOKUP($J14,'MARKETING CLIMBER REPORT'!$N$10:$X$70,7),\"\")","v":""},{"$f":"IFERROR(VLOOKUP($J14,'MARKETING CLIMBER REPORT'!$N$10:$X$70,8),\"\")","v":""},{"$f":"IFERROR(VLOOKUP($J14,'MARKETING CLIMBER REPORT'!$N$10:$X$70,9),\"\")","v":""},{"$f":"IFERROR(VLOOKUP($J14,'MARKETING CLIMBER REPORT'!$N$10:$X$70,10),\"\")","v":""}]
[null,"TEAM 1 AVE",{"$f":"IFERROR(AVERAGE(C9:C14),\"\")","v":""},"","","","","",null,"TEAM 1 AVE",{"$f":"IFERROR(AVERAGE(K9:K14),\"\")","v":""},"","","","",""]
[null,"MKT TRACK AVE",{"$f":"'MARKETING CLIMBER REPORT'!F73","v":0},{"$f":"'MARKETING CLIMBER REPORT'!G73","v":0},{"$f":"'MARKETING CLIMBER REPORT'!H73","v":0},{"$f":"'MARKETING CLIMBER REPORT'!I73","v":0},{"$f":"'MARKETING CLIMBER REPORT'!J73","v":0},{"$f":"'MARKETING CLIMBER REPORT'!K73","v":0},null,{"$f":"B16","v":"MKT TRACK AVE"},{"$f":"'MARKETING CLIMBER REPORT'!F73","v":0},{"$f":"'MARKETING CLIMBER REPORT'!G73","v":0},{"$f":"'MARKETING CLIMBER REPORT'!H73","v":0},{"$f":"'MARKETING CLIMBER REPORT'!I73","v":0},{"$f":"'MARKETING CLIMBER REPORT'!J73","v":0},{"$f":"'MARKETING CLIMBER REPORT'!K73","v":0}]
[]
[]
[null,"TEAM 2",null,null,null,null,null,null,null,"TEAM 2"]
[null,{"$f":"B7","v":"2016-04-12"},null,null,null,null,null,null,null,"CUMULATIVE"]
[null,"Team Lead Name","HRS WORKED","# JOB APPS","# INFO INTERVIEWS","# MOCK INTERVIEWS","# REAL INTERVIEWS","# OFFERS",null,{"$f":"B21","v":"Team Lead Name"},"HRS WORKED","# JOB APPS","# INFO INTERVIEWS","# MOCK INTERVIEWS","# REAL INTERVIEWS","# OFFERS"]
[null,null,{"$f":"IFERROR(VLOOKUP($B22,'MARKETING CLIMBER REPORT'!$B$10:$L$70,5),\"\")","v":""},{"$f":"IFERROR(VLOOKUP($B22,'MARKETING CLIMBER REPORT'!$B$10:$L$70,6),\"\")","v":""},{"$f":"IFERROR(VLOOKUP($B22,'MARKETING CLIMBER REPORT'!$B$10:$L$70,7),\"\")","v":""},{"$f":"IFERROR(VLOOKUP($B22,'MARKETING CLIMBER REPORT'!$B$10:$L$70,8),\"\")","v":""},{"$f":"IFERROR(VLOOKUP($B22,'MARKETING CLIMBER REPORT'!$B$10:$L$70,9),\"\")","v":""},{"$f":"IFERROR(VLOOKUP($B22,'MARKETING CLIMBER REPORT'!$B$10:$L$70,10),\"\")","v":""},null,{"$f":"IF(B22=\"\",\"\",B22)","v":""},null,{"$f":"IFERROR(VLOOKUP($J22,'MARKETING CLIMBER REPORT'!$N$10:$X$70,6),\"\")","v":""},{"$f":"IFERROR(VLOOKUP($J22,'MARKETING CLIMBER REPORT'!$N$10:$X$70,7),\"\")","v":""},{"$f":"IFERROR(VLOOKUP($J22,'MARKETING CLIMBER REPORT'!$N$10:$X$70,8),\"\")","v":""},{"$f":"IFERROR(VLOOKUP($J22,'MARKETING CLIMBER REPORT'!$N$10:$X$70,9),\"\")","v":""},{"$f":"IFERROR(VLOOKUP($J22,'MARKETING CLIMBER REPORT'!$N$10:$X$70,10),\"\")","v":""}]
[null,null,{"$f":"IFERROR(VLOOKUP($B23,'MARKETING CLIMBER REPORT'!$B$10:$L$70,5),\"\")","v":""},{"$f":"IFERROR(VLOOKUP($B23,'MARKETING CLIMBER REPORT'!$B$10:$L$70,6),\"\")","v":""},{"$f":"IFERROR(VLOOKUP($B23,'MARKETING CLIMBER REPORT'!$B$10:$L$70,7),\"\")","v":""},{"$f":"IFERROR(VLOOKUP($B23,'MARKETING CLIMBER REPORT'!$B$10:$L$70,8),\"\")","v":""},{"$f":"IFERROR(VLOOKUP($B23,'MARKETING CLIMBER REPORT'!$B$10:$L$70,9),\"\")","v":""},{"$f":"IFERROR(VLOOKUP($B23,'MARKETING CLIMBER REPORT'!$B$10:$L$70,10),\"\")","v":""},null,"",null,{"$f":"IFERROR(VLOOKUP($J23,'MARKETING CLIMBER REPORT'!$N$10:$X$70,6),\"\")","v":""},{"$f":"IFERROR(VLOOKUP($J23,'MARKETING CLIMBER REPORT'!$N$10:$X$70,7),\"\")","v":""},{"$f":"IFERROR(VLOOKUP($J23,'MARKETING CLIMBER REPORT'!$N$10:$X$70,8),\"\")","v":""},{"$f":"IFERROR(VLOOKUP($J23,'MARKETING CLIMBER REPORT'!$N$10:$X$70,9),\"\")","v":""},{"$f":"IFERROR(VLOOKUP($J23,'MARKETING CLIMBER REPORT'!$N$10:$X$70,10),\"\")","v":""}]
[null,null,{"$f":"IFERROR(VLOOKUP($B24,'MARKETING CLIMBER REPORT'!$B$10:$L$70,5),\"\")","v":""},{"$f":"IFERROR(VLOOKUP($B24,'MARKETING CLIMBER REPORT'!$B$10:$L$70,6),\"\")","v":""},{"$f":"IFERROR(VLOOKUP($B24,'MARKETING CLIMBER REPORT'!$B$10:$L$70,7),\"\")","v":""},{"$f":"IFERROR(VLOOKUP($B24,'MARKETING CLIMBER REPORT'!$B$10:$L$70,8),\"\")","v":""},{"$f":"IFERROR(VLOOKUP($B24,'MARKETING CLIMBER REPORT'!$B$10:$L$70,9),\"\")","v":""},{"$f":"IFERROR(VLOOKUP($B24,'MARKETING CLIMBER REPORT'!$B$10:$L$70,10),\"\")","v":""},null,"",null,{"$f":"IFERROR(VLOOKUP($J24,'MARKETING CLIMBER REPORT'!$N$10:$X$70,6),\"\")","v":""},{"$f":"IFERROR(VLOOKUP($J24,'MARKETING CLIMBER REPORT'!$N$10:$X$70,7),\"\")","v":""},{"$f":"IFERROR(VLOOKUP($J24,'MARKETING CLIMBER REPORT'!$N$10:$X$70,8),\"\")","v":""},{"$f":"IFERROR(VLOOKUP($J24,'MARKETING CLIMBER REPORT'!$N$10:$X$70,9),\"\")","v":""},{"$f":"IFERROR(VLOOKUP($J24,'MARKETING CLIMBER REPORT'!$N$10:$X$70,10),\"\")","v":""}]
[null,null,{"$f":"IFERROR(VLOOKUP($B25,'MARKETING CLIMBER REPORT'!$B$10:$L$70,5),\"\")","v":""},{"$f":"IFERROR(VLOOKUP($B25,'MARKETING CLIMBER REPORT'!$B$10:$L$70,6),\"\")","v":""},{"$f":"IFERROR(VLOOKUP($B25,'MARKETING CLIMBER REPORT'!$B$10:$L$70,7),\"\")","v":""},{"$f":"IFERROR(VLOOKUP($B25,'MARKETING CLIMBER REPORT'!$B$10:$L$70,8),\"\")","v":""},{"$f":"IFERROR(VLOOKUP($B25,'MARKETING CLIMBER REPORT'!$B$10:$L$70,9),\"\")","v":""},{"$f":"IFERROR(VLOOKUP($B25,'MARKETING CLIMBER REPORT'!$B$10:$L$70,10),\"\")","v":""},null,"",null,{"$f":"IFERROR(VLOOKUP($J25,'MARKETING CLIMBER REPORT'!$N$10:$X$70,6),\"\")","v":""},{"$f":"IFERROR(VLOOKUP($J25,'MARKETING CLIMBER REPORT'!$N$10:$X$70,7),\"\")","v":""},{"$f":"IFERROR(VLOOKUP($J25,'MARKETING CLIMBER REPORT'!$N$10:$X$70,8),\"\")","v":""},{"$f":"IFERROR(VLOOKUP($J25,'MARKETING CLIMBER REPORT'!$N$10:$X$70,9),\"\")","v":""},{"$f":"IFERROR(VLOOKUP($J25,'MARKETING CLIMBER REPORT'!$N$10:$X$70,10),\"\")","v":""}]
[null,null,{"$f":"IFERROR(VLOOKUP($B26,'MARKETING CLIMBER REPORT'!$B$10:$L$70,5),\"\")","v":""},{"$f":"IFERROR(VLOOKUP($B26,'MARKETING CLIMBER REPORT'!$B$10:$L$70,6),\"\")","v":""},{"$f":"IFERROR(VLOOKUP($B26,'MARKETING CLIMBER REPORT'!$B$10:$L$70,7),\"\")","v":""},{"$f":"IFERROR(VLOOKUP($B26,'MARKETING CLIMBER REPORT'!$B$10:$L$70,8),\"\")","v":""},{"$f":"IFERROR(VLOOKUP($B26,'MARKETING CLIMBER REPORT'!$B$10:$L$70,9),\"\")","v":""},{"$f":"IFERROR(VLOOKUP($B26,'MARKETING CLIMBER REPORT'!$B$10:$L$70,10),\"\")","v":""},null,"",null,{"$f":"IFERROR(VLOOKUP($J26,'MARKETING CLIMBER REPORT'!$N$10:$X$70,6),\"\")","v":""},{"$f":"IFERROR(VLOOKUP($J26,'MARKETING CLIMBER REPORT'!$N$10:$X$70,7),\"\")","v":""},{"$f":"IFERROR(VLOOKUP($J26,'MARKETING CLIMBER REPORT'!$N$10:$X$70,8),\"\")","v":""},{"$f":"IFERROR(VLOOKUP($J26,'MARKETING CLIMBER REPORT'!$N$10:$X$70,9),\"\")","v":""},{"$f":"IFERROR(VLOOKUP($J26,'MARKETING CLIMBER REPORT'!$N$10:$X$70,10),\"\")","v":""}]
[null,null,{"$f":"IFERROR(VLOOKUP($B27,'MARKETING CLIMBER REPORT'!$B$10:$L$70,5),\"\")","v":""},{"$f":"IFERROR(VLOOKUP($B27,'MARKETING CLIMBER REPORT'!$B$10:$L$70,6),\"\")","v":""},{"$f":"IFERROR(VLOOKUP($B27,'MARKETING CLIMBER REPORT'!$B$10:$L$70,7),\"\")","v":""},{"$f":"IFERROR(VLOOKUP($B27,'MARKETING CLIMBER REPORT'!$B$10:$L$70,8),\"\")","v":""},{"$f":"IFERROR(VLOOKUP($B27,'MARKETING CLIMBER REPORT'!$B$10:$L$70,9),\"\")","v":""},{"$f":"IFERROR(VLOOKUP($B27,'MARKETING CLIMBER REPORT'!$B$10:$L$70,10),\"\")","v":""},null,"",null,{"$f":"IFERROR(VLOOKUP($J27,'MARKETING CLIMBER REPORT'!$N$10:$X$70,6),\"\")","v":""},{"$f":"IFERROR(VLOOKUP($J27,'MARKETING CLIMBER REPORT'!$N$10:$X$70,7),\"\")","v":""},{"$f":"IFERROR(VLOOKUP($J27,'MARKETING CLIMBER REPORT'!$N$10:$X$70,8),\"\")","v":""},{"$f":"IFERROR(VLOOKUP($J27,'MARKETING CLIMBER REPORT'!$N$10:$X$70,9),\"\")","v":""},{"$f":"IFERROR(VLOOKUP($J27,'MARKETING CLIMBER REPORT'!$N$10:$X$70,10),\"\")","v":""}]
[null,"TEAM 1 AVE",{"$f":"IFERROR(AVERAGE(C22:C27),\"\")","v":""},"","","","","",null,"TEAM 1 AVE",{"$f":"IFERROR(AVERAGE(K22:K27),\"\")","v":""},"","","","",""]
[null,{"$f":"B16","v":"MKT TRACK AVE"},{"$f":"K29","v":0},0,0,0,0,0,null,{"$f":"J16","v":"MKT TRACK AVE"},0,0,0,0,0,0]
[]
[]
[null,"TEAM 3",null,null,null,null,null,null,null,"TEAM 3"]
[null,{"$f":"B20","v":"2016-04-12"},null,null,null,null,null,null,null,"CUMULATIVE"]
[null,"Team Lead Name","HRS WORKED","# JOB APPS","# INFO INTERVIEWS","# MOCK INTERVIEWS","# REAL INTERVIEWS","# OFFERS",null,{"$f":"B34","v":"Team Lead Name"},"HRS WORKED","# JOB APPS","# INFO INTERVIEWS","# MOCK INTERVIEWS","# REAL INTERVIEWS","# OFFERS"]
[null,null,{"$f":"IFERROR(VLOOKUP($B35,'MARKETING CLIMBER REPORT'!$B$10:$L$70,5),\"\")","v":""},{"$f":"IFERROR(VLOOKUP($B35,'MARKETING CLIMBER REPORT'!$B$10:$L$70,6),\"\")","v":""},{"$f":"IFERROR(VLOOKUP($B35,'MARKETING CLIMBER REPORT'!$B$10:$L$70,7),\"\")","v":""},{"$f":"IFERROR(VLOOKUP($B35,'MARKETING CLIMBER REPORT'!$B$10:$L$70,8),\"\")","v":""},{"$f":"IFERROR(VLOOKUP($B35,'MARKETING CLIMBER REPORT'!$B$10:$L$70,9),\"\")","v":""},{"$f":"IFERROR(VLOOKUP($B35,'MARKETING CLIMBER REPORT'!$B$10:$L$70,10),\"\")","v":""},null,{"$f":"IF(B35=\"\",\"\",B35)","v":""},null,{"$f":"IFERROR(VLOOKUP($J35,'MARKETING CLIMBER REPORT'!$N$10:$X$70,6),\"\")","v":""},{"$f":"IFERROR(VLOOKUP($J35,'MARKETING CLIMBER REPORT'!$N$10:$X$70,7),\"\")","v":""},{"$f":"IFERROR(VLOOKUP($J35,'MARKETING CLIMBER REPORT'!$N$10:$X$70,8),\"\")","v":""},{"$f":"IFERROR(VLOOKUP($J35,'MARKETING CLIMBER REPORT'!$N$10:$X$70,9),\"\")","v":""},{"$f":"IFERROR(VLOOKUP($J35,'MARKETING CLIMBER REPORT'!$N$10:$X$70,10),\"\")","v":""}]
[null,null,{"$f":"IFERROR(VLOOKUP($B36,'MARKETING CLIMBER REPORT'!$B$10:$L$70,5),\"\")","v":""},{"$f":"IFERROR(VLOOKUP($B36,'MARKETING CLIMBER REPORT'!$B$10:$L$70,6),\"\")","v":""},{"$f":"IFERROR(VLOOKUP($B36,'MARKETING CLIMBER REPORT'!$B$10:$L$70,7),\"\")","v":""},{"$f":"IFERROR(VLOOKUP($B36,'MARKETING CLIMBER REPORT'!$B$10:$L$70,8),\"\")","v":""},{"$f":"IFERROR(VLOOKUP($B36,'MARKETING CLIMBER REPORT'!$B$10:$L$70,9),\"\")","v":""},{"$f":"IFERROR(VLOOKUP($B36,'MARKETING CLIMBER REPORT'!$B$10:$L$70,10),\"\")","v":""},null,"",null,{"$f":"IFERROR(VLOOKUP($J36,'MARKETING CLIMBER REPORT'!$N$10:$X$70,6),\"\")","v":""},{"$f":"IFERROR(VLOOKUP($J36,'MARKETING CLIMBER REPORT'!$N$10:$X$70,7),\"\")","v":""},{"$f":"IFERROR(VLOOKUP($J36,'MARKETING CLIMBER REPORT'!$N$10:$X$70,8),\"\")","v":""},{"$f":"IFERROR(VLOOKUP($J36,'MARKETING CLIMBER REPORT'!$N$10:$X$70,9),\"\")","v":""},{"$f":"IFERROR(VLOOKUP($J36,'MARKETING CLIMBER REPORT'!$N$10:$X$70,10),\"\")","v":""}]
[null,null,{"$f":"IFERROR(VLOOKUP($B37,'MARKETING CLIMBER REPORT'!$B$10:$L$70,5),\"\")","v":""},{"$f":"IFERROR(VLOOKUP($B37,'MARKETING CLIMBER REPORT'!$B$10:$L$70,6),\"\")","v":""},{"$f":"IFERROR(VLOOKUP($B37,'MARKETING CLIMBER REPORT'!$B$10:$L$70,7),\"\")","v":""},{"$f":"IFERROR(VLOOKUP($B37,'MARKETING CLIMBER REPORT'!$B$10:$L$70,8),\"\")","v":""},{"$f":"IFERROR(VLOOKUP($B37,'MARKETING CLIMBER REPORT'!$B$10:$L$70,9),\"\")","v":""},{"$f":"IFERROR(VLOOKUP($B37,'MARKETING CLIMBER REPORT'!$B$10:$L$70,10),\"\")","v":""},null,"",null,{"$f":"IFERROR(VLOOKUP($J37,'MARKETING CLIMBER REPORT'!$N$10:$X$70,6),\"\")","v":""},{"$f":"IFERROR(VLOOKUP($J37,'MARKETING CLIMBER REPORT'!$N$10:$X$70,7),\"\")","v":""},{"$f":"IFERROR(VLOOKUP($J37,'MARKETING CLIMBER REPORT'!$N$10:$X$70,8),\"\")","v":""},{"$f":"IFERROR(VLOOKUP($J37,'MARKETING CLIMBER REPORT'!$N$10:$X$70,9),\"\")","v":""},{"$f":"IFERROR(VLOOKUP($J37,'MARKETING CLIMBER REPORT'!$N$10:$X$70,10),\"\")","v":""}]
[null,null,{"$f":"IFERROR(VLOOKUP($B38,'MARKETING CLIMBER REPORT'!$B$10:$L$70,5),\"\")","v":""},{"$f":"IFERROR(VLOOKUP($B38,'MARKETING CLIMBER REPORT'!$B$10:$L$70,6),\"\")","v":""},{"$f":"IFERROR(VLOOKUP($B38,'MARKETING CLIMBER REPORT'!$B$10:$L$70,7),\"\")","v":""},{"$f":"IFERROR(VLOOKUP($B38,'MARKETING CLIMBER REPORT'!$B$10:$L$70,8),\"\")","v":""},{"$f":"IFERROR(VLOOKUP($B38,'MARKETING CLIMBER REPORT'!$B$10:$L$70,9),\"\")","v":""},{"$f":"IFERROR(VLOOKUP($B38,'MARKETING CLIMBER REPORT'!$B$10:$L$70,10),\"\")","v":""},null,"",null,{"$f":"IFERROR(VLOOKUP($J38,'MARKETING CLIMBER REPORT'!$N$10:$X$70,6),\"\")","v":""},{"$f":"IFERROR(VLOOKUP($J38,'MARKETING CLIMBER REPORT'!$N$10:$X$70,7),\"\")","v":""},{"$f":"IFERROR(VLOOKUP($J38,'MARKETING CLIMBER REPORT'!$N$10:$X$70,8),\"\")","v":""},{"$f":"IFERROR(VLOOKUP($J38,'MARKETING CLIMBER REPORT'!$N$10:$X$70,9),\"\")","v":""},{"$f":"IFERROR(VLOOKUP($J38,'MARKETING CLIMBER REPORT'!$N$10:$X$70,10),\"\")","v":""}]
[null,null,{"$f":"IFERROR(VLOOKUP($B39,'MARKETING CLIMBER REPORT'!$B$10:$L$70,5),\"\")","v":""},{"$f":"IFERROR(VLOOKUP($B39,'MARKETING CLIMBER REPORT'!$B$10:$L$70,6),\"\")","v":""},{"$f":"IFERROR(VLOOKUP($B39,'MARKETING CLIMBER REPORT'!$B$10:$L$70,7),\"\")","v":""},{"$f":"IFERROR(VLOOKUP($B39,'MARKETING CLIMBER REPORT'!$B$10:$L$70,8),\"\")","v":""},{"$f":"IFERROR(VLOOKUP($B39,'MARKETING CLIMBER REPORT'!$B$10:$L$70,9),\"\")","v":""},{"$f":"IFERROR(VLOOKUP($B39,'MARKETING CLIMBER REPORT'!$B$10:$L$70,10),\"\")","v":""},null,"",null,{"$f":"IFERROR(VLOOKUP($J39,'MARKETING CLIMBER REPORT'!$N$10:$X$70,6),\"\")","v":""},{"$f":"IFERROR(VLOOKUP($J39,'MARKETING CLIMBER REPORT'!$N$10:$X$70,7),\"\")","v":""},{"$f":"IFERROR(VLOOKUP($J39,'MARKETING CLIMBER REPORT'!$N$10:$X$70,8),\"\")","v":""},{"$f":"IFERROR(VLOOKUP($J39,'MARKETING CLIMBER REPORT'!$N$10:$X$70,9),\"\")","v":""},{"$f":"IFERROR(VLOOKUP($J39,'MARKETING CLIMBER REPORT'!$N$10:$X$70,10),\"\")","v":""}]
[null,null,{"$f":"IFERROR(VLOOKUP($B40,'MARKETING CLIMBER REPORT'!$B$10:$L$70,5),\"\")","v":""},{"$f":"IFERROR(VLOOKUP($B40,'MARKETING CLIMBER REPORT'!$B$10:$L$70,6),\"\")","v":""},{"$f":"IFERROR(VLOOKUP($B40,'MARKETING CLIMBER REPORT'!$B$10:$L$70,7),\"\")","v":""},{"$f":"IFERROR(VLOOKUP($B40,'MARKETING CLIMBER REPORT'!$B$10:$L$70,8),\"\")","v":""},{"$f":"IFERROR(VLOOKUP($B40,'MARKETING CLIMBER REPORT'!$B$10:$L$70,9),\"\")","v":""},{"$f":"IFERROR(VLOOKUP($B40,'MARKETING CLIMBER REPORT'!$B$10:$L$70,10),\"\")","v":""},null,"",null,{"$f":"IFERROR(VLOOKUP($J40,'MARKETING CLIMBER REPORT'!$N$10:$X$70,6),\"\")","v":""},{"$f":"IFERROR(VLOOKUP($J40,'MARKETING CLIMBER REPORT'!$N$10:$X$70,7),\"\")","v":""},{"$f":"IFERROR(VLOOKUP($J40,'MARKETING CLIMBER REPORT'!$N$10:$X$70,8),\"\")","v":""},{"$f":"IFERROR(VLOOKUP($J40,'MARKETING CLIMBER REPORT'!$N$10:$X$70,9),\"\")","v":""},{"$f":"IFERROR(VLOOKUP($J40,'MARKETING CLIMBER REPORT'!$N$10:$X$70,10),\"\")","v":""}]
[null,"TEAM 1 AVE",{"$f":"IFERROR(AVERAGE(C35:C40),\"\")","v":""},"","","","","",null,"TEAM 1 AVE",{"$f":"IFERROR(AVERAGE(K35:K40),\"\")","v":""},"","","","",""]
[null,{"$f":"B29","v":"MKT TRACK AVE"},{"$f":"C29","v":0},0,0,0,0,0,null,{"$f":"J29","v":"MKT TRACK AVE"},0,0,0,0,0,0]
[]
[]
[null,"TEAM 4",null,null,null,null,null,null,null,"TEAM 4"]
[null,{"$f":"B33","v":"2016-04-12"},null,null,null,null,null,null,null,"CUMULATIVE"]
[null,"Team Lead Name","HRS WORKED","# JOB APPS","# INFO INTERVIEWS","# MOCK INTERVIEWS","# REAL INTERVIEWS","# OFFERS",null,{"$f":"B47","v":"Team Lead Name"},"HRS WORKED","# JOB APPS","# INFO INTERVIEWS","# MOCK INTERVIEWS","# REAL INTERVIEWS","# OFFERS"]
[null,null,{"$f":"IFERROR(VLOOKUP($B48,'MARKETING CLIMBER REPORT'!$B$10:$L$70,5),\"\")","v":""},{"$f":"IFERROR(VLOOKUP($B48,'MARKETING CLIMBER REPORT'!$B$10:$L$70,6),\"\")","v":""},{"$f":"IFERROR(VLOOKUP($B48,'MARKETING CLIMBER REPORT'!$B$10:$L$70,7),\"\")","v":""},{"$f":"IFERROR(VLOOKUP($B48,'MARKETING CLIMBER REPORT'!$B$10:$L$70,8),\"\")","v":""},{"$f":"IFERROR(VLOOKUP($B48,'MARKETING CLIMBER REPORT'!$B$10:$L$70,9),\"\")","v":""},{"$f":"IFERROR(VLOOKUP($B48,'MARKETING CLIMBER REPORT'!$B$10:$L$70,10),\"\")","v":""},null,{"$f":"IF(B48=\"\",\"\",B48)","v":""},null,{"$f":"IFERROR(VLOOKUP($J48,'MARKETING CLIMBER REPORT'!$N$10:$X$70,6),\"\")","v":""},{"$f":"IFERROR(VLOOKUP($J48,'MARKETING CLIMBER REPORT'!$N$10:$X$70,7),\"\")","v":""},{"$f":"IFERROR(VLOOKUP($J48,'MARKETING CLIMBER REPORT'!$N$10:$X$70,8),\"\")","v":""},{"$f":"IFERROR(VLOOKUP($J48,'MARKETING CLIMBER REPORT'!$N$10:$X$70,9),\"\")","v":""},{"$f":"IFERROR(VLOOKUP($J48,'MARKETING CLIMBER REPORT'!$N$10:$X$70,10),\"\")","v":""}]
[null,null,{"$f":"IFERROR(VLOOKUP($B49,'MARKETING CLIMBER REPORT'!$B$10:$L$70,5),\"\")","v":""},{"$f":"IFERROR(VLOOKUP($B49,'MARKETING CLIMBER REPORT'!$B$10:$L$70,6),\"\")","v":""},{"$f":"IFERROR(VLOOKUP($B49,'MARKETING CLIMBER REPORT'!$B$10:$L$70,7),\"\")","v":""},{"$f":"IFERROR(VLOOKUP($B49,'MARKETING CLIMBER REPORT'!$B$10:$L$70,8),\"\")","v":""},{"$f":"IFERROR(VLOOKUP($B49,'MARKETING CLIMBER REPORT'!$B$10:$L$70,9),\"\")","v":""},{"$f":"IFERROR(VLOOKUP($B49,'MARKETING CLIMBER REPORT'!$B$10:$L$70,10),\"\")","v":""},null,"",null,{"$f":"IFERROR(VLOOKUP($J49,'MARKETING CLIMBER REPORT'!$N$10:$X$70,6),\"\")","v":""},{"$f":"IFERROR(VLOOKUP($J49,'MARKETING CLIMBER REPORT'!$N$10:$X$70,7),\"\")","v":""},{"$f":"IFERROR(VLOOKUP($J49,'MARKETING CLIMBER REPORT'!$N$10:$X$70,8),\"\")","v":""},{"$f":"IFERROR(VLOOKUP($J49,'MARKETING CLIMBER REPORT'!$N$10:$X$70,9),\"\")","v":""},{"$f":"IFERROR(VLOOKUP($J49,'MARKETING CLIMBER REPORT'!$N$10:$X$70,10),\"\")","v":""}]
[null,null,{"$f":"IFERROR(VLOOKUP($B50,'MARKETING CLIMBER REPORT'!$B$10:$L$70,5),\"\")","v":""},{"$f":"IFERROR(VLOOKUP($B50,'MARKETING CLIMBER REPORT'!$B$10:$L$70,6),\"\")","v":""},{"$f":"IFERROR(VLOOKUP($B50,'MARKETING CLIMBER REPORT'!$B$10:$L$70,7),\"\")","v":""},{"$f":"IFERROR(VLOOKUP($B50,'MARKETING CLIMBER REPORT'!$B$10:$L$70,8),\"\")","v":""},{"$f":"IFERROR(VLOOKUP($B50,'MARKETING CLIMBER REPORT'!$B$10:$L$70,9),\"\")","v":""},{"$f":"IFERROR(VLOOKUP($B50,'MARKETING CLIMBER REPORT'!$B$10:$L$70,10),\"\")","v":""},null,"",null,{"$f":"IFERROR(VLOOKUP($J50,'MARKETING CLIMBER REPORT'!$N$10:$X$70,6),\"\")","v":""},{"$f":"IFERROR(VLOOKUP($J50,'MARKETING CLIMBER REPORT'!$N$10:$X$70,7),\"\")","v":""},{"$f":"IFERROR(VLOOKUP($J50,'MARKETING CLIMBER REPORT'!$N$10:$X$70,8),\"\")","v":""},{"$f":"IFERROR(VLOOKUP($J50,'MARKETING CLIMBER REPORT'!$N$10:$X$70,9),\"\")","v":""},{"$f":"IFERROR(VLOOKUP($J50,'MARKETING CLIMBER REPORT'!$N$10:$X$70,10),\"\")","v":""}]
[null,null,{"$f":"IFERROR(VLOOKUP($B51,'MARKETING CLIMBER REPORT'!$B$10:$L$70,5),\"\")","v":""},{"$f":"IFERROR(VLOOKUP($B51,'MARKETING CLIMBER REPORT'!$B$10:$L$70,6),\"\")","v":""},{"$f":"IFERROR(VLOOKUP($B51,'MARKETING CLIMBER REPORT'!$B$10:$L$70,7),\"\")","v":""},{"$f":"IFERROR(VLOOKUP($B51,'MARKETING CLIMBER REPORT'!$B$10:$L$70,8),\"\")","v":""},{"$f":"IFERROR(VLOOKUP($B51,'MARKETING CLIMBER REPORT'!$B$10:$L$70,9),\"\")","v":""},{"$f":"IFERROR(VLOOKUP($B51,'MARKETING CLIMBER REPORT'!$B$10:$L$70,10),\"\")","v":""},null,"",null,{"$f":"IFERROR(VLOOKUP($J51,'MARKETING CLIMBER REPORT'!$N$10:$X$70,6),\"\")","v":""},{"$f":"IFERROR(VLOOKUP($J51,'MARKETING CLIMBER REPORT'!$N$10:$X$70,7),\"\")","v":""},{"$f":"IFERROR(VLOOKUP($J51,'MARKETING CLIMBER REPORT'!$N$10:$X$70,8),\"\")","v":""},{"$f":"IFERROR(VLOOKUP($J51,'MARKETING CLIMBER REPORT'!$N$10:$X$70,9),\"\")","v":""},{"$f":"IFERROR(VLOOKUP($J51,'MARKETING CLIMBER REPORT'!$N$10:$X$70,10),\"\")","v":""}]
[null,null,{"$f":"IFERROR(VLOOKUP($B52,'MARKETING CLIMBER REPORT'!$B$10:$L$70,5),\"\")","v":""},{"$f":"IFERROR(VLOOKUP($B52,'MARKETING CLIMBER REPORT'!$B$10:$L$70,6),\"\")","v":""},{"$f":"IFERROR(VLOOKUP($B52,'MARKETING CLIMBER REPORT'!$B$10:$L$70,7),\"\")","v":""},{"$f":"IFERROR(VLOOKUP($B52,'MARKETING CLIMBER REPORT'!$B$10:$L$70,8),\"\")","v":""},{"$f":"IFERROR(VLOOKUP($B52,'MARKETING CLIMBER REPORT'!$B$10:$L$70,9),\"\")","v":""},{"$f":"IFERROR(VLOOKUP($B52,'MARKETING CLIMBER REPORT'!$B$10:$L$70,10),\"\")","v":""},null,"",null,{"$f":"IFERROR(VLOOKUP($J52,'MARKETING CLIMBER REPORT'!$N$10:$X$70,6),\"\")","v":""},{"$f":"IFERROR(VLOOKUP($J52,'MARKETING CLIMBER REPORT'!$N$10:$X$70,7),\"\")","v":""},{"$f":"IFERROR(VLOOKUP($J52,'MARKETING CLIMBER REPORT'!$N$10:$X$70,8),\"\")","v":""},{"$f":"IFERROR(VLOOKUP($J52,'MARKETING CLIMBER REPORT'!$N$10:$X$70,9),\"\")","v":""},{"$f":"IFERROR(VLOOKUP($J52,'MARKETING CLIMBER REPORT'!$N$10:$X$70,10),\"\")","v":""}]
[null,null,{"$f":"IFERROR(VLOOKUP($B53,'MARKETING CLIMBER REPORT'!$B$10:$L$70,5),\"\")","v":""},{"$f":"IFERROR(VLOOKUP($B53,'MARKETING CLIMBER REPORT'!$B$10:$L$70,6),\"\")","v":""},{"$f":"IFERROR(VLOOKUP($B53,'MARKETING CLIMBER REPORT'!$B$10:$L$70,7),\"\")","v":""},{"$f":"IFERROR(VLOOKUP($B53,'MARKETING CLIMBER REPORT'!$B$10:$L$70,8),\"\")","v":""},{"$f":"IFERROR(VLOOKUP($B53,'MARKETING CLIMBER REPORT'!$B$10:$L$70,9),\"\")","v":""},{"$f":"IFERROR(VLOOKUP($B53,'MARKETING CLIMBER REPORT'!$B$10:$L$70,10),\"\")","v":""},null,"",null,{"$f":"IFERROR(VLOOKUP($J53,'MARKETING CLIMBER REPORT'!$N$10:$X$70,6),\"\")","v":""},{"$f":"IFERROR(VLOOKUP($J53,'MARKETING CLIMBER REPORT'!$N$10:$X$70,7),\"\")","v":""},{"$f":"IFERROR(VLOOKUP($J53,'MARKETING CLIMBER REPORT'!$N$10:$X$70,8),\"\")","v":""},{"$f":"IFERROR(VLOOKUP($J53,'MARKETING CLIMBER REPORT'!$N$10:$X$70,9),\"\")","v":""},{"$f":"IFERROR(VLOOKUP($J53,'MARKETING CLIMBER REPORT'!$N$10:$X$70,10),\"\")","v":""}]
[null,"TEAM 1 AVE",{"$f":"IFERROR(AVERAGE(C48:C53),\"\")","v":""},"","","","","",null,"TEAM 1 AVE",{"$f":"IFERROR(AVERAGE(K48:K53),\"\")","v":""},"","","","",""]
[null,{"$f":"B42","v":"MKT TRACK AVE"},{"$f":"K42","v":0},0,0,0,0,0,null,{"$f":"J42","v":"MKT TRACK AVE"},0,0,0,0,0,0]
[]
[]
[null,"TEAM 5",null,null,null,null,null,null,null,"TEAM 5"]
[null,{"$f":"B46","v":"2016-04-12"},null,null,null,null,null,null,null,"CUMULATIVE"]
[null,"Team Lead Name","HRS WORKED","# JOB APPS","# INFO INTERVIEWS","# MOCK INTERVIEWS","# REAL INTERVIEWS","# OFFERS",null,{"$f":"B60","v":"Team Lead Name"},"HRS WORKED","# JOB APPS","# INFO INTERVIEWS","# MOCK INTERVIEWS","# REAL INTERVIEWS","# OFFERS"]
[null,null,{"$f":"IFERROR(VLOOKUP($B61,'MARKETING CLIMBER REPORT'!$B$10:$L$70,5),\"\")","v":""},{"$f":"IFERROR(VLOOKUP($B61,'MARKETING CLIMBER REPORT'!$B$10:$L$70,6),\"\")","v":""},{"$f":"IFERROR(VLOOKUP($B61,'MARKETING CLIMBER REPORT'!$B$10:$L$70,7),\"\")","v":""},{"$f":"IFERROR(VLOOKUP($B61,'MARKETING CLIMBER REPORT'!$B$10:$L$70,8),\"\")","v":""},{"$f":"IFERROR(VLOOKUP($B61,'MARKETING CLIMBER REPORT'!$B$10:$L$70,9),\"\")","v":""},{"$f":"IFERROR(VLOOKUP($B61,'MARKETING CLIMBER REPORT'!$B$10:$L$70,10),\"\")","v":""},null,{"$f":"IF(B61=\"\",\"\",B61)","v":""},null,{"$f":"IFERROR(VLOOKUP($J61,'MARKETING CLIMBER REPORT'!$N$10:$X$70,6),\"\")","v":""},{"$f":"IFERROR(VLOOKUP($J61,'MARKETING CLIMBER REPORT'!$N$10:$X$70,7),\"\")","v":""},{"$f":"IFERROR(VLOOKUP($J61,'MARKETING CLIMBER REPORT'!$N$10:$X$70,8),\"\")","v":""},{"$f":"IFERROR(VLOOKUP($J61,'MARKETING CLIMBER REPORT'!$N$10:$X$70,9),\"\")","v":""},{"$f":"IFERROR(VLOOKUP($J61,'MARKETING CLIMBER REPORT'!$N$10:$X$70,10),\"\")","v":""}]
[null,null,{"$f":"IFERROR(VLOOKUP($B62,'MARKETING CLIMBER REPORT'!$B$10:$L$70,5),\"\")","v":""},{"$f":"IFERROR(VLOOKUP($B62,'MARKETING CLIMBER REPORT'!$B$10:$L$70,6),\"\")","v":""},{"$f":"IFERROR(VLOOKUP($B62,'MARKETING CLIMBER REPORT'!$B$10:$L$70,7),\"\")","v":""},{"$f":"IFERROR(VLOOKUP($B62,'MARKETING CLIMBER REPORT'!$B$10:$L$70,8),\"\")","v":""},{"$f":"IFERROR(VLOOKUP($B62,'MARKETING CLIMBER REPORT'!$B$10:$L$70,9),\"\")","v":""},{"$f":"IFERROR(VLOOKUP($B62,'MARKETING CLIMBER REPORT'!$B$10:$L$70,10),\"\")","v":""},null,"",null,{"$f":"IFERROR(VLOOKUP($J62,'MARKETING CLIMBER REPORT'!$N$10:$X$70,6),\"\")","v":""},{"$f":"IFERROR(VLOOKUP($J62,'MARKETING CLIMBER REPORT'!$N$10:$X$70,7),\"\")","v":""},{"$f":"IFERROR(VLOOKUP($J62,'MARKETING CLIMBER REPORT'!$N$10:$X$70,8),\"\")","v":""},{"$f":"IFERROR(VLOOKUP($J62,'MARKETING CLIMBER REPORT'!$N$10:$X$70,9),\"\")","v":""},{"$f":"IFERROR(VLOOKUP($J62,'MARKETING CLIMBER REPORT'!$N$10:$X$70,10),\"\")","v":""}]
[null,null,{"$f":"IFERROR(VLOOKUP($B63,'MARKETING CLIMBER REPORT'!$B$10:$L$70,5),\"\")","v":""},{"$f":"IFERROR(VLOOKUP($B63,'MARKETING CLIMBER REPORT'!$B$10:$L$70,6),\"\")","v":""},{"$f":"IFERROR(VLOOKUP($B63,'MARKETING CLIMBER REPORT'!$B$10:$L$70,7),\"\")","v":""},{"$f":"IFERROR(VLOOKUP($B63,'MARKETING CLIMBER REPORT'!$B$10:$L$70,8),\"\")","v":""},{"$f":"IFERROR(VLOOKUP($B63,'MARKETING CLIMBER REPORT'!$B$10:$L$70,9),\"\")","v":""},{"$f":"IFERROR(VLOOKUP($B63,'MARKETING CLIMBER REPORT'!$B$10:$L$70,10),\"\")","v":""},null,"",null,{"$f":"IFERROR(VLOOKUP($J63,'MARKETING CLIMBER REPORT'!$N$10:$X$70,6),\"\")","v":""},{"$f":"IFERROR(VLOOKUP($J63,'MARKETING CLIMBER REPORT'!$N$10:$X$70,7),\"\")","v":""},{"$f":"IFERROR(VLOOKUP($J63,'MARKETING CLIMBER REPORT'!$N$10:$X$70,8),\"\")","v":""},{"$f":"IFERROR(VLOOKUP($J63,'MARKETING CLIMBER REPORT'!$N$10:$X$70,9),\"\")","v":""},{"$f":"IFERROR(VLOOKUP($J63,'MARKETING CLIMBER REPORT'!$N$10:$X$70,10),\"\")","v":""}]
[null,null,{"$f":"IFERROR(VLOOKUP($B64,'MARKETING CLIMBER REPORT'!$B$10:$L$70,5),\"\")","v":""},{"$f":"IFERROR(VLOOKUP($B64,'MARKETING CLIMBER REPORT'!$B$10:$L$70,6),\"\")","v":""},{"$f":"IFERROR(VLOOKUP($B64,'MARKETING CLIMBER REPORT'!$B$10:$L$70,7),\"\")","v":""},{"$f":"IFERROR(VLOOKUP($B64,'MARKETING CLIMBER REPORT'!$B$10:$L$70,8),\"\")","v":""},{"$f":"IFERROR(VLOOKUP($B64,'MARKETING CLIMBER REPORT'!$B$10:$L$70,9),\"\")","v":""},{"$f":"IFERROR(VLOOKUP($B64,'MARKETING CLIMBER REPORT'!$B$10:$L$70,10),\"\")","v":""},null,"",null,{"$f":"IFERROR(VLOOKUP($J64,'MARKETING CLIMBER REPORT'!$N$10:$X$70,6),\"\")","v":""},{"$f":"IFERROR(VLOOKUP($J64,'MARKETING CLIMBER REPORT'!$N$10:$X$70,7),\"\")","v":""},{"$f":"IFERROR(VLOOKUP($J64,'MARKETING CLIMBER REPORT'!$N$10:$X$70,8),\"\")","v":""},{"$f":"IFERROR(VLOOKUP($J64,'MARKETING CLIMBER REPORT'!$N$10:$X$70,9),\"\")","v":""},{"$f":"IFERROR(VLOOKUP($J64,'MARKETING CLIMBER REPORT'!$N$10:$X$70,10),\"\")","v":""}]
[null,null,{"$f":"IFERROR(VLOOKUP($B65,'MARKETING CLIMBER REPORT'!$B$10:$L$70,5),\"\")","v":""},{"$f":"IFERROR(VLOOKUP($B65,'MARKETING CLIMBER REPORT'!$B$10:$L$70,6),\"\")","v":""},{"$f":"IFERROR(VLOOKUP($B65,'MARKETING CLIMBER REPORT'!$B$10:$L$70,7),\"\")","v":""},{"$f":"IFERROR(VLOOKUP($B65,'MARKETING CLIMBER REPORT'!$B$10:$L$70,8),\"\")","v":""},{"$f":"IFERROR(VLOOKUP($B65,'MARKETING CLIMBER REPORT'!$B$10:$L$70,9),\"\")","v":""},{"$f":"IFERROR(VLOOKUP($B65,'MARKETING CLIMBER REPORT'!$B$10:$L$70,10),\"\")","v":""},null,"",null,{"$f":"IFERROR(VLOOKUP($J65,'MARKETING CLIMBER REPORT'!$N$10:$X$70,6),\"\")","v":""},{"$f":"IFERROR(VLOOKUP($J65,'MARKETING CLIMBER REPORT'!$N$10:$X$70,7),\"\")","v":""},{"$f":"IFERROR(VLOOKUP($J65,'MARKETING CLIMBER REPORT'!$N$10:$X$70,8),\"\")","v":""},{"$f":"IFERROR(VLOOKUP($J65,'MARKETING CLIMBER REPORT'!$N$10:$X$70,9),\"\")","v":""},{"$f":"IFERROR(VLOOKUP($J65,'MARKETING CLIMBER REPORT'!$N$10:$X$70,10),\"\")","v":""}]
[null,null,{"$f":"IFERROR(VLOOKUP($B66,'MARKETING CLIMBER REPORT'!$B$10:$L$70,5),\"\")","v":""},{"$f":"IFERROR(VLOOKUP($B66,'MARKETING CLIMBER REPORT'!$B$10:$L$70,6),\"\")","v":""},{"$f":"IFERROR(VLOOKUP($B66,'MARKETING CLIMBER REPORT'!$B$10:$L$70,7),\"\")","v":""},{"$f":"IFERROR(VLOOKUP($B66,'MARKETING CLIMBER REPORT'!$B$10:$L$70,8),\"\")","v":""},{"$f":"IFERROR(VLOOKUP($B66,'MARKETING CLIMBER REPORT'!$B$10:$L$70,9),\"\")","v":""},{"$f":"IFERROR(VLOOKUP($B66,'MARKETING CLIMBER REPORT'!$B$10:$L$70,10),\"\")","v":""},null,"",null,{"$f":"IFERROR(VLOOKUP($J66,'MARKETING CLIMBER REPORT'!$N$10:$X$70,6),\"\")","v":""},{"$f":"IFERROR(VLOOKUP($J66,'MARKETING CLIMBER REPORT'!$N$10:$X$70,7),\"\")","v":""},{"$f":"IFERROR(VLOOKUP($J66,'MARKETING CLIMBER REPORT'!$N$10:$X$70,8),\"\")","v":""},{"$f":"IFERROR(VLOOKUP($J66,'MARKETING CLIMBER REPORT'!$N$10:$X$70,9),\"\")","v":""},{"$f":"IFERROR(VLOOKUP($J66,'MARKETING CLIMBER REPORT'!$N$10:$X$70,10),\"\")","v":""}]
[null,"TEAM 1 AVE",{"$f":"IFERROR(AVERAGE(C61:C66),\"\")","v":""},"","","","","",null,"TEAM 1 AVE",{"$f":"IFERROR(AVERAGE(K61:K66),\"\")","v":""},"","","","",""]
[null,{"$f":"B55","v":"MKT TRACK AVE"},0,0,0,0,0,0,null,{"$f":"J55","v":"MKT TRACK AVE"},0,0,0,0,0,0]
[]
[]
[null,"TEAM 6",null,null,null,null,null,null,null,"TEAM 6"]
[null,{"$f":"B59","v":"2016-04-12"},null,null,null,null,null,null,null,"CUMULATIVE"]
[null,"Team Lead Name","HRS WORKED","# JOB APPS","# INFO INTERVIEWS","# MOCK INTERVIEWS","# REAL INTERVIEWS","# OFFERS",null,{"$f":"B73","v":"Team Lead Name"},"HRS WORKED","# JOB APPS","# INFO INTERVIEWS","# MOCK INTERVIEWS","# REAL INTERVIEWS","# OFFERS"]
[null,null,{"$f":"IFERROR(VLOOKUP($B74,'MARKETING CLIMBER REPORT'!$B$10:$L$70,5),\"\")","v":""},{"$f":"IFERROR(VLOOKUP($B74,'MARKETING CLIMBER REPORT'!$B$10:$L$70,6),\"\")","v":""},{"$f":"IFERROR(VLOOKUP($B74,'MARKETING CLIMBER REPORT'!$B$10:$L$70,7),\"\")","v":""},{"$f":"IFERROR(VLOOKUP($B74,'MARKETING CLIMBER REPORT'!$B$10:$L$70,8),\"\")","v":""},{"$f":"IFERROR(VLOOKUP($B74,'MARKETING CLIMBER REPORT'!$B$10:$L$70,9),\"\")","v":""},{"$f":"IFERROR(VLOOKUP($B74,'MARKETING CLIMBER REPORT'!$B$10:$L$70,10),\"\")","v":""},null,{"$f":"IF(B74=\"\",\"\",B74)","v":""},null,{"$f":"IFERROR(VLOOKUP($J74,'MARKETING CLIMBER REPORT'!$N$10:$X$70,6),\"\")","v":""},{"$f":"IFERROR(VLOOKUP($J74,'MARKETING CLIMBER REPORT'!$N$10:$X$70,7),\"\")","v":""},{"$f":"IFERROR(VLOOKUP($J74,'MARKETING CLIMBER REPORT'!$N$10:$X$70,8),\"\")","v":""},{"$f":"IFERROR(VLOOKUP($J74,'MARKETING CLIMBER REPORT'!$N$10:$X$70,9),\"\")","v":""},{"$f":"IFERROR(VLOOKUP($J74,'MARKETING CLIMBER REPORT'!$N$10:$X$70,10),\"\")","v":""}]
[null,null,{"$f":"IFERROR(VLOOKUP($B75,'MARKETING CLIMBER REPORT'!$B$10:$L$70,5),\"\")","v":""},{"$f":"IFERROR(VLOOKUP($B75,'MARKETING CLIMBER REPORT'!$B$10:$L$70,6),\"\")","v":""},{"$f":"IFERROR(VLOOKUP($B75,'MARKETING CLIMBER REPORT'!$B$10:$L$70,7),\"\")","v":""},{"$f":"IFERROR(VLOOKUP($B75,'MARKETING CLIMBER REPORT'!$B$10:$L$70,8),\"\")","v":""},{"$f":"IFERROR(VLOOKUP($B75,'MARKETING CLIMBER REPORT'!$B$10:$L$70,9),\"\")","v":""},{"$f":"IFERROR(VLOOKUP($B75,'MARKETING CLIMBER REPORT'!$B$10:$L$70,10),\"\")","v":""},null,"",null,{"$f":"IFERROR(VLOOKUP($J75,'MARKETING CLIMBER REPORT'!$N$10:$X$70,6),\"\")","v":""},{"$f":"IFERROR(VLOOKUP($J75,'MARKETING CLIMBER REPORT'!$N$10:$X$70,7),\"\")","v":""},{"$f":"IFERROR(VLOOKUP($J75,'MARKETING CLIMBER REPORT'!$N$10:$X$70,8),\"\")","v":""},{"$f":"IFERROR(VLOOKUP($J75,'MARKETING CLIMBER REPORT'!$N$10:$X$70,9),\"\")","v":""},{"$f":"IFERROR(VLOOKUP($J75,'MARKETING CLIMBER REPORT'!$N$10:$X$70,10),\"\")","v":""}]
[null,null,{"$f":"IFERROR(VLOOKUP($B76,'MARKETING CLIMBER REPORT'!$B$10:$L$70,5),\"\")","v":""},{"$f":"IFERROR(VLOOKUP($B76,'MARKETING CLIMBER REPORT'!$B$10:$L$70,6),\"\")","v":""},{"$f":"IFERROR(VLOOKUP($B76,'MARKETING CLIMBER REPORT'!$B$10:$L$70,7),\"\")","v":""},{"$f":"IFERROR(VLOOKUP($B76,'MARKETING CLIMBER REPORT'!$B$10:$L$70,8),\"\")","v":""},{"$f":"IFERROR(VLOOKUP($B76,'MARKETING CLIMBER REPORT'!$B$10:$L$70,9),\"\")","v":""},{"$f":"IFERROR(VLOOKUP($B76,'MARKETING CLIMBER REPORT'!$B$10:$L$70,10),\"\")","v":""},null,"",null,{"$f":"IFERROR(VLOOKUP($J76,'MARKETING CLIMBER REPORT'!$N$10:$X$70,6),\"\")","v":""},{"$f":"IFERROR(VLOOKUP($J76,'MARKETING CLIMBER REPORT'!$N$10:$X$70,7),\"\")","v":""},{"$f":"IFERROR(VLOOKUP($J76,'MARKETING CLIMBER REPORT'!$N$10:$X$70,8),\"\")","v":""},{"$f":"IFERROR(VLOOKUP($J76,'MARKETING CLIMBER REPORT'!$N$10:$X$70,9),\"\")","v":""},{"$f":"IFERROR(VLOOKUP($J76,'MARKETING CLIMBER REPORT'!$N$10:$X$70,10),\"\")","v":""}]
[null,null,{"$f":"IFERROR(VLOOKUP($B77,'MARKETING CLIMBER REPORT'!$B$10:$L$70,5),\"\")","v":""},{"$f":"IFERROR(VLOOKUP($B77,'MARKETING CLIMBER REPORT'!$B$10:$L$70,6),\"\")","v":""},{"$f":"IFERROR(VLOOKUP($B77,'MARKETING CLIMBER REPORT'!$B$10:$L$70,7),\"\")","v":""},{"$f":"IFERROR(VLOOKUP($B77,'MARKETING CLIMBER REPORT'!$B$10:$L$70,8),\"\")","v":""},{"$f":"IFERROR(VLOOKUP($B77,'MARKETING CLIMBER REPORT'!$B$10:$L$70,9),\"\")","v":""},{"$f":"IFERROR(VLOOKUP($B77,'MARKETING CLIMBER REPORT'!$B$10:$L$70,10),\"\")","v":""},null,"",null,{"$f":"IFERROR(VLOOKUP($J77,'MARKETING CLIMBER REPORT'!$N$10:$X$70,6),\"\")","v":""},{"$f":"IFERROR(VLOOKUP($J77,'MARKETING CLIMBER REPORT'!$N$10:$X$70,7),\"\")","v":""},{"$f":"IFERROR(VLOOKUP($J77,'MARKETING CLIMBER REPORT'!$N$10:$X$70,8),\"\")","v":""},{"$f":"IFERROR(VLOOKUP($J77,'MARKETING CLIMBER REPORT'!$N$10:$X$70,9),\"\")","v":""},{"$f":"IFERROR(VLOOKUP($J77,'MARKETING CLIMBER REPORT'!$N$10:$X$70,10),\"\")","v":""}]
[null,null,{"$f":"IFERROR(VLOOKUP($B78,'MARKETING CLIMBER REPORT'!$B$10:$L$70,5),\"\")","v":""},{"$f":"IFERROR(VLOOKUP($B78,'MARKETING CLIMBER REPORT'!$B$10:$L$70,6),\"\")","v":""},{"$f":"IFERROR(VLOOKUP($B78,'MARKETING CLIMBER REPORT'!$B$10:$L$70,7),\"\")","v":""},{"$f":"IFERROR(VLOOKUP($B78,'MARKETING CLIMBER REPORT'!$B$10:$L$70,8),\"\")","v":""},{"$f":"IFERROR(VLOOKUP($B78,'MARKETING CLIMBER REPORT'!$B$10:$L$70,9),\"\")","v":""},{"$f":"IFERROR(VLOOKUP($B78,'MARKETING CLIMBER REPORT'!$B$10:$L$70,10),\"\")","v":""},null,"",null,{"$f":"IFERROR(VLOOKUP($J78,'MARKETING CLIMBER REPORT'!$N$10:$X$70,6),\"\")","v":""},{"$f":"IFERROR(VLOOKUP($J78,'MARKETING CLIMBER REPORT'!$N$10:$X$70,7),\"\")","v":""},{"$f":"IFERROR(VLOOKUP($J78,'MARKETING CLIMBER REPORT'!$N$10:$X$70,8),\"\")","v":""},{"$f":"IFERROR(VLOOKUP($J78,'MARKETING CLIMBER REPORT'!$N$10:$X$70,9),\"\")","v":""},{"$f":"IFERROR(VLOOKUP($J78,'MARKETING CLIMBER REPORT'!$N$10:$X$70,10),\"\")","v":""}]
[null,null,{"$f":"IFERROR(VLOOKUP($B79,'MARKETING CLIMBER REPORT'!$B$10:$L$70,5),\"\")","v":""},{"$f":"IFERROR(VLOOKUP($B79,'MARKETING CLIMBER REPORT'!$B$10:$L$70,6),\"\")","v":""},{"$f":"IFERROR(VLOOKUP($B79,'MARKETING CLIMBER REPORT'!$B$10:$L$70,7),\"\")","v":""},{"$f":"IFERROR(VLOOKUP($B79,'MARKETING CLIMBER REPORT'!$B$10:$L$70,8),\"\")","v":""},{"$f":"IFERROR(VLOOKUP($B79,'MARKETING CLIMBER REPORT'!$B$10:$L$70,9),\"\")","v":""},{"$f":"IFERROR(VLOOKUP($B79,'MARKETING CLIMBER REPORT'!$B$10:$L$70,10),\"\")","v":""},null,"",null,{"$f":"IFERROR(VLOOKUP($J79,'MARKETING CLIMBER REPORT'!$N$10:$X$70,6),\"\")","v":""},{"$f":"IFERROR(VLOOKUP($J79,'MARKETING CLIMBER REPORT'!$N$10:$X$70,7),\"\")","v":""},{"$f":"IFERROR(VLOOKUP($J79,'MARKETING CLIMBER REPORT'!$N$10:$X$70,8),\"\")","v":""},{"$f":"IFERROR(VLOOKUP($J79,'MARKETING CLIMBER REPORT'!$N$10:$X$70,9),\"\")","v":""},{"$f":"IFERROR(VLOOKUP($J79,'MARKETING CLIMBER REPORT'!$N$10:$X$70,10),\"\")","v":""}]
[null,"TEAM 1 AVE",{"$f":"IFERROR(AVERAGE(C74:C79),\"\")","v":""},"","","","","",null,"TEAM 1 AVE",{"$f":"IFERROR(AVERAGE(K74:K79),\"\")","v":""},"","","","",""]
[null,{"$f":"B68","v":"MKT TRACK AVE"},{"$f":"C68","v":0},0,0,0,0,0,null,{"$f":"J68","v":"MKT TRACK AVE"},{"$f":"K68","v":0},0,0,0,0,0]
[]
[]
[null,"TEAM 7 ",null,null,null,null,null,null,null,"TEAM 7 "]
[null,{"$f":"B72","v":"2016-04-12"},null,null,null,null,null,null,null,"CUMULATIVE"]
[null,"Team Lead Name","HRS WORKED","# JOB APPS","# INFO INTERVIEWS","# MOCK INTERVIEWS","# REAL INTERVIEWS","# OFFERS",null,{"$f":"B86","v":"Team Lead Name"},"HRS WORKED","# JOB APPS","# INFO INTERVIEWS","# MOCK INTERVIEWS","# REAL INTERVIEWS","# OFFERS"]
[null,null,{"$f":"IFERROR(VLOOKUP($B87,'MARKETING CLIMBER REPORT'!$B$10:$L$70,5),\"\")","v":""},{"$f":"IFERROR(VLOOKUP($B87,'MARKETING CLIMBER REPORT'!$B$10:$L$70,6),\"\")","v":""},{"$f":"IFERROR(VLOOKUP($B87,'MARKETING CLIMBER REPORT'!$B$10:$L$70,7),\"\")","v":""},{"$f":"IFERROR(VLOOKUP($B87,'MARKETING CLIMBER REPORT'!$B$10:$L$70,8),\"\")","v":""},{"$f":"IFERROR(VLOOKUP($B87,'MARKETING CLIMBER REPORT'!$B$10:$L$70,9),\"\")","v":""},{"$f":"IFERROR(VLOOKUP($B87,'MARKETING CLIMBER REPORT'!$B$10:$L$70,10),\"\")","v":""},null,{"$f":"IF(B87=\"\",\"\",B87)","v":""},null,{"$f":"IFERROR(VLOOKUP($J87,'MARKETING CLIMBER REPORT'!$N$10:$X$70,6),\"\")","v":""},{"$f":"IFERROR(VLOOKUP($J87,'MARKETING CLIMBER REPORT'!$N$10:$X$70,7),\"\")","v":""},{"$f":"IFERROR(VLOOKUP($J87,'MARKETING CLIMBER REPORT'!$N$10:$X$70,8),\"\")","v":""},{"$f":"IFERROR(VLOOKUP($J87,'MARKETING CLIMBER REPORT'!$N$10:$X$70,9),\"\")","v":""},{"$f":"IFERROR(VLOOKUP($J87,'MARKETING CLIMBER REPORT'!$N$10:$X$70,10),\"\")","v":""}]
[null,null,{"$f":"IFERROR(VLOOKUP($B88,'MARKETING CLIMBER REPORT'!$B$10:$L$70,5),\"\")","v":""},{"$f":"IFERROR(VLOOKUP($B88,'MARKETING CLIMBER REPORT'!$B$10:$L$70,6),\"\")","v":""},{"$f":"IFERROR(VLOOKUP($B88,'MARKETING CLIMBER REPORT'!$B$10:$L$70,7),\"\")","v":""},{"$f":"IFERROR(VLOOKUP($B88,'MARKETING CLIMBER REPORT'!$B$10:$L$70,8),\"\")","v":""},{"$f":"IFERROR(VLOOKUP($B88,'MARKETING CLIMBER REPORT'!$B$10:$L$70,9),\"\")","v":""},{"$f":"IFERROR(VLOOKUP($B88,'MARKETING CLIMBER REPORT'!$B$10:$L$70,10),\"\")","v":""},null,"",null,{"$f":"IFERROR(VLOOKUP($J88,'MARKETING CLIMBER REPORT'!$N$10:$X$70,6),\"\")","v":""},{"$f":"IFERROR(VLOOKUP($J88,'MARKETING CLIMBER REPORT'!$N$10:$X$70,7),\"\")","v":""},{"$f":"IFERROR(VLOOKUP($J88,'MARKETING CLIMBER REPORT'!$N$10:$X$70,8),\"\")","v":""},{"$f":"IFERROR(VLOOKUP($J88,'MARKETING CLIMBER REPORT'!$N$10:$X$70,9),\"\")","v":""},{"$f":"IFERROR(VLOOKUP($J88,'MARKETING CLIMBER REPORT'!$N$10:$X$70,10),\"\")","v":""}]
[null,null,{"$f":"IFERROR(VLOOKUP($B89,'MARKETING CLIMBER REPORT'!$B$10:$L$70,5),\"\")","v":""},{"$f":"IFERROR(VLOOKUP($B89,'MARKETING CLIMBER REPORT'!$B$10:$L$70,6),\"\")","v":""},{"$f":"IFERROR(VLOOKUP($B89,'MARKETING CLIMBER REPORT'!$B$10:$L$70,7),\"\")","v":""},{"$f":"IFERROR(VLOOKUP($B89,'MARKETING CLIMBER REPORT'!$B$10:$L$70,8),\"\")","v":""},{"$f":"IFERROR(VLOOKUP($B89,'MARKETING CLIMBER REPORT'!$B$10:$L$70,9),\"\")","v":""},{"$f":"IFERROR(VLOOKUP($B89,'MARKETING CLIMBER REPORT'!$B$10:$L$70,10),\"\")","v":""},null,"",null,{"$f":"IFERROR(VLOOKUP($J89,'MARKETING CLIMBER REPORT'!$N$10:$X$70,6),\"\")","v":""},{"$f":"IFERROR(VLOOKUP($J89,'MARKETING CLIMBER REPORT'!$N$10:$X$70,7),\"\")","v":""},{"$f":"IFERROR(VLOOKUP($J89,'MARKETING CLIMBER REPORT'!$N$10:$X$70,8),\"\")","v":""},{"$f":"IFERROR(VLOOKUP($J89,'MARKETING CLIMBER REPORT'!$N$10:$X$70,9),\"\")","v":""},{"$f":"IFERROR(VLOOKUP($J89,'MARKETING CLIMBER REPORT'!$N$10:$X$70,10),\"\")","v":""}]
[null,null,{"$f":"IFERROR(VLOOKUP($B90,'MARKETING CLIMBER REPORT'!$B$10:$L$70,5),\"\")","v":""},{"$f":"IFERROR(VLOOKUP($B90,'MARKETING CLIMBER REPORT'!$B$10:$L$70,6),\"\")","v":""},{"$f":"IFERROR(VLOOKUP($B90,'MARKETING CLIMBER REPORT'!$B$10:$L$70,7),\"\")","v":""},{"$f":"IFERROR(VLOOKUP($B90,'MARKETING CLIMBER REPORT'!$B$10:$L$70,8),\"\")","v":""},{"$f":"IFERROR(VLOOKUP($B90,'MARKETING CLIMBER REPORT'!$B$10:$L$70,9),\"\")","v":""},{"$f":"IFERROR(VLOOKUP($B90,'MARKETING CLIMBER REPORT'!$B$10:$L$70,10),\"\")","v":""},null,"",null,{"$f":"IFERROR(VLOOKUP($J90,'MARKETING CLIMBER REPORT'!$N$10:$X$70,6),\"\")","v":""},{"$f":"IFERROR(VLOOKUP($J90,'MARKETING CLIMBER REPORT'!$N$10:$X$70,7),\"\")","v":""},{"$f":"IFERROR(VLOOKUP($J90,'MARKETING CLIMBER REPORT'!$N$10:$X$70,8),\"\")","v":""},{"$f":"IFERROR(VLOOKUP($J90,'MARKETING CLIMBER REPORT'!$N$10:$X$70,9),\"\")","v":""},{"$f":"IFERROR(VLOOKUP($J90,'MARKETING CLIMBER REPORT'!$N$10:$X$70,10),\"\")","v":""}]
[null,null,{"$f":"IFERROR(VLOOKUP($B91,'MARKETING CLIMBER REPORT'!$B$10:$L$70,5),\"\")","v":""},{"$f":"IFERROR(VLOOKUP($B91,'MARKETING CLIMBER REPORT'!$B$10:$L$70,6),\"\")","v":""},{"$f":"IFERROR(VLOOKUP($B91,'MARKETING CLIMBER REPORT'!$B$10:$L$70,7),\"\")","v":""},{"$f":"IFERROR(VLOOKUP($B91,'MARKETING CLIMBER REPORT'!$B$10:$L$70,8),\"\")","v":""},{"$f":"IFERROR(VLOOKUP($B91,'MARKETING CLIMBER REPORT'!$B$10:$L$70,9),\"\")","v":""},{"$f":"IFERROR(VLOOKUP($B91,'MARKETING CLIMBER REPORT'!$B$10:$L$70,10),\"\")","v":""},null,"",null,{"$f":"IFERROR(VLOOKUP($J91,'MARKETING CLIMBER REPORT'!$N$10:$X$70,6),\"\")","v":""},{"$f":"IFERROR(VLOOKUP($J91,'MARKETING CLIMBER REPORT'!$N$10:$X$70,7),\"\")","v":""},{"$f":"IFERROR(VLOOKUP($J91,'MARKETING CLIMBER REPORT'!$N$10:$X$70,8),\"\")","v":""},{"$f":"IFERROR(VLOOKUP($J91,'MARKETING CLIMBER REPORT'!$N$10:$X$70,9),\"\")","v":""},{"$f":"IFERROR(VLOOKUP($J91,'MARKETING CLIMBER REPORT'!$N$10:$X$70,10),\"\")","v":""}]
[null,null,{"$f":"IFERROR(VLOOKUP($B92,'MARKETING CLIMBER REPORT'!$B$10:$L$70,5),\"\")","v":""},{"$f":"IFERROR(VLOOKUP($B92,'MARKETING CLIMBER REPORT'!$B$10:$L$70,6),\"\")","v":""},{"$f":"IFERROR(VLOOKUP($B92,'MARKETING CLIMBER REPORT'!$B$10:$L$70,7),\"\")","v":""},{"$f":"IFERROR(VLOOKUP($B92,'MARKETING CLIMBER REPORT'!$B$10:$L$70,8),\"\")","v":""},{"$f":"IFERROR(VLOOKUP($B92,'MARKETING CLIMBER REPORT'!$B$10:$L$70,9),\"\")","v":""},{"$f":"IFERROR(VLOOKUP($B92,'MARKETING CLIMBER REPORT'!$B$10:$L$70,10),\"\")","v":""},null,"",null,{"$f":"IFERROR(VLOOKUP($J92,'MARKETING CLIMBER REPORT'!$N$10:$X$70,6),\"\")","v":""},{"$f":"IFERROR(VLOOKUP($J92,'MARKETING CLIMBER REPORT'!$N$10:$X$70,7),\"\")","v":""},{"$f":"IFERROR(VLOOKUP($J92,'MARKETING CLIMBER REPORT'!$N$10:$X$70,8),\"\")","v":""},{"$f":"IFERROR(VLOOKUP($J92,'MARKETING CLIMBER REPORT'!$N$10:$X$70,9),\"\")","v":""},{"$f":"IFERROR(VLOOKUP($J92,'MARKETING CLIMBER REPORT'!$N$10:$X$70,10),\"\")","v":""}]
[null,"TEAM 1 AVE",{"$f":"IFERROR(AVERAGE(C87:C92),\"\")","v":""},"","","","","",null,"TEAM 1 AVE",{"$f":"IFERROR(AVERAGE(K87:K92),\"\")","v":""},"","","","",""]
[null,{"$f":"B81","v":"MKT TRACK AVE"},{"$f":"C81","v":0},0,0,0,0,0,null,{"$f":"J81","v":"MKT TRACK AVE"},{"$f":"K81","v":0},0,0,0,0,0]

{"sheet":"MARKETING CLIMBER REPORT","index":5,"n_rows":85,"n_cols":24,"rows_kept":85,"cut":false,"hidden":false,"merged":[]}
[]
[]
[null,"NOTES:","NEED THIS FOR EACH TRACK - COULD BE A SEPARATE TAB IN THE MASTER WORKBOOK"]
[null,"GRADE:","GREEN, YELLOW, RED"]
[]
[]
[null,"MARKETING TRACK",null,null,null,null,null,null,null,null,null,null,null,{"$f":"$B$7","v":"MARKETING TRACK"}]
[null,"WEEK X",null,null,null,null,null,null,null,null,null,null,null,"CUMULATIVE"]
[null,"Climbers","TEAM #","TEAM LEAD","INT'L","HRS WORKED","# JOB APPS","# INFO INTERVIEWS","# MOCK INTERVIEWS","# REAL INTERVIEWS","# OFFERS","GRADE",null,null,"TEAM #","TEAM LEAD","INT'L","HRS WORKED","# JOB APPS","# INFO INTERVIEWS","# MOCK INTERVIEWS","# REAL INTERVIEWS","# OFFERS","GRADE"]
[]
[]
[]
[]
[]
[]
[]
[]
[]
[]
[]
[]
[]
[]
[]
[]
[]
[]
[]
[]
[]
[]
[]
[]
[]
[]
[]
[]
[]
[]
[]
[]
[]
[]
[]
[]
[]
[]
[]
[]
[]
[]
[]
[]
[]
[]
[]
[]
[]
[]
[]
[]
[]
[]
[]
[]
[]
[]
[]
[]
[]
[null,"TRACK AVE",null,null,null,{"$f":"IFERROR(AVERAGE(F10:F70),\"\")","v":""},{"$f":"IFERROR(AVERAGE(G10:G70),\"\")","v":""},{"$f":"IFERROR(AVERAGE(H10:H70),\"\")","v":""},{"$f":"IFERROR(AVERAGE(I10:I70),\"\")","v":""},{"$f":"IFERROR(AVERAGE(J10:J70),\"\")","v":""},{"$f":"IFERROR(AVERAGE(K10:K70),\"\")","v":""},{"$f":"IFERROR(AVERAGE(L10:L70),\"\")","v":""},null,"TRACK AVE",null,null,null,{"$f":"IFERROR(AVERAGE(R10:R70),\"\")","v":""},{"$f":"IFERROR(AVERAGE(S10:S70),\"\")","v":""},{"$f":"IFERROR(AVERAGE(T10:T70),\"\")","v":""},{"$f":"IFERROR(AVERAGE(U10:U70),\"\")","v":""},{"$f":"IFERROR(AVERAGE(V10:V70),\"\")","v":""},{"$f":"IFERROR(AVERAGE(W10:W70),\"\")","v":""},{"$f":"IFERROR(AVERAGE(X10:X70),\"\")","v":""}]
[]
[]
[]
[null,"TRACK SUMMARY",null,null,null,null,null,null,null,null,null,null,null,"TRACK SUMMARY"]
[null,"WEEK X",null,null,null,null,null,null,null,null,null,null,null,"CUMULATIVE"]
[null,null,"TEAM #","TEAM LEAD","# INT'L","HRS WORKED","# JOB APPS","# INFO INTERVIEWS","# MOCK INTERVIEWS","# REAL INTERVIEWS","# OFFERS","GRADE",null,null,"TEAM #","TEAM LEAD","# INT'L","HRS WORKED","# JOB APPS","# INFO INTERVIEWS","# MOCK INTERVIEWS","# REAL INTERVIEWS","# OFFERS","GRADE"]
[null,"TEAM 1",null,null,null,null,null,null,null,null,null,null,null,"TEAM 1"]
[null,"TEAM 2",null,null,null,null,null,null,null,null,null,null,null,"TEAM 2"]
[null,"TEAM 3",null,null,null,null,null,null,null,null,null,null,null,"TEAM 3"]
[null,"TEAM 4",null,null,null,null,null,null,null,null,null,null,null,"TEAM 4"]
[null,"TEAM 5",null,null,null,null,null,null,null,null,null,null,null,"TEAM 5"]
[null,"TEAM 6",null,null,null,null,null,null,null,null,null,null,null,"TEAM 6"]
[null,"TEAM 7",null,null,null,null,null,null,null,null,null,null,null,"TEAM 7"]
[null,"TRACK AVE",null,null,null,{"$f":"F71","v":""},"","","","","",null,null,"TRACK AVE",null,null,null,{"$f":"R71","v":""},"","","","",""]

{"sheet":"FINANCE TEAM LEADS","index":6,"n_rows":94,"n_cols":16,"rows_kept":94,"cut":false,"hidden":false,"merged":[]}
[]
[]
[]
[null,"FINANCE CLIMBER KPI"]
[]
[null,"TEAM 1",null,null,null,null,null,null,null,"TEAM 1"]
[null,{"$f":"TODAY()","v":"2016-04-12"},null,null,null,null,null,null,null,"CUMULATIVE"]
[null,"Team Lead Name","HRS WORKED","# JOB APPS","# INFO INTERVIEWS","# MOCK INTERVIEWS","# REAL INTERVIEWS","# OFFERS",null,{"$f":"B8","v":"Team Lead Name"},"HRS WORKED","# JOB APPS","# INFO INTERVIEWS","# MOCK INTERVIEWS","# REAL INTERVIEWS","# OFFERS"]
[null,null,{"$f":"IFERROR(VLOOKUP($B9,'FINANCE CLIMBER REPORT'!$B$24:$L$69,5,FALSE),\"\")","v":""},{"$f":"IFERROR(VLOOKUP($B9,'FINANCE CLIMBER REPORT'!$B$24:$L$69,6,),\"\")","v":""},{"$f":"IFERROR(VLOOKUP($B9,'FINANCE CLIMBER REPORT'!$B$24:$L$69,7,FALSE),\"\")","v":""},{"$f":"IFERROR(VLOOKUP($B9,'FINANCE CLIMBER REPORT'!$B$24:$L$69,8,FALSE),\"\")","v":""},{"$f":"IFERROR(VLOOKUP($B9,'FINANCE CLIMBER REPORT'!$B$24:$L$69,9,FALSE),\"\")","v":""},{"$f":"IFERROR(VLOOKUP($B9,'FINANCE CLIMBER REPORT'!$B$24:$L$69,10,FALSE),\"\")","v":""},null,{"$f":"IF(B9=\"\",\"\",B9)","v":""},null,{"$f":"IFERROR(VLOOKUP($J9,'FINANCE CLIMBER REPORT'!$N$24:$X$69,6,FALSE),\"\")","v":""},{"$f":"IFERROR(VLOOKUP($J9,'FINANCE CLIMBER REPORT'!$N$24:$X$69,7,FALSE),\"\")","v":""},{"$f":"IFERROR(VLOOKUP($J9,'FINANCE CLIMBER REPORT'!$N$24:$X$69,8,FALSE),\"\")","v":""},{"$f":"IFERROR(VLOOKUP($J9,'FINANCE CLIMBER REPORT'!$N$24:$X$69,9,FALSE),\"\")","v":""},{"$f":"IFERROR(VLOOKUP($J9,'FINANCE CLIMBER REPORT'!$N$24:$X$69,10,FALSE),\"\")","v":""}]
[null,null,{"$f":"IFERROR(VLOOKUP($B10,'FINANCE CLIMBER REPORT'!$B$24:$L$69,5,FALSE),\"\")","v":""},{"$f":"IFERROR(VLOOKUP($B10,'FINANCE CLIMBER REPORT'!$B$24:$L$69,6,),\"\")","v":""},{"$f":"IFERROR(VLOOKUP($B10,'FINANCE CLIMBER REPORT'!$B$24:$L$69,7,FALSE),\"\")","v":""},{"$f":"IFERROR(VLOOKUP($B10,'FINANCE CLIMBER REPORT'!$B$24:$L$69,8,FALSE),\"\")","v":""},{"$f":"IFERROR(VLOOKUP($B10,'FINANCE CLIMBER REPORT'!$B$24:$L$69,9,FALSE),\"\")","v":""},{"$f":"IFERROR(VLOOKUP($B10,'FINANCE CLIMBER REPORT'!$B$24:$L$69,10,FALSE),\"\")","v":""},null,"",null,{"$f":"IFERROR(VLOOKUP($J10,'FINANCE CLIMBER REPORT'!$N$24:$X$69,6,FALSE),\"\")","v":""},{"$f":"IFERROR(VLOOKUP($J10,'FINANCE CLIMBER REPORT'!$N$24:$X$69,7,FALSE),\"\")","v":""},{"$f":"IFERROR(VLOOKUP($J10,'FINANCE CLIMBER REPORT'!$N$24:$X$69,8,FALSE),\"\")","v":""},{"$f":"IFERROR(VLOOKUP($J10,'FINANCE CLIMBER REPORT'!$N$24:$X$69,9,FALSE),\"\")","v":""},{"$f":"IFERROR(VLOOKUP($J10,'FINANCE CLIMBER REPORT'!$N$24:$X$69,10,FALSE),\"\")","v":""}]
[null,null,{"$f":"IFERROR(VLOOKUP($B11,'FINANCE CLIMBER REPORT'!$B$24:$L$69,5,FALSE),\"\")","v":""},{"$f":"IFERROR(VLOOKUP($B11,'FINANCE CLIMBER REPORT'!$B$24:$L$69,6,),\"\")","v":""},{"$f":"IFERROR(VLOOKUP($B11,'FINANCE CLIMBER REPORT'!$B$24:$L$69,7,FALSE),\"\")","v":""},{"$f":"IFERROR(VLOOKUP($B11,'FINANCE CLIMBER REPORT'!$B$24:$L$69,8,FALSE),\"\")","v":""},{"$f":"IFERROR(VLOOKUP($B11,'FINANCE CLIMBER REPORT'!$B$24:$L$69,9,FALSE),\"\")","v":""},{"$f":"IFERROR(VLOOKUP($B11,'FINANCE CLIMBER REPORT'!$B$24:$L$69,10,FALSE),\"\")","v":""},null,"",null,{"$f":"IFERROR(VLOOKUP($J11,'FINANCE CLIMBER REPORT'!$N$24:$X$69,6,FALSE),\"\")","v":""},{"$f":"IFERROR(VLOOKUP($J11,'FINANCE CLIMBER REPORT'!$N$24:$X$69,7,FALSE),\"\")","v":""},{"$f":"IFERROR(VLOOKUP($J11,'FINANCE CLIMBER REPORT'!$N$24:$X$69,8,FALSE),\"\")","v":""},{"$f":"IFERROR(VLOOKUP($J11,'FINANCE CLIMBER REPORT'!$N$24:$X$69,9,FALSE),\"\")","v":""},{"$f":"IFERROR(VLOOKUP($J11,'FINANCE CLIMBER REPORT'!$N$24:$X$69,10,FALSE),\"\")","v":""}]
[null,null,{"$f":"IFERROR(VLOOKUP($B12,'FINANCE CLIMBER REPORT'!$B$24:$L$69,5,FALSE),\"\")","v":""},{"$f":"IFERROR(VLOOKUP($B12,'FINANCE CLIMBER REPORT'!$B$24:$L$69,6,),\"\")","v":""},{"$f":"IFERROR(VLOOKUP($B12,'FINANCE CLIMBER REPORT'!$B$24:$L$69,7,FALSE),\"\")","v":""},{"$f":"IFERROR(VLOOKUP($B12,'FINANCE CLIMBER REPORT'!$B$24:$L$69,8,FALSE),\"\")","v":""},{"$f":"IFERROR(VLOOKUP($B12,'FINANCE CLIMBER REPORT'!$B$24:$L$69,9,FALSE),\"\")","v":""},{"$f":"IFERROR(VLOOKUP($B12,'FINANCE CLIMBER REPORT'!$B$24:$L$69,10,FALSE),\"\")","v":""},null,"",null,{"$f":"IFERROR(VLOOKUP($J12,'FINANCE CLIMBER REPORT'!$N$24:$X$69,6,FALSE),\"\")","v":""},{"$f":"IFERROR(VLOOKUP($J12,'FINANCE CLIMBER REPORT'!$N$24:$X$69,7,FALSE),\"\")","v":""},{"$f":"IFERROR(VLOOKUP($J12,'FINANCE CLIMBER REPORT'!$N$24:$X$69,8,FALSE),\"\")","v":""},{"$f":"IFERROR(VLOOKUP($J12,'FINANCE CLIMBER REPORT'!$N$24:$X$69,9,FALSE),\"\")","v":""},{"$f":"IFERROR(VLOOKUP($J12,'FINANCE CLIMBER REPORT'!$N$24:$X$69,10,FALSE),\"\")","v":""}]
[null,null,{"$f":"IFERROR(VLOOKUP($B13,'FINANCE CLIMBER REPORT'!$B$24:$L$69,5,FALSE),\"\")","v":""},{"$f":"IFERROR(VLOOKUP($B13,'FINANCE CLIMBER REPORT'!$B$24:$L$69,6,),\"\")","v":""},{"$f":"IFERROR(VLOOKUP($B13,'FINANCE CLIMBER REPORT'!$B$24:$L$69,7,FALSE),\"\")","v":""},{"$f":"IFERROR(VLOOKUP($B13,'FINANCE CLIMBER REPORT'!$B$24:$L$69,8,FALSE),\"\")","v":""},{"$f":"IFERROR(VLOOKUP($B13,'FINANCE CLIMBER REPORT'!$B$24:$L$69,9,FALSE),\"\")","v":""},{"$f":"IFERROR(VLOOKUP($B13,'FINANCE CLIMBER REPORT'!$B$24:$L$69,10,FALSE),\"\")","v":""},null,"",null,{"$f":"IFERROR(VLOOKUP($J13,'FINANCE CLIMBER REPORT'!$N$24:$X$69,6,FALSE),\"\")","v":""},{"$f":"IFERROR(VLOOKUP($J13,'FINANCE CLIMBER REPORT'!$N$24:$X$69,7,FALSE),\"\")","v":""},{"$f":"IFERROR(VLOOKUP($J13,'FINANCE CLIMBER REPORT'!$N$24:$X$69,8,FALSE),\"\")","v":""},{"$f":"IFERROR(VLOOKUP($J13,'FINANCE CLIMBER REPORT'!$N$24:$X$69,9,FALSE),\"\")","v":""},{"$f":"IFERROR(VLOOKUP($J13,'FINANCE CLIMBER REPORT'!$N$24:$X$69,10,FALSE),\"\")","v":""}]
[null,null,{"$f":"IFERROR(VLOOKUP($B14,'FINANCE CLIMBER REPORT'!$B$24:$L$69,5,FALSE),\"\")","v":""},{"$f":"IFERROR(VLOOKUP($B14,'FINANCE CLIMBER REPORT'!$B$24:$L$69,6,),\"\")","v":""},{"$f":"IFERROR(VLOOKUP($B14,'FINANCE CLIMBER REPORT'!$B$24:$L$69,7,FALSE),\"\")","v":""},{"$f":"IFERROR(VLOOKUP($B14,'FINANCE CLIMBER REPORT'!$B$24:$L$69,8,FALSE),\"\")","v":""},{"$f":"IFERROR(VLOOKUP($B14,'FINANCE CLIMBER REPORT'!$B$24:$L$69,9,FALSE),\"\")","v":""},{"$f":"IFERROR(VLOOKUP($B14,'FINANCE CLIMBER REPORT'!$B$24:$L$69,10,FALSE),\"\")","v":""},null,"",null,{"$f":"IFERROR(VLOOKUP($J14,'FINANCE CLIMBER REPORT'!$N$24:$X$69,6,FALSE),\"\")","v":""},{"$f":"IFERROR(VLOOKUP($J14,'FINANCE CLIMBER REPORT'!$N$24:$X$69,7,FALSE),\"\")","v":""},{"$f":"IFERROR(VLOOKUP($J14,'FINANCE CLIMBER REPORT'!$N$24:$X$69,8,FALSE),\"\")","v":""},{"$f":"IFERROR(VLOOKUP($J14,'FINANCE CLIMBER REPORT'!$N$24:$X$69,9,FALSE),\"\")","v":""},{"$f":"IFERROR(VLOOKUP($J14,'FINANCE CLIMBER REPORT'!$N$24:$X$69,10,FALSE),\"\")","v":""}]
[null,"TEAM 1 AVE",{"$f":"IFERROR(AVERAGE(C9:C14),\"\")","v":""},"","","","","",null,"TEAM 1 AVE",{"$f":"IFERROR(AVERAGE(K9:K14),\"\")","v":""},"","","","",""]
[null,"FIN TRACK AVE",{"$f":"'FINANCE CLIMBER REPORT'!F71","v":""},{"$f":"'FINANCE CLIMBER REPORT'!G71","v":""},{"$f":"'FINANCE CLIMBER REPORT'!H71","v":""},{"$f":"'FINANCE CLIMBER REPORT'!I71","v":""},{"$f":"'FINANCE CLIMBER REPORT'!J71","v":""},{"$f":"'FINANCE CLIMBER REPORT'!K71","v":""},null,{"$f":"B16","v":"FIN TRACK AVE"},{"$f":"'FINANCE CLIMBER REPORT'!R71","v":""},{"$f":"'FINANCE CLIMBER REPORT'!S71","v":""},{"$f":"'FINANCE CLIMBER REPORT'!T71","v":""},{"$f":"'FINANCE CLIMBER REPORT'!U71","v":""},{"$f":"'FINANCE CLIMBER REPORT'!V71","v":""},{"$f":"'FINANCE CLIMBER REPORT'!W71","v":""}]
[]
[]
[null,"TEAM 2",null,null,null,null,null,null,null,"TEAM 2"]
[null,{"$f":"B7","v":"2016-04-12"},null,null,null,null,null,null,null,"CUMULATIVE"]
[null,"Team Lead Name","HRS WORKED","# JOB APPS","# INFO INTERVIEWS","# MOCK INTERVIEWS","# REAL INTERVIEWS","# OFFERS",null,{"$f":"B21","v":"Team Lead Name"},"HRS WORKED","# JOB APPS","# INFO INTERVIEWS","# MOCK INTERVIEWS","# REAL INTERVIEWS","# OFFERS"]
[null,null,{"$f":"IFERROR(VLOOKUP($B22,'FINANCE CLIMBER REPORT'!$B$24:$L$69,5,FALSE),\"\")","v":""},{"$f":"IFERROR(VLOOKUP($B22,'FINANCE CLIMBER REPORT'!$B$24:$L$69,6,),\"\")","v":""},{"$f":"IFERROR(VLOOKUP($B22,'FINANCE CLIMBER REPORT'!$B$24:$L$69,7,FALSE),\"\")","v":""},{"$f":"IFERROR(VLOOKUP($B22,'FINANCE CLIMBER REPORT'!$B$24:$L$69,8,FALSE),\"\")","v":""},{"$f":"IFERROR(VLOOKUP($B22,'FINANCE CLIMBER REPORT'!$B$24:$L$69,9,FALSE),\"\")","v":""},{"$f":"IFERROR(VLOOKUP($B22,'FINANCE CLIMBER REPORT'!$B$24:$L$69,10,FALSE),\"\")","v":""},null,{"$f":"IF(B22=\"\",\"\",B22)","v":""},null,{"$f":"IFERROR(VLOOKUP($J22,'FINANCE CLIMBER REPORT'!$N$24:$X$69,6,FALSE),\"\")","v":""},{"$f":"IFERROR(VLOOKUP($J22,'FINANCE CLIMBER REPORT'!$N$24:$X$69,7,FALSE),\"\")","v":""},{"$f":"IFERROR(VLOOKUP($J22,'FINANCE CLIMBER REPORT'!$N$24:$X$69,8,FALSE),\"\")","v":""},{"$f":"IFERROR(VLOOKUP($J22,'FINANCE CLIMBER REPORT'!$N$24:$X$69,9,FALSE),\"\")","v":""},{"$f":"IFERROR(VLOOKUP($J22,'FINANCE CLIMBER REPORT'!$N$24:$X$69,10,FALSE),\"\")","v":""}]
[null,null,{"$f":"IFERROR(VLOOKUP($B23,'FINANCE CLIMBER REPORT'!$B$24:$L$69,5,FALSE),\"\")","v":""},{"$f":"IFERROR(VLOOKUP($B23,'FINANCE CLIMBER REPORT'!$B$24:$L$69,6,),\"\")","v":""},{"$f":"IFERROR(VLOOKUP($B23,'FINANCE CLIMBER REPORT'!$B$24:$L$69,7,FALSE),\"\")","v":""},{"$f":"IFERROR(VLOOKUP($B23,'FINANCE CLIMBER REPORT'!$B$24:$L$69,8,FALSE),\"\")","v":""},{"$f":"IFERROR(VLOOKUP($B23,'FINANCE CLIMBER REPORT'!$B$24:$L$69,9,FALSE),\"\")","v":""},{"$f":"IFERROR(VLOOKUP($B23,'FINANCE CLIMBER REPORT'!$B$24:$L$69,10,FALSE),\"\")","v":""},null,"",null,{"$f":"IFERROR(VLOOKUP($J23,'FINANCE CLIMBER REPORT'!$N$24:$X$69,6,FALSE),\"\")","v":""},{"$f":"IFERROR(VLOOKUP($J23,'FINANCE CLIMBER REPORT'!$N$24:$X$69,7,FALSE),\"\")","v":""},{"$f":"IFERROR(VLOOKUP($J23,'FINANCE CLIMBER REPORT'!$N$24:$X$69,8,FALSE),\"\")","v":""},{"$f":"IFERROR(VLOOKUP($J23,'FINANCE CLIMBER REPORT'!$N$24:$X$69,9,FALSE),\"\")","v":""},{"$f":"IFERROR(VLOOKUP($J23,'FINANCE CLIMBER REPORT'!$N$24:$X$69,10,FALSE),\"\")","v":""}]
[null,null,{"$f":"IFERROR(VLOOKUP($B24,'FINANCE CLIMBER REPORT'!$B$24:$L$69,5,FALSE),\"\")","v":""},{"$f":"IFERROR(VLOOKUP($B24,'FINANCE CLIMBER REPORT'!$B$24:$L$69,6,),\"\")","v":""},{"$f":"IFERROR(VLOOKUP($B24,'FINANCE CLIMBER REPORT'!$B$24:$L$69,7,FALSE),\"\")","v":""},{"$f":"IFERROR(VLOOKUP($B24,'FINANCE CLIMBER REPORT'!$B$24:$L$69,8,FALSE),\"\")","v":""},{"$f":"IFERROR(VLOOKUP($B24,'FINANCE CLIMBER REPORT'!$B$24:$L$69,9,FALSE),\"\")","v":""},{"$f":"IFERROR(VLOOKUP($B24,'FINANCE CLIMBER REPORT'!$B$24:$L$69,10,FALSE),\"\")","v":""},null,"",null,{"$f":"IFERROR(VLOOKUP($J24,'FINANCE CLIMBER REPORT'!$N$24:$X$69,6,FALSE),\"\")","v":""},{"$f":"IFERROR(VLOOKUP($J24,'FINANCE CLIMBER REPORT'!$N$24:$X$69,7,FALSE),\"\")","v":""},{"$f":"IFERROR(VLOOKUP($J24,'FINANCE CLIMBER REPORT'!$N$24:$X$69,8,FALSE),\"\")","v":""},{"$f":"IFERROR(VLOOKUP($J24,'FINANCE CLIMBER REPORT'!$N$24:$X$69,9,FALSE),\"\")","v":""},{"$f":"IFERROR(VLOOKUP($J24,'FINANCE CLIMBER REPORT'!$N$24:$X$69,10,FALSE),\"\")","v":""}]
[null,null,{"$f":"IFERROR(VLOOKUP($B25,'FINANCE CLIMBER REPORT'!$B$24:$L$69,5,FALSE),\"\")","v":""},{"$f":"IFERROR(VLOOKUP($B25,'FINANCE CLIMBER REPORT'!$B$24:$L$69,6,),\"\")","v":""},{"$f":"IFERROR(VLOOKUP($B25,'FINANCE CLIMBER REPORT'!$B$24:$L$69,7,FALSE),\"\")","v":""},{"$f":"IFERROR(VLOOKUP($B25,'FINANCE CLIMBER REPORT'!$B$24:$L$69,8,FALSE),\"\")","v":""},{"$f":"IFERROR(VLOOKUP($B25,'FINANCE CLIMBER REPORT'!$B$24:$L$69,9,FALSE),\"\")","v":""},{"$f":"IFERROR(VLOOKUP($B25,'FINANCE CLIMBER REPORT'!$B$24:$L$69,10,FALSE),\"\")","v":""},null,"",null,{"$f":"IFERROR(VLOOKUP($J25,'FINANCE CLIMBER REPORT'!$N$24:$X$69,6,FALSE),\"\")","v":""},{"$f":"IFERROR(VLOOKUP($J25,'FINANCE CLIMBER REPORT'!$N$24:$X$69,7,FALSE),\"\")","v":""},{"$f":"IFERROR(VLOOKUP($J25,'FINANCE CLIMBER REPORT'!$N$24:$X$69,8,FALSE),\"\")","v":""},{"$f":"IFERROR(VLOOKUP($J25,'FINANCE CLIMBER REPORT'!$N$24:$X$69,9,FALSE),\"\")","v":""},{"$f":"IFERROR(VLOOKUP($J25,'FINANCE CLIMBER REPORT'!$N$24:$X$69,10,FALSE),\"\")","v":""}]
[null,null,{"$f":"IFERROR(VLOOKUP($B26,'FINANCE CLIMBER REPORT'!$B$24:$L$69,5,FALSE),\"\")","v":""},{"$f":"IFERROR(VLOOKUP($B26,'FINANCE CLIMBER REPORT'!$B$24:$L$69,6,),\"\")","v":""},{"$f":"IFERROR(VLOOKUP($B26,'FINANCE CLIMBER REPORT'!$B$24:$L$69,7,FALSE),\"\")","v":""},{"$f":"IFERROR(VLOOKUP($B26,'FINANCE CLIMBER REPORT'!$B$24:$L$69,8,FALSE),\"\")","v":""},{"$f":"IFERROR(VLOOKUP($B26,'FINANCE CLIMBER REPORT'!$B$24:$L$69,9,FALSE),\"\")","v":""},{"$f":"IFERROR(VLOOKUP($B26,'FINANCE CLIMBER REPORT'!$B$24:$L$69,10,FALSE),\"\")","v":""},null,"",null,{"$f":"IFERROR(VLOOKUP($J26,'FINANCE CLIMBER REPORT'!$N$24:$X$69,6,FALSE),\"\")","v":""},{"$f":"IFERROR(VLOOKUP($J26,'FINANCE CLIMBER REPORT'!$N$24:$X$69,7,FALSE),\"\")","v":""},{"$f":"IFERROR(VLOOKUP($J26,'FINANCE CLIMBER REPORT'!$N$24:$X$69,8,FALSE),\"\")","v":""},{"$f":"IFERROR(VLOOKUP($J26,'FINANCE CLIMBER REPORT'!$N$24:$X$69,9,FALSE),\"\")","v":""},{"$f":"IFERROR(VLOOKUP($J26,'FINANCE CLIMBER REPORT'!$N$24:$X$69,10,FALSE),\"\")","v":""}]
[null,null,{"$f":"IFERROR(VLOOKUP($B27,'FINANCE CLIMBER REPORT'!$B$24:$L$69,5,FALSE),\"\")","v":""},{"$f":"IFERROR(VLOOKUP($B27,'FINANCE CLIMBER REPORT'!$B$24:$L$69,6,),\"\")","v":""},{"$f":"IFERROR(VLOOKUP($B27,'FINANCE CLIMBER REPORT'!$B$24:$L$69,7,FALSE),\"\")","v":""},{"$f":"IFERROR(VLOOKUP($B27,'FINANCE CLIMBER REPORT'!$B$24:$L$69,8,FALSE),\"\")","v":""},{"$f":"IFERROR(VLOOKUP($B27,'FINANCE CLIMBER REPORT'!$B$24:$L$69,9,FALSE),\"\")","v":""},{"$f":"IFERROR(VLOOKUP($B27,'FINANCE CLIMBER REPORT'!$B$24:$L$69,10,FALSE),\"\")","v":""},null,"",null,{"$f":"IFERROR(VLOOKUP($J27,'FINANCE CLIMBER REPORT'!$N$24:$X$69,6,FALSE),\"\")","v":""},{"$f":"IFERROR(VLOOKUP($J27,'FINANCE CLIMBER REPORT'!$N$24:$X$69,7,FALSE),\"\")","v":""},{"$f":"IFERROR(VLOOKUP($J27,'FINANCE CLIMBER REPORT'!$N$24:$X$69,8,FALSE),\"\")","v":""},{"$f":"IFERROR(VLOOKUP($J27,'FINANCE CLIMBER REPORT'!$N$24:$X$69,9,FALSE),\"\")","v":""},{"$f":"IFERROR(VLOOKUP($J27,'FINANCE CLIMBER REPORT'!$N$24:$X$69,10,FALSE),\"\")","v":""}]
[null,"TEAM 1 AVE",{"$f":"IFERROR(AVERAGE(C22:C27),\"\")","v":""},"","","","","",null,"TEAM 1 AVE",{"$f":"IFERROR(AVERAGE(K22:K27),\"\")","v":""},"","","","",""]
[null,{"$f":"B16","v":"FIN TRACK AVE"},{"$f":"K29","v":""},"","","","","",null,{"$f":"J16","v":"FIN TRACK AVE"},"","","","","",""]
[]
[]
[null,"TEAM 3",null,null,null,null,null,null,null,"TEAM 3"]
[null,{"$f":"B20","v":"2016-04-12"},null,null,null,null,null,null,null,"CUMULATIVE"]
[null,"Team Lead Name","HRS WORKED","# JOB APPS","# INFO INTERVIEWS","# MOCK INTERVIEWS","# REAL INTERVIEWS","# OFFERS",null,{"$f":"B34","v":"Team Lead Name"},"HRS WORKED","# JOB APPS","# INFO INTERVIEWS","# MOCK INTERVIEWS","# REAL INTERVIEWS","# OFFERS"]
[null,null,{"$f":"IFERROR(VLOOKUP($B35,'FINANCE CLIMBER REPORT'!$B$24:$L$69,5,FALSE),\"\")","v":""},{"$f":"IFERROR(VLOOKUP($B35,'FINANCE CLIMBER REPORT'!$B$24:$L$69,6,),\"\")","v":""},{"$f":"IFERROR(VLOOKUP($B35,'FINANCE CLIMBER REPORT'!$B$24:$L$69,7,FALSE),\"\")","v":""},{"$f":"IFERROR(VLOOKUP($B35,'FINANCE CLIMBER REPORT'!$B$24:$L$69,8,FALSE),\"\")","v":""},{"$f":"IFERROR(VLOOKUP($B35,'FINANCE CLIMBER REPORT'!$B$24:$L$69,9,FALSE),\"\")","v":""},{"$f":"IFERROR(VLOOKUP($B35,'FINANCE CLIMBER REPORT'!$B$24:$L$69,10,FALSE),\"\")","v":""},null,{"$f":"IF(B35=\"\",\"\",B35)","v":""},null,{"$f":"IFERROR(VLOOKUP($J35,'FINANCE CLIMBER REPORT'!$N$24:$X$69,6,FALSE),\"\")","v":""},{"$f":"IFERROR(VLOOKUP($J35,'FINANCE CLIMBER REPORT'!$N$24:$X$69,7,FALSE),\"\")","v":""},{"$f":"IFERROR(VLOOKUP($J35,'FINANCE CLIMBER REPORT'!$N$24:$X$69,8,FALSE),\"\")","v":""},{"$f":"IFERROR(VLOOKUP($J35,'FINANCE CLIMBER REPORT'!$N$24:$X$69,9,FALSE),\"\")","v":""},{"$f":"IFERROR(VLOOKUP($J35,'FINANCE CLIMBER REPORT'!$N$24:$X$69,10,FALSE),\"\")","v":""}]
[null,null,{"$f":"IFERROR(VLOOKUP($B36,'FINANCE CLIMBER REPORT'!$B$24:$L$69,5,FALSE),\"\")","v":""},{"$f":"IFERROR(VLOOKUP($B36,'FINANCE CLIMBER REPORT'!$B$24:$L$69,6,),\"\")","v":""},{"$f":"IFERROR(VLOOKUP($B36,'FINANCE CLIMBER REPORT'!$B$24:$L$69,7,FALSE),\"\")","v":""},{"$f":"IFERROR(VLOOKUP($B36,'FINANCE CLIMBER REPORT'!$B$24:$L$69,8,FALSE),\"\")","v":""},{"$f":"IFERROR(VLOOKUP($B36,'FINANCE CLIMBER REPORT'!$B$24:$L$69,9,FALSE),\"\")","v":""},{"$f":"IFERROR(VLOOKUP($B36,'FINANCE CLIMBER REPORT'!$B$24:$L$69,10,FALSE),\"\")","v":""},null,"",null,{"$f":"IFERROR(VLOOKUP($J36,'FINANCE CLIMBER REPORT'!$N$24:$X$69,6,FALSE),\"\")","v":""},{"$f":"IFERROR(VLOOKUP($J36,'FINANCE CLIMBER REPORT'!$N$24:$X$69,7,FALSE),\"\")","v":""},{"$f":"IFERROR(VLOOKUP($J36,'FINANCE CLIMBER REPORT'!$N$24:$X$69,8,FALSE),\"\")","v":""},{"$f":"IFERROR(VLOOKUP($J36,'FINANCE CLIMBER REPORT'!$N$24:$X$69,9,FALSE),\"\")","v":""},{"$f":"IFERROR(VLOOKUP($J36,'FINANCE CLIMBER REPORT'!$N$24:$X$69,10,FALSE),\"\")","v":""}]
[null,null,{"$f":"IFERROR(VLOOKUP($B37,'FINANCE CLIMBER REPORT'!$B$24:$L$69,5,FALSE),\"\")","v":""},{"$f":"IFERROR(VLOOKUP($B37,'FINANCE CLIMBER REPORT'!$B$24:$L$69,6,),\"\")","v":""},{"$f":"IFERROR(VLOOKUP($B37,'FINANCE CLIMBER REPORT'!$B$24:$L$69,7,FALSE),\"\")","v":""},{"$f":"IFERROR(VLOOKUP($B37,'FINANCE CLIMBER REPORT'!$B$24:$L$69,8,FALSE),\"\")","v":""},{"$f":"IFERROR(VLOOKUP($B37,'FINANCE CLIMBER REPORT'!$B$24:$L$69,9,FALSE),\"\")","v":""},{"$f":"IFERROR(VLOOKUP($B37,'FINANCE CLIMBER REPORT'!$B$24:$L$69,10,FALSE),\"\")","v":""},null,"",null,{"$f":"IFERROR(VLOOKUP($J37,'FINANCE CLIMBER REPORT'!$N$24:$X$69,6,FALSE),\"\")","v":""},{"$f":"IFERROR(VLOOKUP($J37,'FINANCE CLIMBER REPORT'!$N$24:$X$69,7,FALSE),\"\")","v":""},{"$f":"IFERROR(VLOOKUP($J37,'FINANCE CLIMBER REPORT'!$N$24:$X$69,8,FALSE),\"\")","v":""},{"$f":"IFERROR(VLOOKUP($J37,'FINANCE CLIMBER REPORT'!$N$24:$X$69,9,FALSE),\"\")","v":""},{"$f":"IFERROR(VLOOKUP($J37,'FINANCE CLIMBER REPORT'!$N$24:$X$69,10,FALSE),\"\")","v":""}]
[null,null,{"$f":"IFERROR(VLOOKUP($B38,'FINANCE CLIMBER REPORT'!$B$24:$L$69,5,FALSE),\"\")","v":""},{"$f":"IFERROR(VLOOKUP($B38,'FINANCE CLIMBER REPORT'!$B$24:$L$69,6,),\"\")","v":""},{"$f":"IFERROR(VLOOKUP($B38,'FINANCE CLIMBER REPORT'!$B$24:$L$69,7,FALSE),\"\")","v":""},{"$f":"IFERROR(VLOOKUP($B38,'FINANCE CLIMBER REPORT'!$B$24:$L$69,8,FALSE),\"\")","v":""},{"$f":"IFERROR(VLOOKUP($B38,'FINANCE CLIMBER REPORT'!$B$24:$L$69,9,FALSE),\"\")","v":""},{"$f":"IFERROR(VLOOKUP($B38,'FINANCE CLIMBER REPORT'!$B$24:$L$69,10,FALSE),\"\")","v":""},null,"",null,{"$f":"IFERROR(VLOOKUP($J38,'FINANCE CLIMBER REPORT'!$N$24:$X$69,6,FALSE),\"\")","v":""},{"$f":"IFERROR(VLOOKUP($J38,'FINANCE CLIMBER REPORT'!$N$24:$X$69,7,FALSE),\"\")","v":""},{"$f":"IFERROR(VLOOKUP($J38,'FINANCE CLIMBER REPORT'!$N$24:$X$69,8,FALSE),\"\")","v":""},{"$f":"IFERROR(VLOOKUP($J38,'FINANCE CLIMBER REPORT'!$N$24:$X$69,9,FALSE),\"\")","v":""},{"$f":"IFERROR(VLOOKUP($J38,'FINANCE CLIMBER REPORT'!$N$24:$X$69,10,FALSE),\"\")","v":""}]
[null,null,{"$f":"IFERROR(VLOOKUP($B39,'FINANCE CLIMBER REPORT'!$B$24:$L$69,5,FALSE),\"\")","v":""},{"$f":"IFERROR(VLOOKUP($B39,'FINANCE CLIMBER REPORT'!$B$24:$L$69,6,),\"\")","v":""},{"$f":"IFERROR(VLOOKUP($B39,'FINANCE CLIMBER REPORT'!$B$24:$L$69,7,FALSE),\"\")","v":""},{"$f":"IFERROR(VLOOKUP($B39,'FINANCE CLIMBER REPORT'!$B$24:$L$69,8,FALSE),\"\")","v":""},{"$f":"IFERROR(VLOOKUP($B39,'FINANCE CLIMBER REPORT'!$B$24:$L$69,9,FALSE),\"\")","v":""},{"$f":"IFERROR(VLOOKUP($B39,'FINANCE CLIMBER REPORT'!$B$24:$L$69,10,FALSE),\"\")","v":""},null,"",null,{"$f":"IFERROR(VLOOKUP($J39,'FINANCE CLIMBER REPORT'!$N$24:$X$69,6,FALSE),\"\")","v":""},{"$f":"IFERROR(VLOOKUP($J39,'FINANCE CLIMBER REPORT'!$N$24:$X$69,7,FALSE),\"\")","v":""},{"$f":"IFERROR(VLOOKUP($J39,'FINANCE CLIMBER REPORT'!$N$24:$X$69,8,FALSE),\"\")","v":""},{"$f":"IFERROR(VLOOKUP($J39,'FINANCE CLIMBER REPORT'!$N$24:$X$69,9,FALSE),\"\")","v":""},{"$f":"IFERROR(VLOOKUP($J39,'FINANCE CLIMBER REPORT'!$N$24:$X$69,10,FALSE),\"\")","v":""}]
[null,null,{"$f":"IFERROR(VLOOKUP($B40,'FINANCE CLIMBER REPORT'!$B$24:$L$69,5,FALSE),\"\")","v":""},{"$f":"IFERROR(VLOOKUP($B40,'FINANCE CLIMBER REPORT'!$B$24:$L$69,6,),\"\")","v":""},{"$f":"IFERROR(VLOOKUP($B40,'FINANCE CLIMBER REPORT'!$B$24:$L$69,7,FALSE),\"\")","v":""},{"$f":"IFERROR(VLOOKUP($B40,'FINANCE CLIMBER REPORT'!$B$24:$L$69,8,FALSE),\"\")","v":""},{"$f":"IFERROR(VLOOKUP($B40,'FINANCE CLIMBER REPORT'!$B$24:$L$69,9,FALSE),\"\")","v":""},{"$f":"IFERROR(VLOOKUP($B40,'FINANCE CLIMBER REPORT'!$B$24:$L$69,10,FALSE),\"\")","v":""},null,"",null,{"$f":"IFERROR(VLOOKUP($J40,'FINANCE CLIMBER REPORT'!$N$24:$X$69,6,FALSE),\"\")","v":""},{"$f":"IFERROR(VLOOKUP($J40,'FINANCE CLIMBER REPORT'!$N$24:$X$69,7,FALSE),\"\")","v":""},{"$f":"IFERROR(VLOOKUP($J40,'FINANCE CLIMBER REPORT'!$N$24:$X$69,8,FALSE),\"\")","v":""},{"$f":"IFERROR(VLOOKUP($J40,'FINANCE CLIMBER REPORT'!$N$24:$X$69,9,FALSE),\"\")","v":""},{"$f":"IFERROR(VLOOKUP($J40,'FINANCE CLIMBER REPORT'!$N$24:$X$69,10,FALSE),\"\")","v":""}]
[null,"TEAM 1 AVE",{"$f":"IFERROR(AVERAGE(C35:C40),\"\")","v":""},"","","","","",null,"TEAM 1 AVE",{"$f":"IFERROR(AVERAGE(K35:K40),\"\")","v":""},"","","","",""]
[null,{"$f":"B29","v":"FIN TRACK AVE"},{"$f":"C29","v":""},"","","","","",null,{"$f":"J29","v":"FIN TRACK AVE"},"","","","","",""]
[]
[]
[null,"TEAM 4",null,null,null,null,null,null,null,"TEAM 4"]
[null,{"$f":"B33","v":"2016-04-12"},null,null,null,null,null,null,null,"CUMULATIVE"]
[null,"Team Lead Name","HRS WORKED","# JOB APPS","# INFO INTERVIEWS","# MOCK INTERVIEWS","# REAL INTERVIEWS","# OFFERS",null,{"$f":"B47","v":"Team Lead Name"},"HRS WORKED","# JOB APPS","# INFO INTERVIEWS","# MOCK INTERVIEWS","# REAL INTERVIEWS","# OFFERS"]
[null,null,{"$f":"IFERROR(VLOOKUP($B48,'FINANCE CLIMBER REPORT'!$B$24:$L$69,5,FALSE),\"\")","v":""},{"$f":"IFERROR(VLOOKUP($B48,'FINANCE CLIMBER REPORT'!$B$24:$L$69,6,),\"\")","v":""},{"$f":"IFERROR(VLOOKUP($B48,'FINANCE CLIMBER REPORT'!$B$24:$L$69,7,FALSE),\"\")","v":""},{"$f":"IFERROR(VLOOKUP($B48,'FINANCE CLIMBER REPORT'!$B$24:$L$69,8,FALSE),\"\")","v":""},{"$f":"IFERROR(VLOOKUP($B48,'FINANCE CLIMBER REPORT'!$B$24:$L$69,9,FALSE),\"\")","v":""},{"$f":"IFERROR(VLOOKUP($B48,'FINANCE CLIMBER REPORT'!$B$24:$L$69,10,FALSE),\"\")","v":""},null,{"$f":"IF(B48=\"\",\"\",B48)","v":""},null,{"$f":"IFERROR(VLOOKUP($J48,'FINANCE CLIMBER REPORT'!$N$24:$X$69,6,FALSE),\"\")","v":""},{"$f":"IFERROR(VLOOKUP($J48,'FINANCE CLIMBER REPORT'!$N$24:$X$69,7,FALSE),\"\")","v":""},{"$f":"IFERROR(VLOOKUP($J48,'FINANCE CLIMBER REPORT'!$N$24:$X$69,8,FALSE),\"\")","v":""},{"$f":"IFERROR(VLOOKUP($J48,'FINANCE CLIMBER REPORT'!$N$24:$X$69,9,FALSE),\"\")","v":""},{"$f":"IFERROR(VLOOKUP($J48,'FINANCE CLIMBER REPORT'!$N$24:$X$69,10,FALSE),\"\")","v":""}]
[null,null,{"$f":"IFERROR(VLOOKUP($B49,'FINANCE CLIMBER REPORT'!$B$24:$L$69,5,FALSE),\"\")","v":""},{"$f":"IFERROR(VLOOKUP($B49,'FINANCE CLIMBER REPORT'!$B$24:$L$69,6,),\"\")","v":""},{"$f":"IFERROR(VLOOKUP($B49,'FINANCE CLIMBER REPORT'!$B$24:$L$69,7,FALSE),\"\")","v":""},{"$f":"IFERROR(VLOOKUP($B49,'FINANCE CLIMBER REPORT'!$B$24:$L$69,8,FALSE),\"\")","v":""},{"$f":"IFERROR(VLOOKUP($B49,'FINANCE CLIMBER REPORT'!$B$24:$L$69,9,FALSE),\"\")","v":""},{"$f":"IFERROR(VLOOKUP($B49,'FINANCE CLIMBER REPORT'!$B$24:$L$69,10,FALSE),\"\")","v":""},null,"",null,{"$f":"IFERROR(VLOOKUP($J49,'FINANCE CLIMBER REPORT'!$N$24:$X$69,6,FALSE),\"\")","v":""},{"$f":"IFERROR(VLOOKUP($J49,'FINANCE CLIMBER REPORT'!$N$24:$X$69,7,FALSE),\"\")","v":""},{"$f":"IFERROR(VLOOKUP($J49,'FINANCE CLIMBER REPORT'!$N$24:$X$69,8,FALSE),\"\")","v":""},{"$f":"IFERROR(VLOOKUP($J49,'FINANCE CLIMBER REPORT'!$N$24:$X$69,9,FALSE),\"\")","v":""},{"$f":"IFERROR(VLOOKUP($J49,'FINANCE CLIMBER REPORT'!$N$24:$X$69,10,FALSE),\"\")","v":""}]
[null,null,{"$f":"IFERROR(VLOOKUP($B50,'FINANCE CLIMBER REPORT'!$B$24:$L$69,5,FALSE),\"\")","v":""},{"$f":"IFERROR(VLOOKUP($B50,'FINANCE CLIMBER REPORT'!$B$24:$L$69,6,),\"\")","v":""},{"$f":"IFERROR(VLOOKUP($B50,'FINANCE CLIMBER REPORT'!$B$24:$L$69,7,FALSE),\"\")","v":""},{"$f":"IFERROR(VLOOKUP($B50,'FINANCE CLIMBER REPORT'!$B$24:$L$69,8,FALSE),\"\")","v":""},{"$f":"IFERROR(VLOOKUP($B50,'FINANCE CLIMBER REPORT'!$B$24:$L$69,9,FALSE),\"\")","v":""},{"$f":"IFERROR(VLOOKUP($B50,'FINANCE CLIMBER REPORT'!$B$24:$L$69,10,FALSE),\"\")","v":""},null,"",null,{"$f":"IFERROR(VLOOKUP($J50,'FINANCE CLIMBER REPORT'!$N$24:$X$69,6,FALSE),\"\")","v":""},{"$f":"IFERROR(VLOOKUP($J50,'FINANCE CLIMBER REPORT'!$N$24:$X$69,7,FALSE),\"\")","v":""},{"$f":"IFERROR(VLOOKUP($J50,'FINANCE CLIMBER REPORT'!$N$24:$X$69,8,FALSE),\"\")","v":""},{"$f":"IFERROR(VLOOKUP($J50,'FINANCE CLIMBER REPORT'!$N$24:$X$69,9,FALSE),\"\")","v":""},{"$f":"IFERROR(VLOOKUP($J50,'FINANCE CLIMBER REPORT'!$N$24:$X$69,10,FALSE),\"\")","v":""}]
[null,null,{"$f":"IFERROR(VLOOKUP($B51,'FINANCE CLIMBER REPORT'!$B$24:$L$69,5,FALSE),\"\")","v":""},{"$f":"IFERROR(VLOOKUP($B51,'FINANCE CLIMBER REPORT'!$B$24:$L$69,6,),\"\")","v":""},{"$f":"IFERROR(VLOOKUP($B51,'FINANCE CLIMBER REPORT'!$B$24:$L$69,7,FALSE),\"\")","v":""},{"$f":"IFERROR(VLOOKUP($B51,'FINANCE CLIMBER REPORT'!$B$24:$L$69,8,FALSE),\"\")","v":""},{"$f":"IFERROR(VLOOKUP($B51,'FINANCE CLIMBER REPORT'!$B$24:$L$69,9,FALSE),\"\")","v":""},{"$f":"IFERROR(VLOOKUP($B51,'FINANCE CLIMBER REPORT'!$B$24:$L$69,10,FALSE),\"\")","v":""},null,"",null,{"$f":"IFERROR(VLOOKUP($J51,'FINANCE CLIMBER REPORT'!$N$24:$X$69,6,FALSE),\"\")","v":""},{"$f":"IFERROR(VLOOKUP($J51,'FINANCE CLIMBER REPORT'!$N$24:$X$69,7,FALSE),\"\")","v":""},{"$f":"IFERROR(VLOOKUP($J51,'FINANCE CLIMBER REPORT'!$N$24:$X$69,8,FALSE),\"\")","v":""},{"$f":"IFERROR(VLOOKUP($J51,'FINANCE CLIMBER REPORT'!$N$24:$X$69,9,FALSE),\"\")","v":""},{"$f":"IFERROR(VLOOKUP($J51,'FINANCE CLIMBER REPORT'!$N$24:$X$69,10,FALSE),\"\")","v":""}]
[null,null,{"$f":"IFERROR(VLOOKUP($B52,'FINANCE CLIMBER REPORT'!$B$24:$L$69,5,FALSE),\"\")","v":""},{"$f":"IFERROR(VLOOKUP($B52,'FINANCE CLIMBER REPORT'!$B$24:$L$69,6,),\"\")","v":""},{"$f":"IFERROR(VLOOKUP($B52,'FINANCE CLIMBER REPORT'!$B$24:$L$69,7,FALSE),\"\")","v":""},{"$f":"IFERROR(VLOOKUP($B52,'FINANCE CLIMBER REPORT'!$B$24:$L$69,8,FALSE),\"\")","v":""},{"$f":"IFERROR(VLOOKUP($B52,'FINANCE CLIMBER REPORT'!$B$24:$L$69,9,FALSE),\"\")","v":""},{"$f":"IFERROR(VLOOKUP($B52,'FINANCE CLIMBER REPORT'!$B$24:$L$69,10,FALSE),\"\")","v":""},null,"",null,{"$f":"IFERROR(VLOOKUP($J52,'FINANCE CLIMBER REPORT'!$N$24:$X$69,6,FALSE),\"\")","v":""},{"$f":"IFERROR(VLOOKUP($J52,'FINANCE CLIMBER REPORT'!$N$24:$X$69,7,FALSE),\"\")","v":""},{"$f":"IFERROR(VLOOKUP($J52,'FINANCE CLIMBER REPORT'!$N$24:$X$69,8,FALSE),\"\")","v":""},{"$f":"IFERROR(VLOOKUP($J52,'FINANCE CLIMBER REPORT'!$N$24:$X$69,9,FALSE),\"\")","v":""},{"$f":"IFERROR(VLOOKUP($J52,'FINANCE CLIMBER REPORT'!$N$24:$X$69,10,FALSE),\"\")","v":""}]
[null,null,{"$f":"IFERROR(VLOOKUP($B53,'FINANCE CLIMBER REPORT'!$B$24:$L$69,5,FALSE),\"\")","v":""},{"$f":"IFERROR(VLOOKUP($B53,'FINANCE CLIMBER REPORT'!$B$24:$L$69,6,),\"\")","v":""},{"$f":"IFERROR(VLOOKUP($B53,'FINANCE CLIMBER REPORT'!$B$24:$L$69,7,FALSE),\"\")","v":""},{"$f":"IFERROR(VLOOKUP($B53,'FINANCE CLIMBER REPORT'!$B$24:$L$69,8,FALSE),\"\")","v":""},{"$f":"IFERROR(VLOOKUP($B53,'FINANCE CLIMBER REPORT'!$B$24:$L$69,9,FALSE),\"\")","v":""},{"$f":"IFERROR(VLOOKUP($B53,'FINANCE CLIMBER REPORT'!$B$24:$L$69,10,FALSE),\"\")","v":""},null,"",null,{"$f":"IFERROR(VLOOKUP($J53,'FINANCE CLIMBER REPORT'!$N$24:$X$69,6,FALSE),\"\")","v":""},{"$f":"IFERROR(VLOOKUP($J53,'FINANCE CLIMBER REPORT'!$N$24:$X$69,7,FALSE),\"\")","v":""},{"$f":"IFERROR(VLOOKUP($J53,'FINANCE CLIMBER REPORT'!$N$24:$X$69,8,FALSE),\"\")","v":""},{"$f":"IFERROR(VLOOKUP($J53,'FINANCE CLIMBER REPORT'!$N$24:$X$69,9,FALSE),\"\")","v":""},{"$f":"IFERROR(VLOOKUP($J53,'FINANCE CLIMBER REPORT'!$N$24:$X$69,10,FALSE),\"\")","v":""}]
[null,"TEAM 1 AVE",{"$f":"IFERROR(AVERAGE(C48:C53),\"\")","v":""},"","","","","",null,"TEAM 1 AVE",{"$f":"IFERROR(AVERAGE(K48:K53),\"\")","v":""},"","","","",""]
[null,{"$f":"B42","v":"FIN TRACK AVE"},{"$f":"K42","v":""},"","","","","",null,{"$f":"J42","v":"FIN TRACK AVE"},"","","","","",""]
[]
[]
[null,"TEAM 5",null,null,null,null,null,null,null,"TEAM 5"]
[null,{"$f":"B46","v":"2016-04-12"},null,null,null,null,null,null,null,"CUMULATIVE"]
[null,"Team Lead Name","HRS WORKED","# JOB APPS","# INFO INTERVIEWS","# MOCK INTERVIEWS","# REAL INTERVIEWS","# OFFERS",null,{"$f":"B60","v":"Team Lead Name"},"HRS WORKED","# JOB APPS","# INFO INTERVIEWS","# MOCK INTERVIEWS","# REAL INTERVIEWS","# OFFERS"]
[null,null,{"$f":"IFERROR(VLOOKUP($B61,'FINANCE CLIMBER REPORT'!$B$24:$L$69,5),\"\")","v":""},{"$f":"IFERROR(VLOOKUP($B61,'FINANCE CLIMBER REPORT'!$B$24:$L$69,6),\"\")","v":""},{"$f":"IFERROR(VLOOKUP($B61,'FINANCE CLIMBER REPORT'!$B$24:$L$69,7),\"\")","v":""},{"$f":"IFERROR(VLOOKUP($B61,'FINANCE CLIMBER REPORT'!$B$24:$L$69,8),\"\")","v":""},{"$f":"IFERROR(VLOOKUP($B61,'FINANCE CLIMBER REPORT'!$B$24:$L$69,9),\"\")","v":""},{"$f":"IFERROR(VLOOKUP($B61,'FINANCE CLIMBER REPORT'!$B$24:$L$69,10),\"\")","v":""},null,{"$f":"IF(B61=\"\",\"\",B61)","v":""},null,{"$f":"IFERROR(VLOOKUP($J61,'FINANCE CLIMBER REPORT'!$N$24:$X$69,6,FALSE),\"\")","v":""},{"$f":"IFERROR(VLOOKUP($J61,'FINANCE CLIMBER REPORT'!$N$24:$X$69,7,FALSE),\"\")","v":""},{"$f":"IFERROR(VLOOKUP($J61,'FINANCE CLIMBER REPORT'!$N$24:$X$69,8,FALSE),\"\")","v":""},{"$f":"IFERROR(VLOOKUP($J61,'FINANCE CLIMBER REPORT'!$N$24:$X$69,9,FALSE),\"\")","v":""},{"$f":"IFERROR(VLOOKUP($J61,'FINANCE CLIMBER REPORT'!$N$24:$X$69,10,FALSE),\"\")","v":""}]
[null,null,{"$f":"IFERROR(VLOOKUP($B62,'FINANCE CLIMBER REPORT'!$B$24:$L$69,5),\"\")","v":""},{"$f":"IFERROR(VLOOKUP($B62,'FINANCE CLIMBER REPORT'!$B$24:$L$69,6),\"\")","v":""},{"$f":"IFERROR(VLOOKUP($B62,'FINANCE CLIMBER REPORT'!$B$24:$L$69,7),\"\")","v":""},{"$f":"IFERROR(VLOOKUP($B62,'FINANCE CLIMBER REPORT'!$B$24:$L$69,8),\"\")","v":""},{"$f":"IFERROR(VLOOKUP($B62,'FINANCE CLIMBER REPORT'!$B$24:$L$69,9),\"\")","v":""},{"$f":"IFERROR(VLOOKUP($B62,'FINANCE CLIMBER REPORT'!$B$24:$L$69,10),\"\")","v":""},null,"",null,{"$f":"IFERROR(VLOOKUP($J62,'FINANCE CLIMBER REPORT'!$N$24:$X$69,6,FALSE),\"\")","v":""},{"$f":"IFERROR(VLOOKUP($J62,'FINANCE CLIMBER REPORT'!$N$24:$X$69,7,FALSE),\"\")","v":""},{"$f":"IFERROR(VLOOKUP($J62,'FINANCE CLIMBER REPORT'!$N$24:$X$69,8,FALSE),\"\")","v":""},{"$f":"IFERROR(VLOOKUP($J62,'FINANCE CLIMBER REPORT'!$N$24:$X$69,9,FALSE),\"\")","v":""},{"$f":"IFERROR(VLOOKUP($J62,'FINANCE CLIMBER REPORT'!$N$24:$X$69,10,FALSE),\"\")","v":""}]
[null,null,{"$f":"IFERROR(VLOOKUP($B63,'FINANCE CLIMBER REPORT'!$B$24:$L$69,5),\"\")","v":""},{"$f":"IFERROR(VLOOKUP($B63,'FINANCE CLIMBER REPORT'!$B$24:$L$69,6),\"\")","v":""},{"$f":"IFERROR(VLOOKUP($B63,'FINANCE CLIMBER REPORT'!$B$24:$L$69,7),\"\")","v":""},{"$f":"IFERROR(VLOOKUP($B63,'FINANCE CLIMBER REPORT'!$B$24:$L$69,8),\"\")","v":""},{"$f":"IFERROR(VLOOKUP($B63,'FINANCE CLIMBER REPORT'!$B$24:$L$69,9),\"\")","v":""},{"$f":"IFERROR(VLOOKUP($B63,'FINANCE CLIMBER REPORT'!$B$24:$L$69,10),\"\")","v":""},null,"",null,{"$f":"IFERROR(VLOOKUP($J63,'FINANCE CLIMBER REPORT'!$N$24:$X$69,6,FALSE),\"\")","v":""},{"$f":"IFERROR(VLOOKUP($J63,'FINANCE CLIMBER REPORT'!$N$24:$X$69,7,FALSE),\"\")","v":""},{"$f":"IFERROR(VLOOKUP($J63,'FINANCE CLIMBER REPORT'!$N$24:$X$69,8,FALSE),\"\")","v":""},{"$f":"IFERROR(VLOOKUP($J63,'FINANCE CLIMBER REPORT'!$N$24:$X$69,9,FALSE),\"\")","v":""},{"$f":"IFERROR(VLOOKUP($J63,'FINANCE CLIMBER REPORT'!$N$24:$X$69,10,FALSE),\"\")","v":""}]
[null,null,{"$f":"IFERROR(VLOOKUP($B64,'FINANCE CLIMBER REPORT'!$B$24:$L$69,5),\"\")","v":""},{"$f":"IFERROR(VLOOKUP($B64,'FINANCE CLIMBER REPORT'!$B$24:$L$69,6),\"\")","v":""},{"$f":"IFERROR(VLOOKUP($B64,'FINANCE CLIMBER REPORT'!$B$24:$L$69,7),\"\")","v":""},{"$f":"IFERROR(VLOOKUP($B64,'FINANCE CLIMBER REPORT'!$B$24:$L$69,8),\"\")","v":""},{"$f":"IFERROR(VLOOKUP($B64,'FINANCE CLIMBER REPORT'!$B$24:$L$69,9),\"\")","v":""},{"$f":"IFERROR(VLOOKUP($B64,'FINANCE CLIMBER REPORT'!$B$24:$L$69,10),\"\")","v":""},null,"",null,{"$f":"IFERROR(VLOOKUP($J64,'FINANCE CLIMBER REPORT'!$N$24:$X$69,6,FALSE),\"\")","v":""},{"$f":"IFERROR(VLOOKUP($J64,'FINANCE CLIMBER REPORT'!$N$24:$X$69,7,FALSE),\"\")","v":""},{"$f":"IFERROR(VLOOKUP($J64,'FINANCE CLIMBER REPORT'!$N$24:$X$69,8,FALSE),\"\")","v":""},{"$f":"IFERROR(VLOOKUP($J64,'FINANCE CLIMBER REPORT'!$N$24:$X$69,9,FALSE),\"\")","v":""},{"$f":"IFERROR(VLOOKUP($J64,'FINANCE CLIMBER REPORT'!$N$24:$X$69,10,FALSE),\"\")","v":""}]
[null,null,{"$f":"IFERROR(VLOOKUP($B65,'FINANCE CLIMBER REPORT'!$B$24:$L$69,5),\"\")","v":""},{"$f":"IFERROR(VLOOKUP($B65,'FINANCE CLIMBER REPORT'!$B$24:$L$69,6),\"\")","v":""},{"$f":"IFERROR(VLOOKUP($B65,'FINANCE CLIMBER REPORT'!$B$24:$L$69,7),\"\")","v":""},{"$f":"IFERROR(VLOOKUP($B65,'FINANCE CLIMBER REPORT'!$B$24:$L$69,8),\"\")","v":""},{"$f":"IFERROR(VLOOKUP($B65,'FINANCE CLIMBER REPORT'!$B$24:$L$69,9),\"\")","v":""},{"$f":"IFERROR(VLOOKUP($B65,'FINANCE CLIMBER REPORT'!$B$24:$L$69,10),\"\")","v":""},null,"",null,{"$f":"IFERROR(VLOOKUP($J65,'FINANCE CLIMBER REPORT'!$N$24:$X$69,6,FALSE),\"\")","v":""},{"$f":"IFERROR(VLOOKUP($J65,'FINANCE CLIMBER REPORT'!$N$24:$X$69,7,FALSE),\"\")","v":""},{"$f":"IFERROR(VLOOKUP($J65,'FINANCE CLIMBER REPORT'!$N$24:$X$69,8,FALSE),\"\")","v":""},{"$f":"IFERROR(VLOOKUP($J65,'FINANCE CLIMBER REPORT'!$N$24:$X$69,9,FALSE),\"\")","v":""},{"$f":"IFERROR(VLOOKUP($J65,'FINANCE CLIMBER REPORT'!$N$24:$X$69,10,FALSE),\"\")","v":""}]
[null,null,{"$f":"IFERROR(VLOOKUP($B66,'FINANCE CLIMBER REPORT'!$B$24:$L$69,5),\"\")","v":""},{"$f":"IFERROR(VLOOKUP($B66,'FINANCE CLIMBER REPORT'!$B$24:$L$69,6),\"\")","v":""},{"$f":"IFERROR(VLOOKUP($B66,'FINANCE CLIMBER REPORT'!$B$24:$L$69,7),\"\")","v":""},{"$f":"IFERROR(VLOOKUP($B66,'FINANCE CLIMBER REPORT'!$B$24:$L$69,8),\"\")","v":""},{"$f":"IFERROR(VLOOKUP($B66,'FINANCE CLIMBER REPORT'!$B$24:$L$69,9),\"\")","v":""},{"$f":"IFERROR(VLOOKUP($B66,'FINANCE CLIMBER REPORT'!$B$24:$L$69,10),\"\")","v":""},null,"",null,{"$f":"IFERROR(VLOOKUP($J66,'FINANCE CLIMBER REPORT'!$N$24:$X$69,6,FALSE),\"\")","v":""},{"$f":"IFERROR(VLOOKUP($J66,'FINANCE CLIMBER REPORT'!$N$24:$X$69,7,FALSE),\"\")","v":""},{"$f":"IFERROR(VLOOKUP($J66,'FINANCE CLIMBER REPORT'!$N$24:$X$69,8,FALSE),\"\")","v":""},{"$f":"IFERROR(VLOOKUP($J66,'FINANCE CLIMBER REPORT'!$N$24:$X$69,9,FALSE),\"\")","v":""},{"$f":"IFERROR(VLOOKUP($J66,'FINANCE CLIMBER REPORT'!$N$24:$X$69,10,FALSE),\"\")","v":""}]
[null,"TEAM 1 AVE",{"$f":"IFERROR(AVERAGE(C61:C66),\"\")","v":""},"","","","","",null,"TEAM 1 AVE",{"$f":"IFERROR(AVERAGE(K61:K66),\"\")","v":""},"","","","",""]
[null,{"$f":"B55","v":"FIN TRACK AVE"},"","","","","","",null,{"$f":"J55","v":"FIN TRACK AVE"},"","","","","",""]
[]
[]
[null,"TEAM 6",null,null,null,null,null,null,null,"TEAM 6"]
[null,{"$f":"B59","v":"2016-04-12"},null,null,null,null,null,null,null,"CUMULATIVE"]
[null,"Team Lead Name","HRS WORKED","# JOB APPS","# INFO INTERVIEWS","# MOCK INTERVIEWS","# REAL INTERVIEWS","# OFFERS",null,{"$f":"B73","v":"Team Lead Name"},"HRS WORKED","# JOB APPS","# INFO INTERVIEWS","# MOCK INTERVIEWS","# REAL INTERVIEWS","# OFFERS"]
[null,null,{"$f":"IFERROR(VLOOKUP($B74,'FINANCE CLIMBER REPORT'!$B$24:$L$69,5,FALSE),\"\")","v":""},{"$f":"IFERROR(VLOOKUP($B74,'FINANCE CLIMBER REPORT'!$B$24:$L$69,6,),\"\")","v":""},{"$f":"IFERROR(VLOOKUP($B74,'FINANCE CLIMBER REPORT'!$B$24:$L$69,7,FALSE),\"\")","v":""},{"$f":"IFERROR(VLOOKUP($B74,'FINANCE CLIMBER REPORT'!$B$24:$L$69,8,FALSE),\"\")","v":""},{"$f":"IFERROR(VLOOKUP($B74,'FINANCE CLIMBER REPORT'!$B$24:$L$69,9,FALSE),\"\")","v":""},{"$f":"IFERROR(VLOOKUP($B74,'FINANCE CLIMBER REPORT'!$B$24:$L$69,10,FALSE),\"\")","v":""},null,{"$f":"IF(B74=\"\",\"\",B74)","v":""},null,{"$f":"IFERROR(VLOOKUP($J74,'FINANCE CLIMBER REPORT'!$N$24:$X$69,6,FALSE),\"\")","v":""},{"$f":"IFERROR(VLOOKUP($J74,'FINANCE CLIMBER REPORT'!$N$24:$X$69,7,FALSE),\"\")","v":""},{"$f":"IFERROR(VLOOKUP($J74,'FINANCE CLIMBER REPORT'!$N$24:$X$69,8,FALSE),\"\")","v":""},{"$f":"IFERROR(VLOOKUP($J74,'FINANCE CLIMBER REPORT'!$N$24:$X$69,9,FALSE),\"\")","v":""},{"$f":"IFERROR(VLOOKUP($J74,'FINANCE CLIMBER REPORT'!$N$24:$X$69,10,FALSE),\"\")","v":""}]
[null,null,{"$f":"IFERROR(VLOOKUP($B75,'FINANCE CLIMBER REPORT'!$B$24:$L$69,5,FALSE),\"\")","v":""},{"$f":"IFERROR(VLOOKUP($B75,'FINANCE CLIMBER REPORT'!$B$24:$L$69,6,),\"\")","v":""},{"$f":"IFERROR(VLOOKUP($B75,'FINANCE CLIMBER REPORT'!$B$24:$L$69,7,FALSE),\"\")","v":""},{"$f":"IFERROR(VLOOKUP($B75,'FINANCE CLIMBER REPORT'!$B$24:$L$69,8,FALSE),\"\")","v":""},{"$f":"IFERROR(VLOOKUP($B75,'FINANCE CLIMBER REPORT'!$B$24:$L$69,9,FALSE),\"\")","v":""},{"$f":"IFERROR(VLOOKUP($B75,'FINANCE CLIMBER REPORT'!$B$24:$L$69,10,FALSE),\"\")","v":""},null,"",null,{"$f":"IFERROR(VLOOKUP($J75,'FINANCE CLIMBER REPORT'!$N$24:$X$69,6,FALSE),\"\")","v":""},{"$f":"IFERROR(VLOOKUP($J75,'FINANCE CLIMBER REPORT'!$N$24:$X$69,7,FALSE),\"\")","v":""},{"$f":"IFERROR(VLOOKUP($J75,'FINANCE CLIMBER REPORT'!$N$24:$X$69,8,FALSE),\"\")","v":""},{"$f":"IFERROR(VLOOKUP($J75,'FINANCE CLIMBER REPORT'!$N$24:$X$69,9,FALSE),\"\")","v":""},{"$f":"IFERROR(VLOOKUP($J75,'FINANCE CLIMBER REPORT'!$N$24:$X$69,10,FALSE),\"\")","v":""}]
[null,null,{"$f":"IFERROR(VLOOKUP($B76,'FINANCE CLIMBER REPORT'!$B$24:$L$69,5,FALSE),\"\")","v":""},{"$f":"IFERROR(VLOOKUP($B76,'FINANCE CLIMBER REPORT'!$B$24:$L$69,6,),\"\")","v":""},{"$f":"IFERROR(VLOOKUP($B76,'FINANCE CLIMBER REPORT'!$B$24:$L$69,7,FALSE),\"\")","v":""},{"$f":"IFERROR(VLOOKUP($B76,'FINANCE CLIMBER REPORT'!$B$24:$L$69,8,FALSE),\"\")","v":""},{"$f":"IFERROR(VLOOKUP($B76,'FINANCE CLIMBER REPORT'!$B$24:$L$69,9,FALSE),\"\")","v":""},{"$f":"IFERROR(VLOOKUP($B76,'FINANCE CLIMBER REPORT'!$B$24:$L$69,10,FALSE),\"\")","v":""},null,"",null,{"$f":"IFERROR(VLOOKUP($J76,'FINANCE CLIMBER REPORT'!$N$24:$X$69,6,FALSE),\"\")","v":""},{"$f":"IFERROR(VLOOKUP($J76,'FINANCE CLIMBER REPORT'!$N$24:$X$69,7,FALSE),\"\")","v":""},{"$f":"IFERROR(VLOOKUP($J76,'FINANCE CLIMBER REPORT'!$N$24:$X$69,8,FALSE),\"\")","v":""},{"$f":"IFERROR(VLOOKUP($J76,'FINANCE CLIMBER REPORT'!$N$24:$X$69,9,FALSE),\"\")","v":""},{"$f":"IFERROR(VLOOKUP($J76,'FINANCE CLIMBER REPORT'!$N$24:$X$69,10,FALSE),\"\")","v":""}]
[null,null,{"$f":"IFERROR(VLOOKUP($B77,'FINANCE CLIMBER REPORT'!$B$24:$L$69,5,FALSE),\"\")","v":""},{"$f":"IFERROR(VLOOKUP($B77,'FINANCE CLIMBER REPORT'!$B$24:$L$69,6,),\"\")","v":""},{"$f":"IFERROR(VLOOKUP($B77,'FINANCE CLIMBER REPORT'!$B$24:$L$69,7,FALSE),\"\")","v":""},{"$f":"IFERROR(VLOOKUP($B77,'FINANCE CLIMBER REPORT'!$B$24:$L$69,8,FALSE),\"\")","v":""},{"$f":"IFERROR(VLOOKUP($B77,'FINANCE CLIMBER REPORT'!$B$24:$L$69,9,FALSE),\"\")","v":""},{"$f":"IFERROR(VLOOKUP($B77,'FINANCE CLIMBER REPORT'!$B$24:$L$69,10,FALSE),\"\")","v":""},null,"",null,{"$f":"IFERROR(VLOOKUP($J77,'FINANCE CLIMBER REPORT'!$N$24:$X$69,6,FALSE),\"\")","v":""},{"$f":"IFERROR(VLOOKUP($J77,'FINANCE CLIMBER REPORT'!$N$24:$X$69,7,FALSE),\"\")","v":""},{"$f":"IFERROR(VLOOKUP($J77,'FINANCE CLIMBER REPORT'!$N$24:$X$69,8,FALSE),\"\")","v":""},{"$f":"IFERROR(VLOOKUP($J77,'FINANCE CLIMBER REPORT'!$N$24:$X$69,9,FALSE),\"\")","v":""},{"$f":"IFERROR(VLOOKUP($J77,'FINANCE CLIMBER REPORT'!$N$24:$X$69,10,FALSE),\"\")","v":""}]
[null,null,{"$f":"IFERROR(VLOOKUP($B78,'FINANCE CLIMBER REPORT'!$B$24:$L$69,5,FALSE),\"\")","v":""},{"$f":"IFERROR(VLOOKUP($B78,'FINANCE CLIMBER REPORT'!$B$24:$L$69,6,),\"\")","v":""},{"$f":"IFERROR(VLOOKUP($B78,'FINANCE CLIMBER REPORT'!$B$24:$L$69,7,FALSE),\"\")","v":""},{"$f":"IFERROR(VLOOKUP($B78,'FINANCE CLIMBER REPORT'!$B$24:$L$69,8,FALSE),\"\")","v":""},{"$f":"IFERROR(VLOOKUP($B78,'FINANCE CLIMBER REPORT'!$B$24:$L$69,9,FALSE),\"\")","v":""},{"$f":"IFERROR(VLOOKUP($B78,'FINANCE CLIMBER REPORT'!$B$24:$L$69,10,FALSE),\"\")","v":""},null,"",null,{"$f":"IFERROR(VLOOKUP($J78,'FINANCE CLIMBER REPORT'!$N$24:$X$69,6,FALSE),\"\")","v":""},{"$f":"IFERROR(VLOOKUP($J78,'FINANCE CLIMBER REPORT'!$N$24:$X$69,7,FALSE),\"\")","v":""},{"$f":"IFERROR(VLOOKUP($J78,'FINANCE CLIMBER REPORT'!$N$24:$X$69,8,FALSE),\"\")","v":""},{"$f":"IFERROR(VLOOKUP($J78,'FINANCE CLIMBER REPORT'!$N$24:$X$69,9,FALSE),\"\")","v":""},{"$f":"IFERROR(VLOOKUP($J78,'FINANCE CLIMBER REPORT'!$N$24:$X$69,10,FALSE),\"\")","v":""}]
[null,null,{"$f":"IFERROR(VLOOKUP($B79,'FINANCE CLIMBER REPORT'!$B$24:$L$69,5,FALSE),\"\")","v":""},{"$f":"IFERROR(VLOOKUP($B79,'FINANCE CLIMBER REPORT'!$B$24:$L$69,6,),\"\")","v":""},{"$f":"IFERROR(VLOOKUP($B79,'FINANCE CLIMBER REPORT'!$B$24:$L$69,7,FALSE),\"\")","v":""},{"$f":"IFERROR(VLOOKUP($B79,'FINANCE CLIMBER REPORT'!$B$24:$L$69,8,FALSE),\"\")","v":""},{"$f":"IFERROR(VLOOKUP($B79,'FINANCE CLIMBER REPORT'!$B$24:$L$69,9,FALSE),\"\")","v":""},{"$f":"IFERROR(VLOOKUP($B79,'FINANCE CLIMBER REPORT'!$B$24:$L$69,10,FALSE),\"\")","v":""},null,"",null,{"$f":"IFERROR(VLOOKUP($J79,'FINANCE CLIMBER REPORT'!$N$24:$X$69,6,FALSE),\"\")","v":""},{"$f":"IFERROR(VLOOKUP($J79,'FINANCE CLIMBER REPORT'!$N$24:$X$69,7,FALSE),\"\")","v":""},{"$f":"IFERROR(VLOOKUP($J79,'FINANCE CLIMBER REPORT'!$N$24:$X$69,8,FALSE),\"\")","v":""},{"$f":"IFERROR(VLOOKUP($J79,'FINANCE CLIMBER REPORT'!$N$24:$X$69,9,FALSE),\"\")","v":""},{"$f":"IFERROR(VLOOKUP($J79,'FINANCE CLIMBER REPORT'!$N$24:$X$69,10,FALSE),\"\")","v":""}]
[null,"TEAM 1 AVE",{"$f":"IFERROR(AVERAGE(C74:C79),\"\")","v":""},"","","","","",null,"TEAM 1 AVE",{"$f":"IFERROR(AVERAGE(K74:K79),\"\")","v":""},"","","","",""]
[null,{"$f":"B68","v":"FIN TRACK AVE"},{"$f":"C68","v":""},"","","","","",null,{"$f":"J68","v":"FIN TRACK AVE"},{"$f":"K68","v":""},"","","","",""]
[]
[]
[null,"TEAM 7 ",null,null,null,null,null,null,null,"TEAM 7 "]
[null,{"$f":"B72","v":"2016-04-12"},null,null,null,null,null,null,null,"CUMULATIVE"]
[null,"Team Lead Name","HRS WORKED","# JOB APPS","# INFO INTERVIEWS","# MOCK INTERVIEWS","# REAL INTERVIEWS","# OFFERS",null,{"$f":"B86","v":"Team Lead Name"},"HRS WORKED","# JOB APPS","# INFO INTERVIEWS","# MOCK INTERVIEWS","# REAL INTERVIEWS","# OFFERS"]
[null,null,{"$f":"IFERROR(VLOOKUP($B87,'FINANCE CLIMBER REPORT'!$B$24:$L$69,5,FALSE),\"\")","v":""},{"$f":"IFERROR(VLOOKUP($B87,'FINANCE CLIMBER REPORT'!$B$24:$L$69,6,),\"\")","v":""},{"$f":"IFERROR(VLOOKUP($B87,'FINANCE CLIMBER REPORT'!$B$24:$L$69,7,FALSE),\"\")","v":""},{"$f":"IFERROR(VLOOKUP($B87,'FINANCE CLIMBER REPORT'!$B$24:$L$69,8,FALSE),\"\")","v":""},{"$f":"IFERROR(VLOOKUP($B87,'FINANCE CLIMBER REPORT'!$B$24:$L$69,9,FALSE),\"\")","v":""},{"$f":"IFERROR(VLOOKUP($B87,'FINANCE CLIMBER REPORT'!$B$24:$L$69,10,FALSE),\"\")","v":""},null,{"$f":"IF(B87=\"\",\"\",B87)","v":""},null,{"$f":"IFERROR(VLOOKUP($J87,'FINANCE CLIMBER REPORT'!$N$24:$X$69,6,FALSE),\"\")","v":""},{"$f":"IFERROR(VLOOKUP($J87,'FINANCE CLIMBER REPORT'!$N$24:$X$69,7,FALSE),\"\")","v":""},{"$f":"IFERROR(VLOOKUP($J87,'FINANCE CLIMBER REPORT'!$N$24:$X$69,8,FALSE),\"\")","v":""},{"$f":"IFERROR(VLOOKUP($J87,'FINANCE CLIMBER REPORT'!$N$24:$X$69,9,FALSE),\"\")","v":""},{"$f":"IFERROR(VLOOKUP($J87,'FINANCE CLIMBER REPORT'!$N$24:$X$69,10,FALSE),\"\")","v":""}]
[null,null,{"$f":"IFERROR(VLOOKUP($B88,'FINANCE CLIMBER REPORT'!$B$24:$L$69,5,FALSE),\"\")","v":""},{"$f":"IFERROR(VLOOKUP($B88,'FINANCE CLIMBER REPORT'!$B$24:$L$69,6,),\"\")","v":""},{"$f":"IFERROR(VLOOKUP($B88,'FINANCE CLIMBER REPORT'!$B$24:$L$69,7,FALSE),\"\")","v":""},{"$f":"IFERROR(VLOOKUP($B88,'FINANCE CLIMBER REPORT'!$B$24:$L$69,8,FALSE),\"\")","v":""},{"$f":"IFERROR(VLOOKUP($B88,'FINANCE CLIMBER REPORT'!$B$24:$L$69,9,FALSE),\"\")","v":""},{"$f":"IFERROR(VLOOKUP($B88,'FINANCE CLIMBER REPORT'!$B$24:$L$69,10,FALSE),\"\")","v":""},null,"",null,{"$f":"IFERROR(VLOOKUP($J88,'FINANCE CLIMBER REPORT'!$N$24:$X$69,6,FALSE),\"\")","v":""},{"$f":"IFERROR(VLOOKUP($J88,'FINANCE CLIMBER REPORT'!$N$24:$X$69,7,FALSE),\"\")","v":""},{"$f":"IFERROR(VLOOKUP($J88,'FINANCE CLIMBER REPORT'!$N$24:$X$69,8,FALSE),\"\")","v":""},{"$f":"IFERROR(VLOOKUP($J88,'FINANCE CLIMBER REPORT'!$N$24:$X$69,9,FALSE),\"\")","v":""},{"$f":"IFERROR(VLOOKUP($J88,'FINANCE CLIMBER REPORT'!$N$24:$X$69,10,FALSE),\"\")","v":""}]
[null,null,{"$f":"IFERROR(VLOOKUP($B89,'FINANCE CLIMBER REPORT'!$B$24:$L$69,5,FALSE),\"\")","v":""},{"$f":"IFERROR(VLOOKUP($B89,'FINANCE CLIMBER REPORT'!$B$24:$L$69,6,),\"\")","v":""},{"$f":"IFERROR(VLOOKUP($B89,'FINANCE CLIMBER REPORT'!$B$24:$L$69,7,FALSE),\"\")","v":""},{"$f":"IFERROR(VLOOKUP($B89,'FINANCE CLIMBER REPORT'!$B$24:$L$69,8,FALSE),\"\")","v":""},{"$f":"IFERROR(VLOOKUP($B89,'FINANCE CLIMBER REPORT'!$B$24:$L$69,9,FALSE),\"\")","v":""},{"$f":"IFERROR(VLOOKUP($B89,'FINANCE CLIMBER REPORT'!$B$24:$L$69,10,FALSE),\"\")","v":""},null,"",null,{"$f":"IFERROR(VLOOKUP($J89,'FINANCE CLIMBER REPORT'!$N$24:$X$69,6,FALSE),\"\")","v":""},{"$f":"IFERROR(VLOOKUP($J89,'FINANCE CLIMBER REPORT'!$N$24:$X$69,7,FALSE),\"\")","v":""},{"$f":"IFERROR(VLOOKUP($J89,'FINANCE CLIMBER REPORT'!$N$24:$X$69,8,FALSE),\"\")","v":""},{"$f":"IFERROR(VLOOKUP($J89,'FINANCE CLIMBER REPORT'!$N$24:$X$69,9,FALSE),\"\")","v":""},{"$f":"IFERROR(VLOOKUP($J89,'FINANCE CLIMBER REPORT'!$N$24:$X$69,10,FALSE),\"\")","v":""}]
[null,null,{"$f":"IFERROR(VLOOKUP($B90,'FINANCE CLIMBER REPORT'!$B$24:$L$69,5,FALSE),\"\")","v":""},{"$f":"IFERROR(VLOOKUP($B90,'FINANCE CLIMBER REPORT'!$B$24:$L$69,6,),\"\")","v":""},{"$f":"IFERROR(VLOOKUP($B90,'FINANCE CLIMBER REPORT'!$B$24:$L$69,7,FALSE),\"\")","v":""},{"$f":"IFERROR(VLOOKUP($B90,'FINANCE CLIMBER REPORT'!$B$24:$L$69,8,FALSE),\"\")","v":""},{"$f":"IFERROR(VLOOKUP($B90,'FINANCE CLIMBER REPORT'!$B$24:$L$69,9,FALSE),\"\")","v":""},{"$f":"IFERROR(VLOOKUP($B90,'FINANCE CLIMBER REPORT'!$B$24:$L$69,10,FALSE),\"\")","v":""},null,"",null,{"$f":"IFERROR(VLOOKUP($J90,'FINANCE CLIMBER REPORT'!$N$24:$X$69,6,FALSE),\"\")","v":""},{"$f":"IFERROR(VLOOKUP($J90,'FINANCE CLIMBER REPORT'!$N$24:$X$69,7,FALSE),\"\")","v":""},{"$f":"IFERROR(VLOOKUP($J90,'FINANCE CLIMBER REPORT'!$N$24:$X$69,8,FALSE),\"\")","v":""},{"$f":"IFERROR(VLOOKUP($J90,'FINANCE CLIMBER REPORT'!$N$24:$X$69,9,FALSE),\"\")","v":""},{"$f":"IFERROR(VLOOKUP($J90,'FINANCE CLIMBER REPORT'!$N$24:$X$69,10,FALSE),\"\")","v":""}]
[null,null,{"$f":"IFERROR(VLOOKUP($B91,'FINANCE CLIMBER REPORT'!$B$24:$L$69,5,FALSE),\"\")","v":""},{"$f":"IFERROR(VLOOKUP($B91,'FINANCE CLIMBER REPORT'!$B$24:$L$69,6,),\"\")","v":""},{"$f":"IFERROR(VLOOKUP($B91,'FINANCE CLIMBER REPORT'!$B$24:$L$69,7,FALSE),\"\")","v":""},{"$f":"IFERROR(VLOOKUP($B91,'FINANCE CLIMBER REPORT'!$B$24:$L$69,8,FALSE),\"\")","v":""},{"$f":"IFERROR(VLOOKUP($B91,'FINANCE CLIMBER REPORT'!$B$24:$L$69,9,FALSE),\"\")","v":""},{"$f":"IFERROR(VLOOKUP($B91,'FINANCE CLIMBER REPORT'!$B$24:$L$69,10,FALSE),\"\")","v":""},null,"",null,{"$f":"IFERROR(VLOOKUP($J91,'FINANCE CLIMBER REPORT'!$N$24:$X$69,6,FALSE),\"\")","v":""},{"$f":"IFERROR(VLOOKUP($J91,'FINANCE CLIMBER REPORT'!$N$24:$X$69,7,FALSE),\"\")","v":""},{"$f":"IFERROR(VLOOKUP($J91,'FINANCE CLIMBER REPORT'!$N$24:$X$69,8,FALSE),\"\")","v":""},{"$f":"IFERROR(VLOOKUP($J91,'FINANCE CLIMBER REPORT'!$N$24:$X$69,9,FALSE),\"\")","v":""},{"$f":"IFERROR(VLOOKUP($J91,'FINANCE CLIMBER REPORT'!$N$24:$X$69,10,FALSE),\"\")","v":""}]
[null,null,{"$f":"IFERROR(VLOOKUP($B92,'FINANCE CLIMBER REPORT'!$B$24:$L$69,5,FALSE),\"\")","v":""},{"$f":"IFERROR(VLOOKUP($B92,'FINANCE CLIMBER REPORT'!$B$24:$L$69,6,),\"\")","v":""},{"$f":"IFERROR(VLOOKUP($B92,'FINANCE CLIMBER REPORT'!$B$24:$L$69,7,FALSE),\"\")","v":""},{"$f":"IFERROR(VLOOKUP($B92,'FINANCE CLIMBER REPORT'!$B$24:$L$69,8,FALSE),\"\")","v":""},{"$f":"IFERROR(VLOOKUP($B92,'FINANCE CLIMBER REPORT'!$B$24:$L$69,9,FALSE),\"\")","v":""},{"$f":"IFERROR(VLOOKUP($B92,'FINANCE CLIMBER REPORT'!$B$24:$L$69,10,FALSE),\"\")","v":""},null,"",null,{"$f":"IFERROR(VLOOKUP($J92,'FINANCE CLIMBER REPORT'!$N$24:$X$69,6,FALSE),\"\")","v":""},{"$f":"IFERROR(VLOOKUP($J92,'FINANCE CLIMBER REPORT'!$N$24:$X$69,7,FALSE),\"\")","v":""},{"$f":"IFERROR(VLOOKUP($J92,'FINANCE CLIMBER REPORT'!$N$24:$X$69,8,FALSE),\"\")","v":""},{"$f":"IFERROR(VLOOKUP($J92,'FINANCE CLIMBER REPORT'!$N$24:$X$69,9,FALSE),\"\")","v":""},{"$f":"IFERROR(VLOOKUP($J92,'FINANCE CLIMBER REPORT'!$N$24:$X$69,10,FALSE),\"\")","v":""}]
[null,"TEAM 1 AVE",{"$f":"IFERROR(AVERAGE(C87:C92),\"\")","v":""},"","","","","",null,"TEAM 1 AVE",{"$f":"IFERROR(AVERAGE(K87:K92),\"\")","v":""},"","","","",""]
[null,{"$f":"B81","v":"FIN TRACK AVE"},{"$f":"C81","v":""},"","","","","",null,{"$f":"J81","v":"FIN TRACK AVE"},{"$f":"K81","v":""},"","","","",""]

{"sheet":"FINANCE CLIMBER REPORT","index":7,"n_rows":85,"n_cols":24,"rows_kept":85,"cut":false,"hidden":false,"merged":[]}
[]
[]
[null,"NOTES:","NEED THIS FOR EACH TRACK - COULD BE A SEPARATE TAB IN THE MASTER WORKBOOK"]
[null,"GRADE:","GREEN, YELLOW, RED"]
[]
[]
[null,"FINANCE TRACK",null,null,null,null,null,null,null,null,null,null,null,"FINANCE TRACK"]
[null,"WEEK 1",null,null,null,null,null,null,null,null,null,null,null,"CUMULATIVE"]
[null,"Climbers","TEAM #","TEAM LEAD","INT'L","HRS WORKED","# JOB APPS","# INFO INTERVIEWS","# MOCK INTERVIEWS","# REAL INTERVIEWS","# OFFERS","GRADE",null,null,"TEAM #","TEAM LEAD","INT'L","HRS WORKED","# JOB APPS","# INFO INTERVIEWS","# MOCK INTERVIEWS","# REAL INTERVIEWS","# OFFERS","GRADE"]
[]
[]
[]
[]
[]
[]
[]
[]
[]
[]
[]
[]
[]
[]
[]
[]
[]
[]
[]
[]
[]
[]
[]
[]
[]
[]
[]
[]
[]
[]
[]
[]
[]
[]
[]
[]
[]
[]
[]
[]
[]
[]
[]
[]
[]
[]
[]
[]
[]
[]
[]
[]
[]
[]
[]
[]
[]
[]
[]
[]
[]
[null,"TRACK AVE",null,null,null,{"$f":"IFERROR(AVERAGE(F35:F69),\"\")","v":""},{"$f":"IFERROR(AVERAGE(G35:G69),\"\")","v":""},{"$f":"IFERROR(AVERAGE(H35:H69),\"\")","v":""},{"$f":"IFERROR(AVERAGE(I35:I69),\"\")","v":""},{"$f":"IFERROR(AVERAGE(J35:J69),\"\")","v":""},{"$f":"IFERROR(AVERAGE(K35:K69),\"\")","v":""},{"$f":"IFERROR(AVERAGE(L35:L69),\"\")","v":""},null,"TRACK AVE",null,null,null,{"$f":"IFERROR(AVERAGE(R35:R69),\"\")","v":""},{"$f":"IFERROR(AVERAGE(S35:S69),\"\")","v":""},{"$f":"IFERROR(AVERAGE(T35:T69),\"\")","v":""},{"$f":"IFERROR(AVERAGE(U35:U69),\"\")","v":""},{"$f":"IFERROR(AVERAGE(V35:V69),\"\")","v":""},{"$f":"IFERROR(AVERAGE(W35:W69),\"\")","v":""},{"$f":"IFERROR(AVERAGE(X35:X69),\"\")","v":""}]
[]
[]
[]
[null,"TRACK SUMMARY",null,null,null,null,null,null,null,null,null,null,null,"TRACK SUMMARY"]
[null,"WEEK X",null,null,null,null,null,null,null,null,null,null,null,"CUMULATIVE"]
[null,null,"TEAM #","TEAM LEAD","# INT'L","HRS WORKED","# JOB APPS","# INFO INTERVIEWS","# MOCK INTERVIEWS","# REAL INTERVIEWS","# OFFERS","GRADE",null,null,"TEAM #","TEAM LEAD","# INT'L","HRS WORKED","# JOB APPS","# INFO INTERVIEWS","# MOCK INTERVIEWS","# REAL INTERVIEWS","# OFFERS","GRADE"]
[null,"TEAM 1",null,null,null,null,null,null,null,null,null,null,null,"TEAM 1"]
[null,"TEAM 2",null,null,null,null,null,null,null,null,null,null,null,"TEAM 2"]
[null,"TEAM 3",null,null,null,null,null,null,null,null,null,null,null,"TEAM 3"]
[null,"TEAM 4",null,null,null,null,null,null,null,null,null,null,null,"TEAM 4"]
[null,"TEAM 5",null,null,null,null,null,null,null,null,null,null,null,"TEAM 5"]
[null,"TEAM 6",null,null,null,null,null,null,null,null,null,null,null,"TEAM 6"]
[null,"TEAM 7",null,null,null,null,null,null,null,null,null,null,null,"TEAM 7"]
[null,"TRACK AVE",null,null,null,{"$f":"F71","v":""},"","","","","",null,null,"TRACK AVE",null,null,null,{"$f":"R71","v":""},"","","","",""]

{"sheet":"OBHR TEAM LEADS","index":8,"n_rows":94,"n_cols":16,"rows_kept":94,"cut":false,"hidden":false,"merged":[]}
[]
[]
[]
[null,"OBHR CLIMBER KPI"]
[]
[null,"TEAM 1",null,null,null,null,null,null,null,"TEAM 1"]
[null,{"$f":"TODAY()","v":"2016-04-12"},null,null,null,null,null,null,null,"CUMULATIVE"]
[null,"Team Lead Name","HRS WORKED","# JOB APPS","# INFO INTERVIEWS","# MOCK INTERVIEWS","# REAL INTERVIEWS","# OFFERS",null,{"$f":"B8","v":"Team Lead Name"},"HRS WORKED","# JOB APPS","# INFO INTERVIEWS","# MOCK INTERVIEWS","# REAL INTERVIEWS","# OFFERS"]
[null,null,{"$f":"IFERROR(VLOOKUP($B9,'OBHR CLIMBER REPORT'!$B$10:$L$70,COLUMN()+2,FALSE),\"\")","v":""},{"$f":"IFERROR(VLOOKUP($B9,'OBHR CLIMBER REPORT'!$B$10:$L$70,COLUMN()+2,FALSE),\"\")","v":""},{"$f":"IFERROR(VLOOKUP($B9,'OBHR CLIMBER REPORT'!$B$10:$L$70,COLUMN()+2,FALSE),\"\")","v":""},{"$f":"IFERROR(VLOOKUP($B9,'OBHR CLIMBER REPORT'!$B$10:$L$70,COLUMN()+2,FALSE),\"\")","v":""},{"$f":"IFERROR(VLOOKUP($B9,'OBHR CLIMBER REPORT'!$B$10:$L$70,COLUMN()+2,FALSE),\"\")","v":""},{"$f":"IFERROR(VLOOKUP($B9,'OBHR CLIMBER REPORT'!$B$10:$L$70,COLUMN()+2,FALSE),\"\")","v":""},null,{"$f":"IF(B9=\"\",\"\",B9)","v":""},null,{"$f":"IFERROR(VLOOKUP($J9,'OBHR CLIMBER REPORT'!$N$10:$X$70,6),\"\")","v":""},{"$f":"IFERROR(VLOOKUP($J9,'OBHR CLIMBER REPORT'!$N$10:$X$70,7),\"\")","v":""},{"$f":"IFERROR(VLOOKUP($J9,'OBHR CLIMBER REPORT'!$N$10:$X$70,8),\"\")","v":""},{"$f":"IFERROR(VLOOKUP($J9,'OBHR CLIMBER REPORT'!$N$10:$X$70,9),\"\")","v":""},{"$f":"IFERROR(VLOOKUP($J9,'OBHR CLIMBER REPORT'!$N$10:$X$70,10),\"\")","v":""}]
[null,null,{"$f":"IFERROR(VLOOKUP($B10,'OBHR CLIMBER REPORT'!$B$10:$L$70,COLUMN()+2,FALSE),\"\")","v":""},{"$f":"IFERROR(VLOOKUP($B10,'OBHR CLIMBER REPORT'!$B$10:$L$70,COLUMN()+2,FALSE),\"\")","v":""},{"$f":"IFERROR(VLOOKUP($B10,'OBHR CLIMBER REPORT'!$B$10:$L$70,COLUMN()+2,FALSE),\"\")","v":""},{"$f":"IFERROR(VLOOKUP($B10,'OBHR CLIMBER REPORT'!$B$10:$L$70,COLUMN()+2,FALSE),\"\")","v":""},{"$f":"IFERROR(VLOOKUP($B10,'OBHR CLIMBER REPORT'!$B$10:$L$70,COLUMN()+2,FALSE),\"\")","v":""},{"$f":"IFERROR(VLOOKUP($B10,'OBHR CLIMBER REPORT'!$B$10:$L$70,COLUMN()+2,FALSE),\"\")","v":""},null,"",null,{"$f":"IFERROR(VLOOKUP($J10,'OBHR CLIMBER REPORT'!$N$10:$X$70,6),\"\")","v":""},{"$f":"IFERROR(VLOOKUP($J10,'OBHR CLIMBER REPORT'!$N$10:$X$70,7),\"\")","v":""},{"$f":"IFERROR(VLOOKUP($J10,'OBHR CLIMBER REPORT'!$N$10:$X$70,8),\"\")","v":""},{"$f":"IFERROR(VLOOKUP($J10,'OBHR CLIMBER REPORT'!$N$10:$X$70,9),\"\")","v":""},{"$f":"IFERROR(VLOOKUP($J10,'OBHR CLIMBER REPORT'!$N$10:$X$70,10),\"\")","v":""}]
[null,null,{"$f":"IFERROR(VLOOKUP($B11,'OBHR CLIMBER REPORT'!$B$10:$L$70,COLUMN()+2,FALSE),\"\")","v":""},{"$f":"IFERROR(VLOOKUP($B11,'OBHR CLIMBER REPORT'!$B$10:$L$70,COLUMN()+2,FALSE),\"\")","v":""},{"$f":"IFERROR(VLOOKUP($B11,'OBHR CLIMBER REPORT'!$B$10:$L$70,COLUMN()+2,FALSE),\"\")","v":""},{"$f":"IFERROR(VLOOKUP($B11,'OBHR CLIMBER REPORT'!$B$10:$L$70,COLUMN()+2,FALSE),\"\")","v":""},{"$f":"IFERROR(VLOOKUP($B11,'OBHR CLIMBER REPORT'!$B$10:$L$70,COLUMN()+2,FALSE),\"\")","v":""},{"$f":"IFERROR(VLOOKUP($B11,'OBHR CLIMBER REPORT'!$B$10:$L$70,COLUMN()+2,FALSE),\"\")","v":""},null,"",null,{"$f":"IFERROR(VLOOKUP($J11,'OBHR CLIMBER REPORT'!$N$10:$X$70,6),\"\")","v":""},{"$f":"IFERROR(VLOOKUP($J11,'OBHR CLIMBER REPORT'!$N$10:$X$70,7),\"\")","v":""},{"$f":"IFERROR(VLOOKUP($J11,'OBHR CLIMBER REPORT'!$N$10:$X$70,8),\"\")","v":""},{"$f":"IFERROR(VLOOKUP($J11,'OBHR CLIMBER REPORT'!$N$10:$X$70,9),\"\")","v":""},{"$f":"IFERROR(VLOOKUP($J11,'OBHR CLIMBER REPORT'!$N$10:$X$70,10),\"\")","v":""}]
[null,null,{"$f":"IFERROR(VLOOKUP($B12,'OBHR CLIMBER REPORT'!$B$10:$L$70,COLUMN()+2,FALSE),\"\")","v":""},{"$f":"IFERROR(VLOOKUP($B12,'OBHR CLIMBER REPORT'!$B$10:$L$70,COLUMN()+2,FALSE),\"\")","v":""},{"$f":"IFERROR(VLOOKUP($B12,'OBHR CLIMBER REPORT'!$B$10:$L$70,COLUMN()+2,FALSE),\"\")","v":""},{"$f":"IFERROR(VLOOKUP($B12,'OBHR CLIMBER REPORT'!$B$10:$L$70,COLUMN()+2,FALSE),\"\")","v":""},{"$f":"IFERROR(VLOOKUP($B12,'OBHR CLIMBER REPORT'!$B$10:$L$70,COLUMN()+2,FALSE),\"\")","v":""},{"$f":"IFERROR(VLOOKUP($B12,'OBHR CLIMBER REPORT'!$B$10:$L$70,COLUMN()+2,FALSE),\"\")","v":""},null,"",null,{"$f":"IFERROR(VLOOKUP($J12,'OBHR CLIMBER REPORT'!$N$10:$X$70,6),\"\")","v":""},{"$f":"IFERROR(VLOOKUP($J12,'OBHR CLIMBER REPORT'!$N$10:$X$70,7),\"\")","v":""},{"$f":"IFERROR(VLOOKUP($J12,'OBHR CLIMBER REPORT'!$N$10:$X$70,8),\"\")","v":""},{"$f":"IFERROR(VLOOKUP($J12,'OBHR CLIMBER REPORT'!$N$10:$X$70,9),\"\")","v":""},{"$f":"IFERROR(VLOOKUP($J12,'OBHR CLIMBER REPORT'!$N$10:$X$70,10),\"\")","v":""}]
[null,null,{"$f":"IFERROR(VLOOKUP($B13,'OBHR CLIMBER REPORT'!$B$10:$L$70,COLUMN()+2,FALSE),\"\")","v":""},{"$f":"IFERROR(VLOOKUP($B13,'OBHR CLIMBER REPORT'!$B$10:$L$70,COLUMN()+2,FALSE),\"\")","v":""},{"$f":"IFERROR(VLOOKUP($B13,'OBHR CLIMBER REPORT'!$B$10:$L$70,COLUMN()+2,FALSE),\"\")","v":""},{"$f":"IFERROR(VLOOKUP($B13,'OBHR CLIMBER REPORT'!$B$10:$L$70,COLUMN()+2,FALSE),\"\")","v":""},{"$f":"IFERROR(VLOOKUP($B13,'OBHR CLIMBER REPORT'!$B$10:$L$70,COLUMN()+2,FALSE),\"\")","v":""},{"$f":"IFERROR(VLOOKUP($B13,'OBHR CLIMBER REPORT'!$B$10:$L$70,COLUMN()+2,FALSE),\"\")","v":""},null,"",null,{"$f":"IFERROR(VLOOKUP($J13,'OBHR CLIMBER REPORT'!$N$10:$X$70,6),\"\")","v":""},{"$f":"IFERROR(VLOOKUP($J13,'OBHR CLIMBER REPORT'!$N$10:$X$70,7),\"\")","v":""},{"$f":"IFERROR(VLOOKUP($J13,'OBHR CLIMBER REPORT'!$N$10:$X$70,8),\"\")","v":""},{"$f":"IFERROR(VLOOKUP($J13,'OBHR CLIMBER REPORT'!$N$10:$X$70,9),\"\")","v":""},{"$f":"IFERROR(VLOOKUP($J13,'OBHR CLIMBER REPORT'!$N$10:$X$70,10),\"\")","v":""}]
[null,null,{"$f":"IFERROR(VLOOKUP($B14,'OBHR CLIMBER REPORT'!$B$10:$L$70,COLUMN()+2,FALSE),\"\")","v":""},{"$f":"IFERROR(VLOOKUP($B14,'OBHR CLIMBER REPORT'!$B$10:$L$70,COLUMN()+2,FALSE),\"\")","v":""},{"$f":"IFERROR(VLOOKUP($B14,'OBHR CLIMBER REPORT'!$B$10:$L$70,COLUMN()+2,FALSE),\"\")","v":""},{"$f":"IFERROR(VLOOKUP($B14,'OBHR CLIMBER REPORT'!$B$10:$L$70,COLUMN()+2,FALSE),\"\")","v":""},{"$f":"IFERROR(VLOOKUP($B14,'OBHR CLIMBER REPORT'!$B$10:$L$70,COLUMN()+2,FALSE),\"\")","v":""},{"$f":"IFERROR(VLOOKUP($B14,'OBHR CLIMBER REPORT'!$B$10:$L$70,COLUMN()+2,FALSE),\"\")","v":""},null,"",null,{"$f":"IFERROR(VLOOKUP($J14,'OBHR CLIMBER REPORT'!$N$10:$X$70,6),\"\")","v":""},{"$f":"IFERROR(VLOOKUP($J14,'OBHR CLIMBER REPORT'!$N$10:$X$70,7),\"\")","v":""},{"$f":"IFERROR(VLOOKUP($J14,'OBHR CLIMBER REPORT'!$N$10:$X$70,8),\"\")","v":""},{"$f":"IFERROR(VLOOKUP($J14,'OBHR CLIMBER REPORT'!$N$10:$X$70,9),\"\")","v":""},{"$f":"IFERROR(VLOOKUP($J14,'OBHR CLIMBER REPORT'!$N$10:$X$70,10),\"\")","v":""}]
[null,"TEAM 1 AVE",{"$f":"IFERROR(AVERAGE(C9:C14),\"\")","v":""},"","","","","",null,"TEAM 1 AVE",{"$f":"IFERROR(AVERAGE(K9:K14),\"\")","v":""},"","","","",""]
[null,"OBHR TRACK AVE",{"$f":"'OBHR CLIMBER REPORT'!F71","v":""},{"$f":"'OBHR CLIMBER REPORT'!G71","v":""},{"$f":"'OBHR CLIMBER REPORT'!H71","v":""},{"$f":"'OBHR CLIMBER REPORT'!I71","v":""},{"$f":"'OBHR CLIMBER REPORT'!J71","v":""},{"$f":"'OBHR CLIMBER REPORT'!K71","v":""},null,{"$f":"B16","v":"OBHR TRACK AVE"},{"$f":"'OBHR CLIMBER REPORT'!F71","v":""},{"$f":"'OBHR CLIMBER REPORT'!G71","v":""},{"$f":"'OBHR CLIMBER REPORT'!H71","v":""},{"$f":"'OBHR CLIMBER REPORT'!I71","v":""},{"$f":"'OBHR CLIMBER REPORT'!J71","v":""},{"$f":"'OBHR CLIMBER REPORT'!K71","v":""}]
[]
[]
[null,"TEAM 2",null,null,null,null,null,null,null,"TEAM 2"]
[null,{"$f":"B7","v":"2016-04-12"},null,null,null,null,null,null,null,"CUMULATIVE"]
[null,"Team Lead Name","HRS WORKED","# JOB APPS","# INFO INTERVIEWS","# MOCK INTERVIEWS","# REAL INTERVIEWS","# OFFERS",null,{"$f":"B21","v":"Team Lead Name"},"HRS WORKED","# JOB APPS","# INFO INTERVIEWS","# MOCK INTERVIEWS","# REAL INTERVIEWS","# OFFERS"]
[null,null,{"$f":"IFERROR(VLOOKUP($B22,'OBHR CLIMBER REPORT'!$B$10:$L$70,COLUMN()+2,FALSE),\"\")","v":""},{"$f":"IFERROR(VLOOKUP($B22,'OBHR CLIMBER REPORT'!$B$10:$L$70,COLUMN()+2,FALSE),\"\")","v":""},{"$f":"IFERROR(VLOOKUP($B22,'OBHR CLIMBER REPORT'!$B$10:$L$70,COLUMN()+2,FALSE),\"\")","v":""},{"$f":"IFERROR(VLOOKUP($B22,'OBHR CLIMBER REPORT'!$B$10:$L$70,COLUMN()+2,FALSE),\"\")","v":""},{"$f":"IFERROR(VLOOKUP($B22,'OBHR CLIMBER REPORT'!$B$10:$L$70,COLUMN()+2,FALSE),\"\")","v":""},{"$f":"IFERROR(VLOOKUP($B22,'OBHR CLIMBER REPORT'!$B$10:$L$70,COLUMN()+2,FALSE),\"\")","v":""},null,{"$f":"IF(B22=\"\",\"\",B22)","v":""},null,{"$f":"IFERROR(VLOOKUP($J22,'OBHR CLIMBER REPORT'!$N$10:$X$70,6),\"\")","v":""},{"$f":"IFERROR(VLOOKUP($J22,'OBHR CLIMBER REPORT'!$N$10:$X$70,7),\"\")","v":""},{"$f":"IFERROR(VLOOKUP($J22,'OBHR CLIMBER REPORT'!$N$10:$X$70,8),\"\")","v":""},{"$f":"IFERROR(VLOOKUP($J22,'OBHR CLIMBER REPORT'!$N$10:$X$70,9),\"\")","v":""},{"$f":"IFERROR(VLOOKUP($J22,'OBHR CLIMBER REPORT'!$N$10:$X$70,10),\"\")","v":""}]
[null,null,{"$f":"IFERROR(VLOOKUP($B23,'OBHR CLIMBER REPORT'!$B$10:$L$70,COLUMN()+2,FALSE),\"\")","v":""},{"$f":"IFERROR(VLOOKUP($B23,'OBHR CLIMBER REPORT'!$B$10:$L$70,COLUMN()+2,FALSE),\"\")","v":""},{"$f":"IFERROR(VLOOKUP($B23,'OBHR CLIMBER REPORT'!$B$10:$L$70,COLUMN()+2,FALSE),\"\")","v":""},{"$f":"IFERROR(VLOOKUP($B23,'OBHR CLIMBER REPORT'!$B$10:$L$70,COLUMN()+2,FALSE),\"\")","v":""},{"$f":"IFERROR(VLOOKUP($B23,'OBHR CLIMBER REPORT'!$B$10:$L$70,COLUMN()+2,FALSE),\"\")","v":""},{"$f":"IFERROR(VLOOKUP($B23,'OBHR CLIMBER REPORT'!$B$10:$L$70,COLUMN()+2,FALSE),\"\")","v":""},null,"",null,{"$f":"IFERROR(VLOOKUP($J23,'OBHR CLIMBER REPORT'!$N$10:$X$70,6),\"\")","v":""},{"$f":"IFERROR(VLOOKUP($J23,'OBHR CLIMBER REPORT'!$N$10:$X$70,7),\"\")","v":""},{"$f":"IFERROR(VLOOKUP($J23,'OBHR CLIMBER REPORT'!$N$10:$X$70,8),\"\")","v":""},{"$f":"IFERROR(VLOOKUP($J23,'OBHR CLIMBER REPORT'!$N$10:$X$70,9),\"\")","v":""},{"$f":"IFERROR(VLOOKUP($J23,'OBHR CLIMBER REPORT'!$N$10:$X$70,10),\"\")","v":""}]
[null,null,{"$f":"IFERROR(VLOOKUP($B24,'OBHR CLIMBER REPORT'!$B$10:$L$70,COLUMN()+2,FALSE),\"\")","v":""},{"$f":"IFERROR(VLOOKUP($B24,'OBHR CLIMBER REPORT'!$B$10:$L$70,COLUMN()+2,FALSE),\"\")","v":""},{"$f":"IFERROR(VLOOKUP($B24,'OBHR CLIMBER REPORT'!$B$10:$L$70,COLUMN()+2,FALSE),\"\")","v":""},{"$f":"IFERROR(VLOOKUP($B24,'OBHR CLIMBER REPORT'!$B$10:$L$70,COLUMN()+2,FALSE),\"\")","v":""},{"$f":"IFERROR(VLOOKUP($B24,'OBHR CLIMBER REPORT'!$B$10:$L$70,COLUMN()+2,FALSE),\"\")","v":""},{"$f":"IFERROR(VLOOKUP($B24,'OBHR CLIMBER REPORT'!$B$10:$L$70,COLUMN()+2,FALSE),\"\")","v":""},null,"",null,{"$f":"IFERROR(VLOOKUP($J24,'OBHR CLIMBER REPORT'!$N$10:$X$70,6),\"\")","v":""},{"$f":"IFERROR(VLOOKUP($J24,'OBHR CLIMBER REPORT'!$N$10:$X$70,7),\"\")","v":""},{"$f":"IFERROR(VLOOKUP($J24,'OBHR CLIMBER REPORT'!$N$10:$X$70,8),\"\")","v":""},{"$f":"IFERROR(VLOOKUP($J24,'OBHR CLIMBER REPORT'!$N$10:$X$70,9),\"\")","v":""},{"$f":"IFERROR(VLOOKUP($J24,'OBHR CLIMBER REPORT'!$N$10:$X$70,10),\"\")","v":""}]
[null,null,{"$f":"IFERROR(VLOOKUP($B25,'OBHR CLIMBER REPORT'!$B$10:$L$70,COLUMN()+2,FALSE),\"\")","v":""},{"$f":"IFERROR(VLOOKUP($B25,'OBHR CLIMBER REPORT'!$B$10:$L$70,COLUMN()+2,FALSE),\"\")","v":""},{"$f":"IFERROR(VLOOKUP($B25,'OBHR CLIMBER REPORT'!$B$10:$L$70,COLUMN()+2,FALSE),\"\")","v":""},{"$f":"IFERROR(VLOOKUP($B25,'OBHR CLIMBER REPORT'!$B$10:$L$70,COLUMN()+2,FALSE),\"\")","v":""},{"$f":"IFERROR(VLOOKUP($B25,'OBHR CLIMBER REPORT'!$B$10:$L$70,COLUMN()+2,FALSE),\"\")","v":""},{"$f":"IFERROR(VLOOKUP($B25,'OBHR CLIMBER REPORT'!$B$10:$L$70,COLUMN()+2,FALSE),\"\")","v":""},null,"",null,{"$f":"IFERROR(VLOOKUP($J25,'OBHR CLIMBER REPORT'!$N$10:$X$70,6),\"\")","v":""},{"$f":"IFERROR(VLOOKUP($J25,'OBHR CLIMBER REPORT'!$N$10:$X$70,7),\"\")","v":""},{"$f":"IFERROR(VLOOKUP($J25,'OBHR CLIMBER REPORT'!$N$10:$X$70,8),\"\")","v":""},{"$f":"IFERROR(VLOOKUP($J25,'OBHR CLIMBER REPORT'!$N$10:$X$70,9),\"\")","v":""},{"$f":"IFERROR(VLOOKUP($J25,'OBHR CLIMBER REPORT'!$N$10:$X$70,10),\"\")","v":""}]
[null,null,{"$f":"IFERROR(VLOOKUP($B26,'OBHR CLIMBER REPORT'!$B$10:$L$70,COLUMN()+2,FALSE),\"\")","v":""},{"$f":"IFERROR(VLOOKUP($B26,'OBHR CLIMBER REPORT'!$B$10:$L$70,COLUMN()+2,FALSE),\"\")","v":""},{"$f":"IFERROR(VLOOKUP($B26,'OBHR CLIMBER REPORT'!$B$10:$L$70,COLUMN()+2,FALSE),\"\")","v":""},{"$f":"IFERROR(VLOOKUP($B26,'OBHR CLIMBER REPORT'!$B$10:$L$70,COLUMN()+2,FALSE),\"\")","v":""},{"$f":"IFERROR(VLOOKUP($B26,'OBHR CLIMBER REPORT'!$B$10:$L$70,COLUMN()+2,FALSE),\"\")","v":""},{"$f":"IFERROR(VLOOKUP($B26,'OBHR CLIMBER REPORT'!$B$10:$L$70,COLUMN()+2,FALSE),\"\")","v":""},null,"",null,{"$f":"IFERROR(VLOOKUP($J26,'OBHR CLIMBER REPORT'!$N$10:$X$70,6),\"\")","v":""},{"$f":"IFERROR(VLOOKUP($J26,'OBHR CLIMBER REPORT'!$N$10:$X$70,7),\"\")","v":""},{"$f":"IFERROR(VLOOKUP($J26,'OBHR CLIMBER REPORT'!$N$10:$X$70,8),\"\")","v":""},{"$f":"IFERROR(VLOOKUP($J26,'OBHR CLIMBER REPORT'!$N$10:$X$70,9),\"\")","v":""},{"$f":"IFERROR(VLOOKUP($J26,'OBHR CLIMBER REPORT'!$N$10:$X$70,10),\"\")","v":""}]
[null,null,{"$f":"IFERROR(VLOOKUP($B27,'OBHR CLIMBER REPORT'!$B$10:$L$70,COLUMN()+2,FALSE),\"\")","v":""},{"$f":"IFERROR(VLOOKUP($B27,'OBHR CLIMBER REPORT'!$B$10:$L$70,COLUMN()+2,FALSE),\"\")","v":""},{"$f":"IFERROR(VLOOKUP($B27,'OBHR CLIMBER REPORT'!$B$10:$L$70,COLUMN()+2,FALSE),\"\")","v":""},{"$f":"IFERROR(VLOOKUP($B27,'OBHR CLIMBER REPORT'!$B$10:$L$70,COLUMN()+2,FALSE),\"\")","v":""},{"$f":"IFERROR(VLOOKUP($B27,'OBHR CLIMBER REPORT'!$B$10:$L$70,COLUMN()+2,FALSE),\"\")","v":""},{"$f":"IFERROR(VLOOKUP($B27,'OBHR CLIMBER REPORT'!$B$10:$L$70,COLUMN()+2,FALSE),\"\")","v":""},null,"",null,{"$f":"IFERROR(VLOOKUP($J27,'OBHR CLIMBER REPORT'!$N$10:$X$70,6),\"\")","v":""},{"$f":"IFERROR(VLOOKUP($J27,'OBHR CLIMBER REPORT'!$N$10:$X$70,7),\"\")","v":""},{"$f":"IFERROR(VLOOKUP($J27,'OBHR CLIMBER REPORT'!$N$10:$X$70,8),\"\")","v":""},{"$f":"IFERROR(VLOOKUP($J27,'OBHR CLIMBER REPORT'!$N$10:$X$70,9),\"\")","v":""},{"$f":"IFERROR(VLOOKUP($J27,'OBHR CLIMBER REPORT'!$N$10:$X$70,10),\"\")","v":""}]
[null,"TEAM 1 AVE",{"$f":"IFERROR(AVERAGE(C22:C27),\"\")","v":""},"","","","","",null,"TEAM 1 AVE",{"$f":"IFERROR(AVERAGE(K22:K27),\"\")","v":""},"","","","",""]
[null,{"$f":"B16","v":"OBHR TRACK AVE"},"","","","","","",null,{"$f":"J16","v":"OBHR TRACK AVE"},{"$f":"K16","v":""},"","","","",""]
[]
[]
[null,"TEAM 3",null,null,null,null,null,null,null,"TEAM 3"]
[null,{"$f":"B20","v":"2016-04-12"},null,null,null,null,null,null,null,"CUMULATIVE"]
[null,"Team Lead Name","HRS WORKED","# JOB APPS","# INFO INTERVIEWS","# MOCK INTERVIEWS","# REAL INTERVIEWS","# OFFERS",null,{"$f":"B34","v":"Team Lead Name"},"HRS WORKED","# JOB APPS","# INFO INTERVIEWS","# MOCK INTERVIEWS","# REAL INTERVIEWS","# OFFERS"]
[null,null,{"$f":"IFERROR(VLOOKUP($B35,'OBHR CLIMBER REPORT'!$B$10:$L$70,COLUMN()+2,FALSE),\"\")","v":""},{"$f":"IFERROR(VLOOKUP($B35,'OBHR CLIMBER REPORT'!$B$10:$L$70,COLUMN()+2,FALSE),\"\")","v":""},{"$f":"IFERROR(VLOOKUP($B35,'OBHR CLIMBER REPORT'!$B$10:$L$70,COLUMN()+2,FALSE),\"\")","v":""},{"$f":"IFERROR(VLOOKUP($B35,'OBHR CLIMBER REPORT'!$B$10:$L$70,COLUMN()+2,FALSE),\"\")","v":""},{"$f":"IFERROR(VLOOKUP($B35,'OBHR CLIMBER REPORT'!$B$10:$L$70,COLUMN()+2,FALSE),\"\")","v":""},{"$f":"IFERROR(VLOOKUP($B35,'OBHR CLIMBER REPORT'!$B$10:$L$70,COLUMN()+2,FALSE),\"\")","v":""},null,{"$f":"IF(B35=\"\",\"\",B35)","v":""},null,{"$f":"IFERROR(VLOOKUP($J35,'OBHR CLIMBER REPORT'!$N$10:$X$70,6),\"\")","v":""},{"$f":"IFERROR(VLOOKUP($J35,'OBHR CLIMBER REPORT'!$N$10:$X$70,7),\"\")","v":""},{"$f":"IFERROR(VLOOKUP($J35,'OBHR CLIMBER REPORT'!$N$10:$X$70,8),\"\")","v":""},{"$f":"IFERROR(VLOOKUP($J35,'OBHR CLIMBER REPORT'!$N$10:$X$70,9),\"\")","v":""},{"$f":"IFERROR(VLOOKUP($J35,'OBHR CLIMBER REPORT'!$N$10:$X$70,10),\"\")","v":""}]
[null,null,{"$f":"IFERROR(VLOOKUP($B36,'OBHR CLIMBER REPORT'!$B$10:$L$70,COLUMN()+2,FALSE),\"\")","v":""},{"$f":"IFERROR(VLOOKUP($B36,'OBHR CLIMBER REPORT'!$B$10:$L$70,COLUMN()+2,FALSE),\"\")","v":""},{"$f":"IFERROR(VLOOKUP($B36,'OBHR CLIMBER REPORT'!$B$10:$L$70,COLUMN()+2,FALSE),\"\")","v":""},{"$f":"IFERROR(VLOOKUP($B36,'OBHR CLIMBER REPORT'!$B$10:$L$70,COLUMN()+2,FALSE),\"\")","v":""},{"$f":"IFERROR(VLOOKUP($B36,'OBHR CLIMBER REPORT'!$B$10:$L$70,COLUMN()+2,FALSE),\"\")","v":""},{"$f":"IFERROR(VLOOKUP($B36,'OBHR CLIMBER REPORT'!$B$10:$L$70,COLUMN()+2,FALSE),\"\")","v":""},null,"",null,{"$f":"IFERROR(VLOOKUP($J36,'OBHR CLIMBER REPORT'!$N$10:$X$70,6),\"\")","v":""},{"$f":"IFERROR(VLOOKUP($J36,'OBHR CLIMBER REPORT'!$N$10:$X$70,7),\"\")","v":""},{"$f":"IFERROR(VLOOKUP($J36,'OBHR CLIMBER REPORT'!$N$10:$X$70,8),\"\")","v":""},{"$f":"IFERROR(VLOOKUP($J36,'OBHR CLIMBER REPORT'!$N$10:$X$70,9),\"\")","v":""},{"$f":"IFERROR(VLOOKUP($J36,'OBHR CLIMBER REPORT'!$N$10:$X$70,10),\"\")","v":""}]
[null,null,{"$f":"IFERROR(VLOOKUP($B37,'OBHR CLIMBER REPORT'!$B$10:$L$70,COLUMN()+2,FALSE),\"\")","v":""},{"$f":"IFERROR(VLOOKUP($B37,'OBHR CLIMBER REPORT'!$B$10:$L$70,COLUMN()+2,FALSE),\"\")","v":""},{"$f":"IFERROR(VLOOKUP($B37,'OBHR CLIMBER REPORT'!$B$10:$L$70,COLUMN()+2,FALSE),\"\")","v":""},{"$f":"IFERROR(VLOOKUP($B37,'OBHR CLIMBER REPORT'!$B$10:$L$70,COLUMN()+2,FALSE),\"\")","v":""},{"$f":"IFERROR(VLOOKUP($B37,'OBHR CLIMBER REPORT'!$B$10:$L$70,COLUMN()+2,FALSE),\"\")","v":""},{"$f":"IFERROR(VLOOKUP($B37,'OBHR CLIMBER REPORT'!$B$10:$L$70,COLUMN()+2,FALSE),\"\")","v":""},null,"",null,{"$f":"IFERROR(VLOOKUP($J37,'OBHR CLIMBER REPORT'!$N$10:$X$70,6),\"\")","v":""},{"$f":"IFERROR(VLOOKUP($J37,'OBHR CLIMBER REPORT'!$N$10:$X$70,7),\"\")","v":""},{"$f":"IFERROR(VLOOKUP($J37,'OBHR CLIMBER REPORT'!$N$10:$X$70,8),\"\")","v":""},{"$f":"IFERROR(VLOOKUP($J37,'OBHR CLIMBER REPORT'!$N$10:$X$70,9),\"\")","v":""},{"$f":"IFERROR(VLOOKUP($J37,'OBHR CLIMBER REPORT'!$N$10:$X$70,10),\"\")","v":""}]
[null,null,{"$f":"IFERROR(VLOOKUP($B38,'OBHR CLIMBER REPORT'!$B$10:$L$70,COLUMN()+2,FALSE),\"\")","v":""},{"$f":"IFERROR(VLOOKUP($B38,'OBHR CLIMBER REPORT'!$B$10:$L$70,COLUMN()+2,FALSE),\"\")","v":""},{"$f":"IFERROR(VLOOKUP($B38,'OBHR CLIMBER REPORT'!$B$10:$L$70,COLUMN()+2,FALSE),\"\")","v":""},{"$f":"IFERROR(VLOOKUP($B38,'OBHR CLIMBER REPORT'!$B$10:$L$70,COLUMN()+2,FALSE),\"\")","v":""},{"$f":"IFERROR(VLOOKUP($B38,'OBHR CLIMBER REPORT'!$B$10:$L$70,COLUMN()+2,FALSE),\"\")","v":""},{"$f":"IFERROR(VLOOKUP($B38,'OBHR CLIMBER REPORT'!$B$10:$L$70,COLUMN()+2,FALSE),\"\")","v":""},null,"",null,{"$f":"IFERROR(VLOOKUP($J38,'OBHR CLIMBER REPORT'!$N$10:$X$70,6),\"\")","v":""},{"$f":"IFERROR(VLOOKUP($J38,'OBHR CLIMBER REPORT'!$N$10:$X$70,7),\"\")","v":""},{"$f":"IFERROR(VLOOKUP($J38,'OBHR CLIMBER REPORT'!$N$10:$X$70,8),\"\")","v":""},{"$f":"IFERROR(VLOOKUP($J38,'OBHR CLIMBER REPORT'!$N$10:$X$70,9),\"\")","v":""},{"$f":"IFERROR(VLOOKUP($J38,'OBHR CLIMBER REPORT'!$N$10:$X$70,10),\"\")","v":""}]
[null,null,{"$f":"IFERROR(VLOOKUP($B39,'OBHR CLIMBER REPORT'!$B$10:$L$70,COLUMN()+2,FALSE),\"\")","v":""},{"$f":"IFERROR(VLOOKUP($B39,'OBHR CLIMBER REPORT'!$B$10:$L$70,COLUMN()+2,FALSE),\"\")","v":""},{"$f":"IFERROR(VLOOKUP($B39,'OBHR CLIMBER REPORT'!$B$10:$L$70,COLUMN()+2,FALSE),\"\")","v":""},{"$f":"IFERROR(VLOOKUP($B39,'OBHR CLIMBER REPORT'!$B$10:$L$70,COLUMN()+2,FALSE),\"\")","v":""},{"$f":"IFERROR(VLOOKUP($B39,'OBHR CLIMBER REPORT'!$B$10:$L$70,COLUMN()+2,FALSE),\"\")","v":""},{"$f":"IFERROR(VLOOKUP($B39,'OBHR CLIMBER REPORT'!$B$10:$L$70,COLUMN()+2,FALSE),\"\")","v":""},null,"",null,{"$f":"IFERROR(VLOOKUP($J39,'OBHR CLIMBER REPORT'!$N$10:$X$70,6),\"\")","v":""},{"$f":"IFERROR(VLOOKUP($J39,'OBHR CLIMBER REPORT'!$N$10:$X$70,7),\"\")","v":""},{"$f":"IFERROR(VLOOKUP($J39,'OBHR CLIMBER REPORT'!$N$10:$X$70,8),\"\")","v":""},{"$f":"IFERROR(VLOOKUP($J39,'OBHR CLIMBER REPORT'!$N$10:$X$70,9),\"\")","v":""},{"$f":"IFERROR(VLOOKUP($J39,'OBHR CLIMBER REPORT'!$N$10:$X$70,10),\"\")","v":""}]
[null,null,{"$f":"IFERROR(VLOOKUP($B40,'OBHR CLIMBER REPORT'!$B$10:$L$70,COLUMN()+2,FALSE),\"\")","v":""},{"$f":"IFERROR(VLOOKUP($B40,'OBHR CLIMBER REPORT'!$B$10:$L$70,COLUMN()+2,FALSE),\"\")","v":""},{"$f":"IFERROR(VLOOKUP($B40,'OBHR CLIMBER REPORT'!$B$10:$L$70,COLUMN()+2,FALSE),\"\")","v":""},{"$f":"IFERROR(VLOOKUP($B40,'OBHR CLIMBER REPORT'!$B$10:$L$70,COLUMN()+2,FALSE),\"\")","v":""},{"$f":"IFERROR(VLOOKUP($B40,'OBHR CLIMBER REPORT'!$B$10:$L$70,COLUMN()+2,FALSE),\"\")","v":""},{"$f":"IFERROR(VLOOKUP($B40,'OBHR CLIMBER REPORT'!$B$10:$L$70,COLUMN()+2,FALSE),\"\")","v":""},null,"",null,{"$f":"IFERROR(VLOOKUP($J40,'OBHR CLIMBER REPORT'!$N$10:$X$70,6),\"\")","v":""},{"$f":"IFERROR(VLOOKUP($J40,'OBHR CLIMBER REPORT'!$N$10:$X$70,7),\"\")","v":""},{"$f":"IFERROR(VLOOKUP($J40,'OBHR CLIMBER REPORT'!$N$10:$X$70,8),\"\")","v":""},{"$f":"IFERROR(VLOOKUP($J40,'OBHR CLIMBER REPORT'!$N$10:$X$70,9),\"\")","v":""},{"$f":"IFERROR(VLOOKUP($J40,'OBHR CLIMBER REPORT'!$N$10:$X$70,10),\"\")","v":""}]
[null,"TEAM 1 AVE",{"$f":"IFERROR(AVERAGE(C35:C40),\"\")","v":""},"","","","","",null,"TEAM 1 AVE",{"$f":"IFERROR(AVERAGE(K35:K40),\"\")","v":""},"","","","",""]
[null,{"$f":"B29","v":"OBHR TRACK AVE"},{"$f":"C29","v":""},"","","","","",null,{"$f":"J29","v":"OBHR TRACK AVE"},"","","","","",""]
[]
[]
[null,"TEAM 4",null,null,null,null,null,null,null,"TEAM 4"]
[null,{"$f":"B33","v":"2016-04-12"},null,null,null,null,null,null,null,"CUMULATIVE"]
[null,"Team Lead Name","HRS WORKED","# JOB APPS","# INFO INTERVIEWS","# MOCK INTERVIEWS","# REAL INTERVIEWS","# OFFERS",null,{"$f":"B47","v":"Team Lead Name"},"HRS WORKED","# JOB APPS","# INFO INTERVIEWS","# MOCK INTERVIEWS","# REAL INTERVIEWS","# OFFERS"]
[null,null,{"$f":"IFERROR(VLOOKUP($B48,'OBHR CLIMBER REPORT'!$B$10:$L$70,COLUMN()+2,FALSE),\"\")","v":""},{"$f":"IFERROR(VLOOKUP($B48,'OBHR CLIMBER REPORT'!$B$10:$L$70,COLUMN()+2,FALSE),\"\")","v":""},{"$f":"IFERROR(VLOOKUP($B48,'OBHR CLIMBER REPORT'!$B$10:$L$70,COLUMN()+2,FALSE),\"\")","v":""},{"$f":"IFERROR(VLOOKUP($B48,'OBHR CLIMBER REPORT'!$B$10:$L$70,COLUMN()+2,FALSE),\"\")","v":""},{"$f":"IFERROR(VLOOKUP($B48,'OBHR CLIMBER REPORT'!$B$10:$L$70,COLUMN()+2,FALSE),\"\")","v":""},{"$f":"IFERROR(VLOOKUP($B48,'OBHR CLIMBER REPORT'!$B$10:$L$70,COLUMN()+2,FALSE),\"\")","v":""},null,{"$f":"IF(B48=\"\",\"\",B48)","v":""},null,{"$f":"IFERROR(VLOOKUP($J48,'OBHR CLIMBER REPORT'!$N$10:$X$70,6),\"\")","v":""},{"$f":"IFERROR(VLOOKUP($J48,'OBHR CLIMBER REPORT'!$N$10:$X$70,7),\"\")","v":""},{"$f":"IFERROR(VLOOKUP($J48,'OBHR CLIMBER REPORT'!$N$10:$X$70,8),\"\")","v":""},{"$f":"IFERROR(VLOOKUP($J48,'OBHR CLIMBER REPORT'!$N$10:$X$70,9),\"\")","v":""},{"$f":"IFERROR(VLOOKUP($J48,'OBHR CLIMBER REPORT'!$N$10:$X$70,10),\"\")","v":""}]
[null,null,{"$f":"IFERROR(VLOOKUP($B49,'OBHR CLIMBER REPORT'!$B$10:$L$70,COLUMN()+2,FALSE),\"\")","v":""},{"$f":"IFERROR(VLOOKUP($B49,'OBHR CLIMBER REPORT'!$B$10:$L$70,COLUMN()+2,FALSE),\"\")","v":""},{"$f":"IFERROR(VLOOKUP($B49,'OBHR CLIMBER REPORT'!$B$10:$L$70,COLUMN()+2,FALSE),\"\")","v":""},{"$f":"IFERROR(VLOOKUP($B49,'OBHR CLIMBER REPORT'!$B$10:$L$70,COLUMN()+2,FALSE),\"\")","v":""},{"$f":"IFERROR(VLOOKUP($B49,'OBHR CLIMBER REPORT'!$B$10:$L$70,COLUMN()+2,FALSE),\"\")","v":""},{"$f":"IFERROR(VLOOKUP($B49,'OBHR CLIMBER REPORT'!$B$10:$L$70,COLUMN()+2,FALSE),\"\")","v":""},null,"",null,{"$f":"IFERROR(VLOOKUP($J49,'OBHR CLIMBER REPORT'!$N$10:$X$70,6),\"\")","v":""},{"$f":"IFERROR(VLOOKUP($J49,'OBHR CLIMBER REPORT'!$N$10:$X$70,7),\"\")","v":""},{"$f":"IFERROR(VLOOKUP($J49,'OBHR CLIMBER REPORT'!$N$10:$X$70,8),\"\")","v":""},{"$f":"IFERROR(VLOOKUP($J49,'OBHR CLIMBER REPORT'!$N$10:$X$70,9),\"\")","v":""},{"$f":"IFERROR(VLOOKUP($J49,'OBHR CLIMBER REPORT'!$N$10:$X$70,10),\"\")","v":""}]
[null,null,{"$f":"IFERROR(VLOOKUP($B50,'OBHR CLIMBER REPORT'!$B$10:$L$70,COLUMN()+2,FALSE),\"\")","v":""},{"$f":"IFERROR(VLOOKUP($B50,'OBHR CLIMBER REPORT'!$B$10:$L$70,COLUMN()+2,FALSE),\"\")","v":""},{"$f":"IFERROR(VLOOKUP($B50,'OBHR CLIMBER REPORT'!$B$10:$L$70,COLUMN()+2,FALSE),\"\")","v":""},{"$f":"IFERROR(VLOOKUP($B50,'OBHR CLIMBER REPORT'!$B$10:$L$70,COLUMN()+2,FALSE),\"\")","v":""},{"$f":"IFERROR(VLOOKUP($B50,'OBHR CLIMBER REPORT'!$B$10:$L$70,COLUMN()+2,FALSE),\"\")","v":""},{"$f":"IFERROR(VLOOKUP($B50,'OBHR CLIMBER REPORT'!$B$10:$L$70,COLUMN()+2,FALSE),\"\")","v":""},null,"",null,{"$f":"IFERROR(VLOOKUP($J50,'OBHR CLIMBER REPORT'!$N$10:$X$70,6),\"\")","v":""},{"$f":"IFERROR(VLOOKUP($J50,'OBHR CLIMBER REPORT'!$N$10:$X$70,7),\"\")","v":""},{"$f":"IFERROR(VLOOKUP($J50,'OBHR CLIMBER REPORT'!$N$10:$X$70,8),\"\")","v":""},{"$f":"IFERROR(VLOOKUP($J50,'OBHR CLIMBER REPORT'!$N$10:$X$70,9),\"\")","v":""},{"$f":"IFERROR(VLOOKUP($J50,'OBHR CLIMBER REPORT'!$N$10:$X$70,10),\"\")","v":""}]
[null,null,{"$f":"IFERROR(VLOOKUP($B51,'OBHR CLIMBER REPORT'!$B$10:$L$70,COLUMN()+2,FALSE),\"\")","v":""},{"$f":"IFERROR(VLOOKUP($B51,'OBHR CLIMBER REPORT'!$B$10:$L$70,COLUMN()+2,FALSE),\"\")","v":""},{"$f":"IFERROR(VLOOKUP($B51,'OBHR CLIMBER REPORT'!$B$10:$L$70,COLUMN()+2,FALSE),\"\")","v":""},{"$f":"IFERROR(VLOOKUP($B51,'OBHR CLIMBER REPORT'!$B$10:$L$70,COLUMN()+2,FALSE),\"\")","v":""},{"$f":"IFERROR(VLOOKUP($B51,'OBHR CLIMBER REPORT'!$B$10:$L$70,COLUMN()+2,FALSE),\"\")","v":""},{"$f":"IFERROR(VLOOKUP($B51,'OBHR CLIMBER REPORT'!$B$10:$L$70,COLUMN()+2,FALSE),\"\")","v":""},null,"",null,{"$f":"IFERROR(VLOOKUP($J51,'OBHR CLIMBER REPORT'!$N$10:$X$70,6),\"\")","v":""},{"$f":"IFERROR(VLOOKUP($J51,'OBHR CLIMBER REPORT'!$N$10:$X$70,7),\"\")","v":""},{"$f":"IFERROR(VLOOKUP($J51,'OBHR CLIMBER REPORT'!$N$10:$X$70,8),\"\")","v":""},{"$f":"IFERROR(VLOOKUP($J51,'OBHR CLIMBER REPORT'!$N$10:$X$70,9),\"\")","v":""},{"$f":"IFERROR(VLOOKUP($J51,'OBHR CLIMBER REPORT'!$N$10:$X$70,10),\"\")","v":""}]
[null,null,{"$f":"IFERROR(VLOOKUP($B52,'OBHR CLIMBER REPORT'!$B$10:$L$70,COLUMN()+2,FALSE),\"\")","v":""},{"$f":"IFERROR(VLOOKUP($B52,'OBHR CLIMBER REPORT'!$B$10:$L$70,COLUMN()+2,FALSE),\"\")","v":""},{"$f":"IFERROR(VLOOKUP($B52,'OBHR CLIMBER REPORT'!$B$10:$L$70,COLUMN()+2,FALSE),\"\")","v":""},{"$f":"IFERROR(VLOOKUP($B52,'OBHR CLIMBER REPORT'!$B$10:$L$70,COLUMN()+2,FALSE),\"\")","v":""},{"$f":"IFERROR(VLOOKUP($B52,'OBHR CLIMBER REPORT'!$B$10:$L$70,COLUMN()+2,FALSE),\"\")","v":""},{"$f":"IFERROR(VLOOKUP($B52,'OBHR CLIMBER REPORT'!$B$10:$L$70,COLUMN()+2,FALSE),\"\")","v":""},null,"",null,{"$f":"IFERROR(VLOOKUP($J52,'OBHR CLIMBER REPORT'!$N$10:$X$70,6),\"\")","v":""},{"$f":"IFERROR(VLOOKUP($J52,'OBHR CLIMBER REPORT'!$N$10:$X$70,7),\"\")","v":""},{"$f":"IFERROR(VLOOKUP($J52,'OBHR CLIMBER REPORT'!$N$10:$X$70,8),\"\")","v":""},{"$f":"IFERROR(VLOOKUP($J52,'OBHR CLIMBER REPORT'!$N$10:$X$70,9),\"\")","v":""},{"$f":"IFERROR(VLOOKUP($J52,'OBHR CLIMBER REPORT'!$N$10:$X$70,10),\"\")","v":""}]
[null,null,{"$f":"IFERROR(VLOOKUP($B53,'OBHR CLIMBER REPORT'!$B$10:$L$70,COLUMN()+2,FALSE),\"\")","v":""},{"$f":"IFERROR(VLOOKUP($B53,'OBHR CLIMBER REPORT'!$B$10:$L$70,COLUMN()+2,FALSE),\"\")","v":""},{"$f":"IFERROR(VLOOKUP($B53,'OBHR CLIMBER REPORT'!$B$10:$L$70,COLUMN()+2,FALSE),\"\")","v":""},{"$f":"IFERROR(VLOOKUP($B53,'OBHR CLIMBER REPORT'!$B$10:$L$70,COLUMN()+2,FALSE),\"\")","v":""},{"$f":"IFERROR(VLOOKUP($B53,'OBHR CLIMBER REPORT'!$B$10:$L$70,COLUMN()+2,FALSE),\"\")","v":""},{"$f":"IFERROR(VLOOKUP($B53,'OBHR CLIMBER REPORT'!$B$10:$L$70,COLUMN()+2,FALSE),\"\")","v":""},null,"",null,{"$f":"IFERROR(VLOOKUP($J53,'OBHR CLIMBER REPORT'!$N$10:$X$70,6),\"\")","v":""},{"$f":"IFERROR(VLOOKUP($J53,'OBHR CLIMBER REPORT'!$N$10:$X$70,7),\"\")","v":""},{"$f":"IFERROR(VLOOKUP($J53,'OBHR CLIMBER REPORT'!$N$10:$X$70,8),\"\")","v":""},{"$f":"IFERROR(VLOOKUP($J53,'OBHR CLIMBER REPORT'!$N$10:$X$70,9),\"\")","v":""},{"$f":"IFERROR(VLOOKUP($J53,'OBHR CLIMBER REPORT'!$N$10:$X$70,10),\"\")","v":""}]
[null,"TEAM 1 AVE",{"$f":"IFERROR(AVERAGE(C48:C53),\"\")","v":""},"","","","","",null,"TEAM 1 AVE",{"$f":"IFERROR(AVERAGE(K48:K53),\"\")","v":""},"","","","",""]
[null,{"$f":"B42","v":"OBHR TRACK AVE"},{"$f":"K42","v":""},"","","","","",null,{"$f":"J42","v":"OBHR TRACK AVE"},{"$f":"'SUPPLY CHAIN CLIMBER REPORT'!R71","v":""},{"$f":"'SUPPLY CHAIN CLIMBER REPORT'!S71","v":""},{"$f":"'SUPPLY CHAIN CLIMBER REPORT'!T71","v":""},{"$f":"'SUPPLY CHAIN CLIMBER REPORT'!U71","v":""},{"$f":"'SUPPLY CHAIN CLIMBER REPORT'!V71","v":""},{"$f":"'SUPPLY CHAIN CLIMBER REPORT'!W71","v":""}]
[]
[]
[null,"TEAM 5",null,null,null,null,null,null,null,"TEAM 5"]
[null,{"$f":"B46","v":"2016-04-12"},null,null,null,null,null,null,null,"CUMULATIVE"]
[null,"Team Lead Name","HRS WORKED","# JOB APPS","# INFO INTERVIEWS","# MOCK INTERVIEWS","# REAL INTERVIEWS","# OFFERS",null,{"$f":"B60","v":"Team Lead Name"},"HRS WORKED","# JOB APPS","# INFO INTERVIEWS","# MOCK INTERVIEWS","# REAL INTERVIEWS","# OFFERS"]
[null,null,{"$f":"IFERROR(VLOOKUP($B61,'OBHR CLIMBER REPORT'!$B$10:$L$70,5),\"\")","v":""},{"$f":"IFERROR(VLOOKUP($B61,'OBHR CLIMBER REPORT'!$B$10:$L$70,6),\"\")","v":""},{"$f":"IFERROR(VLOOKUP($B61,'OBHR CLIMBER REPORT'!$B$10:$L$70,7),\"\")","v":""},{"$f":"IFERROR(VLOOKUP($B61,'OBHR CLIMBER REPORT'!$B$10:$L$70,8),\"\")","v":""},{"$f":"IFERROR(VLOOKUP($B61,'OBHR CLIMBER REPORT'!$B$10:$L$70,9),\"\")","v":""},{"$f":"IFERROR(VLOOKUP($B61,'OBHR CLIMBER REPORT'!$B$10:$L$70,10),\"\")","v":""},null,{"$f":"IF(B61=\"\",\"\",B61)","v":""},null,{"$f":"IFERROR(VLOOKUP($J61,'OBHR CLIMBER REPORT'!$N$10:$X$70,6),\"\")","v":""},{"$f":"IFERROR(VLOOKUP($J61,'OBHR CLIMBER REPORT'!$N$10:$X$70,7),\"\")","v":""},{"$f":"IFERROR(VLOOKUP($J61,'OBHR CLIMBER REPORT'!$N$10:$X$70,8),\"\")","v":""},{"$f":"IFERROR(VLOOKUP($J61,'OBHR CLIMBER REPORT'!$N$10:$X$70,9),\"\")","v":""},{"$f":"IFERROR(VLOOKUP($J61,'OBHR CLIMBER REPORT'!$N$10:$X$70,10),\"\")","v":""}]
[null,null,{"$f":"IFERROR(VLOOKUP($B62,'OBHR CLIMBER REPORT'!$B$10:$L$70,5),\"\")","v":""},{"$f":"IFERROR(VLOOKUP($B62,'OBHR CLIMBER REPORT'!$B$10:$L$70,6),\"\")","v":""},{"$f":"IFERROR(VLOOKUP($B62,'OBHR CLIMBER REPORT'!$B$10:$L$70,7),\"\")","v":""},{"$f":"IFERROR(VLOOKUP($B62,'OBHR CLIMBER REPORT'!$B$10:$L$70,8),\"\")","v":""},{"$f":"IFERROR(VLOOKUP($B62,'OBHR CLIMBER REPORT'!$B$10:$L$70,9),\"\")","v":""},{"$f":"IFERROR(VLOOKUP($B62,'OBHR CLIMBER REPORT'!$B$10:$L$70,10),\"\")","v":""},null,"",null,{"$f":"IFERROR(VLOOKUP($J62,'OBHR CLIMBER REPORT'!$N$10:$X$70,6),\"\")","v":""},{"$f":"IFERROR(VLOOKUP($J62,'OBHR CLIMBER REPORT'!$N$10:$X$70,7),\"\")","v":""},{"$f":"IFERROR(VLOOKUP($J62,'OBHR CLIMBER REPORT'!$N$10:$X$70,8),\"\")","v":""},{"$f":"IFERROR(VLOOKUP($J62,'OBHR CLIMBER REPORT'!$N$10:$X$70,9),\"\")","v":""},{"$f":"IFERROR(VLOOKUP($J62,'OBHR CLIMBER REPORT'!$N$10:$X$70,10),\"\")","v":""}]
[null,null,{"$f":"IFERROR(VLOOKUP($B63,'OBHR CLIMBER REPORT'!$B$10:$L$70,5),\"\")","v":""},{"$f":"IFERROR(VLOOKUP($B63,'OBHR CLIMBER REPORT'!$B$10:$L$70,6),\"\")","v":""},{"$f":"IFERROR(VLOOKUP($B63,'OBHR CLIMBER REPORT'!$B$10:$L$70,7),\"\")","v":""},{"$f":"IFERROR(VLOOKUP($B63,'OBHR CLIMBER REPORT'!$B$10:$L$70,8),\"\")","v":""},{"$f":"IFERROR(VLOOKUP($B63,'OBHR CLIMBER REPORT'!$B$10:$L$70,9),\"\")","v":""},{"$f":"IFERROR(VLOOKUP($B63,'OBHR CLIMBER REPORT'!$B$10:$L$70,10),\"\")","v":""},null,"",null,{"$f":"IFERROR(VLOOKUP($J63,'OBHR CLIMBER REPORT'!$N$10:$X$70,6),\"\")","v":""},{"$f":"IFERROR(VLOOKUP($J63,'OBHR CLIMBER REPORT'!$N$10:$X$70,7),\"\")","v":""},{"$f":"IFERROR(VLOOKUP($J63,'OBHR CLIMBER REPORT'!$N$10:$X$70,8),\"\")","v":""},{"$f":"IFERROR(VLOOKUP($J63,'OBHR CLIMBER REPORT'!$N$10:$X$70,9),\"\")","v":""},{"$f":"IFERROR(VLOOKUP($J63,'OBHR CLIMBER REPORT'!$N$10:$X$70,10),\"\")","v":""}]
[null,null,{"$f":"IFERROR(VLOOKUP($B64,'OBHR CLIMBER REPORT'!$B$10:$L$70,5),\"\")","v":""},{"$f":"IFERROR(VLOOKUP($B64,'OBHR CLIMBER REPORT'!$B$10:$L$70,6),\"\")","v":""},{"$f":"IFERROR(VLOOKUP($B64,'OBHR CLIMBER REPORT'!$B$10:$L$70,7),\"\")","v":""},{"$f":"IFERROR(VLOOKUP($B64,'OBHR CLIMBER REPORT'!$B$10:$L$70,8),\"\")","v":""},{"$f":"IFERROR(VLOOKUP($B64,'OBHR CLIMBER REPORT'!$B$10:$L$70,9),\"\")","v":""},{"$f":"IFERROR(VLOOKUP($B64,'OBHR CLIMBER REPORT'!$B$10:$L$70,10),\"\")","v":""},null,"",null,{"$f":"IFERROR(VLOOKUP($J64,'OBHR CLIMBER REPORT'!$N$10:$X$70,6),\"\")","v":""},{"$f":"IFERROR(VLOOKUP($J64,'OBHR CLIMBER REPORT'!$N$10:$X$70,7),\"\")","v":""},{"$f":"IFERROR(VLOOKUP($J64,'OBHR CLIMBER REPORT'!$N$10:$X$70,8),\"\")","v":""},{"$f":"IFERROR(VLOOKUP($J64,'OBHR CLIMBER REPORT'!$N$10:$X$70,9),\"\")","v":""},{"$f":"IFERROR(VLOOKUP($J64,'OBHR CLIMBER REPORT'!$N$10:$X$70,10),\"\")","v":""}]
[null,null,{"$f":"IFERROR(VLOOKUP($B65,'OBHR CLIMBER REPORT'!$B$10:$L$70,5),\"\")","v":""},{"$f":"IFERROR(VLOOKUP($B65,'OBHR CLIMBER REPORT'!$B$10:$L$70,6),\"\")","v":""},{"$f":"IFERROR(VLOOKUP($B65,'OBHR CLIMBER REPORT'!$B$10:$L$70,7),\"\")","v":""},{"$f":"IFERROR(VLOOKUP($B65,'OBHR CLIMBER REPORT'!$B$10:$L$70,8),\"\")","v":""},{"$f":"IFERROR(VLOOKUP($B65,'OBHR CLIMBER REPORT'!$B$10:$L$70,9),\"\")","v":""},{"$f":"IFERROR(VLOOKUP($B65,'OBHR CLIMBER REPORT'!$B$10:$L$70,10),\"\")","v":""},null,"",null,{"$f":"IFERROR(VLOOKUP($J65,'OBHR CLIMBER REPORT'!$N$10:$X$70,6),\"\")","v":""},{"$f":"IFERROR(VLOOKUP($J65,'OBHR CLIMBER REPORT'!$N$10:$X$70,7),\"\")","v":""},{"$f":"IFERROR(VLOOKUP($J65,'OBHR CLIMBER REPORT'!$N$10:$X$70,8),\"\")","v":""},{"$f":"IFERROR(VLOOKUP($J65,'OBHR CLIMBER REPORT'!$N$10:$X$70,9),\"\")","v":""},{"$f":"IFERROR(VLOOKUP($J65,'OBHR CLIMBER REPORT'!$N$10:$X$70,10),\"\")","v":""}]
[null,null,{"$f":"IFERROR(VLOOKUP($B66,'OBHR CLIMBER REPORT'!$B$10:$L$70,5),\"\")","v":""},{"$f":"IFERROR(VLOOKUP($B66,'OBHR CLIMBER REPORT'!$B$10:$L$70,6),\"\")","v":""},{"$f":"IFERROR(VLOOKUP($B66,'OBHR CLIMBER REPORT'!$B$10:$L$70,7),\"\")","v":""},{"$f":"IFERROR(VLOOKUP($B66,'OBHR CLIMBER REPORT'!$B$10:$L$70,8),\"\")","v":""},{"$f":"IFERROR(VLOOKUP($B66,'OBHR CLIMBER REPORT'!$B$10:$L$70,9),\"\")","v":""},{"$f":"IFERROR(VLOOKUP($B66,'OBHR CLIMBER REPORT'!$B$10:$L$70,10),\"\")","v":""},null,"",null,{"$f":"IFERROR(VLOOKUP($J66,'OBHR CLIMBER REPORT'!$N$10:$X$70,6),\"\")","v":""},{"$f":"IFERROR(VLOOKUP($J66,'OBHR CLIMBER REPORT'!$N$10:$X$70,7),\"\")","v":""},{"$f":"IFERROR(VLOOKUP($J66,'OBHR CLIMBER REPORT'!$N$10:$X$70,8),\"\")","v":""},{"$f":"IFERROR(VLOOKUP($J66,'OBHR CLIMBER REPORT'!$N$10:$X$70,9),\"\")","v":""},{"$f":"IFERROR(VLOOKUP($J66,'OBHR CLIMBER REPORT'!$N$10:$X$70,10),\"\")","v":""}]
[null,"TEAM 1 AVE",{"$f":"IFERROR(AVERAGE(C61:C66),\"\")","v":""},"","","","","",null,"TEAM 1 AVE",{"$f":"IFERROR(AVERAGE(K61:K66),\"\")","v":""},"","","","",""]
[null,{"$f":"B55","v":"OBHR TRACK AVE"},"","","","","","",null,{"$f":"J55","v":"OBHR TRACK AVE"},"","","","","",""]
[]
[]
[null,"TEAM 6",null,null,null,null,null,null,null,"TEAM 6"]
[null,{"$f":"B59","v":"2016-04-12"},null,null,null,null,null,null,null,"CUMULATIVE"]
[null,"Team Lead Name","HRS WORKED","# JOB APPS","# INFO INTERVIEWS","# MOCK INTERVIEWS","# REAL INTERVIEWS","# OFFERS",null,{"$f":"B73","v":"Team Lead Name"},"HRS WORKED","# JOB APPS","# INFO INTERVIEWS","# MOCK INTERVIEWS","# REAL INTERVIEWS","# OFFERS"]
[null,null,{"$f":"IFERROR(VLOOKUP($B74,'OBHR CLIMBER REPORT'!$B$10:$L$70,5),\"\")","v":""},{"$f":"IFERROR(VLOOKUP($B74,'OBHR CLIMBER REPORT'!$B$10:$L$70,6),\"\")","v":""},{"$f":"IFERROR(VLOOKUP($B74,'OBHR CLIMBER REPORT'!$B$10:$L$70,7),\"\")","v":""},{"$f":"IFERROR(VLOOKUP($B74,'OBHR CLIMBER REPORT'!$B$10:$L$70,8),\"\")","v":""},{"$f":"IFERROR(VLOOKUP($B74,'OBHR CLIMBER REPORT'!$B$10:$L$70,9),\"\")","v":""},{"$f":"IFERROR(VLOOKUP($B74,'OBHR CLIMBER REPORT'!$B$10:$L$70,10),\"\")","v":""},null,{"$f":"IF(B74=\"\",\"\",B74)","v":""},null,{"$f":"IFERROR(VLOOKUP($J74,'OBHR CLIMBER REPORT'!$N$10:$X$70,6),\"\")","v":""},{"$f":"IFERROR(VLOOKUP($J74,'OBHR CLIMBER REPORT'!$N$10:$X$70,7),\"\")","v":""},{"$f":"IFERROR(VLOOKUP($J74,'OBHR CLIMBER REPORT'!$N$10:$X$70,8),\"\")","v":""},{"$f":"IFERROR(VLOOKUP($J74,'OBHR CLIMBER REPORT'!$N$10:$X$70,9),\"\")","v":""},{"$f":"IFERROR(VLOOKUP($J74,'OBHR CLIMBER REPORT'!$N$10:$X$70,10),\"\")","v":""}]
[null,null,{"$f":"IFERROR(VLOOKUP($B75,'OBHR CLIMBER REPORT'!$B$10:$L$70,5),\"\")","v":""},{"$f":"IFERROR(VLOOKUP($B75,'OBHR CLIMBER REPORT'!$B$10:$L$70,6),\"\")","v":""},{"$f":"IFERROR(VLOOKUP($B75,'OBHR CLIMBER REPORT'!$B$10:$L$70,7),\"\")","v":""},{"$f":"IFERROR(VLOOKUP($B75,'OBHR CLIMBER REPORT'!$B$10:$L$70,8),\"\")","v":""},{"$f":"IFERROR(VLOOKUP($B75,'OBHR CLIMBER REPORT'!$B$10:$L$70,9),\"\")","v":""},{"$f":"IFERROR(VLOOKUP($B75,'OBHR CLIMBER REPORT'!$B$10:$L$70,10),\"\")","v":""},null,"",null,{"$f":"IFERROR(VLOOKUP($J75,'OBHR CLIMBER REPORT'!$N$10:$X$70,6),\"\")","v":""},{"$f":"IFERROR(VLOOKUP($J75,'OBHR CLIMBER REPORT'!$N$10:$X$70,7),\"\")","v":""},{"$f":"IFERROR(VLOOKUP($J75,'OBHR CLIMBER REPORT'!$N$10:$X$70,8),\"\")","v":""},{"$f":"IFERROR(VLOOKUP($J75,'OBHR CLIMBER REPORT'!$N$10:$X$70,9),\"\")","v":""},{"$f":"IFERROR(VLOOKUP($J75,'OBHR CLIMBER REPORT'!$N$10:$X$70,10),\"\")","v":""}]
[null,null,{"$f":"IFERROR(VLOOKUP($B76,'OBHR CLIMBER REPORT'!$B$10:$L$70,5),\"\")","v":""},{"$f":"IFERROR(VLOOKUP($B76,'OBHR CLIMBER REPORT'!$B$10:$L$70,6),\"\")","v":""},{"$f":"IFERROR(VLOOKUP($B76,'OBHR CLIMBER REPORT'!$B$10:$L$70,7),\"\")","v":""},{"$f":"IFERROR(VLOOKUP($B76,'OBHR CLIMBER REPORT'!$B$10:$L$70,8),\"\")","v":""},{"$f":"IFERROR(VLOOKUP($B76,'OBHR CLIMBER REPORT'!$B$10:$L$70,9),\"\")","v":""},{"$f":"IFERROR(VLOOKUP($B76,'OBHR CLIMBER REPORT'!$B$10:$L$70,10),\"\")","v":""},null,"",null,{"$f":"IFERROR(VLOOKUP($J76,'OBHR CLIMBER REPORT'!$N$10:$X$70,6),\"\")","v":""},{"$f":"IFERROR(VLOOKUP($J76,'OBHR CLIMBER REPORT'!$N$10:$X$70,7),\"\")","v":""},{"$f":"IFERROR(VLOOKUP($J76,'OBHR CLIMBER REPORT'!$N$10:$X$70,8),\"\")","v":""},{"$f":"IFERROR(VLOOKUP($J76,'OBHR CLIMBER REPORT'!$N$10:$X$70,9),\"\")","v":""},{"$f":"IFERROR(VLOOKUP($J76,'OBHR CLIMBER REPORT'!$N$10:$X$70,10),\"\")","v":""}]
[null,null,{"$f":"IFERROR(VLOOKUP($B77,'OBHR CLIMBER REPORT'!$B$10:$L$70,5),\"\")","v":""},{"$f":"IFERROR(VLOOKUP($B77,'OBHR CLIMBER REPORT'!$B$10:$L$70,6),\"\")","v":""},{"$f":"IFERROR(VLOOKUP($B77,'OBHR CLIMBER REPORT'!$B$10:$L$70,7),\"\")","v":""},{"$f":"IFERROR(VLOOKUP($B77,'OBHR CLIMBER REPORT'!$B$10:$L$70,8),\"\")","v":""},{"$f":"IFERROR(VLOOKUP($B77,'OBHR CLIMBER REPORT'!$B$10:$L$70,9),\"\")","v":""},{"$f":"IFERROR(VLOOKUP($B77,'OBHR CLIMBER REPORT'!$B$10:$L$70,10),\"\")","v":""},null,"",null,{"$f":"IFERROR(VLOOKUP($J77,'OBHR CLIMBER REPORT'!$N$10:$X$70,6),\"\")","v":""},{"$f":"IFERROR(VLOOKUP($J77,'OBHR CLIMBER REPORT'!$N$10:$X$70,7),\"\")","v":""},{"$f":"IFERROR(VLOOKUP($J77,'OBHR CLIMBER REPORT'!$N$10:$X$70,8),\"\")","v":""},{"$f":"IFERROR(VLOOKUP($J77,'OBHR CLIMBER REPORT'!$N$10:$X$70,9),\"\")","v":""},{"$f":"IFERROR(VLOOKUP($J77,'OBHR CLIMBER REPORT'!$N$10:$X$70,10),\"\")","v":""}]
[null,null,{"$f":"IFERROR(VLOOKUP($B78,'OBHR CLIMBER REPORT'!$B$10:$L$70,5),\"\")","v":""},{"$f":"IFERROR(VLOOKUP($B78,'OBHR CLIMBER REPORT'!$B$10:$L$70,6),\"\")","v":""},{"$f":"IFERROR(VLOOKUP($B78,'OBHR CLIMBER REPORT'!$B$10:$L$70,7),\"\")","v":""},{"$f":"IFERROR(VLOOKUP($B78,'OBHR CLIMBER REPORT'!$B$10:$L$70,8),\"\")","v":""},{"$f":"IFERROR(VLOOKUP($B78,'OBHR CLIMBER REPORT'!$B$10:$L$70,9),\"\")","v":""},{"$f":"IFERROR(VLOOKUP($B78,'OBHR CLIMBER REPORT'!$B$10:$L$70,10),\"\")","v":""},null,"",null,{"$f":"IFERROR(VLOOKUP($J78,'OBHR CLIMBER REPORT'!$N$10:$X$70,6),\"\")","v":""},{"$f":"IFERROR(VLOOKUP($J78,'OBHR CLIMBER REPORT'!$N$10:$X$70,7),\"\")","v":""},{"$f":"IFERROR(VLOOKUP($J78,'OBHR CLIMBER REPORT'!$N$10:$X$70,8),\"\")","v":""},{"$f":"IFERROR(VLOOKUP($J78,'OBHR CLIMBER REPORT'!$N$10:$X$70,9),\"\")","v":""},{"$f":"IFERROR(VLOOKUP($J78,'OBHR CLIMBER REPORT'!$N$10:$X$70,10),\"\")","v":""}]
[null,null,{"$f":"IFERROR(VLOOKUP($B79,'OBHR CLIMBER REPORT'!$B$10:$L$70,5),\"\")","v":""},{"$f":"IFERROR(VLOOKUP($B79,'OBHR CLIMBER REPORT'!$B$10:$L$70,6),\"\")","v":""},{"$f":"IFERROR(VLOOKUP($B79,'OBHR CLIMBER REPORT'!$B$10:$L$70,7),\"\")","v":""},{"$f":"IFERROR(VLOOKUP($B79,'OBHR CLIMBER REPORT'!$B$10:$L$70,8),\"\")","v":""},{"$f":"IFERROR(VLOOKUP($B79,'OBHR CLIMBER REPORT'!$B$10:$L$70,9),\"\")","v":""},{"$f":"IFERROR(VLOOKUP($B79,'OBHR CLIMBER REPORT'!$B$10:$L$70,10),\"\")","v":""},null,"",null,{"$f":"IFERROR(VLOOKUP($J79,'OBHR CLIMBER REPORT'!$N$10:$X$70,6),\"\")","v":""},{"$f":"IFERROR(VLOOKUP($J79,'OBHR CLIMBER REPORT'!$N$10:$X$70,7),\"\")","v":""},{"$f":"IFERROR(VLOOKUP($J79,'OBHR CLIMBER REPORT'!$N$10:$X$70,8),\"\")","v":""},{"$f":"IFERROR(VLOOKUP($J79,'OBHR CLIMBER REPORT'!$N$10:$X$70,9),\"\")","v":""},{"$f":"IFERROR(VLOOKUP($J79,'OBHR CLIMBER REPORT'!$N$10:$X$70,10),\"\")","v":""}]
[null,"TEAM 1 AVE",{"$f":"IFERROR(AVERAGE(C74:C79),\"\")","v":""},"","","","","",null,"TEAM 1 AVE",{"$f":"IFERROR(AVERAGE(K74:K79),\"\")","v":""},"","","","",""]
[null,{"$f":"B68","v":"OBHR TRACK AVE"},{"$f":"C68","v":""},"","","","","",null,{"$f":"J68","v":"OBHR TRACK AVE"},{"$f":"K68","v":""},"","","","",""]
[]
[]
[null,"TEAM 7 ",null,null,null,null,null,null,null,"TEAM 7 "]
[null,{"$f":"B72","v":"2016-04-12"},null,null,null,null,null,null,null,"CUMULATIVE"]
[null,"Team Lead Name","HRS WORKED","# JOB APPS","# INFO INTERVIEWS","# MOCK INTERVIEWS","# REAL INTERVIEWS","# OFFERS",null,{"$f":"B86","v":"Team Lead Name"},"HRS WORKED","# JOB APPS","# INFO INTERVIEWS","# MOCK INTERVIEWS","# REAL INTERVIEWS","# OFFERS"]
[null,null,{"$f":"IFERROR(VLOOKUP($B87,'OBHR CLIMBER REPORT'!$B$10:$L$70,5),\"\")","v":""},{"$f":"IFERROR(VLOOKUP($B87,'OBHR CLIMBER REPORT'!$B$10:$L$70,6),\"\")","v":""},{"$f":"IFERROR(VLOOKUP($B87,'OBHR CLIMBER REPORT'!$B$10:$L$70,7),\"\")","v":""},{"$f":"IFERROR(VLOOKUP($B87,'OBHR CLIMBER REPORT'!$B$10:$L$70,8),\"\")","v":""},{"$f":"IFERROR(VLOOKUP($B87,'OBHR CLIMBER REPORT'!$B$10:$L$70,9),\"\")","v":""},{"$f":"IFERROR(VLOOKUP($B87,'OBHR CLIMBER REPORT'!$B$10:$L$70,10),\"\")","v":""},null,{"$f":"IF(B87=\"\",\"\",B87)","v":""},null,{"$f":"IFERROR(VLOOKUP($J87,'OBHR CLIMBER REPORT'!$N$10:$X$70,6),\"\")","v":""},{"$f":"IFERROR(VLOOKUP($J87,'OBHR CLIMBER REPORT'!$N$10:$X$70,7),\"\")","v":""},{"$f":"IFERROR(VLOOKUP($J87,'OBHR CLIMBER REPORT'!$N$10:$X$70,8),\"\")","v":""},{"$f":"IFERROR(VLOOKUP($J87,'OBHR CLIMBER REPORT'!$N$10:$X$70,9),\"\")","v":""},{"$f":"IFERROR(VLOOKUP($J87,'OBHR CLIMBER REPORT'!$N$10:$X$70,10),\"\")","v":""}]
[null,null,{"$f":"IFERROR(VLOOKUP($B88,'OBHR CLIMBER REPORT'!$B$10:$L$70,5),\"\")","v":""},{"$f":"IFERROR(VLOOKUP($B88,'OBHR CLIMBER REPORT'!$B$10:$L$70,6),\"\")","v":""},{"$f":"IFERROR(VLOOKUP($B88,'OBHR CLIMBER REPORT'!$B$10:$L$70,7),\"\")","v":""},{"$f":"IFERROR(VLOOKUP($B88,'OBHR CLIMBER REPORT'!$B$10:$L$70,8),\"\")","v":""},{"$f":"IFERROR(VLOOKUP($B88,'OBHR CLIMBER REPORT'!$B$10:$L$70,9),\"\")","v":""},{"$f":"IFERROR(VLOOKUP($B88,'OBHR CLIMBER REPORT'!$B$10:$L$70,10),\"\")","v":""},null,"",null,{"$f":"IFERROR(VLOOKUP($J88,'OBHR CLIMBER REPORT'!$N$10:$X$70,6),\"\")","v":""},{"$f":"IFERROR(VLOOKUP($J88,'OBHR CLIMBER REPORT'!$N$10:$X$70,7),\"\")","v":""},{"$f":"IFERROR(VLOOKUP($J88,'OBHR CLIMBER REPORT'!$N$10:$X$70,8),\"\")","v":""},{"$f":"IFERROR(VLOOKUP($J88,'OBHR CLIMBER REPORT'!$N$10:$X$70,9),\"\")","v":""},{"$f":"IFERROR(VLOOKUP($J88,'OBHR CLIMBER REPORT'!$N$10:$X$70,10),\"\")","v":""}]
[null,null,{"$f":"IFERROR(VLOOKUP($B89,'OBHR CLIMBER REPORT'!$B$10:$L$70,5),\"\")","v":""},{"$f":"IFERROR(VLOOKUP($B89,'OBHR CLIMBER REPORT'!$B$10:$L$70,6),\"\")","v":""},{"$f":"IFERROR(VLOOKUP($B89,'OBHR CLIMBER REPORT'!$B$10:$L$70,7),\"\")","v":""},{"$f":"IFERROR(VLOOKUP($B89,'OBHR CLIMBER REPORT'!$B$10:$L$70,8),\"\")","v":""},{"$f":"IFERROR(VLOOKUP($B89,'OBHR CLIMBER REPORT'!$B$10:$L$70,9),\"\")","v":""},{"$f":"IFERROR(VLOOKUP($B89,'OBHR CLIMBER REPORT'!$B$10:$L$70,10),\"\")","v":""},null,"",null,{"$f":"IFERROR(VLOOKUP($J89,'OBHR CLIMBER REPORT'!$N$10:$X$70,6),\"\")","v":""},{"$f":"IFERROR(VLOOKUP($J89,'OBHR CLIMBER REPORT'!$N$10:$X$70,7),\"\")","v":""},{"$f":"IFERROR(VLOOKUP($J89,'OBHR CLIMBER REPORT'!$N$10:$X$70,8),\"\")","v":""},{"$f":"IFERROR(VLOOKUP($J89,'OBHR CLIMBER REPORT'!$N$10:$X$70,9),\"\")","v":""},{"$f":"IFERROR(VLOOKUP($J89,'OBHR CLIMBER REPORT'!$N$10:$X$70,10),\"\")","v":""}]
[null,null,{"$f":"IFERROR(VLOOKUP($B90,'OBHR CLIMBER REPORT'!$B$10:$L$70,5),\"\")","v":""},{"$f":"IFERROR(VLOOKUP($B90,'OBHR CLIMBER REPORT'!$B$10:$L$70,6),\"\")","v":""},{"$f":"IFERROR(VLOOKUP($B90,'OBHR CLIMBER REPORT'!$B$10:$L$70,7),\"\")","v":""},{"$f":"IFERROR(VLOOKUP($B90,'OBHR CLIMBER REPORT'!$B$10:$L$70,8),\"\")","v":""},{"$f":"IFERROR(VLOOKUP($B90,'OBHR CLIMBER REPORT'!$B$10:$L$70,9),\"\")","v":""},{"$f":"IFERROR(VLOOKUP($B90,'OBHR CLIMBER REPORT'!$B$10:$L$70,10),\"\")","v":""},null,"",null,{"$f":"IFERROR(VLOOKUP($J90,'OBHR CLIMBER REPORT'!$N$10:$X$70,6),\"\")","v":""},{"$f":"IFERROR(VLOOKUP($J90,'OBHR CLIMBER REPORT'!$N$10:$X$70,7),\"\")","v":""},{"$f":"IFERROR(VLOOKUP($J90,'OBHR CLIMBER REPORT'!$N$10:$X$70,8),\"\")","v":""},{"$f":"IFERROR(VLOOKUP($J90,'OBHR CLIMBER REPORT'!$N$10:$X$70,9),\"\")","v":""},{"$f":"IFERROR(VLOOKUP($J90,'OBHR CLIMBER REPORT'!$N$10:$X$70,10),\"\")","v":""}]
[null,null,{"$f":"IFERROR(VLOOKUP($B91,'OBHR CLIMBER REPORT'!$B$10:$L$70,5),\"\")","v":""},{"$f":"IFERROR(VLOOKUP($B91,'OBHR CLIMBER REPORT'!$B$10:$L$70,6),\"\")","v":""},{"$f":"IFERROR(VLOOKUP($B91,'OBHR CLIMBER REPORT'!$B$10:$L$70,7),\"\")","v":""},{"$f":"IFERROR(VLOOKUP($B91,'OBHR CLIMBER REPORT'!$B$10:$L$70,8),\"\")","v":""},{"$f":"IFERROR(VLOOKUP($B91,'OBHR CLIMBER REPORT'!$B$10:$L$70,9),\"\")","v":""},{"$f":"IFERROR(VLOOKUP($B91,'OBHR CLIMBER REPORT'!$B$10:$L$70,10),\"\")","v":""},null,"",null,{"$f":"IFERROR(VLOOKUP($J91,'OBHR CLIMBER REPORT'!$N$10:$X$70,6),\"\")","v":""},{"$f":"IFERROR(VLOOKUP($J91,'OBHR CLIMBER REPORT'!$N$10:$X$70,7),\"\")","v":""},{"$f":"IFERROR(VLOOKUP($J91,'OBHR CLIMBER REPORT'!$N$10:$X$70,8),\"\")","v":""},{"$f":"IFERROR(VLOOKUP($J91,'OBHR CLIMBER REPORT'!$N$10:$X$70,9),\"\")","v":""},{"$f":"IFERROR(VLOOKUP($J91,'OBHR CLIMBER REPORT'!$N$10:$X$70,10),\"\")","v":""}]
[null,null,{"$f":"IFERROR(VLOOKUP($B92,'OBHR CLIMBER REPORT'!$B$10:$L$70,5),\"\")","v":""},{"$f":"IFERROR(VLOOKUP($B92,'OBHR CLIMBER REPORT'!$B$10:$L$70,6),\"\")","v":""},{"$f":"IFERROR(VLOOKUP($B92,'OBHR CLIMBER REPORT'!$B$10:$L$70,7),\"\")","v":""},{"$f":"IFERROR(VLOOKUP($B92,'OBHR CLIMBER REPORT'!$B$10:$L$70,8),\"\")","v":""},{"$f":"IFERROR(VLOOKUP($B92,'OBHR CLIMBER REPORT'!$B$10:$L$70,9),\"\")","v":""},{"$f":"IFERROR(VLOOKUP($B92,'OBHR CLIMBER REPORT'!$B$10:$L$70,10),\"\")","v":""},null,"",null,{"$f":"IFERROR(VLOOKUP($J92,'OBHR CLIMBER REPORT'!$N$10:$X$70,6),\"\")","v":""},{"$f":"IFERROR(VLOOKUP($J92,'OBHR CLIMBER REPORT'!$N$10:$X$70,7),\"\")","v":""},{"$f":"IFERROR(VLOOKUP($J92,'OBHR CLIMBER REPORT'!$N$10:$X$70,8),\"\")","v":""},{"$f":"IFERROR(VLOOKUP($J92,'OBHR CLIMBER REPORT'!$N$10:$X$70,9),\"\")","v":""},{"$f":"IFERROR(VLOOKUP($J92,'OBHR CLIMBER REPORT'!$N$10:$X$70,10),\"\")","v":""}]
[null,"TEAM 1 AVE",{"$f":"IFERROR(AVERAGE(C87:C92),\"\")","v":""},"","","","","",null,"TEAM 1 AVE",{"$f":"IFERROR(AVERAGE(K87:K92),\"\")","v":""},"","","","",""]
[null,{"$f":"B81","v":"OBHR TRACK AVE"},{"$f":"C81","v":""},"","","","","",null,{"$f":"J81","v":"OBHR TRACK AVE"},{"$f":"K81","v":""},"","","","",""]

{"sheet":"OBHR CLIMBER REPORT","index":9,"n_rows":85,"n_cols":24,"rows_kept":85,"cut":false,"hidden":false,"merged":[]}
[]
[]
[null,"NOTES:","NEED THIS FOR EACH TRACK - COULD BE A SEPARATE TAB IN THE MASTER WORKBOOK"]
[null,"GRADE:","GREEN, YELLOW, RED"]
[]
[]
[null,"OBHR TRACK",null,null,null,null,null,null,null,null,null,null,null,{"$f":"B7","v":"OBHR TRACK"}]
[null,"WEEK X",null,null,null,null,null,null,null,null,null,null,null,"CUMULATIVE"]
[null,"Climbers","TEAM #","TEAM LEAD","INT'L","HRS WORKED","# JOB APPS","# INFO INTERVIEWS","# MOCK INTERVIEWS","# REAL INTERVIEWS","# OFFERS","GRADE",null,null,"TEAM #","TEAM LEAD","INT'L","HRS WORKED","# JOB APPS","# INFO INTERVIEWS","# MOCK INTERVIEWS","# REAL INTERVIEWS","# OFFERS","GRADE"]
[]
[]
[]
[]
[]
[]
[]
[]
[]
[]
[]
[]
[]
[]
[]
[]
[]
[]
[]
[]
[]
[]
[]
[]
[]
[]
[]
[]
[]
[]
[]
[]
[]
[]
[]
[]
[]
[]
[]
[]
[]
[]
[]
[]
[]
[]
[]
[]
[]
[]
[]
[]
[]
[]
[]
[]
[]
[]
[]
[]
[]
[null,"TRACK AVE",null,null,null,{"$f":"IFERROR(AVERAGE(F10:F70),\"\")","v":""},"","","","","","",null,"TRACK AVE",null,null,null,{"$f":"IFERROR(AVERAGE(R10:R70),\"\")","v":""},"","","","","",""]
[]
[]
[]
[null,"TRACK SUMMARY",null,null,null,null,null,null,null,null,null,null,null,"TRACK SUMMARY"]
[null,"WEEK X",null,null,null,null,null,null,null,null,null,null,null,"CUMULATIVE"]
[null,null,"TEAM #","TEAM LEAD","# INT'L","HRS WORKED","# JOB APPS","# INFO INTERVIEWS","# MOCK INTERVIEWS","# REAL INTERVIEWS","# OFFERS","GRADE",null,null,"TEAM #","TEAM LEAD","# INT'L","HRS WORKED","# JOB APPS","# INFO INTERVIEWS","# MOCK INTERVIEWS","# REAL INTERVIEWS","# OFFERS","GRADE"]
[null,"TEAM 1",null,null,null,null,null,null,null,null,null,null,null,"TEAM 1"]
[null,"TEAM 2",null,null,null,null,null,null,null,null,null,null,null,"TEAM 2"]
[null,"TEAM 3",null,null,null,null,null,null,null,null,null,null,null,"TEAM 3"]
[null,"TEAM 4",null,null,null,null,null,null,null,null,null,null,null,"TEAM 4"]
[null,"TEAM 5",null,null,null,null,null,null,null,null,null,null,null,"TEAM 5"]
[null,"TEAM 6",null,null,null,null,null,null,null,null,null,null,null,"TEAM 6"]
[null,"TEAM 7",null,null,null,null,null,null,null,null,null,null,null,"TEAM 7"]
[null,"TRACK AVE",null,null,null,{"$f":"F71","v":""},"","","","","",null,null,"TRACK AVE",null,null,null,{"$f":"R71","v":""},"","","","",""]

{"sheet":"SUPPLY CHAIN TEAM LEADS","index":10,"n_rows":94,"n_cols":16,"rows_kept":94,"cut":false,"hidden":false,"merged":[]}
[]
[]
[]
[null,"SC CLIMBER KPI"]
[]
[null,"TEAM 1",null,null,null,null,null,null,null,"TEAM 1"]
[null,"WEEK X",null,null,null,null,null,null,null,"CUMULATIVE"]
[null,"Team Lead Name","HRS WORKED","# JOB APPS","# INFO INTERVIEWS","# MOCK INTERVIEWS","# REAL INTERVIEWS","# OFFERS",null,{"$f":"B8","v":"Team Lead Name"},"HRS WORKED","# JOB APPS","# INFO INTERVIEWS","# MOCK INTERVIEWS","# REAL INTERVIEWS","# OFFERS"]
[null,null,{"$f":"IFERROR(VLOOKUP($J9,'SUPPLY CHAIN CLIMBER REPORT'!$N$10:$X$70,5),\"\")","v":""},{"$f":"IFERROR(VLOOKUP($J9,'SUPPLY CHAIN CLIMBER REPORT'!$N$10:$X$70,6),\"\")","v":""},{"$f":"IFERROR(VLOOKUP($J9,'SUPPLY CHAIN CLIMBER REPORT'!$N$10:$X$70,7),\"\")","v":""},{"$f":"IFERROR(VLOOKUP($J9,'SUPPLY CHAIN CLIMBER REPORT'!$N$10:$X$70,8),\"\")","v":""},{"$f":"IFERROR(VLOOKUP($J9,'SUPPLY CHAIN CLIMBER REPORT'!$N$10:$X$70,9),\"\")","v":""},{"$f":"IFERROR(VLOOKUP($J9,'SUPPLY CHAIN CLIMBER REPORT'!$N$10:$X$70,10),\"\")","v":""},null,{"$f":"IF(B9=\"\",\"\",B9)","v":""},null,{"$f":"IFERROR(VLOOKUP($J9,'SUPPLY CHAIN CLIMBER REPORT'!$N$10:$X$70,6),\"\")","v":""},{"$f":"IFERROR(VLOOKUP($J9,'SUPPLY CHAIN CLIMBER REPORT'!$N$10:$X$70,7),\"\")","v":""},{"$f":"IFERROR(VLOOKUP($J9,'SUPPLY CHAIN CLIMBER REPORT'!$N$10:$X$70,8),\"\")","v":""},{"$f":"IFERROR(VLOOKUP($J9,'SUPPLY CHAIN CLIMBER REPORT'!$N$10:$X$70,9),\"\")","v":""},{"$f":"IFERROR(VLOOKUP($J9,'SUPPLY CHAIN CLIMBER REPORT'!$N$10:$X$70,10),\"\")","v":""}]
[null,null,{"$f":"IFERROR(VLOOKUP($J10,'SUPPLY CHAIN CLIMBER REPORT'!$N$10:$X$70,5),\"\")","v":""},{"$f":"IFERROR(VLOOKUP($J10,'SUPPLY CHAIN CLIMBER REPORT'!$N$10:$X$70,6),\"\")","v":""},{"$f":"IFERROR(VLOOKUP($J10,'SUPPLY CHAIN CLIMBER REPORT'!$N$10:$X$70,7),\"\")","v":""},{"$f":"IFERROR(VLOOKUP($J10,'SUPPLY CHAIN CLIMBER REPORT'!$N$10:$X$70,8),\"\")","v":""},{"$f":"IFERROR(VLOOKUP($J10,'SUPPLY CHAIN CLIMBER REPORT'!$N$10:$X$70,9),\"\")","v":""},{"$f":"IFERROR(VLOOKUP($J10,'SUPPLY CHAIN CLIMBER REPORT'!$N$10:$X$70,10),\"\")","v":""},null,"",null,{"$f":"IFERROR(VLOOKUP($J10,'SUPPLY CHAIN CLIMBER REPORT'!$N$10:$X$70,6),\"\")","v":""},{"$f":"IFERROR(VLOOKUP($J10,'SUPPLY CHAIN CLIMBER REPORT'!$N$10:$X$70,7),\"\")","v":""},{"$f":"IFERROR(VLOOKUP($J10,'SUPPLY CHAIN CLIMBER REPORT'!$N$10:$X$70,8),\"\")","v":""},{"$f":"IFERROR(VLOOKUP($J10,'SUPPLY CHAIN CLIMBER REPORT'!$N$10:$X$70,9),\"\")","v":""},{"$f":"IFERROR(VLOOKUP($J10,'SUPPLY CHAIN CLIMBER REPORT'!$N$10:$X$70,10),\"\")","v":""}]
[null,null,{"$f":"IFERROR(VLOOKUP($J11,'SUPPLY CHAIN CLIMBER REPORT'!$N$10:$X$70,5),\"\")","v":""},{"$f":"IFERROR(VLOOKUP($J11,'SUPPLY CHAIN CLIMBER REPORT'!$N$10:$X$70,6),\"\")","v":""},{"$f":"IFERROR(VLOOKUP($J11,'SUPPLY CHAIN CLIMBER REPORT'!$N$10:$X$70,7),\"\")","v":""},{"$f":"IFERROR(VLOOKUP($J11,'SUPPLY CHAIN CLIMBER REPORT'!$N$10:$X$70,8),\"\")","v":""},{"$f":"IFERROR(VLOOKUP($J11,'SUPPLY CHAIN CLIMBER REPORT'!$N$10:$X$70,9),\"\")","v":""},{"$f":"IFERROR(VLOOKUP($J11,'SUPPLY CHAIN CLIMBER REPORT'!$N$10:$X$70,10),\"\")","v":""},null,"",null,{"$f":"IFERROR(VLOOKUP($J11,'SUPPLY CHAIN CLIMBER REPORT'!$N$10:$X$70,6),\"\")","v":""},{"$f":"IFERROR(VLOOKUP($J11,'SUPPLY CHAIN CLIMBER REPORT'!$N$10:$X$70,7),\"\")","v":""},{"$f":"IFERROR(VLOOKUP($J11,'SUPPLY CHAIN CLIMBER REPORT'!$N$10:$X$70,8),\"\")","v":""},{"$f":"IFERROR(VLOOKUP($J11,'SUPPLY CHAIN CLIMBER REPORT'!$N$10:$X$70,9),\"\")","v":""},{"$f":"IFERROR(VLOOKUP($J11,'SUPPLY CHAIN CLIMBER REPORT'!$N$10:$X$70,10),\"\")","v":""}]
[null,null,{"$f":"IFERROR(VLOOKUP($J12,'SUPPLY CHAIN CLIMBER REPORT'!$N$10:$X$70,5),\"\")","v":""},{"$f":"IFERROR(VLOOKUP($J12,'SUPPLY CHAIN CLIMBER REPORT'!$N$10:$X$70,6),\"\")","v":""},{"$f":"IFERROR(VLOOKUP($J12,'SUPPLY CHAIN CLIMBER REPORT'!$N$10:$X$70,7),\"\")","v":""},{"$f":"IFERROR(VLOOKUP($J12,'SUPPLY CHAIN CLIMBER REPORT'!$N$10:$X$70,8),\"\")","v":""},{"$f":"IFERROR(VLOOKUP($J12,'SUPPLY CHAIN CLIMBER REPORT'!$N$10:$X$70,9),\"\")","v":""},{"$f":"IFERROR(VLOOKUP($J12,'SUPPLY CHAIN CLIMBER REPORT'!$N$10:$X$70,10),\"\")","v":""},null,"",null,{"$f":"IFERROR(VLOOKUP($J12,'SUPPLY CHAIN CLIMBER REPORT'!$N$10:$X$70,6),\"\")","v":""},{"$f":"IFERROR(VLOOKUP($J12,'SUPPLY CHAIN CLIMBER REPORT'!$N$10:$X$70,7),\"\")","v":""},{"$f":"IFERROR(VLOOKUP($J12,'SUPPLY CHAIN CLIMBER REPORT'!$N$10:$X$70,8),\"\")","v":""},{"$f":"IFERROR(VLOOKUP($J12,'SUPPLY CHAIN CLIMBER REPORT'!$N$10:$X$70,9),\"\")","v":""},{"$f":"IFERROR(VLOOKUP($J12,'SUPPLY CHAIN CLIMBER REPORT'!$N$10:$X$70,10),\"\")","v":""}]
[null,null,{"$f":"IFERROR(VLOOKUP($J13,'SUPPLY CHAIN CLIMBER REPORT'!$N$10:$X$70,5),\"\")","v":""},{"$f":"IFERROR(VLOOKUP($J13,'SUPPLY CHAIN CLIMBER REPORT'!$N$10:$X$70,6),\"\")","v":""},{"$f":"IFERROR(VLOOKUP($J13,'SUPPLY CHAIN CLIMBER REPORT'!$N$10:$X$70,7),\"\")","v":""},{"$f":"IFERROR(VLOOKUP($J13,'SUPPLY CHAIN CLIMBER REPORT'!$N$10:$X$70,8),\"\")","v":""},{"$f":"IFERROR(VLOOKUP($J13,'SUPPLY CHAIN CLIMBER REPORT'!$N$10:$X$70,9),\"\")","v":""},{"$f":"IFERROR(VLOOKUP($J13,'SUPPLY CHAIN CLIMBER REPORT'!$N$10:$X$70,10),\"\")","v":""},null,"",null,{"$f":"IFERROR(VLOOKUP($J13,'SUPPLY CHAIN CLIMBER REPORT'!$N$10:$X$70,6),\"\")","v":""},{"$f":"IFERROR(VLOOKUP($J13,'SUPPLY CHAIN CLIMBER REPORT'!$N$10:$X$70,7),\"\")","v":""},{"$f":"IFERROR(VLOOKUP($J13,'SUPPLY CHAIN CLIMBER REPORT'!$N$10:$X$70,8),\"\")","v":""},{"$f":"IFERROR(VLOOKUP($J13,'SUPPLY CHAIN CLIMBER REPORT'!$N$10:$X$70,9),\"\")","v":""},{"$f":"IFERROR(VLOOKUP($J13,'SUPPLY CHAIN CLIMBER REPORT'!$N$10:$X$70,10),\"\")","v":""}]
[null,null,{"$f":"IFERROR(VLOOKUP($J14,'SUPPLY CHAIN CLIMBER REPORT'!$N$10:$X$70,5),\"\")","v":""},{"$f":"IFERROR(VLOOKUP($J14,'SUPPLY CHAIN CLIMBER REPORT'!$N$10:$X$70,6),\"\")","v":""},{"$f":"IFERROR(VLOOKUP($J14,'SUPPLY CHAIN CLIMBER REPORT'!$N$10:$X$70,7),\"\")","v":""},{"$f":"IFERROR(VLOOKUP($J14,'SUPPLY CHAIN CLIMBER REPORT'!$N$10:$X$70,8),\"\")","v":""},{"$f":"IFERROR(VLOOKUP($J14,'SUPPLY CHAIN CLIMBER REPORT'!$N$10:$X$70,9),\"\")","v":""},{"$f":"IFERROR(VLOOKUP($J14,'SUPPLY CHAIN CLIMBER REPORT'!$N$10:$X$70,10),\"\")","v":""},null,"",null,{"$f":"IFERROR(VLOOKUP($J14,'SUPPLY CHAIN CLIMBER REPORT'!$N$10:$X$70,6),\"\")","v":""},{"$f":"IFERROR(VLOOKUP($J14,'SUPPLY CHAIN CLIMBER REPORT'!$N$10:$X$70,7),\"\")","v":""},{"$f":"IFERROR(VLOOKUP($J14,'SUPPLY CHAIN CLIMBER REPORT'!$N$10:$X$70,8),\"\")","v":""},{"$f":"IFERROR(VLOOKUP($J14,'SUPPLY CHAIN CLIMBER REPORT'!$N$10:$X$70,9),\"\")","v":""},{"$f":"IFERROR(VLOOKUP($J14,'SUPPLY CHAIN CLIMBER REPORT'!$N$10:$X$70,10),\"\")","v":""}]
[null,"TEAM 1 AVE",{"$f":"IFERROR(AVERAGE(C9:C14),\"\")","v":""},"","","","","",null,"TEAM 1 AVE",{"$f":"IFERROR(AVERAGE(K9:K14),\"\")","v":""},"","","","",""]
[null,"SC TRACK AVE",{"$f":"'SUPPLY CHAIN CLIMBER REPORT'!F71","v":""},{"$f":"'SUPPLY CHAIN CLIMBER REPORT'!G71","v":""},{"$f":"'SUPPLY CHAIN CLIMBER REPORT'!H71","v":""},{"$f":"'SUPPLY CHAIN CLIMBER REPORT'!I71","v":""},{"$f":"'SUPPLY CHAIN CLIMBER REPORT'!J71","v":""},{"$f":"'SUPPLY CHAIN CLIMBER REPORT'!K71","v":""},null,"SC TRACK AVE",{"$f":"'SUPPLY CHAIN CLIMBER REPORT'!R71","v":""},{"$f":"'SUPPLY CHAIN CLIMBER REPORT'!S71","v":""},{"$f":"'SUPPLY CHAIN CLIMBER REPORT'!T71","v":""},{"$f":"'SUPPLY CHAIN CLIMBER REPORT'!U71","v":""},{"$f":"'SUPPLY CHAIN CLIMBER REPORT'!V71","v":""},{"$f":"'SUPPLY CHAIN CLIMBER REPORT'!W71","v":""}]
[]
[]
[null,"TEAM 2",null,null,null,null,null,null,null,"TEAM 2"]
[null,"WEEK X",null,null,null,null,null,null,null,"CUMULATIVE"]
[null,"Team Lead Name","HRS WORKED","# JOB APPS","# INFO INTERVIEWS","# MOCK INTERVIEWS","# REAL INTERVIEWS","# OFFERS",null,{"$f":"B21","v":"Team Lead Name"},"HRS WORKED","# JOB APPS","# INFO INTERVIEWS","# MOCK INTERVIEWS","# REAL INTERVIEWS","# OFFERS"]
[null,null,{"$f":"IFERROR(VLOOKUP($J22,'SUPPLY CHAIN CLIMBER REPORT'!$N$10:$X$70,5),\"\")","v":""},{"$f":"IFERROR(VLOOKUP($J22,'SUPPLY CHAIN CLIMBER REPORT'!$N$10:$X$70,6),\"\")","v":""},{"$f":"IFERROR(VLOOKUP($J22,'SUPPLY CHAIN CLIMBER REPORT'!$N$10:$X$70,7),\"\")","v":""},{"$f":"IFERROR(VLOOKUP($J22,'SUPPLY CHAIN CLIMBER REPORT'!$N$10:$X$70,8),\"\")","v":""},{"$f":"IFERROR(VLOOKUP($J22,'SUPPLY CHAIN CLIMBER REPORT'!$N$10:$X$70,9),\"\")","v":""},{"$f":"IFERROR(VLOOKUP($J22,'SUPPLY CHAIN CLIMBER REPORT'!$N$10:$X$70,10),\"\")","v":""},null,{"$f":"IF(B22=\"\",\"\",B22)","v":""},null,{"$f":"IFERROR(VLOOKUP($J22,'SUPPLY CHAIN CLIMBER REPORT'!$N$10:$X$70,6),\"\")","v":""},{"$f":"IFERROR(VLOOKUP($J22,'SUPPLY CHAIN CLIMBER REPORT'!$N$10:$X$70,7),\"\")","v":""},{"$f":"IFERROR(VLOOKUP($J22,'SUPPLY CHAIN CLIMBER REPORT'!$N$10:$X$70,8),\"\")","v":""},{"$f":"IFERROR(VLOOKUP($J22,'SUPPLY CHAIN CLIMBER REPORT'!$N$10:$X$70,9),\"\")","v":""},{"$f":"IFERROR(VLOOKUP($J22,'SUPPLY CHAIN CLIMBER REPORT'!$N$10:$X$70,10),\"\")","v":""}]
[null,null,{"$f":"IFERROR(VLOOKUP($J23,'SUPPLY CHAIN CLIMBER REPORT'!$N$10:$X$70,5),\"\")","v":""},{"$f":"IFERROR(VLOOKUP($J23,'SUPPLY CHAIN CLIMBER REPORT'!$N$10:$X$70,6),\"\")","v":""},{"$f":"IFERROR(VLOOKUP($J23,'SUPPLY CHAIN CLIMBER REPORT'!$N$10:$X$70,7),\"\")","v":""},{"$f":"IFERROR(VLOOKUP($J23,'SUPPLY CHAIN CLIMBER REPORT'!$N$10:$X$70,8),\"\")","v":""},{"$f":"IFERROR(VLOOKUP($J23,'SUPPLY CHAIN CLIMBER REPORT'!$N$10:$X$70,9),\"\")","v":""},{"$f":"IFERROR(VLOOKUP($J23,'SUPPLY CHAIN CLIMBER REPORT'!$N$10:$X$70,10),\"\")","v":""},null,"",null,{"$f":"IFERROR(VLOOKUP($J23,'SUPPLY CHAIN CLIMBER REPORT'!$N$10:$X$70,6),\"\")","v":""},{"$f":"IFERROR(VLOOKUP($J23,'SUPPLY CHAIN CLIMBER REPORT'!$N$10:$X$70,7),\"\")","v":""},{"$f":"IFERROR(VLOOKUP($J23,'SUPPLY CHAIN CLIMBER REPORT'!$N$10:$X$70,8),\"\")","v":""},{"$f":"IFERROR(VLOOKUP($J23,'SUPPLY CHAIN CLIMBER REPORT'!$N$10:$X$70,9),\"\")","v":""},{"$f":"IFERROR(VLOOKUP($J23,'SUPPLY CHAIN CLIMBER REPORT'!$N$10:$X$70,10),\"\")","v":""}]
[null,null,{"$f":"IFERROR(VLOOKUP($J24,'SUPPLY CHAIN CLIMBER REPORT'!$N$10:$X$70,5),\"\")","v":""},{"$f":"IFERROR(VLOOKUP($J24,'SUPPLY CHAIN CLIMBER REPORT'!$N$10:$X$70,6),\"\")","v":""},{"$f":"IFERROR(VLOOKUP($J24,'SUPPLY CHAIN CLIMBER REPORT'!$N$10:$X$70,7),\"\")","v":""},{"$f":"IFERROR(VLOOKUP($J24,'SUPPLY CHAIN CLIMBER REPORT'!$N$10:$X$70,8),\"\")","v":""},{"$f":"IFERROR(VLOOKUP($J24,'SUPPLY CHAIN CLIMBER REPORT'!$N$10:$X$70,9),\"\")","v":""},{"$f":"IFERROR(VLOOKUP($J24,'SUPPLY CHAIN CLIMBER REPORT'!$N$10:$X$70,10),\"\")","v":""},null,"",null,{"$f":"IFERROR(VLOOKUP($J24,'SUPPLY CHAIN CLIMBER REPORT'!$N$10:$X$70,6),\"\")","v":""},{"$f":"IFERROR(VLOOKUP($J24,'SUPPLY CHAIN CLIMBER REPORT'!$N$10:$X$70,7),\"\")","v":""},{"$f":"IFERROR(VLOOKUP($J24,'SUPPLY CHAIN CLIMBER REPORT'!$N$10:$X$70,8),\"\")","v":""},{"$f":"IFERROR(VLOOKUP($J24,'SUPPLY CHAIN CLIMBER REPORT'!$N$10:$X$70,9),\"\")","v":""},{"$f":"IFERROR(VLOOKUP($J24,'SUPPLY CHAIN CLIMBER REPORT'!$N$10:$X$70,10),\"\")","v":""}]
[null,null,{"$f":"IFERROR(VLOOKUP($J25,'SUPPLY CHAIN CLIMBER REPORT'!$N$10:$X$70,5),\"\")","v":""},{"$f":"IFERROR(VLOOKUP($J25,'SUPPLY CHAIN CLIMBER REPORT'!$N$10:$X$70,6),\"\")","v":""},{"$f":"IFERROR(VLOOKUP($J25,'SUPPLY CHAIN CLIMBER REPORT'!$N$10:$X$70,7),\"\")","v":""},{"$f":"IFERROR(VLOOKUP($J25,'SUPPLY CHAIN CLIMBER REPORT'!$N$10:$X$70,8),\"\")","v":""},{"$f":"IFERROR(VLOOKUP($J25,'SUPPLY CHAIN CLIMBER REPORT'!$N$10:$X$70,9),\"\")","v":""},{"$f":"IFERROR(VLOOKUP($J25,'SUPPLY CHAIN CLIMBER REPORT'!$N$10:$X$70,10),\"\")","v":""},null,"",null,{"$f":"IFERROR(VLOOKUP($J25,'SUPPLY CHAIN CLIMBER REPORT'!$N$10:$X$70,6),\"\")","v":""},{"$f":"IFERROR(VLOOKUP($J25,'SUPPLY CHAIN CLIMBER REPORT'!$N$10:$X$70,7),\"\")","v":""},{"$f":"IFERROR(VLOOKUP($J25,'SUPPLY CHAIN CLIMBER REPORT'!$N$10:$X$70,8),\"\")","v":""},{"$f":"IFERROR(VLOOKUP($J25,'SUPPLY CHAIN CLIMBER REPORT'!$N$10:$X$70,9),\"\")","v":""},{"$f":"IFERROR(VLOOKUP($J25,'SUPPLY CHAIN CLIMBER REPORT'!$N$10:$X$70,10),\"\")","v":""}]
[null,null,{"$f":"IFERROR(VLOOKUP($J26,'SUPPLY CHAIN CLIMBER REPORT'!$N$10:$X$70,5),\"\")","v":""},{"$f":"IFERROR(VLOOKUP($J26,'SUPPLY CHAIN CLIMBER REPORT'!$N$10:$X$70,6),\"\")","v":""},{"$f":"IFERROR(VLOOKUP($J26,'SUPPLY CHAIN CLIMBER REPORT'!$N$10:$X$70,7),\"\")","v":""},{"$f":"IFERROR(VLOOKUP($J26,'SUPPLY CHAIN CLIMBER REPORT'!$N$10:$X$70,8),\"\")","v":""},{"$f":"IFERROR(VLOOKUP($J26,'SUPPLY CHAIN CLIMBER REPORT'!$N$10:$X$70,9),\"\")","v":""},{"$f":"IFERROR(VLOOKUP($J26,'SUPPLY CHAIN CLIMBER REPORT'!$N$10:$X$70,10),\"\")","v":""},null,"",null,{"$f":"IFERROR(VLOOKUP($J26,'SUPPLY CHAIN CLIMBER REPORT'!$N$10:$X$70,6),\"\")","v":""},{"$f":"IFERROR(VLOOKUP($J26,'SUPPLY CHAIN CLIMBER REPORT'!$N$10:$X$70,7),\"\")","v":""},{"$f":"IFERROR(VLOOKUP($J26,'SUPPLY CHAIN CLIMBER REPORT'!$N$10:$X$70,8),\"\")","v":""},{"$f":"IFERROR(VLOOKUP($J26,'SUPPLY CHAIN CLIMBER REPORT'!$N$10:$X$70,9),\"\")","v":""},{"$f":"IFERROR(VLOOKUP($J26,'SUPPLY CHAIN CLIMBER REPORT'!$N$10:$X$70,10),\"\")","v":""}]
[null,null,{"$f":"IFERROR(VLOOKUP($J27,'SUPPLY CHAIN CLIMBER REPORT'!$N$10:$X$70,5),\"\")","v":""},{"$f":"IFERROR(VLOOKUP($J27,'SUPPLY CHAIN CLIMBER REPORT'!$N$10:$X$70,6),\"\")","v":""},{"$f":"IFERROR(VLOOKUP($J27,'SUPPLY CHAIN CLIMBER REPORT'!$N$10:$X$70,7),\"\")","v":""},{"$f":"IFERROR(VLOOKUP($J27,'SUPPLY CHAIN CLIMBER REPORT'!$N$10:$X$70,8),\"\")","v":""},{"$f":"IFERROR(VLOOKUP($J27,'SUPPLY CHAIN CLIMBER REPORT'!$N$10:$X$70,9),\"\")","v":""},{"$f":"IFERROR(VLOOKUP($J27,'SUPPLY CHAIN CLIMBER REPORT'!$N$10:$X$70,10),\"\")","v":""},null,"",null,{"$f":"IFERROR(VLOOKUP($J27,'SUPPLY CHAIN CLIMBER REPORT'!$N$10:$X$70,6),\"\")","v":""},{"$f":"IFERROR(VLOOKUP($J27,'SUPPLY CHAIN CLIMBER REPORT'!$N$10:$X$70,7),\"\")","v":""},{"$f":"IFERROR(VLOOKUP($J27,'SUPPLY CHAIN CLIMBER REPORT'!$N$10:$X$70,8),\"\")","v":""},{"$f":"IFERROR(VLOOKUP($J27,'SUPPLY CHAIN CLIMBER REPORT'!$N$10:$X$70,9),\"\")","v":""},{"$f":"IFERROR(VLOOKUP($J27,'SUPPLY CHAIN CLIMBER REPORT'!$N$10:$X$70,10),\"\")","v":""}]
[null,"TEAM 1 AVE",{"$f":"IFERROR(AVERAGE(C22:C27),\"\")","v":""},"","","","","",null,"TEAM 1 AVE",{"$f":"IFERROR(AVERAGE(K22:K27),\"\")","v":""},"","","","",""]
[null,"SC TRACK AVE",{"$f":"C16","v":""},"","","","","",null,"SC TRACK AVE",{"$f":"K16","v":""},"","","","",""]
[]
[]
[null,"TEAM 3",null,null,null,null,null,null,null,"TEAM 3"]
[null,"WEEK X",null,null,null,null,null,null,null,"CUMULATIVE"]
[null,"Team Lead Name","HRS WORKED","# JOB APPS","# INFO INTERVIEWS","# MOCK INTERVIEWS","# REAL INTERVIEWS","# OFFERS",null,{"$f":"B34","v":"Team Lead Name"},"HRS WORKED","# JOB APPS","# INFO INTERVIEWS","# MOCK INTERVIEWS","# REAL INTERVIEWS","# OFFERS"]
[null,null,{"$f":"IFERROR(VLOOKUP($J35,'SUPPLY CHAIN CLIMBER REPORT'!$N$10:$X$70,5),\"\")","v":""},{"$f":"IFERROR(VLOOKUP($J35,'SUPPLY CHAIN CLIMBER REPORT'!$N$10:$X$70,6),\"\")","v":""},{"$f":"IFERROR(VLOOKUP($J35,'SUPPLY CHAIN CLIMBER REPORT'!$N$10:$X$70,7),\"\")","v":""},{"$f":"IFERROR(VLOOKUP($J35,'SUPPLY CHAIN CLIMBER REPORT'!$N$10:$X$70,8),\"\")","v":""},{"$f":"IFERROR(VLOOKUP($J35,'SUPPLY CHAIN CLIMBER REPORT'!$N$10:$X$70,9),\"\")","v":""},{"$f":"IFERROR(VLOOKUP($J35,'SUPPLY CHAIN CLIMBER REPORT'!$N$10:$X$70,10),\"\")","v":""},null,{"$f":"IF(B35=\"\",\"\",B35)","v":""},null,{"$f":"IFERROR(VLOOKUP($J35,'SUPPLY CHAIN CLIMBER REPORT'!$N$10:$X$70,6),\"\")","v":""},{"$f":"IFERROR(VLOOKUP($J35,'SUPPLY CHAIN CLIMBER REPORT'!$N$10:$X$70,7),\"\")","v":""},{"$f":"IFERROR(VLOOKUP($J35,'SUPPLY CHAIN CLIMBER REPORT'!$N$10:$X$70,8),\"\")","v":""},{"$f":"IFERROR(VLOOKUP($J35,'SUPPLY CHAIN CLIMBER REPORT'!$N$10:$X$70,9),\"\")","v":""},{"$f":"IFERROR(VLOOKUP($J35,'SUPPLY CHAIN CLIMBER REPORT'!$N$10:$X$70,10),\"\")","v":""}]
[null,null,{"$f":"IFERROR(VLOOKUP($J36,'SUPPLY CHAIN CLIMBER REPORT'!$N$10:$X$70,5),\"\")","v":""},{"$f":"IFERROR(VLOOKUP($J36,'SUPPLY CHAIN CLIMBER REPORT'!$N$10:$X$70,6),\"\")","v":""},{"$f":"IFERROR(VLOOKUP($J36,'SUPPLY CHAIN CLIMBER REPORT'!$N$10:$X$70,7),\"\")","v":""},{"$f":"IFERROR(VLOOKUP($J36,'SUPPLY CHAIN CLIMBER REPORT'!$N$10:$X$70,8),\"\")","v":""},{"$f":"IFERROR(VLOOKUP($J36,'SUPPLY CHAIN CLIMBER REPORT'!$N$10:$X$70,9),\"\")","v":""},{"$f":"IFERROR(VLOOKUP($J36,'SUPPLY CHAIN CLIMBER REPORT'!$N$10:$X$70,10),\"\")","v":""},null,"",null,{"$f":"IFERROR(VLOOKUP($J36,'SUPPLY CHAIN CLIMBER REPORT'!$N$10:$X$70,6),\"\")","v":""},{"$f":"IFERROR(VLOOKUP($J36,'SUPPLY CHAIN CLIMBER REPORT'!$N$10:$X$70,7),\"\")","v":""},{"$f":"IFERROR(VLOOKUP($J36,'SUPPLY CHAIN CLIMBER REPORT'!$N$10:$X$70,8),\"\")","v":""},{"$f":"IFERROR(VLOOKUP($J36,'SUPPLY CHAIN CLIMBER REPORT'!$N$10:$X$70,9),\"\")","v":""},{"$f":"IFERROR(VLOOKUP($J36,'SUPPLY CHAIN CLIMBER REPORT'!$N$10:$X$70,10),\"\")","v":""}]
[null,null,{"$f":"IFERROR(VLOOKUP($J37,'SUPPLY CHAIN CLIMBER REPORT'!$N$10:$X$70,5),\"\")","v":""},{"$f":"IFERROR(VLOOKUP($J37,'SUPPLY CHAIN CLIMBER REPORT'!$N$10:$X$70,6),\"\")","v":""},{"$f":"IFERROR(VLOOKUP($J37,'SUPPLY CHAIN CLIMBER REPORT'!$N$10:$X$70,7),\"\")","v":""},{"$f":"IFERROR(VLOOKUP($J37,'SUPPLY CHAIN CLIMBER REPORT'!$N$10:$X$70,8),\"\")","v":""},{"$f":"IFERROR(VLOOKUP($J37,'SUPPLY CHAIN CLIMBER REPORT'!$N$10:$X$70,9),\"\")","v":""},{"$f":"IFERROR(VLOOKUP($J37,'SUPPLY CHAIN CLIMBER REPORT'!$N$10:$X$70,10),\"\")","v":""},null,"",null,{"$f":"IFERROR(VLOOKUP($J37,'SUPPLY CHAIN CLIMBER REPORT'!$N$10:$X$70,6),\"\")","v":""},{"$f":"IFERROR(VLOOKUP($J37,'SUPPLY CHAIN CLIMBER REPORT'!$N$10:$X$70,7),\"\")","v":""},{"$f":"IFERROR(VLOOKUP($J37,'SUPPLY CHAIN CLIMBER REPORT'!$N$10:$X$70,8),\"\")","v":""},{"$f":"IFERROR(VLOOKUP($J37,'SUPPLY CHAIN CLIMBER REPORT'!$N$10:$X$70,9),\"\")","v":""},{"$f":"IFERROR(VLOOKUP($J37,'SUPPLY CHAIN CLIMBER REPORT'!$N$10:$X$70,10),\"\")","v":""}]
[null,null,{"$f":"IFERROR(VLOOKUP($J38,'SUPPLY CHAIN CLIMBER REPORT'!$N$10:$X$70,5),\"\")","v":""},{"$f":"IFERROR(VLOOKUP($J38,'SUPPLY CHAIN CLIMBER REPORT'!$N$10:$X$70,6),\"\")","v":""},{"$f":"IFERROR(VLOOKUP($J38,'SUPPLY CHAIN CLIMBER REPORT'!$N$10:$X$70,7),\"\")","v":""},{"$f":"IFERROR(VLOOKUP($J38,'SUPPLY CHAIN CLIMBER REPORT'!$N$10:$X$70,8),\"\")","v":""},{"$f":"IFERROR(VLOOKUP($J38,'SUPPLY CHAIN CLIMBER REPORT'!$N$10:$X$70,9),\"\")","v":""},{"$f":"IFERROR(VLOOKUP($J38,'SUPPLY CHAIN CLIMBER REPORT'!$N$10:$X$70,10),\"\")","v":""},null,"",null,{"$f":"IFERROR(VLOOKUP($J38,'SUPPLY CHAIN CLIMBER REPORT'!$N$10:$X$70,6),\"\")","v":""},{"$f":"IFERROR(VLOOKUP($J38,'SUPPLY CHAIN CLIMBER REPORT'!$N$10:$X$70,7),\"\")","v":""},{"$f":"IFERROR(VLOOKUP($J38,'SUPPLY CHAIN CLIMBER REPORT'!$N$10:$X$70,8),\"\")","v":""},{"$f":"IFERROR(VLOOKUP($J38,'SUPPLY CHAIN CLIMBER REPORT'!$N$10:$X$70,9),\"\")","v":""},{"$f":"IFERROR(VLOOKUP($J38,'SUPPLY CHAIN CLIMBER REPORT'!$N$10:$X$70,10),\"\")","v":""}]
[null,null,{"$f":"IFERROR(VLOOKUP($J39,'SUPPLY CHAIN CLIMBER REPORT'!$N$10:$X$70,5),\"\")","v":""},{"$f":"IFERROR(VLOOKUP($J39,'SUPPLY CHAIN CLIMBER REPORT'!$N$10:$X$70,6),\"\")","v":""},{"$f":"IFERROR(VLOOKUP($J39,'SUPPLY CHAIN CLIMBER REPORT'!$N$10:$X$70,7),\"\")","v":""},{"$f":"IFERROR(VLOOKUP($J39,'SUPPLY CHAIN CLIMBER REPORT'!$N$10:$X$70,8),\"\")","v":""},{"$f":"IFERROR(VLOOKUP($J39,'SUPPLY CHAIN CLIMBER REPORT'!$N$10:$X$70,9),\"\")","v":""},{"$f":"IFERROR(VLOOKUP($J39,'SUPPLY CHAIN CLIMBER REPORT'!$N$10:$X$70,10),\"\")","v":""},null,"",null,{"$f":"IFERROR(VLOOKUP($J39,'SUPPLY CHAIN CLIMBER REPORT'!$N$10:$X$70,6),\"\")","v":""},{"$f":"IFERROR(VLOOKUP($J39,'SUPPLY CHAIN CLIMBER REPORT'!$N$10:$X$70,7),\"\")","v":""},{"$f":"IFERROR(VLOOKUP($J39,'SUPPLY CHAIN CLIMBER REPORT'!$N$10:$X$70,8),\"\")","v":""},{"$f":"IFERROR(VLOOKUP($J39,'SUPPLY CHAIN CLIMBER REPORT'!$N$10:$X$70,9),\"\")","v":""},{"$f":"IFERROR(VLOOKUP($J39,'SUPPLY CHAIN CLIMBER REPORT'!$N$10:$X$70,10),\"\")","v":""}]
[null,null,{"$f":"IFERROR(VLOOKUP($J40,'SUPPLY CHAIN CLIMBER REPORT'!$N$10:$X$70,5),\"\")","v":""},{"$f":"IFERROR(VLOOKUP($J40,'SUPPLY CHAIN CLIMBER REPORT'!$N$10:$X$70,6),\"\")","v":""},{"$f":"IFERROR(VLOOKUP($J40,'SUPPLY CHAIN CLIMBER REPORT'!$N$10:$X$70,7),\"\")","v":""},{"$f":"IFERROR(VLOOKUP($J40,'SUPPLY CHAIN CLIMBER REPORT'!$N$10:$X$70,8),\"\")","v":""},{"$f":"IFERROR(VLOOKUP($J40,'SUPPLY CHAIN CLIMBER REPORT'!$N$10:$X$70,9),\"\")","v":""},{"$f":"IFERROR(VLOOKUP($J40,'SUPPLY CHAIN CLIMBER REPORT'!$N$10:$X$70,10),\"\")","v":""},null,"",null,{"$f":"IFERROR(VLOOKUP($J40,'SUPPLY CHAIN CLIMBER REPORT'!$N$10:$X$70,6),\"\")","v":""},{"$f":"IFERROR(VLOOKUP($J40,'SUPPLY CHAIN CLIMBER REPORT'!$N$10:$X$70,7),\"\")","v":""},{"$f":"IFERROR(VLOOKUP($J40,'SUPPLY CHAIN CLIMBER REPORT'!$N$10:$X$70,8),\"\")","v":""},{"$f":"IFERROR(VLOOKUP($J40,'SUPPLY CHAIN CLIMBER REPORT'!$N$10:$X$70,9),\"\")","v":""},{"$f":"IFERROR(VLOOKUP($J40,'SUPPLY CHAIN CLIMBER REPORT'!$N$10:$X$70,10),\"\")","v":""}]
[null,"TEAM 1 AVE",{"$f":"IFERROR(AVERAGE(C35:C40),\"\")","v":""},"","","","","",null,"TEAM 1 AVE",{"$f":"IFERROR(AVERAGE(K35:K40),\"\")","v":""},"","","","",""]
[null,"SC TRACK AVE",{"$f":"C29","v":""},"","","","","",null,"SC TRACK AVE",{"$f":"K29","v":""},"","","","",""]
[]
[]
[null,"TEAM 4",null,null,null,null,null,null,null,"TEAM 4"]
[null,"WEEK X",null,null,null,null,null,null,null,"CUMULATIVE"]
[null,"Team Lead Name","HRS WORKED","# JOB APPS","# INFO INTERVIEWS","# MOCK INTERVIEWS","# REAL INTERVIEWS","# OFFERS",null,{"$f":"B47","v":"Team Lead Name"},"HRS WORKED","# JOB APPS","# INFO INTERVIEWS","# MOCK INTERVIEWS","# REAL INTERVIEWS","# OFFERS"]
[null,null,{"$f":"IFERROR(VLOOKUP($J48,'SUPPLY CHAIN CLIMBER REPORT'!$N$10:$X$70,5),\"\")","v":""},{"$f":"IFERROR(VLOOKUP($J48,'SUPPLY CHAIN CLIMBER REPORT'!$N$10:$X$70,6),\"\")","v":""},{"$f":"IFERROR(VLOOKUP($J48,'SUPPLY CHAIN CLIMBER REPORT'!$N$10:$X$70,7),\"\")","v":""},{"$f":"IFERROR(VLOOKUP($J48,'SUPPLY CHAIN CLIMBER REPORT'!$N$10:$X$70,8),\"\")","v":""},{"$f":"IFERROR(VLOOKUP($J48,'SUPPLY CHAIN CLIMBER REPORT'!$N$10:$X$70,9),\"\")","v":""},{"$f":"IFERROR(VLOOKUP($J48,'SUPPLY CHAIN CLIMBER REPORT'!$N$10:$X$70,10),\"\")","v":""},null,{"$f":"IF(B48=\"\",\"\",B48)","v":""},null,{"$f":"IFERROR(VLOOKUP($J48,'SUPPLY CHAIN CLIMBER REPORT'!$N$10:$X$70,6),\"\")","v":""},{"$f":"IFERROR(VLOOKUP($J48,'SUPPLY CHAIN CLIMBER REPORT'!$N$10:$X$70,7),\"\")","v":""},{"$f":"IFERROR(VLOOKUP($J48,'SUPPLY CHAIN CLIMBER REPORT'!$N$10:$X$70,8),\"\")","v":""},{"$f":"IFERROR(VLOOKUP($J48,'SUPPLY CHAIN CLIMBER REPORT'!$N$10:$X$70,9),\"\")","v":""},{"$f":"IFERROR(VLOOKUP($J48,'SUPPLY CHAIN CLIMBER REPORT'!$N$10:$X$70,10),\"\")","v":""}]
[null,null,{"$f":"IFERROR(VLOOKUP($J49,'SUPPLY CHAIN CLIMBER REPORT'!$N$10:$X$70,5),\"\")","v":""},{"$f":"IFERROR(VLOOKUP($J49,'SUPPLY CHAIN CLIMBER REPORT'!$N$10:$X$70,6),\"\")","v":""},{"$f":"IFERROR(VLOOKUP($J49,'SUPPLY CHAIN CLIMBER REPORT'!$N$10:$X$70,7),\"\")","v":""},{"$f":"IFERROR(VLOOKUP($J49,'SUPPLY CHAIN CLIMBER REPORT'!$N$10:$X$70,8),\"\")","v":""},{"$f":"IFERROR(VLOOKUP($J49,'SUPPLY CHAIN CLIMBER REPORT'!$N$10:$X$70,9),\"\")","v":""},{"$f":"IFERROR(VLOOKUP($J49,'SUPPLY CHAIN CLIMBER REPORT'!$N$10:$X$70,10),\"\")","v":""},null,"",null,{"$f":"IFERROR(VLOOKUP($J49,'SUPPLY CHAIN CLIMBER REPORT'!$N$10:$X$70,6),\"\")","v":""},{"$f":"IFERROR(VLOOKUP($J49,'SUPPLY CHAIN CLIMBER REPORT'!$N$10:$X$70,7),\"\")","v":""},{"$f":"IFERROR(VLOOKUP($J49,'SUPPLY CHAIN CLIMBER REPORT'!$N$10:$X$70,8),\"\")","v":""},{"$f":"IFERROR(VLOOKUP($J49,'SUPPLY CHAIN CLIMBER REPORT'!$N$10:$X$70,9),\"\")","v":""},{"$f":"IFERROR(VLOOKUP($J49,'SUPPLY CHAIN CLIMBER REPORT'!$N$10:$X$70,10),\"\")","v":""}]
[null,null,{"$f":"IFERROR(VLOOKUP($J50,'SUPPLY CHAIN CLIMBER REPORT'!$N$10:$X$70,5),\"\")","v":""},{"$f":"IFERROR(VLOOKUP($J50,'SUPPLY CHAIN CLIMBER REPORT'!$N$10:$X$70,6),\"\")","v":""},{"$f":"IFERROR(VLOOKUP($J50,'SUPPLY CHAIN CLIMBER REPORT'!$N$10:$X$70,7),\"\")","v":""},{"$f":"IFERROR(VLOOKUP($J50,'SUPPLY CHAIN CLIMBER REPORT'!$N$10:$X$70,8),\"\")","v":""},{"$f":"IFERROR(VLOOKUP($J50,'SUPPLY CHAIN CLIMBER REPORT'!$N$10:$X$70,9),\"\")","v":""},{"$f":"IFERROR(VLOOKUP($J50,'SUPPLY CHAIN CLIMBER REPORT'!$N$10:$X$70,10),\"\")","v":""},null,"",null,{"$f":"IFERROR(VLOOKUP($J50,'SUPPLY CHAIN CLIMBER REPORT'!$N$10:$X$70,6),\"\")","v":""},{"$f":"IFERROR(VLOOKUP($J50,'SUPPLY CHAIN CLIMBER REPORT'!$N$10:$X$70,7),\"\")","v":""},{"$f":"IFERROR(VLOOKUP($J50,'SUPPLY CHAIN CLIMBER REPORT'!$N$10:$X$70,8),\"\")","v":""},{"$f":"IFERROR(VLOOKUP($J50,'SUPPLY CHAIN CLIMBER REPORT'!$N$10:$X$70,9),\"\")","v":""},{"$f":"IFERROR(VLOOKUP($J50,'SUPPLY CHAIN CLIMBER REPORT'!$N$10:$X$70,10),\"\")","v":""}]
[null,null,{"$f":"IFERROR(VLOOKUP($J51,'SUPPLY CHAIN CLIMBER REPORT'!$N$10:$X$70,5),\"\")","v":""},{"$f":"IFERROR(VLOOKUP($J51,'SUPPLY CHAIN CLIMBER REPORT'!$N$10:$X$70,6),\"\")","v":""},{"$f":"IFERROR(VLOOKUP($J51,'SUPPLY CHAIN CLIMBER REPORT'!$N$10:$X$70,7),\"\")","v":""},{"$f":"IFERROR(VLOOKUP($J51,'SUPPLY CHAIN CLIMBER REPORT'!$N$10:$X$70,8),\"\")","v":""},{"$f":"IFERROR(VLOOKUP($J51,'SUPPLY CHAIN CLIMBER REPORT'!$N$10:$X$70,9),\"\")","v":""},{"$f":"IFERROR(VLOOKUP($J51,'SUPPLY CHAIN CLIMBER REPORT'!$N$10:$X$70,10),\"\")","v":""},null,"",null,{"$f":"IFERROR(VLOOKUP($J51,'SUPPLY CHAIN CLIMBER REPORT'!$N$10:$X$70,6),\"\")","v":""},{"$f":"IFERROR(VLOOKUP($J51,'SUPPLY CHAIN CLIMBER REPORT'!$N$10:$X$70,7),\"\")","v":""},{"$f":"IFERROR(VLOOKUP($J51,'SUPPLY CHAIN CLIMBER REPORT'!$N$10:$X$70,8),\"\")","v":""},{"$f":"IFERROR(VLOOKUP($J51,'SUPPLY CHAIN CLIMBER REPORT'!$N$10:$X$70,9),\"\")","v":""},{"$f":"IFERROR(VLOOKUP($J51,'SUPPLY CHAIN CLIMBER REPORT'!$N$10:$X$70,10),\"\")","v":""}]
[null,null,{"$f":"IFERROR(VLOOKUP($J52,'SUPPLY CHAIN CLIMBER REPORT'!$N$10:$X$70,5),\"\")","v":""},{"$f":"IFERROR(VLOOKUP($J52,'SUPPLY CHAIN CLIMBER REPORT'!$N$10:$X$70,6),\"\")","v":""},{"$f":"IFERROR(VLOOKUP($J52,'SUPPLY CHAIN CLIMBER REPORT'!$N$10:$X$70,7),\"\")","v":""},{"$f":"IFERROR(VLOOKUP($J52,'SUPPLY CHAIN CLIMBER REPORT'!$N$10:$X$70,8),\"\")","v":""},{"$f":"IFERROR(VLOOKUP($J52,'SUPPLY CHAIN CLIMBER REPORT'!$N$10:$X$70,9),\"\")","v":""},{"$f":"IFERROR(VLOOKUP($J52,'SUPPLY CHAIN CLIMBER REPORT'!$N$10:$X$70,10),\"\")","v":""},null,"",null,{"$f":"IFERROR(VLOOKUP($J52,'SUPPLY CHAIN CLIMBER REPORT'!$N$10:$X$70,6),\"\")","v":""},{"$f":"IFERROR(VLOOKUP($J52,'SUPPLY CHAIN CLIMBER REPORT'!$N$10:$X$70,7),\"\")","v":""},{"$f":"IFERROR(VLOOKUP($J52,'SUPPLY CHAIN CLIMBER REPORT'!$N$10:$X$70,8),\"\")","v":""},{"$f":"IFERROR(VLOOKUP($J52,'SUPPLY CHAIN CLIMBER REPORT'!$N$10:$X$70,9),\"\")","v":""},{"$f":"IFERROR(VLOOKUP($J52,'SUPPLY CHAIN CLIMBER REPORT'!$N$10:$X$70,10),\"\")","v":""}]
[null,null,{"$f":"IFERROR(VLOOKUP($J53,'SUPPLY CHAIN CLIMBER REPORT'!$N$10:$X$70,5),\"\")","v":""},{"$f":"IFERROR(VLOOKUP($J53,'SUPPLY CHAIN CLIMBER REPORT'!$N$10:$X$70,6),\"\")","v":""},{"$f":"IFERROR(VLOOKUP($J53,'SUPPLY CHAIN CLIMBER REPORT'!$N$10:$X$70,7),\"\")","v":""},{"$f":"IFERROR(VLOOKUP($J53,'SUPPLY CHAIN CLIMBER REPORT'!$N$10:$X$70,8),\"\")","v":""},{"$f":"IFERROR(VLOOKUP($J53,'SUPPLY CHAIN CLIMBER REPORT'!$N$10:$X$70,9),\"\")","v":""},{"$f":"IFERROR(VLOOKUP($J53,'SUPPLY CHAIN CLIMBER REPORT'!$N$10:$X$70,10),\"\")","v":""},null,"",null,{"$f":"IFERROR(VLOOKUP($J53,'SUPPLY CHAIN CLIMBER REPORT'!$N$10:$X$70,6),\"\")","v":""},{"$f":"IFERROR(VLOOKUP($J53,'SUPPLY CHAIN CLIMBER REPORT'!$N$10:$X$70,7),\"\")","v":""},{"$f":"IFERROR(VLOOKUP($J53,'SUPPLY CHAIN CLIMBER REPORT'!$N$10:$X$70,8),\"\")","v":""},{"$f":"IFERROR(VLOOKUP($J53,'SUPPLY CHAIN CLIMBER REPORT'!$N$10:$X$70,9),\"\")","v":""},{"$f":"IFERROR(VLOOKUP($J53,'SUPPLY CHAIN CLIMBER REPORT'!$N$10:$X$70,10),\"\")","v":""}]
[null,"TEAM 1 AVE",{"$f":"IFERROR(AVERAGE(C48:C53),\"\")","v":""},"","","","","",null,"TEAM 1 AVE",{"$f":"IFERROR(AVERAGE(K48:K53),\"\")","v":""},"","","","",""]
[null,"SC TRACK AVE",{"$f":"K42","v":""},"","","","","",null,"SC TRACK AVE",{"$f":"K42","v":""},"","","","",""]
[]
[]
[null,"TEAM 5",null,null,null,null,null,null,null,"TEAM 5"]
[null,"WEEK X",null,null,null,null,null,null,null,"CUMULATIVE"]
[null,"Team Lead Name","HRS WORKED","# JOB APPS","# INFO INTERVIEWS","# MOCK INTERVIEWS","# REAL INTERVIEWS","# OFFERS",null,{"$f":"B60","v":"Team Lead Name"},"HRS WORKED","# JOB APPS","# INFO INTERVIEWS","# MOCK INTERVIEWS","# REAL INTERVIEWS","# OFFERS"]
[null,null,{"$f":"IFERROR(VLOOKUP($J61,'SUPPLY CHAIN CLIMBER REPORT'!$N$10:$X$70,5),\"\")","v":""},{"$f":"IFERROR(VLOOKUP($J61,'SUPPLY CHAIN CLIMBER REPORT'!$N$10:$X$70,6),\"\")","v":""},{"$f":"IFERROR(VLOOKUP($J61,'SUPPLY CHAIN CLIMBER REPORT'!$N$10:$X$70,7),\"\")","v":""},{"$f":"IFERROR(VLOOKUP($J61,'SUPPLY CHAIN CLIMBER REPORT'!$N$10:$X$70,8),\"\")","v":""},{"$f":"IFERROR(VLOOKUP($J61,'SUPPLY CHAIN CLIMBER REPORT'!$N$10:$X$70,9),\"\")","v":""},{"$f":"IFERROR(VLOOKUP($J61,'SUPPLY CHAIN CLIMBER REPORT'!$N$10:$X$70,10),\"\")","v":""},null,{"$f":"IF(B61=\"\",\"\",B61)","v":""},null,{"$f":"IFERROR(VLOOKUP($J61,'SUPPLY CHAIN CLIMBER REPORT'!$N$10:$X$70,6),\"\")","v":""},{"$f":"IFERROR(VLOOKUP($J61,'SUPPLY CHAIN CLIMBER REPORT'!$N$10:$X$70,7),\"\")","v":""},{"$f":"IFERROR(VLOOKUP($J61,'SUPPLY CHAIN CLIMBER REPORT'!$N$10:$X$70,8),\"\")","v":""},{"$f":"IFERROR(VLOOKUP($J61,'SUPPLY CHAIN CLIMBER REPORT'!$N$10:$X$70,9),\"\")","v":""},{"$f":"IFERROR(VLOOKUP($J61,'SUPPLY CHAIN CLIMBER REPORT'!$N$10:$X$70,10),\"\")","v":""}]
[null,null,{"$f":"IFERROR(VLOOKUP($J62,'SUPPLY CHAIN CLIMBER REPORT'!$N$10:$X$70,5),\"\")","v":""},{"$f":"IFERROR(VLOOKUP($J62,'SUPPLY CHAIN CLIMBER REPORT'!$N$10:$X$70,6),\"\")","v":""},{"$f":"IFERROR(VLOOKUP($J62,'SUPPLY CHAIN CLIMBER REPORT'!$N$10:$X$70,7),\"\")","v":""},{"$f":"IFERROR(VLOOKUP($J62,'SUPPLY CHAIN CLIMBER REPORT'!$N$10:$X$70,8),\"\")","v":""},{"$f":"IFERROR(VLOOKUP($J62,'SUPPLY CHAIN CLIMBER REPORT'!$N$10:$X$70,9),\"\")","v":""},{"$f":"IFERROR(VLOOKUP($J62,'SUPPLY CHAIN CLIMBER REPORT'!$N$10:$X$70,10),\"\")","v":""},null,"",null,{"$f":"IFERROR(VLOOKUP($J62,'SUPPLY CHAIN CLIMBER REPORT'!$N$10:$X$70,6),\"\")","v":""},{"$f":"IFERROR(VLOOKUP($J62,'SUPPLY CHAIN CLIMBER REPORT'!$N$10:$X$70,7),\"\")","v":""},{"$f":"IFERROR(VLOOKUP($J62,'SUPPLY CHAIN CLIMBER REPORT'!$N$10:$X$70,8),\"\")","v":""},{"$f":"IFERROR(VLOOKUP($J62,'SUPPLY CHAIN CLIMBER REPORT'!$N$10:$X$70,9),\"\")","v":""},{"$f":"IFERROR(VLOOKUP($J62,'SUPPLY CHAIN CLIMBER REPORT'!$N$10:$X$70,10),\"\")","v":""}]
[null,null,{"$f":"IFERROR(VLOOKUP($J63,'SUPPLY CHAIN CLIMBER REPORT'!$N$10:$X$70,5),\"\")","v":""},{"$f":"IFERROR(VLOOKUP($J63,'SUPPLY CHAIN CLIMBER REPORT'!$N$10:$X$70,6),\"\")","v":""},{"$f":"IFERROR(VLOOKUP($J63,'SUPPLY CHAIN CLIMBER REPORT'!$N$10:$X$70,7),\"\")","v":""},{"$f":"IFERROR(VLOOKUP($J63,'SUPPLY CHAIN CLIMBER REPORT'!$N$10:$X$70,8),\"\")","v":""},{"$f":"IFERROR(VLOOKUP($J63,'SUPPLY CHAIN CLIMBER REPORT'!$N$10:$X$70,9),\"\")","v":""},{"$f":"IFERROR(VLOOKUP($J63,'SUPPLY CHAIN CLIMBER REPORT'!$N$10:$X$70,10),\"\")","v":""},null,"",null,{"$f":"IFERROR(VLOOKUP($J63,'SUPPLY CHAIN CLIMBER REPORT'!$N$10:$X$70,6),\"\")","v":""},{"$f":"IFERROR(VLOOKUP($J63,'SUPPLY CHAIN CLIMBER REPORT'!$N$10:$X$70,7),\"\")","v":""},{"$f":"IFERROR(VLOOKUP($J63,'SUPPLY CHAIN CLIMBER REPORT'!$N$10:$X$70,8),\"\")","v":""},{"$f":"IFERROR(VLOOKUP($J63,'SUPPLY CHAIN CLIMBER REPORT'!$N$10:$X$70,9),\"\")","v":""},{"$f":"IFERROR(VLOOKUP($J63,'SUPPLY CHAIN CLIMBER REPORT'!$N$10:$X$70,10),\"\")","v":""}]
[null,null,{"$f":"IFERROR(VLOOKUP($J64,'SUPPLY CHAIN CLIMBER REPORT'!$N$10:$X$70,5),\"\")","v":""},{"$f":"IFERROR(VLOOKUP($J64,'SUPPLY CHAIN CLIMBER REPORT'!$N$10:$X$70,6),\"\")","v":""},{"$f":"IFERROR(VLOOKUP($J64,'SUPPLY CHAIN CLIMBER REPORT'!$N$10:$X$70,7),\"\")","v":""},{"$f":"IFERROR(VLOOKUP($J64,'SUPPLY CHAIN CLIMBER REPORT'!$N$10:$X$70,8),\"\")","v":""},{"$f":"IFERROR(VLOOKUP($J64,'SUPPLY CHAIN CLIMBER REPORT'!$N$10:$X$70,9),\"\")","v":""},{"$f":"IFERROR(VLOOKUP($J64,'SUPPLY CHAIN CLIMBER REPORT'!$N$10:$X$70,10),\"\")","v":""},null,"",null,{"$f":"IFERROR(VLOOKUP($J64,'SUPPLY CHAIN CLIMBER REPORT'!$N$10:$X$70,6),\"\")","v":""},{"$f":"IFERROR(VLOOKUP($J64,'SUPPLY CHAIN CLIMBER REPORT'!$N$10:$X$70,7),\"\")","v":""},{"$f":"IFERROR(VLOOKUP($J64,'SUPPLY CHAIN CLIMBER REPORT'!$N$10:$X$70,8),\"\")","v":""},{"$f":"IFERROR(VLOOKUP($J64,'SUPPLY CHAIN CLIMBER REPORT'!$N$10:$X$70,9),\"\")","v":""},{"$f":"IFERROR(VLOOKUP($J64,'SUPPLY CHAIN CLIMBER REPORT'!$N$10:$X$70,10),\"\")","v":""}]
[null,null,{"$f":"IFERROR(VLOOKUP($J65,'SUPPLY CHAIN CLIMBER REPORT'!$N$10:$X$70,5),\"\")","v":""},{"$f":"IFERROR(VLOOKUP($J65,'SUPPLY CHAIN CLIMBER REPORT'!$N$10:$X$70,6),\"\")","v":""},{"$f":"IFERROR(VLOOKUP($J65,'SUPPLY CHAIN CLIMBER REPORT'!$N$10:$X$70,7),\"\")","v":""},{"$f":"IFERROR(VLOOKUP($J65,'SUPPLY CHAIN CLIMBER REPORT'!$N$10:$X$70,8),\"\")","v":""},{"$f":"IFERROR(VLOOKUP($J65,'SUPPLY CHAIN CLIMBER REPORT'!$N$10:$X$70,9),\"\")","v":""},{"$f":"IFERROR(VLOOKUP($J65,'SUPPLY CHAIN CLIMBER REPORT'!$N$10:$X$70,10),\"\")","v":""},null,"",null,{"$f":"IFERROR(VLOOKUP($J65,'SUPPLY CHAIN CLIMBER REPORT'!$N$10:$X$70,6),\"\")","v":""},{"$f":"IFERROR(VLOOKUP($J65,'SUPPLY CHAIN CLIMBER REPORT'!$N$10:$X$70,7),\"\")","v":""},{"$f":"IFERROR(VLOOKUP($J65,'SUPPLY CHAIN CLIMBER REPORT'!$N$10:$X$70,8),\"\")","v":""},{"$f":"IFERROR(VLOOKUP($J65,'SUPPLY CHAIN CLIMBER REPORT'!$N$10:$X$70,9),\"\")","v":""},{"$f":"IFERROR(VLOOKUP($J65,'SUPPLY CHAIN CLIMBER REPORT'!$N$10:$X$70,10),\"\")","v":""}]
[null,null,{"$f":"IFERROR(VLOOKUP($J66,'SUPPLY CHAIN CLIMBER REPORT'!$N$10:$X$70,5),\"\")","v":""},{"$f":"IFERROR(VLOOKUP($J66,'SUPPLY CHAIN CLIMBER REPORT'!$N$10:$X$70,6),\"\")","v":""},{"$f":"IFERROR(VLOOKUP($J66,'SUPPLY CHAIN CLIMBER REPORT'!$N$10:$X$70,7),\"\")","v":""},{"$f":"IFERROR(VLOOKUP($J66,'SUPPLY CHAIN CLIMBER REPORT'!$N$10:$X$70,8),\"\")","v":""},{"$f":"IFERROR(VLOOKUP($J66,'SUPPLY CHAIN CLIMBER REPORT'!$N$10:$X$70,9),\"\")","v":""},{"$f":"IFERROR(VLOOKUP($J66,'SUPPLY CHAIN CLIMBER REPORT'!$N$10:$X$70,10),\"\")","v":""},null,"",null,{"$f":"IFERROR(VLOOKUP($J66,'SUPPLY CHAIN CLIMBER REPORT'!$N$10:$X$70,6),\"\")","v":""},{"$f":"IFERROR(VLOOKUP($J66,'SUPPLY CHAIN CLIMBER REPORT'!$N$10:$X$70,7),\"\")","v":""},{"$f":"IFERROR(VLOOKUP($J66,'SUPPLY CHAIN CLIMBER REPORT'!$N$10:$X$70,8),\"\")","v":""},{"$f":"IFERROR(VLOOKUP($J66,'SUPPLY CHAIN CLIMBER REPORT'!$N$10:$X$70,9),\"\")","v":""},{"$f":"IFERROR(VLOOKUP($J66,'SUPPLY CHAIN CLIMBER REPORT'!$N$10:$X$70,10),\"\")","v":""}]
[null,"TEAM 1 AVE",{"$f":"IFERROR(AVERAGE(C61:C66),\"\")","v":""},"","","","","",null,"TEAM 1 AVE",{"$f":"IFERROR(AVERAGE(K61:K66),\"\")","v":""},"","","","",""]
[null,"SC TRACK AVE",{"$f":"C55","v":""},"","","","","",null,"SC TRACK AVE",{"$f":"K55","v":""},"","","","",""]
[]
[]
[null,"TEAM 6",null,null,null,null,null,null,null,"TEAM 6"]
[null,"WEEK X",null,null,null,null,null,null,null,"CUMULATIVE"]
[null,"Team Lead Name","HRS WORKED","# JOB APPS","# INFO INTERVIEWS","# MOCK INTERVIEWS","# REAL INTERVIEWS","# OFFERS",null,{"$f":"B73","v":"Team Lead Name"},"HRS WORKED","# JOB APPS","# INFO INTERVIEWS","# MOCK INTERVIEWS","# REAL INTERVIEWS","# OFFERS"]
[null,null,{"$f":"IFERROR(VLOOKUP($J74,'SUPPLY CHAIN CLIMBER REPORT'!$N$10:$X$70,5),\"\")","v":""},{"$f":"IFERROR(VLOOKUP($J74,'SUPPLY CHAIN CLIMBER REPORT'!$N$10:$X$70,6),\"\")","v":""},{"$f":"IFERROR(VLOOKUP($J74,'SUPPLY CHAIN CLIMBER REPORT'!$N$10:$X$70,7),\"\")","v":""},{"$f":"IFERROR(VLOOKUP($J74,'SUPPLY CHAIN CLIMBER REPORT'!$N$10:$X$70,8),\"\")","v":""},{"$f":"IFERROR(VLOOKUP($J74,'SUPPLY CHAIN CLIMBER REPORT'!$N$10:$X$70,9),\"\")","v":""},{"$f":"IFERROR(VLOOKUP($J74,'SUPPLY CHAIN CLIMBER REPORT'!$N$10:$X$70,10),\"\")","v":""},null,{"$f":"IF(B74=\"\",\"\",B74)","v":""},null,{"$f":"IFERROR(VLOOKUP($J74,'SUPPLY CHAIN CLIMBER REPORT'!$N$10:$X$70,6),\"\")","v":""},{"$f":"IFERROR(VLOOKUP($J74,'SUPPLY CHAIN CLIMBER REPORT'!$N$10:$X$70,7),\"\")","v":""},{"$f":"IFERROR(VLOOKUP($J74,'SUPPLY CHAIN CLIMBER REPORT'!$N$10:$X$70,8),\"\")","v":""},{"$f":"IFERROR(VLOOKUP($J74,'SUPPLY CHAIN CLIMBER REPORT'!$N$10:$X$70,9),\"\")","v":""},{"$f":"IFERROR(VLOOKUP($J74,'SUPPLY CHAIN CLIMBER REPORT'!$N$10:$X$70,10),\"\")","v":""}]
[null,null,{"$f":"IFERROR(VLOOKUP($J75,'SUPPLY CHAIN CLIMBER REPORT'!$N$10:$X$70,5),\"\")","v":""},{"$f":"IFERROR(VLOOKUP($J75,'SUPPLY CHAIN CLIMBER REPORT'!$N$10:$X$70,6),\"\")","v":""},{"$f":"IFERROR(VLOOKUP($J75,'SUPPLY CHAIN CLIMBER REPORT'!$N$10:$X$70,7),\"\")","v":""},{"$f":"IFERROR(VLOOKUP($J75,'SUPPLY CHAIN CLIMBER REPORT'!$N$10:$X$70,8),\"\")","v":""},{"$f":"IFERROR(VLOOKUP($J75,'SUPPLY CHAIN CLIMBER REPORT'!$N$10:$X$70,9),\"\")","v":""},{"$f":"IFERROR(VLOOKUP($J75,'SUPPLY CHAIN CLIMBER REPORT'!$N$10:$X$70,10),\"\")","v":""},null,"",null,{"$f":"IFERROR(VLOOKUP($J75,'SUPPLY CHAIN CLIMBER REPORT'!$N$10:$X$70,6),\"\")","v":""},{"$f":"IFERROR(VLOOKUP($J75,'SUPPLY CHAIN CLIMBER REPORT'!$N$10:$X$70,7),\"\")","v":""},{"$f":"IFERROR(VLOOKUP($J75,'SUPPLY CHAIN CLIMBER REPORT'!$N$10:$X$70,8),\"\")","v":""},{"$f":"IFERROR(VLOOKUP($J75,'SUPPLY CHAIN CLIMBER REPORT'!$N$10:$X$70,9),\"\")","v":""},{"$f":"IFERROR(VLOOKUP($J75,'SUPPLY CHAIN CLIMBER REPORT'!$N$10:$X$70,10),\"\")","v":""}]
[null,null,{"$f":"IFERROR(VLOOKUP($J76,'SUPPLY CHAIN CLIMBER REPORT'!$N$10:$X$70,5),\"\")","v":""},{"$f":"IFERROR(VLOOKUP($J76,'SUPPLY CHAIN CLIMBER REPORT'!$N$10:$X$70,6),\"\")","v":""},{"$f":"IFERROR(VLOOKUP($J76,'SUPPLY CHAIN CLIMBER REPORT'!$N$10:$X$70,7),\"\")","v":""},{"$f":"IFERROR(VLOOKUP($J76,'SUPPLY CHAIN CLIMBER REPORT'!$N$10:$X$70,8),\"\")","v":""},{"$f":"IFERROR(VLOOKUP($J76,'SUPPLY CHAIN CLIMBER REPORT'!$N$10:$X$70,9),\"\")","v":""},{"$f":"IFERROR(VLOOKUP($J76,'SUPPLY CHAIN CLIMBER REPORT'!$N$10:$X$70,10),\"\")","v":""},null,"",null,{"$f":"IFERROR(VLOOKUP($J76,'SUPPLY CHAIN CLIMBER REPORT'!$N$10:$X$70,6),\"\")","v":""},{"$f":"IFERROR(VLOOKUP($J76,'SUPPLY CHAIN CLIMBER REPORT'!$N$10:$X$70,7),\"\")","v":""},{"$f":"IFERROR(VLOOKUP($J76,'SUPPLY CHAIN CLIMBER REPORT'!$N$10:$X$70,8),\"\")","v":""},{"$f":"IFERROR(VLOOKUP($J76,'SUPPLY CHAIN CLIMBER REPORT'!$N$10:$X$70,9),\"\")","v":""},{"$f":"IFERROR(VLOOKUP($J76,'SUPPLY CHAIN CLIMBER REPORT'!$N$10:$X$70,10),\"\")","v":""}]
[null,null,{"$f":"IFERROR(VLOOKUP($J77,'SUPPLY CHAIN CLIMBER REPORT'!$N$10:$X$70,5),\"\")","v":""},{"$f":"IFERROR(VLOOKUP($J77,'SUPPLY CHAIN CLIMBER REPORT'!$N$10:$X$70,6),\"\")","v":""},{"$f":"IFERROR(VLOOKUP($J77,'SUPPLY CHAIN CLIMBER REPORT'!$N$10:$X$70,7),\"\")","v":""},{"$f":"IFERROR(VLOOKUP($J77,'SUPPLY CHAIN CLIMBER REPORT'!$N$10:$X$70,8),\"\")","v":""},{"$f":"IFERROR(VLOOKUP($J77,'SUPPLY CHAIN CLIMBER REPORT'!$N$10:$X$70,9),\"\")","v":""},{"$f":"IFERROR(VLOOKUP($J77,'SUPPLY CHAIN CLIMBER REPORT'!$N$10:$X$70,10),\"\")","v":""},null,"",null,{"$f":"IFERROR(VLOOKUP($J77,'SUPPLY CHAIN CLIMBER REPORT'!$N$10:$X$70,6),\"\")","v":""},{"$f":"IFERROR(VLOOKUP($J77,'SUPPLY CHAIN CLIMBER REPORT'!$N$10:$X$70,7),\"\")","v":""},{"$f":"IFERROR(VLOOKUP($J77,'SUPPLY CHAIN CLIMBER REPORT'!$N$10:$X$70,8),\"\")","v":""},{"$f":"IFERROR(VLOOKUP($J77,'SUPPLY CHAIN CLIMBER REPORT'!$N$10:$X$70,9),\"\")","v":""},{"$f":"IFERROR(VLOOKUP($J77,'SUPPLY CHAIN CLIMBER REPORT'!$N$10:$X$70,10),\"\")","v":""}]
[null,null,{"$f":"IFERROR(VLOOKUP($J78,'SUPPLY CHAIN CLIMBER REPORT'!$N$10:$X$70,5),\"\")","v":""},{"$f":"IFERROR(VLOOKUP($J78,'SUPPLY CHAIN CLIMBER REPORT'!$N$10:$X$70,6),\"\")","v":""},{"$f":"IFERROR(VLOOKUP($J78,'SUPPLY CHAIN CLIMBER REPORT'!$N$10:$X$70,7),\"\")","v":""},{"$f":"IFERROR(VLOOKUP($J78,'SUPPLY CHAIN CLIMBER REPORT'!$N$10:$X$70,8),\"\")","v":""},{"$f":"IFERROR(VLOOKUP($J78,'SUPPLY CHAIN CLIMBER REPORT'!$N$10:$X$70,9),\"\")","v":""},{"$f":"IFERROR(VLOOKUP($J78,'SUPPLY CHAIN CLIMBER REPORT'!$N$10:$X$70,10),\"\")","v":""},null,"",null,{"$f":"IFERROR(VLOOKUP($J78,'SUPPLY CHAIN CLIMBER REPORT'!$N$10:$X$70,6),\"\")","v":""},{"$f":"IFERROR(VLOOKUP($J78,'SUPPLY CHAIN CLIMBER REPORT'!$N$10:$X$70,7),\"\")","v":""},{"$f":"IFERROR(VLOOKUP($J78,'SUPPLY CHAIN CLIMBER REPORT'!$N$10:$X$70,8),\"\")","v":""},{"$f":"IFERROR(VLOOKUP($J78,'SUPPLY CHAIN CLIMBER REPORT'!$N$10:$X$70,9),\"\")","v":""},{"$f":"IFERROR(VLOOKUP($J78,'SUPPLY CHAIN CLIMBER REPORT'!$N$10:$X$70,10),\"\")","v":""}]
[null,null,{"$f":"IFERROR(VLOOKUP($J79,'SUPPLY CHAIN CLIMBER REPORT'!$N$10:$X$70,5),\"\")","v":""},{"$f":"IFERROR(VLOOKUP($J79,'SUPPLY CHAIN CLIMBER REPORT'!$N$10:$X$70,6),\"\")","v":""},{"$f":"IFERROR(VLOOKUP($J79,'SUPPLY CHAIN CLIMBER REPORT'!$N$10:$X$70,7),\"\")","v":""},{"$f":"IFERROR(VLOOKUP($J79,'SUPPLY CHAIN CLIMBER REPORT'!$N$10:$X$70,8),\"\")","v":""},{"$f":"IFERROR(VLOOKUP($J79,'SUPPLY CHAIN CLIMBER REPORT'!$N$10:$X$70,9),\"\")","v":""},{"$f":"IFERROR(VLOOKUP($J79,'SUPPLY CHAIN CLIMBER REPORT'!$N$10:$X$70,10),\"\")","v":""},null,"",null,{"$f":"IFERROR(VLOOKUP($J79,'SUPPLY CHAIN CLIMBER REPORT'!$N$10:$X$70,6),\"\")","v":""},{"$f":"IFERROR(VLOOKUP($J79,'SUPPLY CHAIN CLIMBER REPORT'!$N$10:$X$70,7),\"\")","v":""},{"$f":"IFERROR(VLOOKUP($J79,'SUPPLY CHAIN CLIMBER REPORT'!$N$10:$X$70,8),\"\")","v":""},{"$f":"IFERROR(VLOOKUP($J79,'SUPPLY CHAIN CLIMBER REPORT'!$N$10:$X$70,9),\"\")","v":""},{"$f":"IFERROR(VLOOKUP($J79,'SUPPLY CHAIN CLIMBER REPORT'!$N$10:$X$70,10),\"\")","v":""}]
[null,"TEAM 1 AVE",{"$f":"IFERROR(AVERAGE(C74:C79),\"\")","v":""},"","","","","",null,"TEAM 1 AVE",{"$f":"IFERROR(AVERAGE(K74:K79),\"\")","v":""},"","","","",""]
[null,"SC TRACK AVE",{"$f":"C68","v":""},"","","","","",null,"SC TRACK AVE",{"$f":"K68","v":""},"","","","",""]
[]
[]
[null,"TEAM 7 ",null,null,null,null,null,null,null,"TEAM 7 "]
[null,"WEEK X",null,null,null,null,null,null,null,"CUMULATIVE"]
[null,"Team Lead Name","HRS WORKED","# JOB APPS","# INFO INTERVIEWS","# MOCK INTERVIEWS","# REAL INTERVIEWS","# OFFERS",null,{"$f":"B86","v":"Team Lead Name"},"HRS WORKED","# JOB APPS","# INFO INTERVIEWS","# MOCK INTERVIEWS","# REAL INTERVIEWS","# OFFERS"]
[null,null,{"$f":"IFERROR(VLOOKUP($J87,'SUPPLY CHAIN CLIMBER REPORT'!$N$10:$X$70,5),\"\")","v":""},{"$f":"IFERROR(VLOOKUP($J87,'SUPPLY CHAIN CLIMBER REPORT'!$N$10:$X$70,6),\"\")","v":""},{"$f":"IFERROR(VLOOKUP($J87,'SUPPLY CHAIN CLIMBER REPORT'!$N$10:$X$70,7),\"\")","v":""},{"$f":"IFERROR(VLOOKUP($J87,'SUPPLY CHAIN CLIMBER REPORT'!$N$10:$X$70,8),\"\")","v":""},{"$f":"IFERROR(VLOOKUP($J87,'SUPPLY CHAIN CLIMBER REPORT'!$N$10:$X$70,9),\"\")","v":""},{"$f":"IFERROR(VLOOKUP($J87,'SUPPLY CHAIN CLIMBER REPORT'!$N$10:$X$70,10),\"\")","v":""},null,{"$f":"IF(B87=\"\",\"\",B87)","v":""},null,{"$f":"IFERROR(VLOOKUP($J87,'SUPPLY CHAIN CLIMBER REPORT'!$N$10:$X$70,6),\"\")","v":""},{"$f":"IFERROR(VLOOKUP($J87,'SUPPLY CHAIN CLIMBER REPORT'!$N$10:$X$70,7),\"\")","v":""},{"$f":"IFERROR(VLOOKUP($J87,'SUPPLY CHAIN CLIMBER REPORT'!$N$10:$X$70,8),\"\")","v":""},{"$f":"IFERROR(VLOOKUP($J87,'SUPPLY CHAIN CLIMBER REPORT'!$N$10:$X$70,9),\"\")","v":""},{"$f":"IFERROR(VLOOKUP($J87,'SUPPLY CHAIN CLIMBER REPORT'!$N$10:$X$70,10),\"\")","v":""}]
[null,null,{"$f":"IFERROR(VLOOKUP($J88,'SUPPLY CHAIN CLIMBER REPORT'!$N$10:$X$70,5),\"\")","v":""},{"$f":"IFERROR(VLOOKUP($J88,'SUPPLY CHAIN CLIMBER REPORT'!$N$10:$X$70,6),\"\")","v":""},{"$f":"IFERROR(VLOOKUP($J88,'SUPPLY CHAIN CLIMBER REPORT'!$N$10:$X$70,7),\"\")","v":""},{"$f":"IFERROR(VLOOKUP($J88,'SUPPLY CHAIN CLIMBER REPORT'!$N$10:$X$70,8),\"\")","v":""},{"$f":"IFERROR(VLOOKUP($J88,'SUPPLY CHAIN CLIMBER REPORT'!$N$10:$X$70,9),\"\")","v":""},{"$f":"IFERROR(VLOOKUP($J88,'SUPPLY CHAIN CLIMBER REPORT'!$N$10:$X$70,10),\"\")","v":""},null,"",null,{"$f":"IFERROR(VLOOKUP($J88,'SUPPLY CHAIN CLIMBER REPORT'!$N$10:$X$70,6),\"\")","v":""},{"$f":"IFERROR(VLOOKUP($J88,'SUPPLY CHAIN CLIMBER REPORT'!$N$10:$X$70,7),\"\")","v":""},{"$f":"IFERROR(VLOOKUP($J88,'SUPPLY CHAIN CLIMBER REPORT'!$N$10:$X$70,8),\"\")","v":""},{"$f":"IFERROR(VLOOKUP($J88,'SUPPLY CHAIN CLIMBER REPORT'!$N$10:$X$70,9),\"\")","v":""},{"$f":"IFERROR(VLOOKUP($J88,'SUPPLY CHAIN CLIMBER REPORT'!$N$10:$X$70,10),\"\")","v":""}]
[null,null,{"$f":"IFERROR(VLOOKUP($J89,'SUPPLY CHAIN CLIMBER REPORT'!$N$10:$X$70,5),\"\")","v":""},{"$f":"IFERROR(VLOOKUP($J89,'SUPPLY CHAIN CLIMBER REPORT'!$N$10:$X$70,6),\"\")","v":""},{"$f":"IFERROR(VLOOKUP($J89,'SUPPLY CHAIN CLIMBER REPORT'!$N$10:$X$70,7),\"\")","v":""},{"$f":"IFERROR(VLOOKUP($J89,'SUPPLY CHAIN CLIMBER REPORT'!$N$10:$X$70,8),\"\")","v":""},{"$f":"IFERROR(VLOOKUP($J89,'SUPPLY CHAIN CLIMBER REPORT'!$N$10:$X$70,9),\"\")","v":""},{"$f":"IFERROR(VLOOKUP($J89,'SUPPLY CHAIN CLIMBER REPORT'!$N$10:$X$70,10),\"\")","v":""},null,"",null,{"$f":"IFERROR(VLOOKUP($J89,'SUPPLY CHAIN CLIMBER REPORT'!$N$10:$X$70,6),\"\")","v":""},{"$f":"IFERROR(VLOOKUP($J89,'SUPPLY CHAIN CLIMBER REPORT'!$N$10:$X$70,7),\"\")","v":""},{"$f":"IFERROR(VLOOKUP($J89,'SUPPLY CHAIN CLIMBER REPORT'!$N$10:$X$70,8),\"\")","v":""},{"$f":"IFERROR(VLOOKUP($J89,'SUPPLY CHAIN CLIMBER REPORT'!$N$10:$X$70,9),\"\")","v":""},{"$f":"IFERROR(VLOOKUP($J89,'SUPPLY CHAIN CLIMBER REPORT'!$N$10:$X$70,10),\"\")","v":""}]
[null,null,{"$f":"IFERROR(VLOOKUP($J90,'SUPPLY CHAIN CLIMBER REPORT'!$N$10:$X$70,5),\"\")","v":""},{"$f":"IFERROR(VLOOKUP($J90,'SUPPLY CHAIN CLIMBER REPORT'!$N$10:$X$70,6),\"\")","v":""},{"$f":"IFERROR(VLOOKUP($J90,'SUPPLY CHAIN CLIMBER REPORT'!$N$10:$X$70,7),\"\")","v":""},{"$f":"IFERROR(VLOOKUP($J90,'SUPPLY CHAIN CLIMBER REPORT'!$N$10:$X$70,8),\"\")","v":""},{"$f":"IFERROR(VLOOKUP($J90,'SUPPLY CHAIN CLIMBER REPORT'!$N$10:$X$70,9),\"\")","v":""},{"$f":"IFERROR(VLOOKUP($J90,'SUPPLY CHAIN CLIMBER REPORT'!$N$10:$X$70,10),\"\")","v":""},null,"",null,{"$f":"IFERROR(VLOOKUP($J90,'SUPPLY CHAIN CLIMBER REPORT'!$N$10:$X$70,6),\"\")","v":""},{"$f":"IFERROR(VLOOKUP($J90,'SUPPLY CHAIN CLIMBER REPORT'!$N$10:$X$70,7),\"\")","v":""},{"$f":"IFERROR(VLOOKUP($J90,'SUPPLY CHAIN CLIMBER REPORT'!$N$10:$X$70,8),\"\")","v":""},{"$f":"IFERROR(VLOOKUP($J90,'SUPPLY CHAIN CLIMBER REPORT'!$N$10:$X$70,9),\"\")","v":""},{"$f":"IFERROR(VLOOKUP($J90,'SUPPLY CHAIN CLIMBER REPORT'!$N$10:$X$70,10),\"\")","v":""}]
[null,null,{"$f":"IFERROR(VLOOKUP($J91,'SUPPLY CHAIN CLIMBER REPORT'!$N$10:$X$70,5),\"\")","v":""},{"$f":"IFERROR(VLOOKUP($J91,'SUPPLY CHAIN CLIMBER REPORT'!$N$10:$X$70,6),\"\")","v":""},{"$f":"IFERROR(VLOOKUP($J91,'SUPPLY CHAIN CLIMBER REPORT'!$N$10:$X$70,7),\"\")","v":""},{"$f":"IFERROR(VLOOKUP($J91,'SUPPLY CHAIN CLIMBER REPORT'!$N$10:$X$70,8),\"\")","v":""},{"$f":"IFERROR(VLOOKUP($J91,'SUPPLY CHAIN CLIMBER REPORT'!$N$10:$X$70,9),\"\")","v":""},{"$f":"IFERROR(VLOOKUP($J91,'SUPPLY CHAIN CLIMBER REPORT'!$N$10:$X$70,10),\"\")","v":""},null,"",null,{"$f":"IFERROR(VLOOKUP($J91,'SUPPLY CHAIN CLIMBER REPORT'!$N$10:$X$70,6),\"\")","v":""},{"$f":"IFERROR(VLOOKUP($J91,'SUPPLY CHAIN CLIMBER REPORT'!$N$10:$X$70,7),\"\")","v":""},{"$f":"IFERROR(VLOOKUP($J91,'SUPPLY CHAIN CLIMBER REPORT'!$N$10:$X$70,8),\"\")","v":""},{"$f":"IFERROR(VLOOKUP($J91,'SUPPLY CHAIN CLIMBER REPORT'!$N$10:$X$70,9),\"\")","v":""},{"$f":"IFERROR(VLOOKUP($J91,'SUPPLY CHAIN CLIMBER REPORT'!$N$10:$X$70,10),\"\")","v":""}]
[null,null,{"$f":"IFERROR(VLOOKUP($J92,'SUPPLY CHAIN CLIMBER REPORT'!$N$10:$X$70,5),\"\")","v":""},{"$f":"IFERROR(VLOOKUP($J92,'SUPPLY CHAIN CLIMBER REPORT'!$N$10:$X$70,6),\"\")","v":""},{"$f":"IFERROR(VLOOKUP($J92,'SUPPLY CHAIN CLIMBER REPORT'!$N$10:$X$70,7),\"\")","v":""},{"$f":"IFERROR(VLOOKUP($J92,'SUPPLY CHAIN CLIMBER REPORT'!$N$10:$X$70,8),\"\")","v":""},{"$f":"IFERROR(VLOOKUP($J92,'SUPPLY CHAIN CLIMBER REPORT'!$N$10:$X$70,9),\"\")","v":""},{"$f":"IFERROR(VLOOKUP($J92,'SUPPLY CHAIN CLIMBER REPORT'!$N$10:$X$70,10),\"\")","v":""},null,"",null,{"$f":"IFERROR(VLOOKUP($J92,'SUPPLY CHAIN CLIMBER REPORT'!$N$10:$X$70,6),\"\")","v":""},{"$f":"IFERROR(VLOOKUP($J92,'SUPPLY CHAIN CLIMBER REPORT'!$N$10:$X$70,7),\"\")","v":""},{"$f":"IFERROR(VLOOKUP($J92,'SUPPLY CHAIN CLIMBER REPORT'!$N$10:$X$70,8),\"\")","v":""},{"$f":"IFERROR(VLOOKUP($J92,'SUPPLY CHAIN CLIMBER REPORT'!$N$10:$X$70,9),\"\")","v":""},{"$f":"IFERROR(VLOOKUP($J92,'SUPPLY CHAIN CLIMBER REPORT'!$N$10:$X$70,10),\"\")","v":""}]
[null,"TEAM 1 AVE",{"$f":"IFERROR(AVERAGE(C87:C92),\"\")","v":""},"","","","","",null,"TEAM 1 AVE",{"$f":"IFERROR(AVERAGE(K87:K92),\"\")","v":""},"","","","",""]
[null,"SC TRACK AVE",{"$f":"C81","v":""},"","","","","",null,"SC TRACK AVE",{"$f":"K81","v":""},"","","","",""]

{"sheet":"SUPPLY CHAIN CLIMBER REPORT","index":11,"n_rows":85,"n_cols":24,"rows_kept":85,"cut":false,"hidden":false,"merged":[]}
[]
[]
[null,"NOTES:","NEED THIS FOR EACH TRACK - COULD BE A SEPARATE TAB IN THE MASTER WORKBOOK"]
[null,"GRADE:","GREEN, YELLOW, RED"]
[]
[]
[null,"SUPPLY CHAIN TRACK",null,null,null,null,null,null,null,null,null,null,null,{"$f":"B7","v":"SUPPLY CHAIN TRACK"}]
[null,"WEEK X",null,null,null,null,null,null,null,null,null,null,null,"CUMULATIVE"]
[null,"Climbers","TEAM #","TEAM LEAD","INT'L","HRS WORKED","# JOB APPS","# INFO INTERVIEWS","# MOCK INTERVIEWS","# REAL INTERVIEWS","# OFFERS","GRADE",null,null,"TEAM #","TEAM LEAD","INT'L","HRS WORKED","# JOB APPS","# INFO INTERVIEWS","# MOCK INTERVIEWS","# REAL INTERVIEWS","# OFFERS","GRADE"]
[]
[]
[]
[]
[]
[]
[]
[]
[]
[]
[]
[]
[]
[]
[]
[]
[]
[]
[]
[]
[]
[]
[]
[]
[]
[]
[]
[]
[]
[]
[]
[]
[]
[]
[]
[]
[]
[]
[]
[]
[]
[]
[]
[]
[]
[]
[]
[]
[]
[]
[]
[]
[]
[]
[]
[]
[]
[]
[]
[]
[]
[null,"TRACK AVE",null,null,null,{"$f":"IFERROR(AVERAGE(F10:F70),\"\")","v":""},"","","","","","",null,"TRACK AVE",null,null,null,{"$f":"IFERROR(AVERAGE(R10:R70),\"\")","v":""},"","","","","",""]
[]
[]
[]
[null,"TRACK SUMMARY",null,null,null,null,null,null,null,null,null,null,null,"TRACK SUMMARY"]
[null,"WEEK X",null,null,null,null,null,null,null,null,null,null,null,"CUMULATIVE"]
[null,null,"TEAM #","TEAM LEAD","# INT'L","HRS WORKED","# JOB APPS","# INFO INTERVIEWS","# MOCK INTERVIEWS","# REAL INTERVIEWS","# OFFERS","GRADE",null,null,"TEAM #","TEAM LEAD","# INT'L","HRS WORKED","# JOB APPS","# INFO INTERVIEWS","# MOCK INTERVIEWS","# REAL INTERVIEWS","# OFFERS","GRADE"]
[null,"TEAM 1",null,null,null,null,null,null,null,null,null,null,null,"TEAM 1"]
[null,"TEAM 2",null,null,null,null,null,null,null,null,null,null,null,"TEAM 2"]
[null,"TEAM 3",null,null,null,null,null,null,null,null,null,null,null,"TEAM 3"]
[null,"TEAM 4",null,null,null,null,null,null,null,null,null,null,null,"TEAM 4"]
[null,"TEAM 5",null,null,null,null,null,null,null,null,null,null,null,"TEAM 5"]
[null,"TEAM 6",null,null,null,null,null,null,null,null,null,null,null,"TEAM 6"]
[null,"TEAM 7",null,null,null,null,null,null,null,null,null,null,null,"TEAM 7"]
[null,"TRACK AVE",null,null,null,{"$f":"F71","v":""},"","","","","",null,null,"TRACK AVE",null,null,null,{"$f":"R71","v":""},"","","","",""]

{"sheet":"ENTREPRENEURSHIP TEAM LEADS","index":12,"n_rows":94,"n_cols":16,"rows_kept":94,"cut":false,"hidden":false,"merged":[]}
[]
[]
[]
[null,"ENTREPRENEURSHIP CLIMBER KPI"]
[]
[null,"TEAM 1",null,null,null,null,null,null,null,"TEAM 1"]
[null,{"$f":"TODAY()","v":"2016-04-12"},null,null,null,null,null,null,null,"CUMULATIVE"]
[null,"Team Lead Name","HRS WORKED","# JOB APPS","# INFO INTERVIEWS","# MOCK INTERVIEWS","# REAL INTERVIEWS","# OFFERS",null,{"$f":"B8","v":"Team Lead Name"},"HRS WORKED","# JOB APPS","# INFO INTERVIEWS","# MOCK INTERVIEWS","# REAL INTERVIEWS","# OFFERS"]
[null,null,{"$f":"IFERROR(VLOOKUP($J9,'ENTREPRENEURSHIP CLIMBER REPORT'!$N$10:$X$70,5),\"\")","v":""},{"$f":"IFERROR(VLOOKUP($J9,'ENTREPRENEURSHIP CLIMBER REPORT'!$N$10:$X$70,6),\"\")","v":""},{"$f":"IFERROR(VLOOKUP($J9,'ENTREPRENEURSHIP CLIMBER REPORT'!$N$10:$X$70,7),\"\")","v":""},{"$f":"IFERROR(VLOOKUP($J9,'ENTREPRENEURSHIP CLIMBER REPORT'!$N$10:$X$70,8),\"\")","v":""},{"$f":"IFERROR(VLOOKUP($J9,'ENTREPRENEURSHIP CLIMBER REPORT'!$N$10:$X$70,9),\"\")","v":""},{"$f":"IFERROR(VLOOKUP($J9,'ENTREPRENEURSHIP CLIMBER REPORT'!$N$10:$X$70,10),\"\")","v":""},null,{"$f":"IF(B9=\"\",\"\",B9)","v":""},null,{"$f":"IFERROR(VLOOKUP($J9,'ENTREPRENEURSHIP CLIMBER REPORT'!$N$10:$X$70,6),\"\")","v":""},{"$f":"IFERROR(VLOOKUP($J9,'ENTREPRENEURSHIP CLIMBER REPORT'!$N$10:$X$70,7),\"\")","v":""},{"$f":"IFERROR(VLOOKUP($J9,'ENTREPRENEURSHIP CLIMBER REPORT'!$N$10:$X$70,8),\"\")","v":""},{"$f":"IFERROR(VLOOKUP($J9,'ENTREPRENEURSHIP CLIMBER REPORT'!$N$10:$X$70,9),\"\")","v":""},{"$f":"IFERROR(VLOOKUP($J9,'ENTREPRENEURSHIP CLIMBER REPORT'!$N$10:$X$70,10),\"\")","v":""}]
[null,null,{"$f":"IFERROR(VLOOKUP($J10,'ENTREPRENEURSHIP CLIMBER REPORT'!$N$10:$X$70,5),\"\")","v":""},{"$f":"IFERROR(VLOOKUP($J10,'ENTREPRENEURSHIP CLIMBER REPORT'!$N$10:$X$70,6),\"\")","v":""},{"$f":"IFERROR(VLOOKUP($J10,'ENTREPRENEURSHIP CLIMBER REPORT'!$N$10:$X$70,7),\"\")","v":""},{"$f":"IFERROR(VLOOKUP($J10,'ENTREPRENEURSHIP CLIMBER REPORT'!$N$10:$X$70,8),\"\")","v":""},{"$f":"IFERROR(VLOOKUP($J10,'ENTREPRENEURSHIP CLIMBER REPORT'!$N$10:$X$70,9),\"\")","v":""},{"$f":"IFERROR(VLOOKUP($J10,'ENTREPRENEURSHIP CLIMBER REPORT'!$N$10:$X$70,10),\"\")","v":""},null,"",null,{"$f":"IFERROR(VLOOKUP($J10,'ENTREPRENEURSHIP CLIMBER REPORT'!$N$10:$X$70,6),\"\")","v":""},{"$f":"IFERROR(VLOOKUP($J10,'ENTREPRENEURSHIP CLIMBER REPORT'!$N$10:$X$70,7),\"\")","v":""},{"$f":"IFERROR(VLOOKUP($J10,'ENTREPRENEURSHIP CLIMBER REPORT'!$N$10:$X$70,8),\"\")","v":""},{"$f":"IFERROR(VLOOKUP($J10,'ENTREPRENEURSHIP CLIMBER REPORT'!$N$10:$X$70,9),\"\")","v":""},{"$f":"IFERROR(VLOOKUP($J10,'ENTREPRENEURSHIP CLIMBER REPORT'!$N$10:$X$70,10),\"\")","v":""}]
[null,null,{"$f":"IFERROR(VLOOKUP($J11,'ENTREPRENEURSHIP CLIMBER REPORT'!$N$10:$X$70,5),\"\")","v":""},{"$f":"IFERROR(VLOOKUP($J11,'ENTREPRENEURSHIP CLIMBER REPORT'!$N$10:$X$70,6),\"\")","v":""},{"$f":"IFERROR(VLOOKUP($J11,'ENTREPRENEURSHIP CLIMBER REPORT'!$N$10:$X$70,7),\"\")","v":""},{"$f":"IFERROR(VLOOKUP($J11,'ENTREPRENEURSHIP CLIMBER REPORT'!$N$10:$X$70,8),\"\")","v":""},{"$f":"IFERROR(VLOOKUP($J11,'ENTREPRENEURSHIP CLIMBER REPORT'!$N$10:$X$70,9),\"\")","v":""},{"$f":"IFERROR(VLOOKUP($J11,'ENTREPRENEURSHIP CLIMBER REPORT'!$N$10:$X$70,10),\"\")","v":""},null,"",null,{"$f":"IFERROR(VLOOKUP($J11,'ENTREPRENEURSHIP CLIMBER REPORT'!$N$10:$X$70,6),\"\")","v":""},{"$f":"IFERROR(VLOOKUP($J11,'ENTREPRENEURSHIP CLIMBER REPORT'!$N$10:$X$70,7),\"\")","v":""},{"$f":"IFERROR(VLOOKUP($J11,'ENTREPRENEURSHIP CLIMBER REPORT'!$N$10:$X$70,8),\"\")","v":""},{"$f":"IFERROR(VLOOKUP($J11,'ENTREPRENEURSHIP CLIMBER REPORT'!$N$10:$X$70,9),\"\")","v":""},{"$f":"IFERROR(VLOOKUP($J11,'ENTREPRENEURSHIP CLIMBER REPORT'!$N$10:$X$70,10),\"\")","v":""}]
[null,null,{"$f":"IFERROR(VLOOKUP($J12,'ENTREPRENEURSHIP CLIMBER REPORT'!$N$10:$X$70,5),\"\")","v":""},{"$f":"IFERROR(VLOOKUP($J12,'ENTREPRENEURSHIP CLIMBER REPORT'!$N$10:$X$70,6),\"\")","v":""},{"$f":"IFERROR(VLOOKUP($J12,'ENTREPRENEURSHIP CLIMBER REPORT'!$N$10:$X$70,7),\"\")","v":""},{"$f":"IFERROR(VLOOKUP($J12,'ENTREPRENEURSHIP CLIMBER REPORT'!$N$10:$X$70,8),\"\")","v":""},{"$f":"IFERROR(VLOOKUP($J12,'ENTREPRENEURSHIP CLIMBER REPORT'!$N$10:$X$70,9),\"\")","v":""},{"$f":"IFERROR(VLOOKUP($J12,'ENTREPRENEURSHIP CLIMBER REPORT'!$N$10:$X$70,10),\"\")","v":""},null,"",null,{"$f":"IFERROR(VLOOKUP($J12,'ENTREPRENEURSHIP CLIMBER REPORT'!$N$10:$X$70,6),\"\")","v":""},{"$f":"IFERROR(VLOOKUP($J12,'ENTREPRENEURSHIP CLIMBER REPORT'!$N$10:$X$70,7),\"\")","v":""},{"$f":"IFERROR(VLOOKUP($J12,'ENTREPRENEURSHIP CLIMBER REPORT'!$N$10:$X$70,8),\"\")","v":""},{"$f":"IFERROR(VLOOKUP($J12,'ENTREPRENEURSHIP CLIMBER REPORT'!$N$10:$X$70,9),\"\")","v":""},{"$f":"IFERROR(VLOOKUP($J12,'ENTREPRENEURSHIP CLIMBER REPORT'!$N$10:$X$70,10),\"\")","v":""}]
[null,null,{"$f":"IFERROR(VLOOKUP($J13,'ENTREPRENEURSHIP CLIMBER REPORT'!$N$10:$X$70,5),\"\")","v":""},{"$f":"IFERROR(VLOOKUP($J13,'ENTREPRENEURSHIP CLIMBER REPORT'!$N$10:$X$70,6),\"\")","v":""},{"$f":"IFERROR(VLOOKUP($J13,'ENTREPRENEURSHIP CLIMBER REPORT'!$N$10:$X$70,7),\"\")","v":""},{"$f":"IFERROR(VLOOKUP($J13,'ENTREPRENEURSHIP CLIMBER REPORT'!$N$10:$X$70,8),\"\")","v":""},{"$f":"IFERROR(VLOOKUP($J13,'ENTREPRENEURSHIP CLIMBER REPORT'!$N$10:$X$70,9),\"\")","v":""},{"$f":"IFERROR(VLOOKUP($J13,'ENTREPRENEURSHIP CLIMBER REPORT'!$N$10:$X$70,10),\"\")","v":""},null,"",null,{"$f":"IFERROR(VLOOKUP($J13,'ENTREPRENEURSHIP CLIMBER REPORT'!$N$10:$X$70,6),\"\")","v":""},{"$f":"IFERROR(VLOOKUP($J13,'ENTREPRENEURSHIP CLIMBER REPORT'!$N$10:$X$70,7),\"\")","v":""},{"$f":"IFERROR(VLOOKUP($J13,'ENTREPRENEURSHIP CLIMBER REPORT'!$N$10:$X$70,8),\"\")","v":""},{"$f":"IFERROR(VLOOKUP($J13,'ENTREPRENEURSHIP CLIMBER REPORT'!$N$10:$X$70,9),\"\")","v":""},{"$f":"IFERROR(VLOOKUP($J13,'ENTREPRENEURSHIP CLIMBER REPORT'!$N$10:$X$70,10),\"\")","v":""}]
[null,null,{"$f":"IFERROR(VLOOKUP($J14,'ENTREPRENEURSHIP CLIMBER REPORT'!$N$10:$X$70,5),\"\")","v":""},{"$f":"IFERROR(VLOOKUP($J14,'ENTREPRENEURSHIP CLIMBER REPORT'!$N$10:$X$70,6),\"\")","v":""},{"$f":"IFERROR(VLOOKUP($J14,'ENTREPRENEURSHIP CLIMBER REPORT'!$N$10:$X$70,7),\"\")","v":""},{"$f":"IFERROR(VLOOKUP($J14,'ENTREPRENEURSHIP CLIMBER REPORT'!$N$10:$X$70,8),\"\")","v":""},{"$f":"IFERROR(VLOOKUP($J14,'ENTREPRENEURSHIP CLIMBER REPORT'!$N$10:$X$70,9),\"\")","v":""},{"$f":"IFERROR(VLOOKUP($J14,'ENTREPRENEURSHIP CLIMBER REPORT'!$N$10:$X$70,10),\"\")","v":""},null,"",null,{"$f":"IFERROR(VLOOKUP($J14,'ENTREPRENEURSHIP CLIMBER REPORT'!$N$10:$X$70,6),\"\")","v":""},{"$f":"IFERROR(VLOOKUP($J14,'ENTREPRENEURSHIP CLIMBER REPORT'!$N$10:$X$70,7),\"\")","v":""},{"$f":"IFERROR(VLOOKUP($J14,'ENTREPRENEURSHIP CLIMBER REPORT'!$N$10:$X$70,8),\"\")","v":""},{"$f":"IFERROR(VLOOKUP($J14,'ENTREPRENEURSHIP CLIMBER REPORT'!$N$10:$X$70,9),\"\")","v":""},{"$f":"IFERROR(VLOOKUP($J14,'ENTREPRENEURSHIP CLIMBER REPORT'!$N$10:$X$70,10),\"\")","v":""}]
[null,"TEAM 1 AVE",{"$f":"IFERROR(AVERAGE(C9:C14),\"\")","v":""},"","","","","",null,"TEAM 1 AVE",{"$f":"IFERROR(AVERAGE(K9:K14),\"\")","v":""},"","","","",""]
[null,"OBHR TRACK AVE",{"$f":"'ENTREPRENEURSHIP CLIMBER REPORT'!F71","v":""},{"$f":"'ENTREPRENEURSHIP CLIMBER REPORT'!G71","v":""},{"$f":"'ENTREPRENEURSHIP CLIMBER REPORT'!H71","v":""},{"$f":"'ENTREPRENEURSHIP CLIMBER REPORT'!I71","v":""},{"$f":"'ENTREPRENEURSHIP CLIMBER REPORT'!J71","v":""},{"$f":"'ENTREPRENEURSHIP CLIMBER REPORT'!K71","v":""},null,{"$f":"B16","v":"OBHR TRACK AVE"},{"$f":"'ENTREPRENEURSHIP CLIMBER REPORT'!R71","v":""},{"$f":"'ENTREPRENEURSHIP CLIMBER REPORT'!S71","v":""},{"$f":"'ENTREPRENEURSHIP CLIMBER REPORT'!T71","v":""},{"$f":"'ENTREPRENEURSHIP CLIMBER REPORT'!U71","v":""},{"$f":"'ENTREPRENEURSHIP CLIMBER REPORT'!V71","v":""},{"$f":"'ENTREPRENEURSHIP CLIMBER REPORT'!W71","v":""}]
[]
[]
[null,"TEAM 2",null,null,null,null,null,null,null,"TEAM 2"]
[null,{"$f":"B7","v":"2016-04-12"},null,null,null,null,null,null,null,"CUMULATIVE"]
[null,"Team Lead Name","HRS WORKED","# JOB APPS","# INFO INTERVIEWS","# MOCK INTERVIEWS","# REAL INTERVIEWS","# OFFERS",null,{"$f":"B21","v":"Team Lead Name"},"HRS WORKED","# JOB APPS","# INFO INTERVIEWS","# MOCK INTERVIEWS","# REAL INTERVIEWS","# OFFERS"]
[null,null,{"$f":"IFERROR(VLOOKUP($J22,'ENTREPRENEURSHIP CLIMBER REPORT'!$N$10:$X$70,5),\"\")","v":""},{"$f":"IFERROR(VLOOKUP($J22,'ENTREPRENEURSHIP CLIMBER REPORT'!$N$10:$X$70,6),\"\")","v":""},{"$f":"IFERROR(VLOOKUP($J22,'ENTREPRENEURSHIP CLIMBER REPORT'!$N$10:$X$70,7),\"\")","v":""},{"$f":"IFERROR(VLOOKUP($J22,'ENTREPRENEURSHIP CLIMBER REPORT'!$N$10:$X$70,8),\"\")","v":""},{"$f":"IFERROR(VLOOKUP($J22,'ENTREPRENEURSHIP CLIMBER REPORT'!$N$10:$X$70,9),\"\")","v":""},{"$f":"IFERROR(VLOOKUP($J22,'ENTREPRENEURSHIP CLIMBER REPORT'!$N$10:$X$70,10),\"\")","v":""},null,{"$f":"IF(B22=\"\",\"\",B22)","v":""},null,{"$f":"IFERROR(VLOOKUP($J22,'ENTREPRENEURSHIP CLIMBER REPORT'!$N$10:$X$70,6),\"\")","v":""},{"$f":"IFERROR(VLOOKUP($J22,'ENTREPRENEURSHIP CLIMBER REPORT'!$N$10:$X$70,7),\"\")","v":""},{"$f":"IFERROR(VLOOKUP($J22,'ENTREPRENEURSHIP CLIMBER REPORT'!$N$10:$X$70,8),\"\")","v":""},{"$f":"IFERROR(VLOOKUP($J22,'ENTREPRENEURSHIP CLIMBER REPORT'!$N$10:$X$70,9),\"\")","v":""},{"$f":"IFERROR(VLOOKUP($J22,'ENTREPRENEURSHIP CLIMBER REPORT'!$N$10:$X$70,10),\"\")","v":""}]
[null,null,{"$f":"IFERROR(VLOOKUP($J23,'ENTREPRENEURSHIP CLIMBER REPORT'!$N$10:$X$70,5),\"\")","v":""},{"$f":"IFERROR(VLOOKUP($J23,'ENTREPRENEURSHIP CLIMBER REPORT'!$N$10:$X$70,6),\"\")","v":""},{"$f":"IFERROR(VLOOKUP($J23,'ENTREPRENEURSHIP CLIMBER REPORT'!$N$10:$X$70,7),\"\")","v":""},{"$f":"IFERROR(VLOOKUP($J23,'ENTREPRENEURSHIP CLIMBER REPORT'!$N$10:$X$70,8),\"\")","v":""},{"$f":"IFERROR(VLOOKUP($J23,'ENTREPRENEURSHIP CLIMBER REPORT'!$N$10:$X$70,9),\"\")","v":""},{"$f":"IFERROR(VLOOKUP($J23,'ENTREPRENEURSHIP CLIMBER REPORT'!$N$10:$X$70,10),\"\")","v":""},null,"",null,{"$f":"IFERROR(VLOOKUP($J23,'ENTREPRENEURSHIP CLIMBER REPORT'!$N$10:$X$70,6),\"\")","v":""},{"$f":"IFERROR(VLOOKUP($J23,'ENTREPRENEURSHIP CLIMBER REPORT'!$N$10:$X$70,7),\"\")","v":""},{"$f":"IFERROR(VLOOKUP($J23,'ENTREPRENEURSHIP CLIMBER REPORT'!$N$10:$X$70,8),\"\")","v":""},{"$f":"IFERROR(VLOOKUP($J23,'ENTREPRENEURSHIP CLIMBER REPORT'!$N$10:$X$70,9),\"\")","v":""},{"$f":"IFERROR(VLOOKUP($J23,'ENTREPRENEURSHIP CLIMBER REPORT'!$N$10:$X$70,10),\"\")","v":""}]
[null,null,{"$f":"IFERROR(VLOOKUP($J24,'ENTREPRENEURSHIP CLIMBER REPORT'!$N$10:$X$70,5),\"\")","v":""},{"$f":"IFERROR(VLOOKUP($J24,'ENTREPRENEURSHIP CLIMBER REPORT'!$N$10:$X$70,6),\"\")","v":""},{"$f":"IFERROR(VLOOKUP($J24,'ENTREPRENEURSHIP CLIMBER REPORT'!$N$10:$X$70,7),\"\")","v":""},{"$f":"IFERROR(VLOOKUP($J24,'ENTREPRENEURSHIP CLIMBER REPORT'!$N$10:$X$70,8),\"\")","v":""},{"$f":"IFERROR(VLOOKUP($J24,'ENTREPRENEURSHIP CLIMBER REPORT'!$N$10:$X$70,9),\"\")","v":""},{"$f":"IFERROR(VLOOKUP($J24,'ENTREPRENEURSHIP CLIMBER REPORT'!$N$10:$X$70,10),\"\")","v":""},null,"",null,{"$f":"IFERROR(VLOOKUP($J24,'ENTREPRENEURSHIP CLIMBER REPORT'!$N$10:$X$70,6),\"\")","v":""},{"$f":"IFERROR(VLOOKUP($J24,'ENTREPRENEURSHIP CLIMBER REPORT'!$N$10:$X$70,7),\"\")","v":""},{"$f":"IFERROR(VLOOKUP($J24,'ENTREPRENEURSHIP CLIMBER REPORT'!$N$10:$X$70,8),\"\")","v":""},{"$f":"IFERROR(VLOOKUP($J24,'ENTREPRENEURSHIP CLIMBER REPORT'!$N$10:$X$70,9),\"\")","v":""},{"$f":"IFERROR(VLOOKUP($J24,'ENTREPRENEURSHIP CLIMBER REPORT'!$N$10:$X$70,10),\"\")","v":""}]
[null,null,{"$f":"IFERROR(VLOOKUP($J25,'ENTREPRENEURSHIP CLIMBER REPORT'!$N$10:$X$70,5),\"\")","v":""},{"$f":"IFERROR(VLOOKUP($J25,'ENTREPRENEURSHIP CLIMBER REPORT'!$N$10:$X$70,6),\"\")","v":""},{"$f":"IFERROR(VLOOKUP($J25,'ENTREPRENEURSHIP CLIMBER REPORT'!$N$10:$X$70,7),\"\")","v":""},{"$f":"IFERROR(VLOOKUP($J25,'ENTREPRENEURSHIP CLIMBER REPORT'!$N$10:$X$70,8),\"\")","v":""},{"$f":"IFERROR(VLOOKUP($J25,'ENTREPRENEURSHIP CLIMBER REPORT'!$N$10:$X$70,9),\"\")","v":""},{"$f":"IFERROR(VLOOKUP($J25,'ENTREPRENEURSHIP CLIMBER REPORT'!$N$10:$X$70,10),\"\")","v":""},null,"",null,{"$f":"IFERROR(VLOOKUP($J25,'ENTREPRENEURSHIP CLIMBER REPORT'!$N$10:$X$70,6),\"\")","v":""},{"$f":"IFERROR(VLOOKUP($J25,'ENTREPRENEURSHIP CLIMBER REPORT'!$N$10:$X$70,7),\"\")","v":""},{"$f":"IFERROR(VLOOKUP($J25,'ENTREPRENEURSHIP CLIMBER REPORT'!$N$10:$X$70,8),\"\")","v":""},{"$f":"IFERROR(VLOOKUP($J25,'ENTREPRENEURSHIP CLIMBER REPORT'!$N$10:$X$70,9),\"\")","v":""},{"$f":"IFERROR(VLOOKUP($J25,'ENTREPRENEURSHIP CLIMBER REPORT'!$N$10:$X$70,10),\"\")","v":""}]
[null,null,{"$f":"IFERROR(VLOOKUP($J26,'ENTREPRENEURSHIP CLIMBER REPORT'!$N$10:$X$70,5),\"\")","v":""},{"$f":"IFERROR(VLOOKUP($J26,'ENTREPRENEURSHIP CLIMBER REPORT'!$N$10:$X$70,6),\"\")","v":""},{"$f":"IFERROR(VLOOKUP($J26,'ENTREPRENEURSHIP CLIMBER REPORT'!$N$10:$X$70,7),\"\")","v":""},{"$f":"IFERROR(VLOOKUP($J26,'ENTREPRENEURSHIP CLIMBER REPORT'!$N$10:$X$70,8),\"\")","v":""},{"$f":"IFERROR(VLOOKUP($J26,'ENTREPRENEURSHIP CLIMBER REPORT'!$N$10:$X$70,9),\"\")","v":""},{"$f":"IFERROR(VLOOKUP($J26,'ENTREPRENEURSHIP CLIMBER REPORT'!$N$10:$X$70,10),\"\")","v":""},null,"",null,{"$f":"IFERROR(VLOOKUP($J26,'ENTREPRENEURSHIP CLIMBER REPORT'!$N$10:$X$70,6),\"\")","v":""},{"$f":"IFERROR(VLOOKUP($J26,'ENTREPRENEURSHIP CLIMBER REPORT'!$N$10:$X$70,7),\"\")","v":""},{"$f":"IFERROR(VLOOKUP($J26,'ENTREPRENEURSHIP CLIMBER REPORT'!$N$10:$X$70,8),\"\")","v":""},{"$f":"IFERROR(VLOOKUP($J26,'ENTREPRENEURSHIP CLIMBER REPORT'!$N$10:$X$70,9),\"\")","v":""},{"$f":"IFERROR(VLOOKUP($J26,'ENTREPRENEURSHIP CLIMBER REPORT'!$N$10:$X$70,10),\"\")","v":""}]
[null,null,{"$f":"IFERROR(VLOOKUP($J27,'ENTREPRENEURSHIP CLIMBER REPORT'!$N$10:$X$70,5),\"\")","v":""},{"$f":"IFERROR(VLOOKUP($J27,'ENTREPRENEURSHIP CLIMBER REPORT'!$N$10:$X$70,6),\"\")","v":""},{"$f":"IFERROR(VLOOKUP($J27,'ENTREPRENEURSHIP CLIMBER REPORT'!$N$10:$X$70,7),\"\")","v":""},{"$f":"IFERROR(VLOOKUP($J27,'ENTREPRENEURSHIP CLIMBER REPORT'!$N$10:$X$70,8),\"\")","v":""},{"$f":"IFERROR(VLOOKUP($J27,'ENTREPRENEURSHIP CLIMBER REPORT'!$N$10:$X$70,9),\"\")","v":""},{"$f":"IFERROR(VLOOKUP($J27,'ENTREPRENEURSHIP CLIMBER REPORT'!$N$10:$X$70,10),\"\")","v":""},null,"",null,{"$f":"IFERROR(VLOOKUP($J27,'ENTREPRENEURSHIP CLIMBER REPORT'!$N$10:$X$70,6),\"\")","v":""},{"$f":"IFERROR(VLOOKUP($J27,'ENTREPRENEURSHIP CLIMBER REPORT'!$N$10:$X$70,7),\"\")","v":""},{"$f":"IFERROR(VLOOKUP($J27,'ENTREPRENEURSHIP CLIMBER REPORT'!$N$10:$X$70,8),\"\")","v":""},{"$f":"IFERROR(VLOOKUP($J27,'ENTREPRENEURSHIP CLIMBER REPORT'!$N$10:$X$70,9),\"\")","v":""},{"$f":"IFERROR(VLOOKUP($J27,'ENTREPRENEURSHIP CLIMBER REPORT'!$N$10:$X$70,10),\"\")","v":""}]
[null,"TEAM 1 AVE",{"$f":"IFERROR(AVERAGE(C22:C27),\"\")","v":""},"","","","","",null,"TEAM 1 AVE",{"$f":"IFERROR(AVERAGE(K22:K27),\"\")","v":""},"","","","",""]
[null,{"$f":"B16","v":"OBHR TRACK AVE"},{"$f":"K29","v":""},"","","","","",null,{"$f":"J16","v":"OBHR TRACK AVE"},"","","","","",""]
[]
[]
[null,"TEAM 3",null,null,null,null,null,null,null,"TEAM 3"]
[null,{"$f":"B20","v":"2016-04-12"},null,null,null,null,null,null,null,"CUMULATIVE"]
[null,"Team Lead Name","HRS WORKED","# JOB APPS","# INFO INTERVIEWS","# MOCK INTERVIEWS","# REAL INTERVIEWS","# OFFERS",null,{"$f":"B34","v":"Team Lead Name"},"HRS WORKED","# JOB APPS","# INFO INTERVIEWS","# MOCK INTERVIEWS","# REAL INTERVIEWS","# OFFERS"]
[null,null,{"$f":"IFERROR(VLOOKUP($J35,'ENTREPRENEURSHIP CLIMBER REPORT'!$N$10:$X$70,5),\"\")","v":""},{"$f":"IFERROR(VLOOKUP($J35,'ENTREPRENEURSHIP CLIMBER REPORT'!$N$10:$X$70,6),\"\")","v":""},{"$f":"IFERROR(VLOOKUP($J35,'ENTREPRENEURSHIP CLIMBER REPORT'!$N$10:$X$70,7),\"\")","v":""},{"$f":"IFERROR(VLOOKUP($J35,'ENTREPRENEURSHIP CLIMBER REPORT'!$N$10:$X$70,8),\"\")","v":""},{"$f":"IFERROR(VLOOKUP($J35,'ENTREPRENEURSHIP CLIMBER REPORT'!$N$10:$X$70,9),\"\")","v":""},{"$f":"IFERROR(VLOOKUP($J35,'ENTREPRENEURSHIP CLIMBER REPORT'!$N$10:$X$70,10),\"\")","v":""},null,{"$f":"IF(B35=\"\",\"\",B35)","v":""},null,{"$f":"IFERROR(VLOOKUP($J35,'ENTREPRENEURSHIP CLIMBER REPORT'!$N$10:$X$70,6),\"\")","v":""},{"$f":"IFERROR(VLOOKUP($J35,'ENTREPRENEURSHIP CLIMBER REPORT'!$N$10:$X$70,7),\"\")","v":""},{"$f":"IFERROR(VLOOKUP($J35,'ENTREPRENEURSHIP CLIMBER REPORT'!$N$10:$X$70,8),\"\")","v":""},{"$f":"IFERROR(VLOOKUP($J35,'ENTREPRENEURSHIP CLIMBER REPORT'!$N$10:$X$70,9),\"\")","v":""},{"$f":"IFERROR(VLOOKUP($J35,'ENTREPRENEURSHIP CLIMBER REPORT'!$N$10:$X$70,10),\"\")","v":""}]
[null,null,{"$f":"IFERROR(VLOOKUP($J36,'ENTREPRENEURSHIP CLIMBER REPORT'!$N$10:$X$70,5),\"\")","v":""},{"$f":"IFERROR(VLOOKUP($J36,'ENTREPRENEURSHIP CLIMBER REPORT'!$N$10:$X$70,6),\"\")","v":""},{"$f":"IFERROR(VLOOKUP($J36,'ENTREPRENEURSHIP CLIMBER REPORT'!$N$10:$X$70,7),\"\")","v":""},{"$f":"IFERROR(VLOOKUP($J36,'ENTREPRENEURSHIP CLIMBER REPORT'!$N$10:$X$70,8),\"\")","v":""},{"$f":"IFERROR(VLOOKUP($J36,'ENTREPRENEURSHIP CLIMBER REPORT'!$N$10:$X$70,9),\"\")","v":""},{"$f":"IFERROR(VLOOKUP($J36,'ENTREPRENEURSHIP CLIMBER REPORT'!$N$10:$X$70,10),\"\")","v":""},null,"",null,{"$f":"IFERROR(VLOOKUP($J36,'ENTREPRENEURSHIP CLIMBER REPORT'!$N$10:$X$70,6),\"\")","v":""},{"$f":"IFERROR(VLOOKUP($J36,'ENTREPRENEURSHIP CLIMBER REPORT'!$N$10:$X$70,7),\"\")","v":""},{"$f":"IFERROR(VLOOKUP($J36,'ENTREPRENEURSHIP CLIMBER REPORT'!$N$10:$X$70,8),\"\")","v":""},{"$f":"IFERROR(VLOOKUP($J36,'ENTREPRENEURSHIP CLIMBER REPORT'!$N$10:$X$70,9),\"\")","v":""},{"$f":"IFERROR(VLOOKUP($J36,'ENTREPRENEURSHIP CLIMBER REPORT'!$N$10:$X$70,10),\"\")","v":""}]
[null,null,{"$f":"IFERROR(VLOOKUP($J37,'ENTREPRENEURSHIP CLIMBER REPORT'!$N$10:$X$70,5),\"\")","v":""},{"$f":"IFERROR(VLOOKUP($J37,'ENTREPRENEURSHIP CLIMBER REPORT'!$N$10:$X$70,6),\"\")","v":""},{"$f":"IFERROR(VLOOKUP($J37,'ENTREPRENEURSHIP CLIMBER REPORT'!$N$10:$X$70,7),\"\")","v":""},{"$f":"IFERROR(VLOOKUP($J37,'ENTREPRENEURSHIP CLIMBER REPORT'!$N$10:$X$70,8),\"\")","v":""},{"$f":"IFERROR(VLOOKUP($J37,'ENTREPRENEURSHIP CLIMBER REPORT'!$N$10:$X$70,9),\"\")","v":""},{"$f":"IFERROR(VLOOKUP($J37,'ENTREPRENEURSHIP CLIMBER REPORT'!$N$10:$X$70,10),\"\")","v":""},null,"",null,{"$f":"IFERROR(VLOOKUP($J37,'ENTREPRENEURSHIP CLIMBER REPORT'!$N$10:$X$70,6),\"\")","v":""},{"$f":"IFERROR(VLOOKUP($J37,'ENTREPRENEURSHIP CLIMBER REPORT'!$N$10:$X$70,7),\"\")","v":""},{"$f":"IFERROR(VLOOKUP($J37,'ENTREPRENEURSHIP CLIMBER REPORT'!$N$10:$X$70,8),\"\")","v":""},{"$f":"IFERROR(VLOOKUP($J37,'ENTREPRENEURSHIP CLIMBER REPORT'!$N$10:$X$70,9),\"\")","v":""},{"$f":"IFERROR(VLOOKUP($J37,'ENTREPRENEURSHIP CLIMBER REPORT'!$N$10:$X$70,10),\"\")","v":""}]
[null,null,{"$f":"IFERROR(VLOOKUP($J38,'ENTREPRENEURSHIP CLIMBER REPORT'!$N$10:$X$70,5),\"\")","v":""},{"$f":"IFERROR(VLOOKUP($J38,'ENTREPRENEURSHIP CLIMBER REPORT'!$N$10:$X$70,6),\"\")","v":""},{"$f":"IFERROR(VLOOKUP($J38,'ENTREPRENEURSHIP CLIMBER REPORT'!$N$10:$X$70,7),\"\")","v":""},{"$f":"IFERROR(VLOOKUP($J38,'ENTREPRENEURSHIP CLIMBER REPORT'!$N$10:$X$70,8),\"\")","v":""},{"$f":"IFERROR(VLOOKUP($J38,'ENTREPRENEURSHIP CLIMBER REPORT'!$N$10:$X$70,9),\"\")","v":""},{"$f":"IFERROR(VLOOKUP($J38,'ENTREPRENEURSHIP CLIMBER REPORT'!$N$10:$X$70,10),\"\")","v":""},null,"",null,{"$f":"IFERROR(VLOOKUP($J38,'ENTREPRENEURSHIP CLIMBER REPORT'!$N$10:$X$70,6),\"\")","v":""},{"$f":"IFERROR(VLOOKUP($J38,'ENTREPRENEURSHIP CLIMBER REPORT'!$N$10:$X$70,7),\"\")","v":""},{"$f":"IFERROR(VLOOKUP($J38,'ENTREPRENEURSHIP CLIMBER REPORT'!$N$10:$X$70,8),\"\")","v":""},{"$f":"IFERROR(VLOOKUP($J38,'ENTREPRENEURSHIP CLIMBER REPORT'!$N$10:$X$70,9),\"\")","v":""},{"$f":"IFERROR(VLOOKUP($J38,'ENTREPRENEURSHIP CLIMBER REPORT'!$N$10:$X$70,10),\"\")","v":""}]
[null,null,{"$f":"IFERROR(VLOOKUP($J39,'ENTREPRENEURSHIP CLIMBER REPORT'!$N$10:$X$70,5),\"\")","v":""},{"$f":"IFERROR(VLOOKUP($J39,'ENTREPRENEURSHIP CLIMBER REPORT'!$N$10:$X$70,6),\"\")","v":""},{"$f":"IFERROR(VLOOKUP($J39,'ENTREPRENEURSHIP CLIMBER REPORT'!$N$10:$X$70,7),\"\")","v":""},{"$f":"IFERROR(VLOOKUP($J39,'ENTREPRENEURSHIP CLIMBER REPORT'!$N$10:$X$70,8),\"\")","v":""},{"$f":"IFERROR(VLOOKUP($J39,'ENTREPRENEURSHIP CLIMBER REPORT'!$N$10:$X$70,9),\"\")","v":""},{"$f":"IFERROR(VLOOKUP($J39,'ENTREPRENEURSHIP CLIMBER REPORT'!$N$10:$X$70,10),\"\")","v":""},null,"",null,{"$f":"IFERROR(VLOOKUP($J39,'ENTREPRENEURSHIP CLIMBER REPORT'!$N$10:$X$70,6),\"\")","v":""},{"$f":"IFERROR(VLOOKUP($J39,'ENTREPRENEURSHIP CLIMBER REPORT'!$N$10:$X$70,7),\"\")","v":""},{"$f":"IFERROR(VLOOKUP($J39,'ENTREPRENEURSHIP CLIMBER REPORT'!$N$10:$X$70,8),\"\")","v":""},{"$f":"IFERROR(VLOOKUP($J39,'ENTREPRENEURSHIP CLIMBER REPORT'!$N$10:$X$70,9),\"\")","v":""},{"$f":"IFERROR(VLOOKUP($J39,'ENTREPRENEURSHIP CLIMBER REPORT'!$N$10:$X$70,10),\"\")","v":""}]
[null,null,{"$f":"IFERROR(VLOOKUP($J40,'ENTREPRENEURSHIP CLIMBER REPORT'!$N$10:$X$70,5),\"\")","v":""},{"$f":"IFERROR(VLOOKUP($J40,'ENTREPRENEURSHIP CLIMBER REPORT'!$N$10:$X$70,6),\"\")","v":""},{"$f":"IFERROR(VLOOKUP($J40,'ENTREPRENEURSHIP CLIMBER REPORT'!$N$10:$X$70,7),\"\")","v":""},{"$f":"IFERROR(VLOOKUP($J40,'ENTREPRENEURSHIP CLIMBER REPORT'!$N$10:$X$70,8),\"\")","v":""},{"$f":"IFERROR(VLOOKUP($J40,'ENTREPRENEURSHIP CLIMBER REPORT'!$N$10:$X$70,9),\"\")","v":""},{"$f":"IFERROR(VLOOKUP($J40,'ENTREPRENEURSHIP CLIMBER REPORT'!$N$10:$X$70,10),\"\")","v":""},null,"",null,{"$f":"IFERROR(VLOOKUP($J40,'ENTREPRENEURSHIP CLIMBER REPORT'!$N$10:$X$70,6),\"\")","v":""},{"$f":"IFERROR(VLOOKUP($J40,'ENTREPRENEURSHIP CLIMBER REPORT'!$N$10:$X$70,7),\"\")","v":""},{"$f":"IFERROR(VLOOKUP($J40,'ENTREPRENEURSHIP CLIMBER REPORT'!$N$10:$X$70,8),\"\")","v":""},{"$f":"IFERROR(VLOOKUP($J40,'ENTREPRENEURSHIP CLIMBER REPORT'!$N$10:$X$70,9),\"\")","v":""},{"$f":"IFERROR(VLOOKUP($J40,'ENTREPRENEURSHIP CLIMBER REPORT'!$N$10:$X$70,10),\"\")","v":""}]
[null,"TEAM 1 AVE",{"$f":"IFERROR(AVERAGE(C35:C40),\"\")","v":""},"","","","","",null,"TEAM 1 AVE",{"$f":"IFERROR(AVERAGE(K35:K40),\"\")","v":""},"","","","",""]
[null,{"$f":"B29","v":"OBHR TRACK AVE"},{"$f":"C29","v":""},"","","","","",null,{"$f":"J29","v":"OBHR TRACK AVE"},"","","","","",""]
[]
[]
[null,"TEAM 4",null,null,null,null,null,null,null,"TEAM 4"]
[null,{"$f":"B33","v":"2016-04-12"},null,null,null,null,null,null,null,"CUMULATIVE"]
[null,"Team Lead Name","HRS WORKED","# JOB APPS","# INFO INTERVIEWS","# MOCK INTERVIEWS","# REAL INTERVIEWS","# OFFERS",null,{"$f":"B47","v":"Team Lead Name"},"HRS WORKED","# JOB APPS","# INFO INTERVIEWS","# MOCK INTERVIEWS","# REAL INTERVIEWS","# OFFERS"]
[null,null,{"$f":"IFERROR(VLOOKUP($J48,'ENTREPRENEURSHIP CLIMBER REPORT'!$N$10:$X$70,5),\"\")","v":""},{"$f":"IFERROR(VLOOKUP($J48,'ENTREPRENEURSHIP CLIMBER REPORT'!$N$10:$X$70,6),\"\")","v":""},{"$f":"IFERROR(VLOOKUP($J48,'ENTREPRENEURSHIP CLIMBER REPORT'!$N$10:$X$70,7),\"\")","v":""},{"$f":"IFERROR(VLOOKUP($J48,'ENTREPRENEURSHIP CLIMBER REPORT'!$N$10:$X$70,8),\"\")","v":""},{"$f":"IFERROR(VLOOKUP($J48,'ENTREPRENEURSHIP CLIMBER REPORT'!$N$10:$X$70,9),\"\")","v":""},{"$f":"IFERROR(VLOOKUP($J48,'ENTREPRENEURSHIP CLIMBER REPORT'!$N$10:$X$70,10),\"\")","v":""},null,{"$f":"IF(B48=\"\",\"\",B48)","v":""},null,{"$f":"IFERROR(VLOOKUP($J48,'ENTREPRENEURSHIP CLIMBER REPORT'!$N$10:$X$70,6),\"\")","v":""},{"$f":"IFERROR(VLOOKUP($J48,'ENTREPRENEURSHIP CLIMBER REPORT'!$N$10:$X$70,7),\"\")","v":""},{"$f":"IFERROR(VLOOKUP($J48,'ENTREPRENEURSHIP CLIMBER REPORT'!$N$10:$X$70,8),\"\")","v":""},{"$f":"IFERROR(VLOOKUP($J48,'ENTREPRENEURSHIP CLIMBER REPORT'!$N$10:$X$70,9),\"\")","v":""},{"$f":"IFERROR(VLOOKUP($J48,'ENTREPRENEURSHIP CLIMBER REPORT'!$N$10:$X$70,10),\"\")","v":""}]
[null,null,{"$f":"IFERROR(VLOOKUP($J49,'ENTREPRENEURSHIP CLIMBER REPORT'!$N$10:$X$70,5),\"\")","v":""},{"$f":"IFERROR(VLOOKUP($J49,'ENTREPRENEURSHIP CLIMBER REPORT'!$N$10:$X$70,6),\"\")","v":""},{"$f":"IFERROR(VLOOKUP($J49,'ENTREPRENEURSHIP CLIMBER REPORT'!$N$10:$X$70,7),\"\")","v":""},{"$f":"IFERROR(VLOOKUP($J49,'ENTREPRENEURSHIP CLIMBER REPORT'!$N$10:$X$70,8),\"\")","v":""},{"$f":"IFERROR(VLOOKUP($J49,'ENTREPRENEURSHIP CLIMBER REPORT'!$N$10:$X$70,9),\"\")","v":""},{"$f":"IFERROR(VLOOKUP($J49,'ENTREPRENEURSHIP CLIMBER REPORT'!$N$10:$X$70,10),\"\")","v":""},null,"",null,{"$f":"IFERROR(VLOOKUP($J49,'ENTREPRENEURSHIP CLIMBER REPORT'!$N$10:$X$70,6),\"\")","v":""},{"$f":"IFERROR(VLOOKUP($J49,'ENTREPRENEURSHIP CLIMBER REPORT'!$N$10:$X$70,7),\"\")","v":""},{"$f":"IFERROR(VLOOKUP($J49,'ENTREPRENEURSHIP CLIMBER REPORT'!$N$10:$X$70,8),\"\")","v":""},{"$f":"IFERROR(VLOOKUP($J49,'ENTREPRENEURSHIP CLIMBER REPORT'!$N$10:$X$70,9),\"\")","v":""},{"$f":"IFERROR(VLOOKUP($J49,'ENTREPRENEURSHIP CLIMBER REPORT'!$N$10:$X$70,10),\"\")","v":""}]
[null,null,{"$f":"IFERROR(VLOOKUP($J50,'ENTREPRENEURSHIP CLIMBER REPORT'!$N$10:$X$70,5),\"\")","v":""},{"$f":"IFERROR(VLOOKUP($J50,'ENTREPRENEURSHIP CLIMBER REPORT'!$N$10:$X$70,6),\"\")","v":""},{"$f":"IFERROR(VLOOKUP($J50,'ENTREPRENEURSHIP CLIMBER REPORT'!$N$10:$X$70,7),\"\")","v":""},{"$f":"IFERROR(VLOOKUP($J50,'ENTREPRENEURSHIP CLIMBER REPORT'!$N$10:$X$70,8),\"\")","v":""},{"$f":"IFERROR(VLOOKUP($J50,'ENTREPRENEURSHIP CLIMBER REPORT'!$N$10:$X$70,9),\"\")","v":""},{"$f":"IFERROR(VLOOKUP($J50,'ENTREPRENEURSHIP CLIMBER REPORT'!$N$10:$X$70,10),\"\")","v":""},null,"",null,{"$f":"IFERROR(VLOOKUP($J50,'ENTREPRENEURSHIP CLIMBER REPORT'!$N$10:$X$70,6),\"\")","v":""},{"$f":"IFERROR(VLOOKUP($J50,'ENTREPRENEURSHIP CLIMBER REPORT'!$N$10:$X$70,7),\"\")","v":""},{"$f":"IFERROR(VLOOKUP($J50,'ENTREPRENEURSHIP CLIMBER REPORT'!$N$10:$X$70,8),\"\")","v":""},{"$f":"IFERROR(VLOOKUP($J50,'ENTREPRENEURSHIP CLIMBER REPORT'!$N$10:$X$70,9),\"\")","v":""},{"$f":"IFERROR(VLOOKUP($J50,'ENTREPRENEURSHIP CLIMBER REPORT'!$N$10:$X$70,10),\"\")","v":""}]
[null,null,{"$f":"IFERROR(VLOOKUP($J51,'ENTREPRENEURSHIP CLIMBER REPORT'!$N$10:$X$70,5),\"\")","v":""},{"$f":"IFERROR(VLOOKUP($J51,'ENTREPRENEURSHIP CLIMBER REPORT'!$N$10:$X$70,6),\"\")","v":""},{"$f":"IFERROR(VLOOKUP($J51,'ENTREPRENEURSHIP CLIMBER REPORT'!$N$10:$X$70,7),\"\")","v":""},{"$f":"IFERROR(VLOOKUP($J51,'ENTREPRENEURSHIP CLIMBER REPORT'!$N$10:$X$70,8),\"\")","v":""},{"$f":"IFERROR(VLOOKUP($J51,'ENTREPRENEURSHIP CLIMBER REPORT'!$N$10:$X$70,9),\"\")","v":""},{"$f":"IFERROR(VLOOKUP($J51,'ENTREPRENEURSHIP CLIMBER REPORT'!$N$10:$X$70,10),\"\")","v":""},null,"",null,{"$f":"IFERROR(VLOOKUP($J51,'ENTREPRENEURSHIP CLIMBER REPORT'!$N$10:$X$70,6),\"\")","v":""},{"$f":"IFERROR(VLOOKUP($J51,'ENTREPRENEURSHIP CLIMBER REPORT'!$N$10:$X$70,7),\"\")","v":""},{"$f":"IFERROR(VLOOKUP($J51,'ENTREPRENEURSHIP CLIMBER REPORT'!$N$10:$X$70,8),\"\")","v":""},{"$f":"IFERROR(VLOOKUP($J51,'ENTREPRENEURSHIP CLIMBER REPORT'!$N$10:$X$70,9),\"\")","v":""},{"$f":"IFERROR(VLOOKUP($J51,'ENTREPRENEURSHIP CLIMBER REPORT'!$N$10:$X$70,10),\"\")","v":""}]
[null,null,{"$f":"IFERROR(VLOOKUP($J52,'ENTREPRENEURSHIP CLIMBER REPORT'!$N$10:$X$70,5),\"\")","v":""},{"$f":"IFERROR(VLOOKUP($J52,'ENTREPRENEURSHIP CLIMBER REPORT'!$N$10:$X$70,6),\"\")","v":""},{"$f":"IFERROR(VLOOKUP($J52,'ENTREPRENEURSHIP CLIMBER REPORT'!$N$10:$X$70,7),\"\")","v":""},{"$f":"IFERROR(VLOOKUP($J52,'ENTREPRENEURSHIP CLIMBER REPORT'!$N$10:$X$70,8),\"\")","v":""},{"$f":"IFERROR(VLOOKUP($J52,'ENTREPRENEURSHIP CLIMBER REPORT'!$N$10:$X$70,9),\"\")","v":""},{"$f":"IFERROR(VLOOKUP($J52,'ENTREPRENEURSHIP CLIMBER REPORT'!$N$10:$X$70,10),\"\")","v":""},null,"",null,{"$f":"IFERROR(VLOOKUP($J52,'ENTREPRENEURSHIP CLIMBER REPORT'!$N$10:$X$70,6),\"\")","v":""},{"$f":"IFERROR(VLOOKUP($J52,'ENTREPRENEURSHIP CLIMBER REPORT'!$N$10:$X$70,7),\"\")","v":""},{"$f":"IFERROR(VLOOKUP($J52,'ENTREPRENEURSHIP CLIMBER REPORT'!$N$10:$X$70,8),\"\")","v":""},{"$f":"IFERROR(VLOOKUP($J52,'ENTREPRENEURSHIP CLIMBER REPORT'!$N$10:$X$70,9),\"\")","v":""},{"$f":"IFERROR(VLOOKUP($J52,'ENTREPRENEURSHIP CLIMBER REPORT'!$N$10:$X$70,10),\"\")","v":""}]
[null,null,{"$f":"IFERROR(VLOOKUP($J53,'ENTREPRENEURSHIP CLIMBER REPORT'!$N$10:$X$70,5),\"\")","v":""},{"$f":"IFERROR(VLOOKUP($J53,'ENTREPRENEURSHIP CLIMBER REPORT'!$N$10:$X$70,6),\"\")","v":""},{"$f":"IFERROR(VLOOKUP($J53,'ENTREPRENEURSHIP CLIMBER REPORT'!$N$10:$X$70,7),\"\")","v":""},{"$f":"IFERROR(VLOOKUP($J53,'ENTREPRENEURSHIP CLIMBER REPORT'!$N$10:$X$70,8),\"\")","v":""},{"$f":"IFERROR(VLOOKUP($J53,'ENTREPRENEURSHIP CLIMBER REPORT'!$N$10:$X$70,9),\"\")","v":""},{"$f":"IFERROR(VLOOKUP($J53,'ENTREPRENEURSHIP CLIMBER REPORT'!$N$10:$X$70,10),\"\")","v":""},null,"",null,{"$f":"IFERROR(VLOOKUP($J53,'ENTREPRENEURSHIP CLIMBER REPORT'!$N$10:$X$70,6),\"\")","v":""},{"$f":"IFERROR(VLOOKUP($J53,'ENTREPRENEURSHIP CLIMBER REPORT'!$N$10:$X$70,7),\"\")","v":""},{"$f":"IFERROR(VLOOKUP($J53,'ENTREPRENEURSHIP CLIMBER REPORT'!$N$10:$X$70,8),\"\")","v":""},{"$f":"IFERROR(VLOOKUP($J53,'ENTREPRENEURSHIP CLIMBER REPORT'!$N$10:$X$70,9),\"\")","v":""},{"$f":"IFERROR(VLOOKUP($J53,'ENTREPRENEURSHIP CLIMBER REPORT'!$N$10:$X$70,10),\"\")","v":""}]
[null,"TEAM 1 AVE",{"$f":"IFERROR(AVERAGE(C48:C53),\"\")","v":""},"","","","","",null,"TEAM 1 AVE",{"$f":"IFERROR(AVERAGE(K48:K53),\"\")","v":""},"","","","",""]
[null,{"$f":"B42","v":"OBHR TRACK AVE"},{"$f":"K42","v":""},"","","","","",null,{"$f":"J42","v":"OBHR TRACK AVE"},{"$f":"K42","v":""},"","","","",""]
[]
[]
[null,"TEAM 5",null,null,null,null,null,null,null,"TEAM 5"]
[null,{"$f":"B46","v":"2016-04-12"},null,null,null,null,null,null,null,"CUMULATIVE"]
[null,"Team Lead Name","HRS WORKED","# JOB APPS","# INFO INTERVIEWS","# MOCK INTERVIEWS","# REAL INTERVIEWS","# OFFERS",null,{"$f":"B60","v":"Team Lead Name"},"HRS WORKED","# JOB APPS","# INFO INTERVIEWS","# MOCK INTERVIEWS","# REAL INTERVIEWS","# OFFERS"]
[null,null,{"$f":"IFERROR(VLOOKUP($J61,'ENTREPRENEURSHIP CLIMBER REPORT'!$N$10:$X$70,5),\"\")","v":""},{"$f":"IFERROR(VLOOKUP($J61,'ENTREPRENEURSHIP CLIMBER REPORT'!$N$10:$X$70,6),\"\")","v":""},{"$f":"IFERROR(VLOOKUP($J61,'ENTREPRENEURSHIP CLIMBER REPORT'!$N$10:$X$70,7),\"\")","v":""},{"$f":"IFERROR(VLOOKUP($J61,'ENTREPRENEURSHIP CLIMBER REPORT'!$N$10:$X$70,8),\"\")","v":""},{"$f":"IFERROR(VLOOKUP($J61,'ENTREPRENEURSHIP CLIMBER REPORT'!$N$10:$X$70,9),\"\")","v":""},{"$f":"IFERROR(VLOOKUP($J61,'ENTREPRENEURSHIP CLIMBER REPORT'!$N$10:$X$70,10),\"\")","v":""},null,{"$f":"IF(B61=\"\",\"\",B61)","v":""},null,{"$f":"IFERROR(VLOOKUP($J61,'ENTREPRENEURSHIP CLIMBER REPORT'!$N$10:$X$70,6),\"\")","v":""},{"$f":"IFERROR(VLOOKUP($J61,'ENTREPRENEURSHIP CLIMBER REPORT'!$N$10:$X$70,7),\"\")","v":""},{"$f":"IFERROR(VLOOKUP($J61,'ENTREPRENEURSHIP CLIMBER REPORT'!$N$10:$X$70,8),\"\")","v":""},{"$f":"IFERROR(VLOOKUP($J61,'ENTREPRENEURSHIP CLIMBER REPORT'!$N$10:$X$70,9),\"\")","v":""},{"$f":"IFERROR(VLOOKUP($J61,'ENTREPRENEURSHIP CLIMBER REPORT'!$N$10:$X$70,10),\"\")","v":""}]
[null,null,{"$f":"IFERROR(VLOOKUP($J62,'ENTREPRENEURSHIP CLIMBER REPORT'!$N$10:$X$70,5),\"\")","v":""},{"$f":"IFERROR(VLOOKUP($J62,'ENTREPRENEURSHIP CLIMBER REPORT'!$N$10:$X$70,6),\"\")","v":""},{"$f":"IFERROR(VLOOKUP($J62,'ENTREPRENEURSHIP CLIMBER REPORT'!$N$10:$X$70,7),\"\")","v":""},{"$f":"IFERROR(VLOOKUP($J62,'ENTREPRENEURSHIP CLIMBER REPORT'!$N$10:$X$70,8),\"\")","v":""},{"$f":"IFERROR(VLOOKUP($J62,'ENTREPRENEURSHIP CLIMBER REPORT'!$N$10:$X$70,9),\"\")","v":""},{"$f":"IFERROR(VLOOKUP($J62,'ENTREPRENEURSHIP CLIMBER REPORT'!$N$10:$X$70,10),\"\")","v":""},null,"",null,{"$f":"IFERROR(VLOOKUP($J62,'ENTREPRENEURSHIP CLIMBER REPORT'!$N$10:$X$70,6),\"\")","v":""},{"$f":"IFERROR(VLOOKUP($J62,'ENTREPRENEURSHIP CLIMBER REPORT'!$N$10:$X$70,7),\"\")","v":""},{"$f":"IFERROR(VLOOKUP($J62,'ENTREPRENEURSHIP CLIMBER REPORT'!$N$10:$X$70,8),\"\")","v":""},{"$f":"IFERROR(VLOOKUP($J62,'ENTREPRENEURSHIP CLIMBER REPORT'!$N$10:$X$70,9),\"\")","v":""},{"$f":"IFERROR(VLOOKUP($J62,'ENTREPRENEURSHIP CLIMBER REPORT'!$N$10:$X$70,10),\"\")","v":""}]
[null,null,{"$f":"IFERROR(VLOOKUP($J63,'ENTREPRENEURSHIP CLIMBER REPORT'!$N$10:$X$70,5),\"\")","v":""},{"$f":"IFERROR(VLOOKUP($J63,'ENTREPRENEURSHIP CLIMBER REPORT'!$N$10:$X$70,6),\"\")","v":""},{"$f":"IFERROR(VLOOKUP($J63,'ENTREPRENEURSHIP CLIMBER REPORT'!$N$10:$X$70,7),\"\")","v":""},{"$f":"IFERROR(VLOOKUP($J63,'ENTREPRENEURSHIP CLIMBER REPORT'!$N$10:$X$70,8),\"\")","v":""},{"$f":"IFERROR(VLOOKUP($J63,'ENTREPRENEURSHIP CLIMBER REPORT'!$N$10:$X$70,9),\"\")","v":""},{"$f":"IFERROR(VLOOKUP($J63,'ENTREPRENEURSHIP CLIMBER REPORT'!$N$10:$X$70,10),\"\")","v":""},null,"",null,{"$f":"IFERROR(VLOOKUP($J63,'ENTREPRENEURSHIP CLIMBER REPORT'!$N$10:$X$70,6),\"\")","v":""},{"$f":"IFERROR(VLOOKUP($J63,'ENTREPRENEURSHIP CLIMBER REPORT'!$N$10:$X$70,7),\"\")","v":""},{"$f":"IFERROR(VLOOKUP($J63,'ENTREPRENEURSHIP CLIMBER REPORT'!$N$10:$X$70,8),\"\")","v":""},{"$f":"IFERROR(VLOOKUP($J63,'ENTREPRENEURSHIP CLIMBER REPORT'!$N$10:$X$70,9),\"\")","v":""},{"$f":"IFERROR(VLOOKUP($J63,'ENTREPRENEURSHIP CLIMBER REPORT'!$N$10:$X$70,10),\"\")","v":""}]
[null,null,{"$f":"IFERROR(VLOOKUP($J64,'ENTREPRENEURSHIP CLIMBER REPORT'!$N$10:$X$70,5),\"\")","v":""},{"$f":"IFERROR(VLOOKUP($J64,'ENTREPRENEURSHIP CLIMBER REPORT'!$N$10:$X$70,6),\"\")","v":""},{"$f":"IFERROR(VLOOKUP($J64,'ENTREPRENEURSHIP CLIMBER REPORT'!$N$10:$X$70,7),\"\")","v":""},{"$f":"IFERROR(VLOOKUP($J64,'ENTREPRENEURSHIP CLIMBER REPORT'!$N$10:$X$70,8),\"\")","v":""},{"$f":"IFERROR(VLOOKUP($J64,'ENTREPRENEURSHIP CLIMBER REPORT'!$N$10:$X$70,9),\"\")","v":""},{"$f":"IFERROR(VLOOKUP($J64,'ENTREPRENEURSHIP CLIMBER REPORT'!$N$10:$X$70,10),\"\")","v":""},null,"",null,{"$f":"IFERROR(VLOOKUP($J64,'ENTREPRENEURSHIP CLIMBER REPORT'!$N$10:$X$70,6),\"\")","v":""},{"$f":"IFERROR(VLOOKUP($J64,'ENTREPRENEURSHIP CLIMBER REPORT'!$N$10:$X$70,7),\"\")","v":""},{"$f":"IFERROR(VLOOKUP($J64,'ENTREPRENEURSHIP CLIMBER REPORT'!$N$10:$X$70,8),\"\")","v":""},{"$f":"IFERROR(VLOOKUP($J64,'ENTREPRENEURSHIP CLIMBER REPORT'!$N$10:$X$70,9),\"\")","v":""},{"$f":"IFERROR(VLOOKUP($J64,'ENTREPRENEURSHIP CLIMBER REPORT'!$N$10:$X$70,10),\"\")","v":""}]
[null,null,{"$f":"IFERROR(VLOOKUP($J65,'ENTREPRENEURSHIP CLIMBER REPORT'!$N$10:$X$70,5),\"\")","v":""},{"$f":"IFERROR(VLOOKUP($J65,'ENTREPRENEURSHIP CLIMBER REPORT'!$N$10:$X$70,6),\"\")","v":""},{"$f":"IFERROR(VLOOKUP($J65,'ENTREPRENEURSHIP CLIMBER REPORT'!$N$10:$X$70,7),\"\")","v":""},{"$f":"IFERROR(VLOOKUP($J65,'ENTREPRENEURSHIP CLIMBER REPORT'!$N$10:$X$70,8),\"\")","v":""},{"$f":"IFERROR(VLOOKUP($J65,'ENTREPRENEURSHIP CLIMBER REPORT'!$N$10:$X$70,9),\"\")","v":""},{"$f":"IFERROR(VLOOKUP($J65,'ENTREPRENEURSHIP CLIMBER REPORT'!$N$10:$X$70,10),\"\")","v":""},null,"",null,{"$f":"IFERROR(VLOOKUP($J65,'ENTREPRENEURSHIP CLIMBER REPORT'!$N$10:$X$70,6),\"\")","v":""},{"$f":"IFERROR(VLOOKUP($J65,'ENTREPRENEURSHIP CLIMBER REPORT'!$N$10:$X$70,7),\"\")","v":""},{"$f":"IFERROR(VLOOKUP($J65,'ENTREPRENEURSHIP CLIMBER REPORT'!$N$10:$X$70,8),\"\")","v":""},{"$f":"IFERROR(VLOOKUP($J65,'ENTREPRENEURSHIP CLIMBER REPORT'!$N$10:$X$70,9),\"\")","v":""},{"$f":"IFERROR(VLOOKUP($J65,'ENTREPRENEURSHIP CLIMBER REPORT'!$N$10:$X$70,10),\"\")","v":""}]
[null,null,{"$f":"IFERROR(VLOOKUP($J66,'ENTREPRENEURSHIP CLIMBER REPORT'!$N$10:$X$70,5),\"\")","v":""},{"$f":"IFERROR(VLOOKUP($J66,'ENTREPRENEURSHIP CLIMBER REPORT'!$N$10:$X$70,6),\"\")","v":""},{"$f":"IFERROR(VLOOKUP($J66,'ENTREPRENEURSHIP CLIMBER REPORT'!$N$10:$X$70,7),\"\")","v":""},{"$f":"IFERROR(VLOOKUP($J66,'ENTREPRENEURSHIP CLIMBER REPORT'!$N$10:$X$70,8),\"\")","v":""},{"$f":"IFERROR(VLOOKUP($J66,'ENTREPRENEURSHIP CLIMBER REPORT'!$N$10:$X$70,9),\"\")","v":""},{"$f":"IFERROR(VLOOKUP($J66,'ENTREPRENEURSHIP CLIMBER REPORT'!$N$10:$X$70,10),\"\")","v":""},null,"",null,{"$f":"IFERROR(VLOOKUP($J66,'ENTREPRENEURSHIP CLIMBER REPORT'!$N$10:$X$70,6),\"\")","v":""},{"$f":"IFERROR(VLOOKUP($J66,'ENTREPRENEURSHIP CLIMBER REPORT'!$N$10:$X$70,7),\"\")","v":""},{"$f":"IFERROR(VLOOKUP($J66,'ENTREPRENEURSHIP CLIMBER REPORT'!$N$10:$X$70,8),\"\")","v":""},{"$f":"IFERROR(VLOOKUP($J66,'ENTREPRENEURSHIP CLIMBER REPORT'!$N$10:$X$70,9),\"\")","v":""},{"$f":"IFERROR(VLOOKUP($J66,'ENTREPRENEURSHIP CLIMBER REPORT'!$N$10:$X$70,10),\"\")","v":""}]
[null,"TEAM 1 AVE",{"$f":"IFERROR(AVERAGE(C61:C66),\"\")","v":""},"","","","","",null,"TEAM 1 AVE",{"$f":"IFERROR(AVERAGE(K61:K66),\"\")","v":""},"","","","",""]
[null,{"$f":"B55","v":"OBHR TRACK AVE"},"","","","","","",null,{"$f":"J55","v":"OBHR TRACK AVE"},"","","","","",""]
[]
[]
[null,"TEAM 6",null,null,null,null,null,null,null,"TEAM 6"]
[null,{"$f":"B59","v":"2016-04-12"},null,null,null,null,null,null,null,"CUMULATIVE"]
[null,"Team Lead Name","HRS WORKED","# JOB APPS","# INFO INTERVIEWS","# MOCK INTERVIEWS","# REAL INTERVIEWS","# OFFERS",null,{"$f":"B73","v":"Team Lead Name"},"HRS WORKED","# JOB APPS","# INFO INTERVIEWS","# MOCK INTERVIEWS","# REAL INTERVIEWS","# OFFERS"]
[null,null,{"$f":"IFERROR(VLOOKUP($J74,'ENTREPRENEURSHIP CLIMBER REPORT'!$N$10:$X$70,5),\"\")","v":""},{"$f":"IFERROR(VLOOKUP($J74,'ENTREPRENEURSHIP CLIMBER REPORT'!$N$10:$X$70,6),\"\")","v":""},{"$f":"IFERROR(VLOOKUP($J74,'ENTREPRENEURSHIP CLIMBER REPORT'!$N$10:$X$70,7),\"\")","v":""},{"$f":"IFERROR(VLOOKUP($J74,'ENTREPRENEURSHIP CLIMBER REPORT'!$N$10:$X$70,8),\"\")","v":""},{"$f":"IFERROR(VLOOKUP($J74,'ENTREPRENEURSHIP CLIMBER REPORT'!$N$10:$X$70,9),\"\")","v":""},{"$f":"IFERROR(VLOOKUP($J74,'ENTREPRENEURSHIP CLIMBER REPORT'!$N$10:$X$70,10),\"\")","v":""},null,{"$f":"IF(B74=\"\",\"\",B74)","v":""},null,{"$f":"IFERROR(VLOOKUP($J74,'ENTREPRENEURSHIP CLIMBER REPORT'!$N$10:$X$70,6),\"\")","v":""},{"$f":"IFERROR(VLOOKUP($J74,'ENTREPRENEURSHIP CLIMBER REPORT'!$N$10:$X$70,7),\"\")","v":""},{"$f":"IFERROR(VLOOKUP($J74,'ENTREPRENEURSHIP CLIMBER REPORT'!$N$10:$X$70,8),\"\")","v":""},{"$f":"IFERROR(VLOOKUP($J74,'ENTREPRENEURSHIP CLIMBER REPORT'!$N$10:$X$70,9),\"\")","v":""},{"$f":"IFERROR(VLOOKUP($J74,'ENTREPRENEURSHIP CLIMBER REPORT'!$N$10:$X$70,10),\"\")","v":""}]
[null,null,{"$f":"IFERROR(VLOOKUP($J75,'ENTREPRENEURSHIP CLIMBER REPORT'!$N$10:$X$70,5),\"\")","v":""},{"$f":"IFERROR(VLOOKUP($J75,'ENTREPRENEURSHIP CLIMBER REPORT'!$N$10:$X$70,6),\"\")","v":""},{"$f":"IFERROR(VLOOKUP($J75,'ENTREPRENEURSHIP CLIMBER REPORT'!$N$10:$X$70,7),\"\")","v":""},{"$f":"IFERROR(VLOOKUP($J75,'ENTREPRENEURSHIP CLIMBER REPORT'!$N$10:$X$70,8),\"\")","v":""},{"$f":"IFERROR(VLOOKUP($J75,'ENTREPRENEURSHIP CLIMBER REPORT'!$N$10:$X$70,9),\"\")","v":""},{"$f":"IFERROR(VLOOKUP($J75,'ENTREPRENEURSHIP CLIMBER REPORT'!$N$10:$X$70,10),\"\")","v":""},null,"",null,{"$f":"IFERROR(VLOOKUP($J75,'ENTREPRENEURSHIP CLIMBER REPORT'!$N$10:$X$70,6),\"\")","v":""},{"$f":"IFERROR(VLOOKUP($J75,'ENTREPRENEURSHIP CLIMBER REPORT'!$N$10:$X$70,7),\"\")","v":""},{"$f":"IFERROR(VLOOKUP($J75,'ENTREPRENEURSHIP CLIMBER REPORT'!$N$10:$X$70,8),\"\")","v":""},{"$f":"IFERROR(VLOOKUP($J75,'ENTREPRENEURSHIP CLIMBER REPORT'!$N$10:$X$70,9),\"\")","v":""},{"$f":"IFERROR(VLOOKUP($J75,'ENTREPRENEURSHIP CLIMBER REPORT'!$N$10:$X$70,10),\"\")","v":""}]
[null,null,{"$f":"IFERROR(VLOOKUP($J76,'ENTREPRENEURSHIP CLIMBER REPORT'!$N$10:$X$70,5),\"\")","v":""},{"$f":"IFERROR(VLOOKUP($J76,'ENTREPRENEURSHIP CLIMBER REPORT'!$N$10:$X$70,6),\"\")","v":""},{"$f":"IFERROR(VLOOKUP($J76,'ENTREPRENEURSHIP CLIMBER REPORT'!$N$10:$X$70,7),\"\")","v":""},{"$f":"IFERROR(VLOOKUP($J76,'ENTREPRENEURSHIP CLIMBER REPORT'!$N$10:$X$70,8),\"\")","v":""},{"$f":"IFERROR(VLOOKUP($J76,'ENTREPRENEURSHIP CLIMBER REPORT'!$N$10:$X$70,9),\"\")","v":""},{"$f":"IFERROR(VLOOKUP($J76,'ENTREPRENEURSHIP CLIMBER REPORT'!$N$10:$X$70,10),\"\")","v":""},null,"",null,{"$f":"IFERROR(VLOOKUP($J76,'ENTREPRENEURSHIP CLIMBER REPORT'!$N$10:$X$70,6),\"\")","v":""},{"$f":"IFERROR(VLOOKUP($J76,'ENTREPRENEURSHIP CLIMBER REPORT'!$N$10:$X$70,7),\"\")","v":""},{"$f":"IFERROR(VLOOKUP($J76,'ENTREPRENEURSHIP CLIMBER REPORT'!$N$10:$X$70,8),\"\")","v":""},{"$f":"IFERROR(VLOOKUP($J76,'ENTREPRENEURSHIP CLIMBER REPORT'!$N$10:$X$70,9),\"\")","v":""},{"$f":"IFERROR(VLOOKUP($J76,'ENTREPRENEURSHIP CLIMBER REPORT'!$N$10:$X$70,10),\"\")","v":""}]
[null,null,{"$f":"IFERROR(VLOOKUP($J77,'ENTREPRENEURSHIP CLIMBER REPORT'!$N$10:$X$70,5),\"\")","v":""},{"$f":"IFERROR(VLOOKUP($J77,'ENTREPRENEURSHIP CLIMBER REPORT'!$N$10:$X$70,6),\"\")","v":""},{"$f":"IFERROR(VLOOKUP($J77,'ENTREPRENEURSHIP CLIMBER REPORT'!$N$10:$X$70,7),\"\")","v":""},{"$f":"IFERROR(VLOOKUP($J77,'ENTREPRENEURSHIP CLIMBER REPORT'!$N$10:$X$70,8),\"\")","v":""},{"$f":"IFERROR(VLOOKUP($J77,'ENTREPRENEURSHIP CLIMBER REPORT'!$N$10:$X$70,9),\"\")","v":""},{"$f":"IFERROR(VLOOKUP($J77,'ENTREPRENEURSHIP CLIMBER REPORT'!$N$10:$X$70,10),\"\")","v":""},null,"",null,{"$f":"IFERROR(VLOOKUP($J77,'ENTREPRENEURSHIP CLIMBER REPORT'!$N$10:$X$70,6),\"\")","v":""},{"$f":"IFERROR(VLOOKUP($J77,'ENTREPRENEURSHIP CLIMBER REPORT'!$N$10:$X$70,7),\"\")","v":""},{"$f":"IFERROR(VLOOKUP($J77,'ENTREPRENEURSHIP CLIMBER REPORT'!$N$10:$X$70,8),\"\")","v":""},{"$f":"IFERROR(VLOOKUP($J77,'ENTREPRENEURSHIP CLIMBER REPORT'!$N$10:$X$70,9),\"\")","v":""},{"$f":"IFERROR(VLOOKUP($J77,'ENTREPRENEURSHIP CLIMBER REPORT'!$N$10:$X$70,10),\"\")","v":""}]
[null,null,{"$f":"IFERROR(VLOOKUP($J78,'ENTREPRENEURSHIP CLIMBER REPORT'!$N$10:$X$70,5),\"\")","v":""},{"$f":"IFERROR(VLOOKUP($J78,'ENTREPRENEURSHIP CLIMBER REPORT'!$N$10:$X$70,6),\"\")","v":""},{"$f":"IFERROR(VLOOKUP($J78,'ENTREPRENEURSHIP CLIMBER REPORT'!$N$10:$X$70,7),\"\")","v":""},{"$f":"IFERROR(VLOOKUP($J78,'ENTREPRENEURSHIP CLIMBER REPORT'!$N$10:$X$70,8),\"\")","v":""},{"$f":"IFERROR(VLOOKUP($J78,'ENTREPRENEURSHIP CLIMBER REPORT'!$N$10:$X$70,9),\"\")","v":""},{"$f":"IFERROR(VLOOKUP($J78,'ENTREPRENEURSHIP CLIMBER REPORT'!$N$10:$X$70,10),\"\")","v":""},null,"",null,{"$f":"IFERROR(VLOOKUP($J78,'ENTREPRENEURSHIP CLIMBER REPORT'!$N$10:$X$70,6),\"\")","v":""},{"$f":"IFERROR(VLOOKUP($J78,'ENTREPRENEURSHIP CLIMBER REPORT'!$N$10:$X$70,7),\"\")","v":""},{"$f":"IFERROR(VLOOKUP($J78,'ENTREPRENEURSHIP CLIMBER REPORT'!$N$10:$X$70,8),\"\")","v":""},{"$f":"IFERROR(VLOOKUP($J78,'ENTREPRENEURSHIP CLIMBER REPORT'!$N$10:$X$70,9),\"\")","v":""},{"$f":"IFERROR(VLOOKUP($J78,'ENTREPRENEURSHIP CLIMBER REPORT'!$N$10:$X$70,10),\"\")","v":""}]
[null,null,{"$f":"IFERROR(VLOOKUP($J79,'ENTREPRENEURSHIP CLIMBER REPORT'!$N$10:$X$70,5),\"\")","v":""},{"$f":"IFERROR(VLOOKUP($J79,'ENTREPRENEURSHIP CLIMBER REPORT'!$N$10:$X$70,6),\"\")","v":""},{"$f":"IFERROR(VLOOKUP($J79,'ENTREPRENEURSHIP CLIMBER REPORT'!$N$10:$X$70,7),\"\")","v":""},{"$f":"IFERROR(VLOOKUP($J79,'ENTREPRENEURSHIP CLIMBER REPORT'!$N$10:$X$70,8),\"\")","v":""},{"$f":"IFERROR(VLOOKUP($J79,'ENTREPRENEURSHIP CLIMBER REPORT'!$N$10:$X$70,9),\"\")","v":""},{"$f":"IFERROR(VLOOKUP($J79,'ENTREPRENEURSHIP CLIMBER REPORT'!$N$10:$X$70,10),\"\")","v":""},null,"",null,{"$f":"IFERROR(VLOOKUP($J79,'ENTREPRENEURSHIP CLIMBER REPORT'!$N$10:$X$70,6),\"\")","v":""},{"$f":"IFERROR(VLOOKUP($J79,'ENTREPRENEURSHIP CLIMBER REPORT'!$N$10:$X$70,7),\"\")","v":""},{"$f":"IFERROR(VLOOKUP($J79,'ENTREPRENEURSHIP CLIMBER REPORT'!$N$10:$X$70,8),\"\")","v":""},{"$f":"IFERROR(VLOOKUP($J79,'ENTREPRENEURSHIP CLIMBER REPORT'!$N$10:$X$70,9),\"\")","v":""},{"$f":"IFERROR(VLOOKUP($J79,'ENTREPRENEURSHIP CLIMBER REPORT'!$N$10:$X$70,10),\"\")","v":""}]
[null,"TEAM 1 AVE",{"$f":"IFERROR(AVERAGE(C74:C79),\"\")","v":""},"","","","","",null,"TEAM 1 AVE",{"$f":"IFERROR(AVERAGE(K74:K79),\"\")","v":""},"","","","",""]
[null,{"$f":"B68","v":"OBHR TRACK AVE"},{"$f":"C68","v":""},"","","","","",null,{"$f":"J68","v":"OBHR TRACK AVE"},{"$f":"K68","v":""},"","","","",""]
[]
[]
[null,"TEAM 7 ",null,null,null,null,null,null,null,"TEAM 7 "]
[null,{"$f":"B72","v":"2016-04-12"},null,null,null,null,null,null,null,"CUMULATIVE"]
[null,"Team Lead Name","HRS WORKED","# JOB APPS","# INFO INTERVIEWS","# MOCK INTERVIEWS","# REAL INTERVIEWS","# OFFERS",null,{"$f":"B86","v":"Team Lead Name"},"HRS WORKED","# JOB APPS","# INFO INTERVIEWS","# MOCK INTERVIEWS","# REAL INTERVIEWS","# OFFERS"]
[null,null,{"$f":"IFERROR(VLOOKUP($J87,'ENTREPRENEURSHIP CLIMBER REPORT'!$N$10:$X$70,5),\"\")","v":""},{"$f":"IFERROR(VLOOKUP($J87,'ENTREPRENEURSHIP CLIMBER REPORT'!$N$10:$X$70,6),\"\")","v":""},{"$f":"IFERROR(VLOOKUP($J87,'ENTREPRENEURSHIP CLIMBER REPORT'!$N$10:$X$70,7),\"\")","v":""},{"$f":"IFERROR(VLOOKUP($J87,'ENTREPRENEURSHIP CLIMBER REPORT'!$N$10:$X$70,8),\"\")","v":""},{"$f":"IFERROR(VLOOKUP($J87,'ENTREPRENEURSHIP CLIMBER REPORT'!$N$10:$X$70,9),\"\")","v":""},{"$f":"IFERROR(VLOOKUP($J87,'ENTREPRENEURSHIP CLIMBER REPORT'!$N$10:$X$70,10),\"\")","v":""},null,{"$f":"IF(B87=\"\",\"\",B87)","v":""},null,{"$f":"IFERROR(VLOOKUP($J87,'ENTREPRENEURSHIP CLIMBER REPORT'!$N$10:$X$70,6),\"\")","v":""},{"$f":"IFERROR(VLOOKUP($J87,'ENTREPRENEURSHIP CLIMBER REPORT'!$N$10:$X$70,7),\"\")","v":""},{"$f":"IFERROR(VLOOKUP($J87,'ENTREPRENEURSHIP CLIMBER REPORT'!$N$10:$X$70,8),\"\")","v":""},{"$f":"IFERROR(VLOOKUP($J87,'ENTREPRENEURSHIP CLIMBER REPORT'!$N$10:$X$70,9),\"\")","v":""},{"$f":"IFERROR(VLOOKUP($J87,'ENTREPRENEURSHIP CLIMBER REPORT'!$N$10:$X$70,10),\"\")","v":""}]
[null,null,{"$f":"IFERROR(VLOOKUP($J88,'ENTREPRENEURSHIP CLIMBER REPORT'!$N$10:$X$70,5),\"\")","v":""},{"$f":"IFERROR(VLOOKUP($J88,'ENTREPRENEURSHIP CLIMBER REPORT'!$N$10:$X$70,6),\"\")","v":""},{"$f":"IFERROR(VLOOKUP($J88,'ENTREPRENEURSHIP CLIMBER REPORT'!$N$10:$X$70,7),\"\")","v":""},{"$f":"IFERROR(VLOOKUP($J88,'ENTREPRENEURSHIP CLIMBER REPORT'!$N$10:$X$70,8),\"\")","v":""},{"$f":"IFERROR(VLOOKUP($J88,'ENTREPRENEURSHIP CLIMBER REPORT'!$N$10:$X$70,9),\"\")","v":""},{"$f":"IFERROR(VLOOKUP($J88,'ENTREPRENEURSHIP CLIMBER REPORT'!$N$10:$X$70,10),\"\")","v":""},null,"",null,{"$f":"IFERROR(VLOOKUP($J88,'ENTREPRENEURSHIP CLIMBER REPORT'!$N$10:$X$70,6),\"\")","v":""},{"$f":"IFERROR(VLOOKUP($J88,'ENTREPRENEURSHIP CLIMBER REPORT'!$N$10:$X$70,7),\"\")","v":""},{"$f":"IFERROR(VLOOKUP($J88,'ENTREPRENEURSHIP CLIMBER REPORT'!$N$10:$X$70,8),\"\")","v":""},{"$f":"IFERROR(VLOOKUP($J88,'ENTREPRENEURSHIP CLIMBER REPORT'!$N$10:$X$70,9),\"\")","v":""},{"$f":"IFERROR(VLOOKUP($J88,'ENTREPRENEURSHIP CLIMBER REPORT'!$N$10:$X$70,10),\"\")","v":""}]
[null,null,{"$f":"IFERROR(VLOOKUP($J89,'ENTREPRENEURSHIP CLIMBER REPORT'!$N$10:$X$70,5),\"\")","v":""},{"$f":"IFERROR(VLOOKUP($J89,'ENTREPRENEURSHIP CLIMBER REPORT'!$N$10:$X$70,6),\"\")","v":""},{"$f":"IFERROR(VLOOKUP($J89,'ENTREPRENEURSHIP CLIMBER REPORT'!$N$10:$X$70,7),\"\")","v":""},{"$f":"IFERROR(VLOOKUP($J89,'ENTREPRENEURSHIP CLIMBER REPORT'!$N$10:$X$70,8),\"\")","v":""},{"$f":"IFERROR(VLOOKUP($J89,'ENTREPRENEURSHIP CLIMBER REPORT'!$N$10:$X$70,9),\"\")","v":""},{"$f":"IFERROR(VLOOKUP($J89,'ENTREPRENEURSHIP CLIMBER REPORT'!$N$10:$X$70,10),\"\")","v":""},null,"",null,{"$f":"IFERROR(VLOOKUP($J89,'ENTREPRENEURSHIP CLIMBER REPORT'!$N$10:$X$70,6),\"\")","v":""},{"$f":"IFERROR(VLOOKUP($J89,'ENTREPRENEURSHIP CLIMBER REPORT'!$N$10:$X$70,7),\"\")","v":""},{"$f":"IFERROR(VLOOKUP($J89,'ENTREPRENEURSHIP CLIMBER REPORT'!$N$10:$X$70,8),\"\")","v":""},{"$f":"IFERROR(VLOOKUP($J89,'ENTREPRENEURSHIP CLIMBER REPORT'!$N$10:$X$70,9),\"\")","v":""},{"$f":"IFERROR(VLOOKUP($J89,'ENTREPRENEURSHIP CLIMBER REPORT'!$N$10:$X$70,10),\"\")","v":""}]
[null,null,{"$f":"IFERROR(VLOOKUP($J90,'ENTREPRENEURSHIP CLIMBER REPORT'!$N$10:$X$70,5),\"\")","v":""},{"$f":"IFERROR(VLOOKUP($J90,'ENTREPRENEURSHIP CLIMBER REPORT'!$N$10:$X$70,6),\"\")","v":""},{"$f":"IFERROR(VLOOKUP($J90,'ENTREPRENEURSHIP CLIMBER REPORT'!$N$10:$X$70,7),\"\")","v":""},{"$f":"IFERROR(VLOOKUP($J90,'ENTREPRENEURSHIP CLIMBER REPORT'!$N$10:$X$70,8),\"\")","v":""},{"$f":"IFERROR(VLOOKUP($J90,'ENTREPRENEURSHIP CLIMBER REPORT'!$N$10:$X$70,9),\"\")","v":""},{"$f":"IFERROR(VLOOKUP($J90,'ENTREPRENEURSHIP CLIMBER REPORT'!$N$10:$X$70,10),\"\")","v":""},null,"",null,{"$f":"IFERROR(VLOOKUP($J90,'ENTREPRENEURSHIP CLIMBER REPORT'!$N$10:$X$70,6),\"\")","v":""},{"$f":"IFERROR(VLOOKUP($J90,'ENTREPRENEURSHIP CLIMBER REPORT'!$N$10:$X$70,7),\"\")","v":""},{"$f":"IFERROR(VLOOKUP($J90,'ENTREPRENEURSHIP CLIMBER REPORT'!$N$10:$X$70,8),\"\")","v":""},{"$f":"IFERROR(VLOOKUP($J90,'ENTREPRENEURSHIP CLIMBER REPORT'!$N$10:$X$70,9),\"\")","v":""},{"$f":"IFERROR(VLOOKUP($J90,'ENTREPRENEURSHIP CLIMBER REPORT'!$N$10:$X$70,10),\"\")","v":""}]
[null,null,{"$f":"IFERROR(VLOOKUP($J91,'ENTREPRENEURSHIP CLIMBER REPORT'!$N$10:$X$70,5),\"\")","v":""},{"$f":"IFERROR(VLOOKUP($J91,'ENTREPRENEURSHIP CLIMBER REPORT'!$N$10:$X$70,6),\"\")","v":""},{"$f":"IFERROR(VLOOKUP($J91,'ENTREPRENEURSHIP CLIMBER REPORT'!$N$10:$X$70,7),\"\")","v":""},{"$f":"IFERROR(VLOOKUP($J91,'ENTREPRENEURSHIP CLIMBER REPORT'!$N$10:$X$70,8),\"\")","v":""},{"$f":"IFERROR(VLOOKUP($J91,'ENTREPRENEURSHIP CLIMBER REPORT'!$N$10:$X$70,9),\"\")","v":""},{"$f":"IFERROR(VLOOKUP($J91,'ENTREPRENEURSHIP CLIMBER REPORT'!$N$10:$X$70,10),\"\")","v":""},null,"",null,{"$f":"IFERROR(VLOOKUP($J91,'ENTREPRENEURSHIP CLIMBER REPORT'!$N$10:$X$70,6),\"\")","v":""},{"$f":"IFERROR(VLOOKUP($J91,'ENTREPRENEURSHIP CLIMBER REPORT'!$N$10:$X$70,7),\"\")","v":""},{"$f":"IFERROR(VLOOKUP($J91,'ENTREPRENEURSHIP CLIMBER REPORT'!$N$10:$X$70,8),\"\")","v":""},{"$f":"IFERROR(VLOOKUP($J91,'ENTREPRENEURSHIP CLIMBER REPORT'!$N$10:$X$70,9),\"\")","v":""},{"$f":"IFERROR(VLOOKUP($J91,'ENTREPRENEURSHIP CLIMBER REPORT'!$N$10:$X$70,10),\"\")","v":""}]
[null,null,{"$f":"IFERROR(VLOOKUP($J92,'ENTREPRENEURSHIP CLIMBER REPORT'!$N$10:$X$70,5),\"\")","v":""},{"$f":"IFERROR(VLOOKUP($J92,'ENTREPRENEURSHIP CLIMBER REPORT'!$N$10:$X$70,6),\"\")","v":""},{"$f":"IFERROR(VLOOKUP($J92,'ENTREPRENEURSHIP CLIMBER REPORT'!$N$10:$X$70,7),\"\")","v":""},{"$f":"IFERROR(VLOOKUP($J92,'ENTREPRENEURSHIP CLIMBER REPORT'!$N$10:$X$70,8),\"\")","v":""},{"$f":"IFERROR(VLOOKUP($J92,'ENTREPRENEURSHIP CLIMBER REPORT'!$N$10:$X$70,9),\"\")","v":""},{"$f":"IFERROR(VLOOKUP($J92,'ENTREPRENEURSHIP CLIMBER REPORT'!$N$10:$X$70,10),\"\")","v":""},null,"",null,{"$f":"IFERROR(VLOOKUP($J92,'ENTREPRENEURSHIP CLIMBER REPORT'!$N$10:$X$70,6),\"\")","v":""},{"$f":"IFERROR(VLOOKUP($J92,'ENTREPRENEURSHIP CLIMBER REPORT'!$N$10:$X$70,7),\"\")","v":""},{"$f":"IFERROR(VLOOKUP($J92,'ENTREPRENEURSHIP CLIMBER REPORT'!$N$10:$X$70,8),\"\")","v":""},{"$f":"IFERROR(VLOOKUP($J92,'ENTREPRENEURSHIP CLIMBER REPORT'!$N$10:$X$70,9),\"\")","v":""},{"$f":"IFERROR(VLOOKUP($J92,'ENTREPRENEURSHIP CLIMBER REPORT'!$N$10:$X$70,10),\"\")","v":""}]
[null,"TEAM 1 AVE",{"$f":"IFERROR(AVERAGE(C87:C92),\"\")","v":""},"","","","","",null,"TEAM 1 AVE",{"$f":"IFERROR(AVERAGE(K87:K92),\"\")","v":""},"","","","",""]
[null,{"$f":"B81","v":"OBHR TRACK AVE"},{"$f":"C81","v":""},"","","","","",null,{"$f":"J81","v":"OBHR TRACK AVE"},{"$f":"K81","v":""},"","","","",""]

{"sheet":"ENTREPRENEURSHIP CLIMBER REPORT","index":13,"n_rows":85,"n_cols":24,"rows_kept":85,"cut":false,"hidden":false,"merged":[]}
[]
[]
[null,"NOTES:","NEED THIS FOR EACH TRACK - COULD BE A SEPARATE TAB IN THE MASTER WORKBOOK"]
[null,"GRADE:","GREEN, YELLOW, RED"]
[]
[]
[null,"ENTREPRENEURSHIP TRACK",null,null,null,null,null,null,null,null,null,null,null,{"$f":"B7","v":"ENTREPRENEURSHIP TRACK"}]
[null,"WEEK X",null,null,null,null,null,null,null,null,null,null,null,"CUMULATIVE"]
[null,"Climbers","TEAM #","TEAM LEAD","INT'L","HRS WORKED","# JOB APPS","# INFO INTERVIEWS","# MOCK INTERVIEWS","# REAL INTERVIEWS","# OFFERS","GRADE",null,null,"TEAM #","TEAM LEAD","INT'L","HRS WORKED","# JOB APPS","# INFO INTERVIEWS","# MOCK INTERVIEWS","# REAL INTERVIEWS","# OFFERS","GRADE"]
[]
[]
[]
[]
[]
[]
[]
[]
[]
[]
[]
[]
[]
[]
[]
[]
[]
[]
[]
[]
[]
[]
[]
[]
[]
[]
[]
[]
[]
[]
[]
[]
[]
[]
[]
[]
[]
[]
[]
[]
[]
[]
[]
[]
[]
[]
[]
[]
[]
[]
[]
[]
[]
[]
[]
[]
[]
[]
[]
[]
[]
[null,"TRACK AVE",null,null,null,{"$f":"IFERROR(AVERAGE(F10:F70),\"\")","v":""},{"$f":"IFERROR(AVERAGE(G10:G70),\"\")","v":""},"","","","","",null,"TRACK AVE",null,null,null,{"$f":"IFERROR(AVERAGE(R10:R70),\"\")","v":""},"","","","","",""]
[]
[]
[]
[null,"TRACK SUMMARY",null,null,null,null,null,null,null,null,null,null,null,"TRACK SUMMARY"]
[null,"WEEK X",null,null,null,null,null,null,null,null,null,null,null,"CUMULATIVE"]
[null,null,"TEAM #","TEAM LEAD","# INT'L","HRS WORKED","# JOB APPS","# INFO INTERVIEWS","# MOCK INTERVIEWS","# REAL INTERVIEWS","# OFFERS","GRADE",null,null,"TEAM #","TEAM LEAD","# INT'L","HRS WORKED","# JOB APPS","# INFO INTERVIEWS","# MOCK INTERVIEWS","# REAL INTERVIEWS","# OFFERS","GRADE"]
[null,"TEAM 1",null,null,null,null,null,null,null,null,null,null,null,"TEAM 1"]
[null,"TEAM 2",null,null,null,null,null,null,null,null,null,null,null,"TEAM 2"]
[null,"TEAM 3",null,null,null,null,null,null,null,null,null,null,null,"TEAM 3"]
[null,"TEAM 4",null,null,null,null,null,null,null,null,null,null,null,"TEAM 4"]
[null,"TEAM 5",null,null,null,null,null,null,null,null,null,null,null,"TEAM 5"]
[null,"TEAM 6",null,null,null,null,null,null,null,null,null,null,null,"TEAM 6"]
[null,"TEAM 7",null,null,null,null,null,null,null,null,null,null,null,"TEAM 7"]
[null,"TRACK AVE",null,null,null,{"$f":"F71","v":""},"","","","","",null,null,"TRACK AVE",null,null,null,{"$f":"R71","v":""},"","","","",""]

{"sheet":"COMMENTS TRACKER","index":14,"n_rows":2,"n_cols":2,"rows_kept":2,"cut":false,"hidden":true,"merged":[]}
[null,"Date"]
["Climber"]

{"sheet":"Sheet1","index":15,"n_rows":8,"n_cols":3,"rows_kept":8,"cut":false,"hidden":true,"merged":[]}
[]
[]
[]
[null,null,"Sheet with comments"]
[null,null,"Autopopulation"]
[null,null,"Manual vs Automatic"]
[null,null,"Pain Points - where are tests"]
[null,null,"Text message reminders about KPI's"]